Workbook

Sheet LISTAS (hidden)
A2: No. DE ENCUENTROS VIVENCIALES AL MES | E2: EncuentrosContratados | H2: mes | I2: Alistamiento | L2: Generaciones Étnicas con Bienestar | R2: ZONAS DE CONTRATACIÓN | S2: ZONA | U2: Depto | V2: Zona | X2: Depto
A3: 1 | E3: Tradicional | F3: 8 | H3: Enero | I3: Atención | J3: 1 | L3: Programa para la Promoción del Desarrollo de niñas y niños | R3: AMAZONAS | S3: 1 | U3: AMAZONAS | V3: 5 | X3: AMAZONAS
A4: 2 | E4: Rural | F4: 12 | H4: Febrero | I4: Cierre | J4: 2 | R4: ANTIOQUIA | S4: 1 | U4: ANTIOQUIA | V4: 61 | X4: ANTIOQUIA
A5: 3 | E5: Etnico | F5: 12 | H5: Marzo | J5: 3 | R5: ANTIOQUIA | S5: 2 | U5: ANTIOQUIA | V5: 62 | X5: ARAUCA
A6: 4 | E6: Tradicional | F6: 8 | H6: Abril | J6: 4 | L6: Dirección de Infancia | R6: ANTIOQUIA | S6: AP | U6: ANTIOQUIA | V6: 63 | X6: ARCHIPIÉLAGO DE SAN ANDRÉS
A7: 5 | E7: Rural | F7: 12 | H7: Mayo | J7: 5 | L7: Dirección de Adolescencia y Juventud | R7: ARAUCA | S7: 1 | U7: ANTIOQUIA | V7: 64 | X7: ATLÁNTICO
A8: 6 | E8: Etnico | F8: 12 | H8: Junio | R8: ARAUCA | S8: AP | U8: ANTIOQUIA | V8: 65 | X8: BOGOTÁ
A9: 7 | H9: Julio | R9: SAN ANDRÉS | S9: 1 | U9: ANTIOQUIA | V9: 80 | X9: BOLÍVAR
A10: 8 | H10: Agosto | R10: ATLÁNTICO | S10: 1 | U10: ANTIOQUIA | V10: 81 | X10: BOYACÁ
A11: 9 | E11: Tradicional | H11: Septiembre | R11: ATLÁNTICO | S11: 2 | U11: ARAUCA | V11: 66 | X11: CALDAS
A12: 10 | E12: Rural | H12: Octubre | R12: BOGOTÁ | S12: 1 | U12: ARCHIPIÉLAGO DE SAN ANDRÉS | V12: 67 | X12: CAQUETÁ
A13: 11 | E13: Etnico | H13: Noviembre | R13: BOLÍVAR | S13: 1 | U13: ATLÁNTICO | V13: 83 | X13: CASANARE
A14: 12 | H14: Diciembre | R14: BOLÍVAR | S14: 2 | U14: ATLÁNTICO | V14: 85 | X14: CAUCA
A15: 13 | R15: BOLÍVAR | S15: AP | U15: BOGOTÁ | V15: 92 | X15: CESAR
A16: 14 | R16: BOYACÁ | S16: 1 | U16: BOLÍVAR | V16: 26 | X16: CHOCÓ
A17: 15 | R17: BOYACÁ | S17: 2 | U17: BOLÍVAR | V17: 68 | X17: CÓRDOBA
A18: 16 | R18: CALDAS | S18: 1 | U18: BOLÍVAR | V18: 69 | X18: CUNDINAMARCA
A19: 17 | R19: CAQUETÁ | S19: 1 | U19: BOLÍVAR | V19: 70 | X19: GUAINÍA
A20: 18 | R20: CAQUETÁ | S20: AP | U20: BOLÍVAR | V20: 71 | X20: GUAVIARE
A21: 19 | R21: CASANARE | S21: 1 | U21: BOLÍVAR | V21: 91 | X21: HUILA
A22: 20 | R22: CAUCA | S22: 1 | U22: BOYACÁ | V22: 40 | X22: MAGDALENA
R23: CAUCA | S23: 2 | U23: BOYACÁ | V23: 40 | X23: META
R24: CAUCA | S24: AP | U24: BOYACÁ | V24: 41 | X24: NARIÑO
R25: CESAR | S25: 1 | U25: CALDAS | V25: 84 | X25: NORTE DE SANTANDER
R26: CESAR | S26: AP | U26: CALDAS | V26: 90 | X26: PUTUMAYO
R27: CHOCÓ | S27: 1 | U27: CAQUETÁ | V27: 38 | X27: QUINDÍO
R28: CHOCÓ | S28: AP | U28: CAQUETÁ | V28: 39 | X28: RISARALDA
R29: CÓRDOBA | S29: 1 | U29: CASANARE | V29: 37 | X29: SANTANDER
R30: CÓRDOBA | S30: 2 | U30: CAUCA | V30: 6 | X30: SUCRE
R31: CÓRDOBA | S31: AP | U31: CAUCA | V31: 13 | X31: TOLIMA
R32: CUNDINAMARCA | S32: 1 | U32: CAUCA | V32: 14 | X32: VALLE DEL CAUCA
R33: GUAINÍA | S33: 1 | U33: CAUCA | V33: 15 | X33: VAUPÉS
R34: GUAVIARE | S34: 1 | U34: CAUCA | V34: 16 | X34: VICHADA
R35: HUILA | S35: 1 | U35: CESAR | V35: 72
R36: LA GUAJIRA | S36: 1 | U36: CESAR | V36: 73
R37: LA GUAJIRA | S37: AP | U37: CHOCÓ | V37: 53
R38: MAGDALENA | S38: 1 | U38: CHOCÓ | V38: 54
R39: MAGDALENA | S39: 2 | U39: CHOCÓ | V39: 55
R40: META | S40: 1 | U40: CHOCÓ | V40: 56
R41: META | S41: 2 | U41: CHOCÓ | V41: 57
R42: NARIÑO | S42: 1 | U42: CÓRDOBA | V42: 58
R43: NARIÑO | S43: 2 | U43: CÓRDOBA | V43: 59
R44: NARIÑO | S44: AP | U44: CÓRDOBA | V44: 60
R45: NORTE DE SANTANDER | S45: 1 | U45: CÓRDOBA | V45: 88
R46: NORTE DE SANTANDER | S46: 2 | U46: CUNDINAMARCA | V46: 42
R47: NORTE DE SANTANDER | S47: AP | U47: CUNDINAMARCA | V47: 43
R48: PUTUMAYO | S48: 1 | U48: CUNDINAMARCA | V48: 44
R49: QUINDÍO | S49: 1 | U49: CUNDINAMARCA | V49: 45
R50: RISARALDA | S50: 1 | U50: GUAINÍA | V50: 1
R51: SANTANDER | S51: 1 | U51: GUAVIARE | V51: 31
R52: SANTANDER | S52: 2 | U52: HUILA | V52: 49
R53: SUCRE | S53: 1 | U53: HUILA | V53: 50
R54: TOLIMA | S54: 1 | U54: HUILA | V54: 51
R55: TOLIMA | S55: 2 | U55: HUILA | V55: 52
R56: VALLE DEL CAUCA | S56: 1 | U56: MAGDALENA | V56: 32
R57: VALLE DEL CAUCA | S57: 2 | U57: MAGDALENA | V57: 33
R58: VAUPÉS | S58: 1 | U58: MAGDALENA | V58: 34
R59: VICHADA | S59: 1 | U59: MAGDALENA | V59: 35
U60: MAGDALENA | V60: 36
U61: MAGDALENA | V61: 89
U62: META | V62: 27
U63: META | V63: 28
U64: META | V64: 29
U65: META | V65: 30
U66: NARIÑO | V66: 7
U67: NARIÑO | V67: 8
U68: NARIÑO | V68: 9
U69: NARIÑO | V69: 17
U70: NARIÑO | V70: 18
U71: NARIÑO | V71: 19
U72: NORTE DE SANTANDER | V72: 4
U73: NORTE DE SANTANDER | V73: 21
U74: NORTE DE SANTANDER | V74: 22
U75: NORTE DE SANTANDER | V75: 23
U76: PUTUMAYO | V76: 10
U77: PUTUMAYO | V77: 11
U78: PUTUMAYO | V78: 12
U79: QUINDÍO | V79: 86
U80: RISARALDA | V80: 87
U81: SANTANDER | V81: 78
U82: SANTANDER | V82: 79
U83: SUCRE | V83: 20
U84: SUCRE | V84: 24
U85: SUCRE | V85: 25
U86: TOLIMA | V86: 46
U87: TOLIMA | V87: 47
U88: TOLIMA | V88: 48
U89: VALLE DEL CAUCA | V89: 74
U90: VALLE DEL CAUCA | V90: 75
U91: VALLE DEL CAUCA | V91: 76
U92: VALLE DEL CAUCA | V92: 77
U93: VALLE DEL CAUCA | V93: 82
U94: VAUPÉS | V94: 2
U95: VICHADA | V95: 3

Sheet Certificación Supervisor DI
A1: Nombre del Operador:
A2: Numero de contrato :
A3: CERTIFICACION DE COBERTURA (Corresponde al Supervisor) | F3: Mes de Certificación:
A4: =IF(C8="Alistamiento",5,IF(C8="Atención",6,IF(C8="Cierre",8,""))) -> 
A5: Dirección:
A6: Regional:
A7: Zona:
A8: Etapa:
A9: El suscrito supervisor:
A10: Cédula de ciudadanía:
A12: Valor Inicial del Contrato: | C12: Reducciones al contrato: | E12: Adiciones al Contrato: | G12: Valor Total del Contrato: | H12: =B12-D12+F12 -> 0
A13: CERTIFICA:
A14: Mes de Ejecución
A15: Encuentro a realizar * mes | C15: 20
A16: Valor Cupo Mensual según etapa | C16: =IFERROR(VLOOKUP(C6&"_"&C7,costos_mod,A4,0),"") -> 
A17: Valor Unitario Encuentro | C17: =IFERROR(IF(C8="Alistamiento",C16,IF(C8="Atención",C16/C15,IF(C8="Cierre",C16,""))),"") -> 
A18: Cupos Contratados | C18: =IFERROR(VLOOKUP(C6&"_"&C7,costos_mod,9,0),"") -> 
A19: =IF(C8="","",IF(C8="Alistamiento","Cupos Focalizados",IF(C8="Cierre","Participantes actividad",IF(C8="Atención","Niñas y Niños atendidos")))) ->  | C19: 0
A20: Proyección Grupos Contratados | C20: =IFERROR(C18/25,"") -> 
A21: Grupos Constituidos | C21: 0
A22: # ENCUENTRO EN EL MES DE OPERACIÓN | D22: Número de niñas y niños que participaron en cada Encuentro | G22: Subtotales por Encuentro
A24: Encuentros Lectura de Contexto
A25: =IF($C$15<1," ",1) -> 1 | D25: 0 | G25: =IFERROR(IF(A25<($C$15+1),$C$17*D25," "),"") -> 
A26: =IF($C$15<2," ",2) -> 2 | D26: 0 | G26: =IFERROR(IF(A26<($C$15+1),$C$17*D26," "),"") -> 
A27: =IF($C$15<3," ",3) -> 3 | D27: 0
A28: =IF($C$15<4," ",4) -> 4 | D28: 0
A29: =IF($C$15<5," ",5) -> 5 | D29: 0
A30: =IF($C$15<6," ",6) -> 6 | D30: 0
A31: =IF($C$15<7," ",7) -> 7 | D31: 0
A32: =IF($C$15<8," ",8) -> 8 | D32: 0
A33: =IF($C$15<9," ",9) -> 9 | D33: 0
A34: =IF($C$15<10," ",10) -> 10 | D34: 0
A35: Subtotal de asistencias y recurso ejecutado - encuentros de Lectura de Contexto | D35: =SUBTOTAL(109,D25:F34) -> 0 | G35: =SUBTOTAL(9,G25:H34) -> 0
A36: Encuentros transformadores de vida
A37: =IF($C$15<1," ",1) -> 1 | D37: 0 | G37: =IFERROR(IF(A37<($C$15+1),$C$17*D37," "),"") -> 
A38: =IF($C$15<2," ",2) -> 2 | D38: 0 | G38: =IFERROR(IF(A38<($C$15+1),$C$17*D38," "),"") -> 
A39: =IF($C$15<3," ",3) -> 3 | D39: 0
A40: =IF($C$15<4," ",4) -> 4 | D40: 0
A41: =IF($C$15<5," ",5) -> 5 | D41: 0
A42: =IF($C$15<6," ",6) -> 6 | D42: 0
A43: =IF($C$15<7," ",7) -> 7 | D43: 0
A44: =IF($C$15<8," ",8) -> 8 | D44: 0
A45: =IF($C$15<9," ",9) -> 9 | D45: 0
A46: =IF($C$15<10," ",10) -> 10 | D46: 0
A47: =IF($C$15<11," ",11) -> 11 | D47: 0
A48: =IF($C$15<12," ",12) -> 12 | D48: 0
A49: =IF($C$15<13," ",13) -> 13 | D49: 0
A50: =IF($C$15<14," ",14) -> 14 | D50: 0
A51: Subtotal de asistencias y recurso ejecutado - encuentros transformadores de vida | D51: =SUBTOTAL(109,D37:F50) -> 0 | G51: =SUBTOTAL(9,G37:H50) -> 0
A52: Encuentros de iniciativas
A53: =IF($C$15<15," ",15) -> 15 | D53: 0 | G53: =IFERROR(IF(A53<($C$15+1),$C$17*D53," "),"") -> 
A54: =IF($C$15<16," ",16) -> 16 | D54: 0 | G54: =IFERROR(IF(A54<($C$15+1),$C$17*D54," "),"") -> 
A55: Subtotal de asistencias y recurso ejecutado - encuentros de iniciativas | D55: =SUBTOTAL(109,D53:F54) -> 0 | G55: =SUBTOTAL(9,G53:H54) -> 0
A56: Encuentros de prevención de vulneraciones
A57: =IF($C$15<17," ",17) -> 17 | D57: 0 | G57: =IFERROR(IF(A57<($C$15+1),$C$17*D57," "),"") -> 
A58: =IF($C$15<18," ",18) -> 18 | D58: 0
A59: Subtotal de asistencias y recurso ejecutado - encuentros de prevención de vulneraciones | D59: =SUBTOTAL(109,D57:F58) -> 0 | G59: =SUBTOTAL(9,G57:H58) -> 0
A60: Encuentros Colectivos
A61: =IF($C$15<19," ",19) -> 19 | D61: 0 | G61: =IFERROR(IF(A61<($C$15+1),$C$17*D61," "),"") -> 
A62: Subtotal de asistencias y recurso ejecutado - encuentros colectivos | D62: =SUBTOTAL(109,D61) -> 0 | G62: =SUBTOTAL(9,G61) -> 0
A63: Encuentros Intergeneracionales
A64: =IF($C$15<20," ",20) -> 20 | D64: 0 | G64: =IFERROR(IF(A64<($C$15+1),$C$17*D64," "),"") -> 
A65: Subtotal de asistencias y recurso ejecutado - encuentros Intergeneracionales | D65: =SUBTOTAL(109,D64) -> 0 | G65: =SUBTOTAL(9,G64) -> 0
A66: =IF(OR(C8="Alistamiento",C8="Cierre"),"","SUMATORIA ENCUENTROS") -> SUMATORIA ENCUENTROS | D66: =IF(OR(C8="Alistamiento",C8="Cierre"),"",30-(SUM(COUNTIF(D25:F34,0),COUNTIF(D25:F34,""),COUNTIF(D37:F50,0),COUNTIF(D37:F50,""),COUNTIF(D53:F54,0),COUNTIF(D53:F54,""),COUNTIF(D57:F58,0),COUNTIF(D57:F58,""),COUNTIF(D61,0),COUNTIF(D61,""),COUNTIF(D64,0),COUNTIF(D64,""))-56)) -> 0 | E66: VALOR A FACTURAR | H66: =IFERROR(IF(OR(C8="Alistamiento",C8="Cierre"),(C19*C17),IF(C8="Atención",SUM(G35,G51,G55,G59,G62,G65),"")),"") -> 
A67: La presente certificación se expide a los__________días del mes de_________________del año ___________
A69: NOMBRE Y FIRMA DEL SUPERVISOR DEL CONTRATO

Sheet Certificación Operador DI
A1: Nombre del Operador:
A2: Numero de contrato :
A3: CERTIFICACIÓN DE COBERTURA (Corresponde al Operador) | F3: Mes de Certificación:
A4: =IF(C8="Alistamiento",5,IF(C8="Atención",6,IF(C8="Cierre",8,""))) -> 
A5: Dirección:
A6: Regional:
A7: Zona:
A8: Etapa:
A9: El suscrito representante legal:
A10: Cédula de ciudadanía:
A12: Valor Inicial del Contrato: | C12: Reducciones al contrato: | E12: Adiciones al Contrato: | G12: Valor Total del Contrato: | H12: =B12-D12+F12 -> 0
A13: CERTIFICA:
A14: Mes de Ejecución
A15: Encuentro a realizar * mes | C15: 20
A16: Valor Cupo Mensual según etapa | C16: =IFERROR(VLOOKUP(C6&"_"&C7,costos_mod,A4,0),"") -> 
A17: Valor Unitario Encuentro | C17: =IFERROR(IF(C8="Alistamiento",C16,IF(C8="Atención",C16/C15,IF(C8="Cierre",C16,""))),"") -> 
A18: Cupos Contratados | C18: =IFERROR(VLOOKUP(C6&"_"&C7,costos_mod,9,0),"") -> 
A19: =IF(C8="","",IF(C8="Alistamiento","Cupos Focalizados",IF(C8="Cierre","Participantes actividad",IF(C8="Atención","Niñas y Niños atendidos")))) ->  | C19: 0
A20: Proyección Grupos Contratados | C20: =IFERROR(C18/25,"") -> 
A21: Grupos Constituidos | C21: 0
A22: # ENCUENTRO EN EL MES DE OPERACIÓN | D22: Número de niñas y niños que participaron en cada Encuentro | G22: Subtotales por Encuentro
A24: Encuentros Lectura de Contexto
A25: =IF($C$15<1," ",1) -> 1 | D25: 0 | G25: =IFERROR(IF(A25<($C$15+1),$C$17*D25," "),"") -> 
A26: =IF($C$15<2," ",2) -> 2 | D26: 0 | G26: =IFERROR(IF(A26<($C$15+1),$C$17*D26," "),"") -> 
A27: =IF($C$15<3," ",3) -> 3 | D27: 0
A28: =IF($C$15<4," ",4) -> 4 | D28: 0
A29: =IF($C$15<5," ",5) -> 5 | D29: 0
A30: =IF($C$15<6," ",6) -> 6 | D30: 0
A31: =IF($C$15<7," ",7) -> 7 | D31: 0
A32: =IF($C$15<8," ",8) -> 8 | D32: 0
A33: =IF($C$15<9," ",9) -> 9 | D33: 0
A34: =IF($C$15<10," ",10) -> 10 | D34: 0
A35: Subtotal de asistencias y recurso ejecutado - encuentros de Lectura de Contexto | D35: =SUBTOTAL(109,D25:F34) -> 0 | G35: =SUBTOTAL(9,G25:H34) -> 0
A36: Encuentros transformadores de vida
A37: =IF($C$15<1," ",1) -> 1 | D37: 0 | G37: =IFERROR(IF(A37<($C$15+1),$C$17*D37," "),"") -> 
A38: =IF($C$15<2," ",2) -> 2 | D38: 0 | G38: =IFERROR(IF(A38<($C$15+1),$C$17*D38," "),"") -> 
A39: =IF($C$15<3," ",3) -> 3 | D39: 0
A40: =IF($C$15<4," ",4) -> 4 | D40: 0
A41: =IF($C$15<5," ",5) -> 5 | D41: 0
A42: =IF($C$15<6," ",6) -> 6 | D42: 0
A43: =IF($C$15<7," ",7) -> 7 | D43: 0
A44: =IF($C$15<8," ",8) -> 8 | D44: 0
A45: =IF($C$15<9," ",9) -> 9 | D45: 0
A46: =IF($C$15<10," ",10) -> 10 | D46: 0
A47: =IF($C$15<11," ",11) -> 11 | D47: 0
A48: =IF($C$15<12," ",12) -> 12 | D48: 0
A49: =IF($C$15<13," ",13) -> 13 | D49: 0
A50: =IF($C$15<14," ",14) -> 14 | D50: 0
A51: Subtotal de asistencias y recurso ejecutado - encuentros transformadores de vida | D51: =SUBTOTAL(109,D37:F50) -> 0 | G51: =SUBTOTAL(9,G37:H50) -> 0
A52: Encuentros de iniciativas
A53: =IF($C$15<15," ",15) -> 15 | D53: 0 | G53: =IFERROR(IF(A53<($C$15+1),$C$17*D53," "),"") -> 
A54: =IF($C$15<16," ",16) -> 16 | D54: 0 | G54: =IFERROR(IF(A54<($C$15+1),$C$17*D54," "),"") -> 
A55: Subtotal de asistencias y recurso ejecutado - encuentros de iniciativas | D55: =SUBTOTAL(109,D53:F54) -> 0 | G55: =SUBTOTAL(9,G53:H54) -> 0
A56: Encuentros de prevención de vulneraciones
A57: =IF($C$15<17," ",17) -> 17 | D57: 0 | G57: =IFERROR(IF(A57<($C$15+1),$C$17*D57," "),"") -> 
A58: =IF($C$15<18," ",18) -> 18 | D58: 0
A59: Subtotal de asistencias y recurso ejecutado - encuentros de prevención de vulneraciones | D59: =SUBTOTAL(109,D57:F58) -> 0 | G59: =SUBTOTAL(9,G57:H58) -> 0
A60: Encuentros Colectivos
A61: =IF($C$15<19," ",19) -> 19 | D61: 0 | G61: =IFERROR(IF(A61<($C$15+1),$C$17*D61," "),"") -> 
A62: Subtotal de asistencias y recurso ejecutado - encuentros colectivos | D62: =SUBTOTAL(109,D61) -> 0 | G62: =SUBTOTAL(9,G61) -> 0
A63: Encuentros Intergeneracionales
A64: =IF($C$15<20," ",20) -> 20 | D64: 0 | G64: =IFERROR(IF(A64<($C$15+1),$C$17*D64," "),"") -> 
A65: Subtotal de asistencias y recurso ejecutado - encuentros Intergeneracionales | D65: =SUBTOTAL(109,D64) -> 0 | G65: =SUBTOTAL(9,G64) -> 0
A66: =IF(OR(C8="Alistamiento",C8="Cierre"),"","SUMATORIA ENCUENTROS") -> SUMATORIA ENCUENTROS | D66: =IF(OR(C8="Alistamiento",C8="Cierre"),"",30-(SUM(COUNTIF(D25:F34,0),COUNTIF(D25:F34,""),COUNTIF(D37:F50,0),COUNTIF(D37:F50,""),COUNTIF(D53:F54,0),COUNTIF(D53:F54,""),COUNTIF(D57:F58,0),COUNTIF(D57:F58,""),COUNTIF(D61,0),COUNTIF(D61,""),COUNTIF(D64,0),COUNTIF(D64,""))-56)) -> 0 | E66: VALOR A FACTURAR | H66: =IFERROR(IF(OR(C8="Alistamiento",C8="Cierre"),(C19*C17),IF(C8="Atención",SUM(G35,G51,G55,G59,G62,G65),"")),"") -> 
A67: La presente certificación se expide a los__________días del mes de_________________del año ___________
A69: NOMBRE Y FIRMA DEL REPRESENTANTE LEGAL DEL CONTRATO

Sheet Convenciones DI
A1: CERTIFICADO SUPERVISOR
A2: Mes certificación: Seleccione el mes que corresponda
A3: Regional: Seleccione el nombre de la Regional
A4: Zona: Seleccionar la zona a certificar
A5: Etapa: Seleccione la etapa a certificar
A6: El suscrito supervisor y Cédula de ciudadanía: Registre los datos del supervisor
A7: Valor Inicial del Contrato: Registre el valor Inicial del Contrato
A8: Reducciones al Contrato: Registre las reducciones realizadas al contrato
A9: Adiciones al Contrato: Registre las adiciones realizadas al contrato
A10: Valor Total del Contrato: La matriz calcula el valor total del contrato
A11: Mes de Ejecución: Seleccione el mes de ejecucion
A12: Cupos Contratados: Registre el numero de cupos que se contrataron
A13: Grupos Constituidos : Registre el numero de grupos constituidos
A14: Número de niñas y niños atendidos: Registre el numero de niñas y niños que participaron en cada encuentro vivencial. NO puede ser mayor al numero de cupos contratados según columna A20; en caso de que sea mayor la celda se tornará de COLOR ROJO lo que indica que debe corregir la cifra
A15: Sumatoria Encuentros: La matriz determina automáticamente la SUMATORIA de los encuentros vivenciales realizados
A16: Valor a Facturar: La matriz determina automáticamente el VALOR A FACTURAR en el periodo
A17: fecha que se suscribe la certificación: Registre la fecha de expedición del Certificado
A18: Nombre y Firma: Registre el NOMBRE Y FIRMA del Supervisor del Contrato
A19: Nota 1: Es responsabilidad del contratista la validación de las cifras, así como la verificación y manipulación de las formulas
A21: CERTIFICADO OPERADOR
A22: Mes certificación: Seleccione el mes que corresponda
A23: Regional: Seleccione el nombre de la Regional
A24: Zona: Seleccionar la zona a certificar
A25: Etapa: Seleccione la etapa a certificar
A26: El suscrito supervisor y Cédula de ciudadanía: Registre los datos del supervisor
A27: Mes de Ejecución: Seleccione el mes de ejecucion
A28: Cupos Contratados: Registre el numero de cupos que se contrataron
A29: Grupos Constituidos : Registre el numero de grupos constituidos
A30: Número de niñas y niños atendidos: Registre el numero de niñas y niños que participaron en cada encuentro vivencial. NO puede ser mayor al numero de cupos contratados según columna A20; en caso de que sea mayor la celda se tornará de COLOR ROJO lo que indica que debe corregir la cifra
A31: Sumatoria Encuentros: La matriz determina automáticamente la SUMATORIA de los encuentros vivenciales realizados
A32: Valor a Facturar: La matriz determina automáticamente el VALOR A FACTURAR en el periodo
A33: fecha que se suscribe la certificación: Registre la fecha de expedición del Certificado
A34: Nombre y Firma: Registre el NOMBRE Y FIRMA del Supervisor del Contrato
A35: Nota 1: Es responsabilidad del contratista la validación de las cifras, así como la verificación y manipulación de las formulas

Sheet Certificación Supervisor DAyJ
A2: Nombre del Operador:
A3: Numero de contrato :
A5: CERTIFICACION DE COBERTURA (Corresponde al Supervisor) | F5: Mes de Certificación:
A6: Dirección Misional:
A7: Regional:
A8: Zona:
A9: Etapa:
A11: El suscrito supervisor:
A12: Cédula de ciudadanía:
A14: Valor Inicial del Contrato: | C14: Valor Reducciones al contrato: | E14: Valor Adiciones al Contrato: | G14: Valor Total del Contrato: | H14: =B14-D14+F14 -> 0
A16: CERTIFICA
A17: Periodo de ejecución | E17: Fecha de inicio | G17: Fecha de finalización
A18: Encuentros que debe realizar en el mes
A19: Cupos contratados
A20: Valor costo cupo mes
A21: Encuentros realizados
A22: Cupos atendidos
A23: Valor costo variable
A24: VALOR A FACTURAR | G24: =((E20/E18)*E21*E22)-(E23*E22*E21) -> 
A26: La presente certificación se expide a los__________días del mes de_________________del año ___________
A27: NOMBRE Y FIRMA DEL SUPERVISOR DEL CONTRATO

Sheet Hoja1 DAyJ (hidden)
A1: Enero | D1: AMAZONAS
A2: Febrero | D2: ANTIOQUIA
A3: Marzo | D3: ARAUCA
A4: Abril | D4: ATLÁNTICO
A5: Mayo | D5: BOGOTA
A6: Junio | D6: BOLIVAR
A7: Julio | D7: BOYACA
A8: Agosto | D8: CALDAS
A9: Septiembre | D9: CAQUETÁ
A10: Octubre | D10: CASANARE
A11: Noviembre | D11: CAUCA
A12: Diciembre | D12: CESAR
D13: CHOCÓ
D14: CORDOBA
D15: CUNDINAMARCA
D16: GUAINIA
D17: GUAVIARE
D18: HUILA
D19: MAGDALENA
D20: META
D21: NARIÑO
D22: NORTE DE SANTANDER
D23: PUTUMAYO
D24: QUINDIO
D25: RISARALDA
D26: SAN ANDRES
D27: SANTANDER
D28: SUCRE
D29: TOLIMA
D30: VALLE DEL CAUCA
D31: VALLE DEL CAUCA
D32: VAUPES
D33: VICHADA

Sheet Costo AtrapasueñosTotal (hidden)
A1: Dirección | B1: Cod Depto | C1: Depto | D1: Divipola | E1: Municipio | F1: Zona | G1: Cód. Centro Zonal | H1: Nombre Centro Zonal | I1: CUPOS PROPIOS | J1: TIEMPO ETAPA ALISTAMIENTO PROPIOS | K1: TIEMPO ETAPA ATENCION PROPIOS | L1: TIEMPO ETAPA CIERRE PROPIOS | M1: COSTO CUPO ETAPA ALISTAMIENTO PROPIOS | N1: COSTO CUPO ETAPA ATENCION PROPIOS | O1: COSTO CUPO ETAPA CIERRE PROPIOS | P1: PRESUPUESTO ETAPA ALISTAMIENTO PROPIOS | Q1: PRESUPUESTO ETAPA OPERACIÓN PROPIOS | R1: PRESUPUESTO ETAPA CIERRE PROPIOS | S1: TOTAL PRESUPUESTO PROPIOS | T1: CUPOS COMUNITARIOS - URBANO | U1: COSTO CUPO ETAPA ALISTAMIENTO COMUNITARIOS - URBANO | V1: COSTO CUPO ETAPA ATENCIÓN COMUNITARIOS - URBANO | W1: COSTO CUPO ETAPA DE CIERRE COMUNITARIOS - URBANO | X1: TIEMPO ALISTAMIENTO COMUNITARIOS - URBANO | Y1: TIEMPO ATENCION COMUNITARIOS - URBANO | Z1: TIEMPO CIERRE COMUNITARIOS - URBANO | AA1: PRESUPUESTO ETAPA ALISTAMIENTO COMUNITARIOS - URBANO | AB1: PRESUPUESTO ETAPA ATENCIÓN COMUNITARIOS - URBANO | AC1: PRESUPUESTO ETAPA CIERRE COMUNITARIOS - URBANO | AD1: TOTAL PRESUPUESTO COMUNITARIOS - URBANO | AE1: CUPOS COMUNITARIO - RURAL | AF1: COSTO CUPO ETAPA ALISTAMIENTO COMUNITARIO - RURAL | AG1: COSTO CUPO ETAPA ATENCIÓN COMUNITARIO - RURAL | AH1: COSTO CUPO ETAPA DE CIERRE COMUNITARIO - RURAL | AI1: TIEMPO ALISTAMIENTO COMUNITARIO - RURAL | AJ1: TIEMPO ATENCION COMUNITARIO - RURAL | AK1: TIEMPO CIERRE COMUNITARIO - RURAL | AL1: PRESUPUESTO ETAPA ALISTAMIENTO COMUNITARIO - RURAL | AM1: PRESUPUESTO ETAPA ATENCIÓN COMUNITARIO - RURAL | AN1: PRESUPUESTO ETAPA CIERRE COMUNITARIO - RURAL | AO1: TOTAL PRESUPUESTO COMUNITARIO - RURAL | AP1: TOTAL CUPOS ATRAPASUEÑOS | AQ1: TOTAL PRESUSUPESTO ATRAPASUEÑOS
A2: Infancia | B2: 94 | C2: Guainía | D2: 94001 | E2: Inírida | F2: 1 | G2: 9403 | H2: CZ INIRIDA | I2: 0 | J2: 0.5 | K2: 2.75 | L2: 0.25 | M2: 160855 | N2: 266058 | O2: 187762 | P2: 0 | Q2: 0 | R2: 0 | S2: 0 | T2: 625 | U2: 160855 | V2: 266058 | W2: 187762 | X2: 0.5 | Y2: 2.75 | Z2: 0.25 | AA2: 50267188 | AB2: 457287188 | AC2: 29337813 | AD2: 536892189 | AE2: 0 | AF2: 160855 | AG2: 266058 | AH2: 187762 | AI2: 0.5 | AJ2: 2.75 | AK2: 0.25 | AL2: 0 | AM2: 0 | AN2: 0 | AO2: 0 | AP2: 625 | AQ2: 536892189 | AR2: =T2*U2 -> 100534375 | AS2: =T2*V2 -> 166286250 | AT2: =T2*W2 -> 117351250
A3: Adolescencia y Juventud | B3: 94 | C3: Guainía | D3: 94001 | E3: Inírida | F3: 1 | G3: 9403 | H3: CZ INIRIDA | I3: 0 | J3: 0.5 | K3: 3 | L3: - | M3: 0 | N3: 0 | O3: 0 | P3: 0 | Q3: 0 | R3: 0 | S3: 0 | T3: 400 | U3: 221993 | V3: 564326 | W3: 0 | X3: 0.5 | Y3: 3 | Z3: - | AA3: 44398600 | AB3: 677191200 | AC3: 0 | AD3: 721589800 | AE3: 0 | AF3: 0 | AG3: 0 | AH3: 0 | AI3: - | AJ3: - | AK3: - | AL3: 0 | AM3: 0 | AN3: 0 | AO3: 0 | AP3: 400 | AQ3: 721589800
A4: Infancia | B4: 94 | C4: Guainía | D4: 94343 | E4: Barrancominas | F4: 1 | G4: 9403 | H4: CZ INIRIDA | I4: 0 | J4: 0.5 | K4: 2.75 | L4: 0.25 | M4: 160855 | N4: 266058 | O4: 187762 | P4: 0 | Q4: 0 | R4: 0 | S4: 0 | T4: 100 | U4: 160855 | V4: 266058 | W4: 187762 | X4: 0.5 | Y4: 2.75 | Z4: 0.25 | AA4: 8042750 | AB4: 73165950 | AC4: 4694050 | AD4: 85902750 | AE4: 0 | AF4: 160855 | AG4: 266058 | AH4: 187762 | AI4: 0.5 | AJ4: 2.75 | AK4: 0.25 | AL4: 0 | AM4: 0 | AN4: 0 | AO4: 0 | AP4: 100 | AQ4: 85902750
A5: Adolescencia y Juventud | B5: 94 | C5: Guainía | D5: 94343 | E5: Barrancominas | F5: 1 | G5: 9403 | H5: CZ INIRIDA | I5: 0 | J5: 0.5 | K5: 3 | L5: - | M5: 0 | N5: 0 | O5: 0 | P5: 0 | Q5: 0 | R5: 0 | S5: 0 | T5: 100 | U5: 221993 | V5: 564326 | W5: 0 | X5: 0.5 | Y5: 3 | Z5: - | AA5: 11099650 | AB5: 169297800 | AC5: 0 | AD5: 180397450 | AE5: 0 | AF5: 0 | AG5: 0 | AH5: 0 | AI5: - | AJ5: - | AK5: - | AL5: 0 | AM5: 0 | AN5: 0 | AO5: 0 | AP5: 100 | AQ5: 180397450
A6: Infancia | B6: 94 | C6: Guainía | D6: 94663 | E6: Mapiripana (CD) | F6: 1 | G6: 9403 | H6: CZ INIRIDA | I6: 0 | J6: 0.5 | K6: 2.75 | L6: 0.25 | M6: 160855 | N6: 266058 | O6: 187762 | P6: 0 | Q6: 0 | R6: 0 | S6: 0 | T6: 0 | U6: 160855 | V6: 266058 | W6: 187762 | X6: 0.5 | Y6: 2.75 | Z6: 0.25 | AA6: 0 | AB6: 0 | AC6: 0 | AD6: 0 | AE6: 0 | AF6: 160855 | AG6: 266058 | AH6: 187762 | AI6: 0.5 | AJ6: 2.75 | AK6: 0.25 | AL6: 0 | AM6: 0 | AN6: 0 | AO6: 0 | AP6: 0 | AQ6: 0
A7: Infancia | B7: 94 | C7: Guainía | D7: 94883 | E7: San Felipe (CD) | F7: 1 | G7: 9403 | H7: CZ INIRIDA | I7: 0 | J7: 0.5 | K7: 2.75 | L7: 0.25 | M7: 160855 | N7: 266058 | O7: 187762 | P7: 0 | Q7: 0 | R7: 0 | S7: 0 | T7: 0 | U7: 160855 | V7: 266058 | W7: 187762 | X7: 0.5 | Y7: 2.75 | Z7: 0.25 | AA7: 0 | AB7: 0 | AC7: 0 | AD7: 0 | AE7: 0 | AF7: 160855 | AG7: 266058 | AH7: 187762 | AI7: 0.5 | AJ7: 2.75 | AK7: 0.25 | AL7: 0 | AM7: 0 | AN7: 0 | AO7: 0 | AP7: 0 | AQ7: 0
A8: Infancia | B8: 94 | C8: Guainía | D8: 94884 | E8: Puerto Colombia (CD) | F8: 1 | G8: 9403 | H8: CZ INIRIDA | I8: 0 | J8: 0.5 | K8: 2.75 | L8: 0.25 | M8: 160855 | N8: 266058 | O8: 187762 | P8: 0 | Q8: 0 | R8: 0 | S8: 0 | T8: 0 | U8: 160855 | V8: 266058 | W8: 187762 | X8: 0.5 | Y8: 2.75 | Z8: 0.25 | AA8: 0 | AB8: 0 | AC8: 0 | AD8: 0 | AE8: 0 | AF8: 160855 | AG8: 266058 | AH8: 187762 | AI8: 0.5 | AJ8: 2.75 | AK8: 0.25 | AL8: 0 | AM8: 0 | AN8: 0 | AO8: 0 | AP8: 0 | AQ8: 0
A9: Infancia | B9: 94 | C9: Guainía | D9: 94885 | E9: La Guadalupe (CD) | F9: 1 | G9: 9403 | H9: CZ INIRIDA | I9: 0 | J9: 0.5 | K9: 2.75 | L9: 0.25 | M9: 160855 | N9: 266058 | O9: 187762 | P9: 0 | Q9: 0 | R9: 0 | S9: 0 | T9: 0 | U9: 160855 | V9: 266058 | W9: 187762 | X9: 0.5 | Y9: 2.75 | Z9: 0.25 | AA9: 0 | AB9: 0 | AC9: 0 | AD9: 0 | AE9: 0 | AF9: 160855 | AG9: 266058 | AH9: 187762 | AI9: 0.5 | AJ9: 2.75 | AK9: 0.25 | AL9: 0 | AM9: 0 | AN9: 0 | AO9: 0 | AP9: 0 | AQ9: 0
A10: Infancia | B10: 94 | C10: Guainía | D10: 94886 | E10: Cacahual (CD) | F10: 1 | G10: 9403 | H10: CZ INIRIDA | I10: 0 | J10: 0.5 | K10: 2.75 | L10: 0.25 | M10: 160855 | N10: 266058 | O10: 187762 | P10: 0 | Q10: 0 | R10: 0 | S10: 0 | T10: 0 | U10: 160855 | V10: 266058 | W10: 187762 | X10: 0.5 | Y10: 2.75 | Z10: 0.25 | AA10: 0 | AB10: 0 | AC10: 0 | AD10: 0 | AE10: 0 | AF10: 160855 | AG10: 266058 | AH10: 187762 | AI10: 0.5 | AJ10: 2.75 | AK10: 0.25 | AL10: 0 | AM10: 0 | AN10: 0 | AO10: 0 | AP10: 0 | AQ10: 0
A11: Infancia | B11: 94 | C11: Guainía | D11: 94887 | E11: Pana Pana (CD) | F11: 1 | G11: 9403 | H11: CZ INIRIDA | I11: 0 | J11: 0.5 | K11: 2.75 | L11: 0.25 | M11: 160855 | N11: 266058 | O11: 187762 | P11: 0 | Q11: 0 | R11: 0 | S11: 0 | T11: 0 | U11: 160855 | V11: 266058 | W11: 187762 | X11: 0.5 | Y11: 2.75 | Z11: 0.25 | AA11: 0 | AB11: 0 | AC11: 0 | AD11: 0 | AE11: 0 | AF11: 160855 | AG11: 266058 | AH11: 187762 | AI11: 0.5 | AJ11: 2.75 | AK11: 0.25 | AL11: 0 | AM11: 0 | AN11: 0 | AO11: 0 | AP11: 0 | AQ11: 0
A12: Infancia | B12: 94 | C12: Guainía | D12: 94888 | E12: Morichal (CD) | F12: 1 | G12: 9403 | H12: CZ INIRIDA | I12: 0 | J12: 0.5 | K12: 2.75 | L12: 0.25 | M12: 160855 | N12: 266058 | O12: 187762 | P12: 0 | Q12: 0 | R12: 0 | S12: 0 | T12: 0 | U12: 160855 | V12: 266058 | W12: 187762 | X12: 0.5 | Y12: 2.75 | Z12: 0.25 | AA12: 0 | AB12: 0 | AC12: 0 | AD12: 0 | AE12: 0 | AF12: 160855 | AG12: 266058 | AH12: 187762 | AI12: 0.5 | AJ12: 2.75 | AK12: 0.25 | AL12: 0 | AM12: 0 | AN12: 0 | AO12: 0 | AP12: 0 | AQ12: 0
A13: Infancia | B13: 97 | C13: Vaupés | D13: 97001 | E13: Mitú | F13: 2 | G13: 9704 | H13: CZ MITU | I13: 0 | J13: 0.5 | K13: 2.75 | L13: 0.25 | M13: 164844 | N13: 267945 | O13: 190022 | P13: 0 | Q13: 0 | R13: 0 | S13: 0 | T13: 150 | U13: 164844 | V13: 267945 | W13: 190022 | X13: 0.5 | Y13: 2.75 | Z13: 0.25 | AA13: 12363300 | AB13: 110527313 | AC13: 7125825 | AD13: 130016438 | AE13: 0 | AF13: 164844 | AG13: 267945 | AH13: 190022 | AI13: 0.5 | AJ13: 2.75 | AK13: 0.25 | AL13: 0 | AM13: 0 | AN13: 0 | AO13: 0 | AP13: 150 | AQ13: 130016438
A14: Adolescencia y Juventud | B14: 97 | C14: Vaupés | D14: 97001 | E14: Mitú | F14: 2 | G14: 9704 | H14: CZ MITU | I14: 0 | J14: 0.5 | K14: 3 | L14: - | M14: 0 | N14: 0 | O14: 0 | P14: 0 | Q14: 0 | R14: 0 | S14: 0 | T14: 300 | U14: 231764 | V14: 572015 | W14: 0 | X14: 0.5 | Y14: 3 | Z14: - | AA14: 34764600 | AB14: 514813500 | AC14: 0 | AD14: 549578100 | AE14: 0 | AF14: 0 | AG14: 0 | AH14: 0 | AI14: - | AJ14: - | AK14: - | AL14: 0 | AM14: 0 | AN14: 0 | AO14: 0 | AP14: 300 | AQ14: 549578100
A15: Infancia | B15: 97 | C15: Vaupés | D15: 97161 | E15: Carurú | F15: 2 | G15: 9704 | H15: CZ MITU | I15: 0 | J15: 0.5 | K15: 2.75 | L15: 0.25 | M15: 164844 | N15: 267945 | O15: 190022 | P15: 0 | Q15: 0 | R15: 0 | S15: 0 | T15: 100 | U15: 164844 | V15: 267945 | W15: 190022 | X15: 0.5 | Y15: 2.75 | Z15: 0.25 | AA15: 8242200 | AB15: 73684875 | AC15: 4750550 | AD15: 86677625 | AE15: 0 | AF15: 164844 | AG15: 267945 | AH15: 190022 | AI15: 0.5 | AJ15: 2.75 | AK15: 0.25 | AL15: 0 | AM15: 0 | AN15: 0 | AO15: 0 | AP15: 100 | AQ15: 86677625
A16: Adolescencia y Juventud | B16: 97 | C16: Vaupés | D16: 97161 | E16: Carurú | F16: 2 | G16: 9704 | H16: CZ MITU | I16: 0 | J16: 0.5 | K16: 3 | L16: - | M16: 0 | N16: 0 | O16: 0 | P16: 0 | Q16: 0 | R16: 0 | S16: 0 | T16: 100 | U16: 231764 | V16: 572015 | W16: 0 | X16: 0.5 | Y16: 3 | Z16: - | AA16: 11588200 | AB16: 171604500 | AC16: 0 | AD16: 183192700 | AE16: 0 | AF16: 0 | AG16: 0 | AH16: 0 | AI16: - | AJ16: - | AK16: - | AL16: 0 | AM16: 0 | AN16: 0 | AO16: 0 | AP16: 100 | AQ16: 183192700
A17: Infancia | B17: 97 | C17: Vaupés | D17: 97511 | E17: Pacoa (CD) | F17: 2 | G17: 9704 | H17: CZ MITU | I17: 0 | J17: 0.5 | K17: 2.75 | L17: 0.25 | M17: 164844 | N17: 267945 | O17: 190022 | P17: 0 | Q17: 0 | R17: 0 | S17: 0 | T17: 50 | U17: 164844 | V17: 267945 | W17: 190022 | X17: 0.5 | Y17: 2.75 | Z17: 0.25 | AA17: 4121100 | AB17: 36842438 | AC17: 2375275 | AD17: 43338813 | AE17: 0 | AF17: 164844 | AG17: 267945 | AH17: 190022 | AI17: 0.5 | AJ17: 2.75 | AK17: 0.25 | AL17: 0 | AM17: 0 | AN17: 0 | AO17: 0 | AP17: 50 | AQ17: 43338813
A18: Infancia | B18: 97 | C18: Vaupés | D18: 97666 | E18: Taraira | F18: 2 | G18: 9704 | H18: CZ MITU | I18: 0 | J18: 0.5 | K18: 2.75 | L18: 0.25 | M18: 164844 | N18: 267945 | O18: 190022 | P18: 0 | Q18: 0 | R18: 0 | S18: 0 | T18: 100 | U18: 164844 | V18: 267945 | W18: 190022 | X18: 0.5 | Y18: 2.75 | Z18: 0.25 | AA18: 8242200 | AB18: 73684875 | AC18: 4750550 | AD18: 86677625 | AE18: 0 | AF18: 164844 | AG18: 267945 | AH18: 190022 | AI18: 0.5 | AJ18: 2.75 | AK18: 0.25 | AL18: 0 | AM18: 0 | AN18: 0 | AO18: 0 | AP18: 100 | AQ18: 86677625
A19: Infancia | B19: 97 | C19: Vaupés | D19: 97777 | E19: Papunahua (CD) | F19: 2 | G19: 9704 | H19: CZ MITU | I19: 0 | J19: 0.5 | K19: 2.75 | L19: 0.25 | M19: 164844 | N19: 267945 | O19: 190022 | P19: 0 | Q19: 0 | R19: 0 | S19: 0 | T19: 0 | U19: 164844 | V19: 267945 | W19: 190022 | X19: 0.5 | Y19: 2.75 | Z19: 0.25 | AA19: 0 | AB19: 0 | AC19: 0 | AD19: 0 | AE19: 0 | AF19: 164844 | AG19: 267945 | AH19: 190022 | AI19: 0.5 | AJ19: 2.75 | AK19: 0.25 | AL19: 0 | AM19: 0 | AN19: 0 | AO19: 0 | AP19: 0 | AQ19: 0
A20: Infancia | B20: 97 | C20: Vaupés | D20: 97889 | E20: Yavaraté (CD) | F20: 2 | G20: 9704 | H20: CZ MITU | I20: 0 | J20: 0.5 | K20: 2.75 | L20: 0.25 | M20: 164844 | N20: 267945 | O20: 190022 | P20: 0 | Q20: 0 | R20: 0 | S20: 0 | T20: 50 | U20: 164844 | V20: 267945 | W20: 190022 | X20: 0.5 | Y20: 2.75 | Z20: 0.25 | AA20: 4121100 | AB20: 36842438 | AC20: 2375275 | AD20: 43338813 | AE20: 0 | AF20: 164844 | AG20: 267945 | AH20: 190022 | AI20: 0.5 | AJ20: 2.75 | AK20: 0.25 | AL20: 0 | AM20: 0 | AN20: 0 | AO20: 0 | AP20: 50 | AQ20: 43338813
A21: Infancia | B21: 99 | C21: Vichada | D21: 99001 | E21: Puerto Carreño | F21: 3 | G21: 9902 | H21: CZ PUERTO CARREÑO | I21: 50 | J21: 0.5 | K21: 2.75 | L21: 0.25 | M21: 159000 | N21: 263657 | O21: 185618 | P21: 3975000 | Q21: 36252838 | R21: 2320225 | S21: 42548063 | T21: 100 | U21: 159000 | V21: 263657 | W21: 185618 | X21: 0.5 | Y21: 2.75 | Z21: 0.25 | AA21: 7950000 | AB21: 72505675 | AC21: 4640450 | AD21: 85096125 | AE21: 0 | AF21: 159000 | AG21: 263657 | AH21: 185618 | AI21: 0.5 | AJ21: 2.75 | AK21: 0.25 | AL21: 0 | AM21: 0 | AN21: 0 | AO21: 0 | AP21: 150 | AQ21: 127644188
A22: Adolescencia y Juventud | B22: 99 | C22: Vichada | D22: 99001 | E22: Puerto Carreño | F22: 3 | G22: 9902 | H22: CZ PUERTO CARREÑO | I22: 180 | J22: 0.5 | K22: 3 | L22: - | M22: 195285 | N22: 653352 | O22: 0 | P22: 17575650 | Q22: 352810080 | R22: 0 | S22: 370385730 | T22: - | U22: 231764 | V22: 572015 | W22: 0 | X22: 0.5 | Y22: 3 | Z22: - | AA22: 0 | AB22: 0 | AC22: 0 | AD22: 0 | AE22: 0 | AF22: 0 | AG22: 0 | AH22: 0 | AI22: - | AJ22: - | AK22: - | AL22: 0 | AM22: 0 | AN22: 0 | AO22: 0 | AP22: 180 | AQ22: 370385730
A23: Infancia | B23: 99 | C23: Vichada | D23: 99524 | E23: La Primavera | F23: 3 | G23: 9902 | H23: CZ PUERTO CARREÑO | I23: 0 | J23: 0.5 | K23: 2.75 | L23: 0.25 | M23: 159000 | N23: 263657 | O23: 185618 | P23: 0 | Q23: 0 | R23: 0 | S23: 0 | T23: 100 | U23: 159000 | V23: 263657 | W23: 185618 | X23: 0.5 | Y23: 2.75 | Z23: 0.25 | AA23: 7950000 | AB23: 72505675 | AC23: 4640450 | AD23: 85096125 | AE23: 0 | AF23: 159000 | AG23: 263657 | AH23: 185618 | AI23: 0.5 | AJ23: 2.75 | AK23: 0.25 | AL23: 0 | AM23: 0 | AN23: 0 | AO23: 0 | AP23: 100 | AQ23: 85096125
A24: Adolescencia y Juventud | B24: 99 | C24: Vichada | D24: 99524 | E24: La Primavera | F24: 3 | G24: 9902 | H24: CZ PUERTO CARREÑO | I24: 0 | J24: 0.5 | K24: 3 | L24: - | M24: 0 | N24: 0 | O24: 0 | P24: 0 | Q24: 0 | R24: 0 | S24: 0 | T24: 200 | U24: 231764 | V24: 572015 | W24: 0 | X24: 0.5 | Y24: 3 | Z24: - | AA24: 23176400 | AB24: 343209000 | AC24: 0 | AD24: 366385400 | AE24: 0 | AF24: 0 | AG24: 0 | AH24: 0 | AI24: - | AJ24: - | AK24: - | AL24: 0 | AM24: 0 | AN24: 0 | AO24: 0 | AP24: 200 | AQ24: 366385400
A25: Infancia | B25: 99 | C25: Vichada | D25: 99624 | E25: Santa Rosalía | F25: 3 | G25: 9902 | H25: CZ PUERTO CARREÑO | I25: 0 | J25: 0.5 | K25: 2.75 | L25: 0.25 | M25: 159000 | N25: 263657 | O25: 185618 | P25: 0 | Q25: 0 | R25: 0 | S25: 0 | T25: 50 | U25: 159000 | V25: 263657 | W25: 185618 | X25: 0.5 | Y25: 2.75 | Z25: 0.25 | AA25: 3975000 | AB25: 36252838 | AC25: 2320225 | AD25: 42548063 | AE25: 0 | AF25: 159000 | AG25: 263657 | AH25: 185618 | AI25: 0.5 | AJ25: 2.75 | AK25: 0.25 | AL25: 0 | AM25: 0 | AN25: 0 | AO25: 0 | AP25: 50 | AQ25: 42548063
A26: Infancia | B26: 99 | C26: Vichada | D26: 99773 | E26: Cumaribo | F26: 3 | G26: 9403 | H26: CZ INIRIDA | I26: 0 | J26: 0.5 | K26: 2.75 | L26: 0.25 | M26: 159000 | N26: 263657 | O26: 185618 | P26: 0 | Q26: 0 | R26: 0 | S26: 0 | T26: 100 | U26: 159000 | V26: 263657 | W26: 185618 | X26: 0.5 | Y26: 2.75 | Z26: 0.25 | AA26: 7950000 | AB26: 72505675 | AC26: 4640450 | AD26: 85096125 | AE26: 0 | AF26: 159000 | AG26: 263657 | AH26: 185618 | AI26: 0.5 | AJ26: 2.75 | AK26: 0.25 | AL26: 0 | AM26: 0 | AN26: 0 | AO26: 0 | AP26: 100 | AQ26: 85096125
A27: Adolescencia y Juventud | B27: 99 | C27: Vichada | D27: 99773 | E27: Cumaribo | F27: 3 | G27: 9403 | H27: CZ INIRIDA | I27: 0 | J27: 0.5 | K27: 3 | L27: - | M27: 0 | N27: 0 | O27: 0 | P27: 0 | Q27: 0 | R27: 0 | S27: 0 | T27: 200 | U27: 231764 | V27: 572015 | W27: 0 | X27: 0.5 | Y27: 3 | Z27: - | AA27: 23176400 | AB27: 343209000 | AC27: 0 | AD27: 366385400 | AE27: 0 | AF27: 0 | AG27: 0 | AH27: 0 | AI27: - | AJ27: - | AK27: - | AL27: 0 | AM27: 0 | AN27: 0 | AO27: 0 | AP27: 200 | AQ27: 366385400
A28: Infancia | B28: 54 | C28: Norte de Santander | D28: 54250 | E28: El Tarra | F28: 4 | G28: 5406 | H28: CZ TIBU | I28: 0 | J28: 0.5 | K28: 2.75 | L28: 0.25 | M28: 159000 | N28: 242371 | O28: 178156 | P28: 0 | Q28: 0 | R28: 0 | S28: 0 | T28: 225 | U28: 159000 | V28: 242371 | W28: 178156 | X28: 0.5 | Y28: 2.75 | Z28: 0.25 | AA28: 17887500 | AB28: 149967056 | AC28: 10021275 | AD28: 177875831 | AE28: 25 | AF28: 159000 | AG28: 242371 | AH28: 178156 | AI28: 0.5 | AJ28: 2.75 | AK28: 0.25 | AL28: 1987500 | AM28: 16663006 | AN28: 1113475 | AO28: 19763981 | AP28: 250 | AQ28: 197639812
A29: Infancia | B29: 54 | C29: Norte de Santander | D29: 54810 | E29: Tibú | F29: 4 | G29: 5406 | H29: CZ TIBU | I29: 0 | J29: 0.5 | K29: 2.75 | L29: 0.25 | M29: 159000 | N29: 242371 | O29: 178156 | P29: 0 | Q29: 0 | R29: 0 | S29: 0 | T29: 175 | U29: 159000 | V29: 242371 | W29: 178156 | X29: 0.5 | Y29: 2.75 | Z29: 0.25 | AA29: 13912500 | AB29: 116641044 | AC29: 7794325 | AD29: 138347869 | AE29: 25 | AF29: 159000 | AG29: 242371 | AH29: 178156 | AI29: 0.5 | AJ29: 2.75 | AK29: 0.25 | AL29: 1987500 | AM29: 16663006 | AN29: 1113475 | AO29: 19763981 | AP29: 200 | AQ29: 158111850
A30: Infancia | B30: 91 | C30: Amazonas | D30: 91001 | E30: Leticia | F30: 5 | G30: 9102 | H30: CZ LETICIA | I30: 0 | J30: 0.5 | K30: 2.75 | L30: 0.25 | M30: 161505 | N30: 266330 | O30: 187506 | P30: 0 | Q30: 0 | R30: 0 | S30: 0 | T30: 475 | U30: 161505 | V30: 266330 | W30: 187506 | X30: 0.5 | Y30: 2.75 | Z30: 0.25 | AA30: 38357438 | AB30: 347893563 | AC30: 22266338 | AD30: 408517339 | AE30: 25 | AF30: 161505 | AG30: 266330 | AH30: 187506 | AI30: 0.5 | AJ30: 2.75 | AK30: 0.25 | AL30: 2018813 | AM30: 18310188 | AN30: 1171913 | AO30: 21500914 | AP30: 500 | AQ30: 430018253
A31: Adolescencia y Juventud | B31: 91 | C31: Amazonas | D31: 91001 | E31: Leticia | F31: 5 | G31: 9102 | H31: CZ LETICIA | I31: 0 | J31: 0.5 | K31: 3 | L31: - | M31: 0 | N31: 0 | O31: 0 | P31: 0 | Q31: 0 | R31: 0 | S31: 0 | T31: 300 | U31: 221993 | V31: 564326 | W31: 0 | X31: 0.5 | Y31: 3 | Z31: - | AA31: 33298950 | AB31: 507893400 | AC31: 0 | AD31: 541192350 | AE31: 0 | AF31: 0 | AG31: 0 | AH31: 0 | AI31: - | AJ31: - | AK31: - | AL31: 0 | AM31: 0 | AN31: 0 | AO31: 0 | AP31: 300 | AQ31: 541192350
A32: Infancia | B32: 91 | C32: Amazonas | D32: 91263 | E32: El Encanto (CD) | F32: 5 | G32: 9102 | H32: CZ LETICIA | I32: 0 | J32: 0.5 | K32: 2.75 | L32: 0.25 | M32: 161505 | N32: 266330 | O32: 187506 | P32: 0 | Q32: 0 | R32: 0 | S32: 0 | T32: 0 | U32: 161505 | V32: 266330 | W32: 187506 | X32: 0.5 | Y32: 2.75 | Z32: 0.25 | AA32: 0 | AB32: 0 | AC32: 0 | AD32: 0 | AE32: 0 | AF32: 161505 | AG32: 266330 | AH32: 187506 | AI32: 0.5 | AJ32: 2.75 | AK32: 0.25 | AL32: 0 | AM32: 0 | AN32: 0 | AO32: 0 | AP32: 0 | AQ32: 0
A33: Infancia | B33: 91 | C33: Amazonas | D33: 91405 | E33: La Chorrera (CD) | F33: 5 | G33: 9102 | H33: CZ LETICIA | I33: 0 | J33: 0.5 | K33: 2.75 | L33: 0.25 | M33: 161505 | N33: 266330 | O33: 187506 | P33: 0 | Q33: 0 | R33: 0 | S33: 0 | T33: 100 | U33: 161505 | V33: 266330 | W33: 187506 | X33: 0.5 | Y33: 2.75 | Z33: 0.25 | AA33: 8075250 | AB33: 73240750 | AC33: 4687650 | AD33: 86003650 | AE33: 0 | AF33: 161505 | AG33: 266330 | AH33: 187506 | AI33: 0.5 | AJ33: 2.75 | AK33: 0.25 | AL33: 0 | AM33: 0 | AN33: 0 | AO33: 0 | AP33: 100 | AQ33: 86003650
A34: Infancia | B34: 91 | C34: Amazonas | D34: 91407 | E34: La Pedrera (CD) | F34: 5 | G34: 9102 | H34: CZ LETICIA | I34: 0 | J34: 0.5 | K34: 2.75 | L34: 0.25 | M34: 161505 | N34: 266330 | O34: 187506 | P34: 0 | Q34: 0 | R34: 0 | S34: 0 | T34: 100 | U34: 161505 | V34: 266330 | W34: 187506 | X34: 0.5 | Y34: 2.75 | Z34: 0.25 | AA34: 8075250 | AB34: 73240750 | AC34: 4687650 | AD34: 86003650 | AE34: 0 | AF34: 161505 | AG34: 266330 | AH34: 187506 | AI34: 0.5 | AJ34: 2.75 | AK34: 0.25 | AL34: 0 | AM34: 0 | AN34: 0 | AO34: 0 | AP34: 100 | AQ34: 86003650
A35: Infancia | B35: 91 | C35: Amazonas | D35: 91430 | E35: La Victoria (CD) | F35: 5 | G35: 9102 | H35: CZ LETICIA | I35: 0 | J35: 0.5 | K35: 2.75 | L35: 0.25 | M35: 161505 | N35: 266330 | O35: 187506 | P35: 0 | Q35: 0 | R35: 0 | S35: 0 | T35: 0 | U35: 161505 | V35: 266330 | W35: 187506 | X35: 0.5 | Y35: 2.75 | Z35: 0.25 | AA35: 0 | AB35: 0 | AC35: 0 | AD35: 0 | AE35: 0 | AF35: 161505 | AG35: 266330 | AH35: 187506 | AI35: 0.5 | AJ35: 2.75 | AK35: 0.25 | AL35: 0 | AM35: 0 | AN35: 0 | AO35: 0 | AP35: 0 | AQ35: 0
A36: Infancia | B36: 91 | C36: Amazonas | D36: 91460 | E36: Miriti - Paraná (CD) | F36: 5 | G36: 9102 | H36: CZ LETICIA | I36: 0 | J36: 0.5 | K36: 2.75 | L36: 0.25 | M36: 161505 | N36: 266330 | O36: 187506 | P36: 0 | Q36: 0 | R36: 0 | S36: 0 | T36: 0 | U36: 161505 | V36: 266330 | W36: 187506 | X36: 0.5 | Y36: 2.75 | Z36: 0.25 | AA36: 0 | AB36: 0 | AC36: 0 | AD36: 0 | AE36: 0 | AF36: 161505 | AG36: 266330 | AH36: 187506 | AI36: 0.5 | AJ36: 2.75 | AK36: 0.25 | AL36: 0 | AM36: 0 | AN36: 0 | AO36: 0 | AP36: 0 | AQ36: 0
A37: Infancia | B37: 91 | C37: Amazonas | D37: 91530 | E37: Puerto Alegría (CD) | F37: 5 | G37: 9102 | H37: CZ LETICIA | I37: 0 | J37: 0.5 | K37: 2.75 | L37: 0.25 | M37: 161505 | N37: 266330 | O37: 187506 | P37: 0 | Q37: 0 | R37: 0 | S37: 0 | T37: 0 | U37: 161505 | V37: 266330 | W37: 187506 | X37: 0.5 | Y37: 2.75 | Z37: 0.25 | AA37: 0 | AB37: 0 | AC37: 0 | AD37: 0 | AE37: 0 | AF37: 161505 | AG37: 266330 | AH37: 187506 | AI37: 0.5 | AJ37: 2.75 | AK37: 0.25 | AL37: 0 | AM37: 0 | AN37: 0 | AO37: 0 | AP37: 0 | AQ37: 0
A38: Infancia | B38: 91 | C38: Amazonas | D38: 91536 | E38: Puerto Arica (CD) | F38: 5 | G38: 9102 | H38: CZ LETICIA | I38: 0 | J38: 0.5 | K38: 2.75 | L38: 0.25 | M38: 161505 | N38: 266330 | O38: 187506 | P38: 0 | Q38: 0 | R38: 0 | S38: 0 | T38: 0 | U38: 161505 | V38: 266330 | W38: 187506 | X38: 0.5 | Y38: 2.75 | Z38: 0.25 | AA38: 0 | AB38: 0 | AC38: 0 | AD38: 0 | AE38: 0 | AF38: 161505 | AG38: 266330 | AH38: 187506 | AI38: 0.5 | AJ38: 2.75 | AK38: 0.25 | AL38: 0 | AM38: 0 | AN38: 0 | AO38: 0 | AP38: 0 | AQ38: 0
A39: Infancia | B39: 91 | C39: Amazonas | D39: 91540 | E39: Puerto Nariño | F39: 5 | G39: 9102 | H39: CZ LETICIA | I39: 0 | J39: 0.5 | K39: 2.75 | L39: 0.25 | M39: 161505 | N39: 266330 | O39: 187506 | P39: 0 | Q39: 0 | R39: 0 | S39: 0 | T39: 250 | U39: 161505 | V39: 266330 | W39: 187506 | X39: 0.5 | Y39: 2.75 | Z39: 0.25 | AA39: 20188125 | AB39: 183101875 | AC39: 11719125 | AD39: 215009125 | AE39: 0 | AF39: 161505 | AG39: 266330 | AH39: 187506 | AI39: 0.5 | AJ39: 2.75 | AK39: 0.25 | AL39: 0 | AM39: 0 | AN39: 0 | AO39: 0 | AP39: 250 | AQ39: 215009125
A40: Adolescencia y Juventud | B40: 91 | C40: Amazonas | D40: 91540 | E40: Puerto Nariño | F40: 5 | G40: 9102 | H40: CZ LETICIA | I40: 0 | J40: 0.5 | K40: 3 | L40: - | M40: 0 | N40: 0 | O40: 0 | P40: 0 | Q40: 0 | R40: 0 | S40: 0 | T40: 150 | U40: 221993 | V40: 564326 | W40: 0 | X40: 0.5 | Y40: 3 | Z40: - | AA40: 16649475 | AB40: 253946700 | AC40: 0 | AD40: 270596175 | AE40: 0 | AF40: 0 | AG40: 0 | AH40: 0 | AI40: - | AJ40: - | AK40: - | AL40: 0 | AM40: 0 | AN40: 0 | AO40: 0 | AP40: 150 | AQ40: 270596175
A41: Infancia | B41: 91 | C41: Amazonas | D41: 91669 | E41: Puerto Santander (CD) | F41: 5 | G41: 9102 | H41: CZ LETICIA | I41: 0 | J41: 0.5 | K41: 2.75 | L41: 0.25 | M41: 161505 | N41: 266330 | O41: 187506 | P41: 0 | Q41: 0 | R41: 0 | S41: 0 | T41: 0 | U41: 161505 | V41: 266330 | W41: 187506 | X41: 0.5 | Y41: 2.75 | Z41: 0.25 | AA41: 0 | AB41: 0 | AC41: 0 | AD41: 0 | AE41: 0 | AF41: 161505 | AG41: 266330 | AH41: 187506 | AI41: 0.5 | AJ41: 2.75 | AK41: 0.25 | AL41: 0 | AM41: 0 | AN41: 0 | AO41: 0 | AP41: 0 | AQ41: 0
A42: Infancia | B42: 91 | C42: Amazonas | D42: 91798 | E42: Tarapacá (CD) | F42: 5 | G42: 9102 | H42: CZ LETICIA | I42: 0 | J42: 0.5 | K42: 2.75 | L42: 0.25 | M42: 161505 | N42: 266330 | O42: 187506 | P42: 0 | Q42: 0 | R42: 0 | S42: 0 | T42: 100 | U42: 161505 | V42: 266330 | W42: 187506 | X42: 0.5 | Y42: 2.75 | Z42: 0.25 | AA42: 8075250 | AB42: 73240750 | AC42: 4687650 | AD42: 86003650 | AE42: 0 | AF42: 161505 | AG42: 266330 | AH42: 187506 | AI42: 0.5 | AJ42: 2.75 | AK42: 0.25 | AL42: 0 | AM42: 0 | AN42: 0 | AO42: 0 | AP42: 100 | AQ42: 86003650
A43: Adolescencia y Juventud | B43: 91 | C43: Amazonas | D43: 91798 | E43: Tarapacá (CD) | F43: 5 | G43: 9102 | H43: CZ LETICIA | I43: 0 | J43: 0.5 | K43: 3 | L43: - | M43: 0 | N43: 0 | O43: 0 | P43: 0 | Q43: 0 | R43: 0 | S43: 0 | T43: 50 | U43: 221993 | V43: 564326 | W43: 0 | X43: 0.5 | Y43: 3 | Z43: - | AA43: 5549825 | AB43: 84648900 | AC43: 0 | AD43: 90198725 | AE43: 0 | AF43: 0 | AG43: 0 | AH43: 0 | AI43: - | AJ43: - | AK43: - | AL43: 0 | AM43: 0 | AN43: 0 | AO43: 0 | AP43: 50 | AQ43: 90198725
A44: Infancia | B44: 19 | C44: Cauca | D44: 19318 | E44: Guapi | F44: 6 | G44: 1907 | H44: CZ COSTA PACIFICA | I44: 0 | J44: 0.5 | K44: 2.75 | L44: 0.25 | M44: 159000 | N44: 241283 | O44: 177770 | P44: 0 | Q44: 0 | R44: 0 | S44: 0 | T44: 150 | U44: 159000 | V44: 241283 | W44: 177770 | X44: 0.5 | Y44: 2.75 | Z44: 0.25 | AA44: 11925000 | AB44: 99529238 | AC44: 6666375 | AD44: 118120613 | AE44: 0 | AF44: 159000 | AG44: 241283 | AH44: 177770 | AI44: 0.5 | AJ44: 2.75 | AK44: 0.25 | AL44: 0 | AM44: 0 | AN44: 0 | AO44: 0 | AP44: 150 | AQ44: 118120613
A45: Infancia | B45: 19 | C45: Cauca | D45: 19418 | E45: López de Micay | F45: 6 | G45: 1907 | H45: CZ COSTA PACIFICA | I45: 0 | J45: 0.5 | K45: 2.75 | L45: 0.25 | M45: 159000 | N45: 241283 | O45: 177770 | P45: 0 | Q45: 0 | R45: 0 | S45: 0 | T45: 100 | U45: 159000 | V45: 241283 | W45: 177770 | X45: 0.5 | Y45: 2.75 | Z45: 0.25 | AA45: 7950000 | AB45: 66352825 | AC45: 4444250 | AD45: 78747075 | AE45: 0 | AF45: 159000 | AG45: 241283 | AH45: 177770 | AI45: 0.5 | AJ45: 2.75 | AK45: 0.25 | AL45: 0 | AM45: 0 | AN45: 0 | AO45: 0 | AP45: 100 | AQ45: 78747075
A46: Infancia | B46: 19 | C46: Cauca | D46: 19809 | E46: Timbiquí | F46: 6 | G46: 1907 | H46: CZ COSTA PACIFICA | I46: 0 | J46: 0.5 | K46: 2.75 | L46: 0.25 | M46: 159000 | N46: 241283 | O46: 177770 | P46: 0 | Q46: 0 | R46: 0 | S46: 0 | T46: 200 | U46: 159000 | V46: 241283 | W46: 177770 | X46: 0.5 | Y46: 2.75 | Z46: 0.25 | AA46: 15900000 | AB46: 132705650 | AC46: 8888500 | AD46: 157494150 | AE46: 0 | AF46: 159000 | AG46: 241283 | AH46: 177770 | AI46: 0.5 | AJ46: 2.75 | AK46: 0.25 | AL46: 0 | AM46: 0 | AN46: 0 | AO46: 0 | AP46: 200 | AQ46: 157494150
A47: Infancia | B47: 52 | C47: Nariño | D47: 52079 | E47: Barbacoas | F47: 7 | G47: 5207 | H47: CZ BARBACOAS | I47: 0 | J47: 0.5 | K47: 2.75 | L47: 0.25 | M47: 159739 | N47: 240858 | O47: 178058 | P47: 0 | Q47: 0 | R47: 0 | S47: 0 | T47: 200 | U47: 159739 | V47: 240858 | W47: 178058 | X47: 0.5 | Y47: 2.75 | Z47: 0.25 | AA47: 15973900 | AB47: 132471900 | AC47: 8902900 | AD47: 157348700 | AE47: 0 | AF47: 159739 | AG47: 240858 | AH47: 178058 | AI47: 0.5 | AJ47: 2.75 | AK47: 0.25 | AL47: 0 | AM47: 0 | AN47: 0 | AO47: 0 | AP47: 200 | AQ47: 157348700
A48: Infancia | B48: 52 | C48: Nariño | D48: 52427 | E48: Magüí | F48: 7 | G48: 5207 | H48: CZ BARBACOAS | I48: 0 | J48: 0.5 | K48: 2.75 | L48: 0.25 | M48: 159739 | N48: 240858 | O48: 178058 | P48: 0 | Q48: 0 | R48: 0 | S48: 0 | T48: 50 | U48: 159739 | V48: 240858 | W48: 178058 | X48: 0.5 | Y48: 2.75 | Z48: 0.25 | AA48: 3993475 | AB48: 33117975 | AC48: 2225725 | AD48: 39337175 | AE48: 0 | AF48: 159739 | AG48: 240858 | AH48: 178058 | AI48: 0.5 | AJ48: 2.75 | AK48: 0.25 | AL48: 0 | AM48: 0 | AN48: 0 | AO48: 0 | AP48: 50 | AQ48: 39337175
A49: Infancia | B49: 52 | C49: Nariño | D49: 52621 | E49: Roberto Payán | F49: 7 | G49: 5207 | H49: CZ BARBACOAS | I49: 0 | J49: 0.5 | K49: 2.75 | L49: 0.25 | M49: 159739 | N49: 240858 | O49: 178058 | P49: 0 | Q49: 0 | R49: 0 | S49: 0 | T49: 100 | U49: 159739 | V49: 240858 | W49: 178058 | X49: 0.5 | Y49: 2.75 | Z49: 0.25 | AA49: 7986950 | AB49: 66235950 | AC49: 4451450 | AD49: 78674350 | AE49: 0 | AF49: 159739 | AG49: 240858 | AH49: 178058 | AI49: 0.5 | AJ49: 2.75 | AK49: 0.25 | AL49: 0 | AM49: 0 | AN49: 0 | AO49: 0 | AP49: 100 | AQ49: 78674350
A50: Infancia | B50: 52 | C50: Nariño | D50: 52250 | E50: El Charco | F50: 8 | G50: 5203 | H50: CZ TUMACO | I50: 0 | J50: 0.5 | K50: 2.75 | L50: 0.25 | M50: 159739 | N50: 240858 | O50: 178058 | P50: 0 | Q50: 0 | R50: 0 | S50: 0 | T50: 150 | U50: 159739 | V50: 240858 | W50: 178058 | X50: 0.5 | Y50: 2.75 | Z50: 0.25 | AA50: 11980425 | AB50: 99353925 | AC50: 6677175 | AD50: 118011525 | AE50: 0 | AF50: 159739 | AG50: 240858 | AH50: 178058 | AI50: 0.5 | AJ50: 2.75 | AK50: 0.25 | AL50: 0 | AM50: 0 | AN50: 0 | AO50: 0 | AP50: 150 | AQ50: 118011525
A51: Infancia | B51: 52 | C51: Nariño | D51: 52390 | E51: La Tola | F51: 8 | G51: 5203 | H51: CZ TUMACO | I51: 0 | J51: 0.5 | K51: 2.75 | L51: 0.25 | M51: 159739 | N51: 240858 | O51: 178058 | P51: 0 | Q51: 0 | R51: 0 | S51: 0 | T51: 75 | U51: 159739 | V51: 240858 | W51: 178058 | X51: 0.5 | Y51: 2.75 | Z51: 0.25 | AA51: 5990213 | AB51: 49676963 | AC51: 3338588 | AD51: 59005764 | AE51: 25 | AF51: 159739 | AG51: 240858 | AH51: 178058 | AI51: 0.5 | AJ51: 2.75 | AK51: 0.25 | AL51: 1996738 | AM51: 16558988 | AN51: 1112863 | AO51: 19668589 | AP51: 100 | AQ51: 78674353
A52: Infancia | B52: 52 | C52: Nariño | D52: 52473 | E52: Mosquera | F52: 8 | G52: 5203 | H52: CZ TUMACO | I52: 0 | J52: 0.5 | K52: 2.75 | L52: 0.25 | M52: 159739 | N52: 240858 | O52: 178058 | P52: 0 | Q52: 0 | R52: 0 | S52: 0 | T52: 25 | U52: 159739 | V52: 240858 | W52: 178058 | X52: 0.5 | Y52: 2.75 | Z52: 0.25 | AA52: 1996738 | AB52: 16558988 | AC52: 1112863 | AD52: 19668589 | AE52: 25 | AF52: 159739 | AG52: 240858 | AH52: 178058 | AI52: 0.5 | AJ52: 2.75 | AK52: 0.25 | AL52: 1996738 | AM52: 16558988 | AN52: 1112863 | AO52: 19668589 | AP52: 50 | AQ52: 39337178
A53: Infancia | B53: 52 | C53: Nariño | D53: 52490 | E53: Olaya Herrera | F53: 8 | G53: 5203 | H53: CZ TUMACO | I53: 0 | J53: 0.5 | K53: 2.75 | L53: 0.25 | M53: 159739 | N53: 240858 | O53: 178058 | P53: 0 | Q53: 0 | R53: 0 | S53: 0 | T53: 175 | U53: 159739 | V53: 240858 | W53: 178058 | X53: 0.5 | Y53: 2.75 | Z53: 0.25 | AA53: 13977163 | AB53: 115912913 | AC53: 7790038 | AD53: 137680114 | AE53: 25 | AF53: 159739 | AG53: 240858 | AH53: 178058 | AI53: 0.5 | AJ53: 2.75 | AK53: 0.25 | AL53: 1996738 | AM53: 16558988 | AN53: 1112863 | AO53: 19668589 | AP53: 200 | AQ53: 157348703
A54: Infancia | B54: 52 | C54: Nariño | D54: 52520 | E54: Francisco Pizarro | F54: 8 | G54: 5203 | H54: CZ TUMACO | I54: 0 | J54: 0.5 | K54: 2.75 | L54: 0.25 | M54: 159739 | N54: 240858 | O54: 178058 | P54: 0 | Q54: 0 | R54: 0 | S54: 0 | T54: 175 | U54: 159739 | V54: 240858 | W54: 178058 | X54: 0.5 | Y54: 2.75 | Z54: 0.25 | AA54: 13977163 | AB54: 115912913 | AC54: 7790038 | AD54: 137680114 | AE54: 25 | AF54: 159739 | AG54: 240858 | AH54: 178058 | AI54: 0.5 | AJ54: 2.75 | AK54: 0.25 | AL54: 1996738 | AM54: 16558988 | AN54: 1112863 | AO54: 19668589 | AP54: 200 | AQ54: 157348703
A55: Infancia | B55: 52 | C55: Nariño | D55: 52696 | E55: Santa Bárbara | F55: 8 | G55: 1907 | H55: CZ COSTA PACIFICA | I55: 0 | J55: 0.5 | K55: 2.75 | L55: 0.25 | M55: 159739 | N55: 240858 | O55: 178058 | P55: 0 | Q55: 0 | R55: 0 | S55: 0 | T55: 150 | U55: 159739 | V55: 240858 | W55: 178058 | X55: 0.5 | Y55: 2.75 | Z55: 0.25 | AA55: 11980425 | AB55: 99353925 | AC55: 6677175 | AD55: 118011525 | AE55: 0 | AF55: 159739 | AG55: 240858 | AH55: 178058 | AI55: 0.5 | AJ55: 2.75 | AK55: 0.25 | AL55: 0 | AM55: 0 | AN55: 0 | AO55: 0 | AP55: 150 | AQ55: 118011525
A56: Infancia | B56: 52 | C56: Nariño | D56: 52835 | E56: San Andrés de Tumaco | F56: 8 | G56: 5203 | H56: CZ TUMACO | I56: 0 | J56: 0.5 | K56: 2.75 | L56: 0.25 | M56: 159739 | N56: 240858 | O56: 178058 | P56: 0 | Q56: 0 | R56: 0 | S56: 0 | T56: 450 | U56: 159739 | V56: 240858 | W56: 178058 | X56: 0.5 | Y56: 2.75 | Z56: 0.25 | AA56: 35941275 | AB56: 298061775 | AC56: 20031525 | AD56: 354034575 | AE56: 0 | AF56: 159739 | AG56: 240858 | AH56: 178058 | AI56: 0.5 | AJ56: 2.75 | AK56: 0.25 | AL56: 0 | AM56: 0 | AN56: 0 | AO56: 0 | AP56: 450 | AQ56: 354034575
A57: Infancia | B57: 52 | C57: Nariño | D57: 52051 | E57: Arboleda | F57: 9 | G57: 5206 | H57: CZ LA UNION | I57: 0 | J57: 0.5 | K57: 2.75 | L57: 0.25 | M57: 159739 | N57: 240858 | O57: 178058 | P57: 0 | Q57: 0 | R57: 0 | S57: 0 | T57: 50 | U57: 159739 | V57: 240858 | W57: 178058 | X57: 0.5 | Y57: 2.75 | Z57: 0.25 | AA57: 3993475 | AB57: 33117975 | AC57: 2225725 | AD57: 39337175 | AE57: 0 | AF57: 159739 | AG57: 240858 | AH57: 178058 | AI57: 0.5 | AJ57: 2.75 | AK57: 0.25 | AL57: 0 | AM57: 0 | AN57: 0 | AO57: 0 | AP57: 50 | AQ57: 39337175
A58: Infancia | B58: 52 | C58: Nariño | D58: 52083 | E58: Belén | F58: 9 | G58: 5206 | H58: CZ LA UNION | I58: 0 | J58: 0.5 | K58: 2.75 | L58: 0.25 | M58: 159739 | N58: 240858 | O58: 178058 | P58: 0 | Q58: 0 | R58: 0 | S58: 0 | T58: 50 | U58: 159739 | V58: 240858 | W58: 178058 | X58: 0.5 | Y58: 2.75 | Z58: 0.25 | AA58: 3993475 | AB58: 33117975 | AC58: 2225725 | AD58: 39337175 | AE58: 0 | AF58: 159739 | AG58: 240858 | AH58: 178058 | AI58: 0.5 | AJ58: 2.75 | AK58: 0.25 | AL58: 0 | AM58: 0 | AN58: 0 | AO58: 0 | AP58: 50 | AQ58: 39337175
A59: Infancia | B59: 52 | C59: Nariño | D59: 52203 | E59: Colón | F59: 9 | G59: 5206 | H59: CZ LA UNION | I59: 0 | J59: 0.5 | K59: 2.75 | L59: 0.25 | M59: 159739 | N59: 240858 | O59: 178058 | P59: 0 | Q59: 0 | R59: 0 | S59: 0 | T59: 50 | U59: 159739 | V59: 240858 | W59: 178058 | X59: 0.5 | Y59: 2.75 | Z59: 0.25 | AA59: 3993475 | AB59: 33117975 | AC59: 2225725 | AD59: 39337175 | AE59: 0 | AF59: 159739 | AG59: 240858 | AH59: 178058 | AI59: 0.5 | AJ59: 2.75 | AK59: 0.25 | AL59: 0 | AM59: 0 | AN59: 0 | AO59: 0 | AP59: 50 | AQ59: 39337175
A60: Infancia | B60: 52 | C60: Nariño | D60: 52233 | E60: Cumbitara | F60: 9 | G60: 5208 | H60: CZ REMOLINO | I60: 0 | J60: 0.5 | K60: 2.75 | L60: 0.25 | M60: 159739 | N60: 240858 | O60: 178058 | P60: 0 | Q60: 0 | R60: 0 | S60: 0 | T60: 100 | U60: 159739 | V60: 240858 | W60: 178058 | X60: 0.5 | Y60: 2.75 | Z60: 0.25 | AA60: 7986950 | AB60: 66235950 | AC60: 4451450 | AD60: 78674350 | AE60: 0 | AF60: 159739 | AG60: 240858 | AH60: 178058 | AI60: 0.5 | AJ60: 2.75 | AK60: 0.25 | AL60: 0 | AM60: 0 | AN60: 0 | AO60: 0 | AP60: 100 | AQ60: 78674350
A61: Infancia | B61: 52 | C61: Nariño | D61: 52256 | E61: El Rosario | F61: 9 | G61: 5208 | H61: CZ REMOLINO | I61: 0 | J61: 0.5 | K61: 2.75 | L61: 0.25 | M61: 159739 | N61: 240858 | O61: 178058 | P61: 0 | Q61: 0 | R61: 0 | S61: 0 | T61: 75 | U61: 159739 | V61: 240858 | W61: 178058 | X61: 0.5 | Y61: 2.75 | Z61: 0.25 | AA61: 5990213 | AB61: 49676963 | AC61: 3338588 | AD61: 59005764 | AE61: 0 | AF61: 159739 | AG61: 240858 | AH61: 178058 | AI61: 0.5 | AJ61: 2.75 | AK61: 0.25 | AL61: 0 | AM61: 0 | AN61: 0 | AO61: 0 | AP61: 75 | AQ61: 59005764
A62: Infancia | B62: 52 | C62: Nariño | D62: 52378 | E62: La Cruz | F62: 9 | G62: 5206 | H62: CZ LA UNION | I62: 0 | J62: 0.5 | K62: 2.75 | L62: 0.25 | M62: 159739 | N62: 240858 | O62: 178058 | P62: 0 | Q62: 0 | R62: 0 | S62: 0 | T62: 0 | U62: 159739 | V62: 240858 | W62: 178058 | X62: 0.5 | Y62: 2.75 | Z62: 0.25 | AA62: 0 | AB62: 0 | AC62: 0 | AD62: 0 | AE62: 0 | AF62: 159739 | AG62: 240858 | AH62: 178058 | AI62: 0.5 | AJ62: 2.75 | AK62: 0.25 | AL62: 0 | AM62: 0 | AN62: 0 | AO62: 0 | AP62: 0 | AQ62: 0
A63: Infancia | B63: 52 | C63: Nariño | D63: 52399 | E63: La Unión | F63: 9 | G63: 5206 | H63: CZ LA UNION | I63: 0 | J63: 0.5 | K63: 2.75 | L63: 0.25 | M63: 159739 | N63: 240858 | O63: 178058 | P63: 0 | Q63: 0 | R63: 0 | S63: 0 | T63: 100 | U63: 159739 | V63: 240858 | W63: 178058 | X63: 0.5 | Y63: 2.75 | Z63: 0.25 | AA63: 7986950 | AB63: 66235950 | AC63: 4451450 | AD63: 78674350 | AE63: 0 | AF63: 159739 | AG63: 240858 | AH63: 178058 | AI63: 0.5 | AJ63: 2.75 | AK63: 0.25 | AL63: 0 | AM63: 0 | AN63: 0 | AO63: 0 | AP63: 100 | AQ63: 78674350
A64: Infancia | B64: 52 | C64: Nariño | D64: 52405 | E64: Leiva | F64: 9 | G64: 5208 | H64: CZ REMOLINO | I64: 0 | J64: 0.5 | K64: 2.75 | L64: 0.25 | M64: 159739 | N64: 240858 | O64: 178058 | P64: 0 | Q64: 0 | R64: 0 | S64: 0 | T64: 25 | U64: 159739 | V64: 240858 | W64: 178058 | X64: 0.5 | Y64: 2.75 | Z64: 0.25 | AA64: 1996738 | AB64: 16558988 | AC64: 1112863 | AD64: 19668589 | AE64: 25 | AF64: 159739 | AG64: 240858 | AH64: 178058 | AI64: 0.5 | AJ64: 2.75 | AK64: 0.25 | AL64: 1996738 | AM64: 16558988 | AN64: 1112863 | AO64: 19668589 | AP64: 50 | AQ64: 39337178
A65: Infancia | B65: 52 | C65: Nariño | D65: 52540 | E65: Policarpa | F65: 9 | G65: 5208 | H65: CZ REMOLINO | I65: 0 | J65: 0.5 | K65: 2.75 | L65: 0.25 | M65: 159739 | N65: 240858 | O65: 178058 | P65: 0 | Q65: 0 | R65: 0 | S65: 0 | T65: 125 | U65: 159739 | V65: 240858 | W65: 178058 | X65: 0.5 | Y65: 2.75 | Z65: 0.25 | AA65: 9983688 | AB65: 82794938 | AC65: 5564313 | AD65: 98342939 | AE65: 0 | AF65: 159739 | AG65: 240858 | AH65: 178058 | AI65: 0.5 | AJ65: 2.75 | AK65: 0.25 | AL65: 0 | AM65: 0 | AN65: 0 | AO65: 0 | AP65: 125 | AQ65: 98342939
A66: Infancia | B66: 52 | C66: Nariño | D66: 52687 | E66: San Lorenzo | F66: 9 | G66: 5206 | H66: CZ LA UNION | I66: 0 | J66: 0.5 | K66: 2.75 | L66: 0.25 | M66: 159739 | N66: 240858 | O66: 178058 | P66: 0 | Q66: 0 | R66: 0 | S66: 0 | T66: 50 | U66: 159739 | V66: 240858 | W66: 178058 | X66: 0.5 | Y66: 2.75 | Z66: 0.25 | AA66: 3993475 | AB66: 33117975 | AC66: 2225725 | AD66: 39337175 | AE66: 0 | AF66: 159739 | AG66: 240858 | AH66: 178058 | AI66: 0.5 | AJ66: 2.75 | AK66: 0.25 | AL66: 0 | AM66: 0 | AN66: 0 | AO66: 0 | AP66: 50 | AQ66: 39337175
A67: Infancia | B67: 52 | C67: Nariño | D67: 52693 | E67: San Pablo | F67: 9 | G67: 5206 | H67: CZ LA UNION | I67: 0 | J67: 0.5 | K67: 2.75 | L67: 0.25 | M67: 159739 | N67: 240858 | O67: 178058 | P67: 0 | Q67: 0 | R67: 0 | S67: 0 | T67: 100 | U67: 159739 | V67: 240858 | W67: 178058 | X67: 0.5 | Y67: 2.75 | Z67: 0.25 | AA67: 7986950 | AB67: 66235950 | AC67: 4451450 | AD67: 78674350 | AE67: 0 | AF67: 159739 | AG67: 240858 | AH67: 178058 | AI67: 0.5 | AJ67: 2.75 | AK67: 0.25 | AL67: 0 | AM67: 0 | AN67: 0 | AO67: 0 | AP67: 100 | AQ67: 78674350
A68: Infancia | B68: 52 | C68: Nariño | D68: 52694 | E68: San Pedro de Cartago | F68: 9 | G68: 5206 | H68: CZ LA UNION | I68: 0 | J68: 0.5 | K68: 2.75 | L68: 0.25 | M68: 159739 | N68: 240858 | O68: 178058 | P68: 0 | Q68: 0 | R68: 0 | S68: 0 | T68: 50 | U68: 159739 | V68: 240858 | W68: 178058 | X68: 0.5 | Y68: 2.75 | Z68: 0.25 | AA68: 3993475 | AB68: 33117975 | AC68: 2225725 | AD68: 39337175 | AE68: 0 | AF68: 159739 | AG68: 240858 | AH68: 178058 | AI68: 0.5 | AJ68: 2.75 | AK68: 0.25 | AL68: 0 | AM68: 0 | AN68: 0 | AO68: 0 | AP68: 50 | AQ68: 39337175
A69: Infancia | B69: 52 | C69: Nariño | D69: 52786 | E69: Taminango | F69: 9 | G69: 5208 | H69: CZ REMOLINO | I69: 0 | J69: 0.5 | K69: 2.75 | L69: 0.25 | M69: 159739 | N69: 240858 | O69: 178058 | P69: 0 | Q69: 0 | R69: 0 | S69: 0 | T69: 50 | U69: 159739 | V69: 240858 | W69: 178058 | X69: 0.5 | Y69: 2.75 | Z69: 0.25 | AA69: 3993475 | AB69: 33117975 | AC69: 2225725 | AD69: 39337175 | AE69: 0 | AF69: 159739 | AG69: 240858 | AH69: 178058 | AI69: 0.5 | AJ69: 2.75 | AK69: 0.25 | AL69: 0 | AM69: 0 | AN69: 0 | AO69: 0 | AP69: 50 | AQ69: 39337175
A70: Infancia | B70: 86 | C70: Putumayo | D70: 86219 | E70: Colón | F70: 10 | G70: 8602 | H70: CZ SIBUNDOY | I70: 0 | J70: 0.5 | K70: 2.75 | L70: 0.25 | M70: 159000 | N70: 262967 | O70: 185618 | P70: 0 | Q70: 0 | R70: 0 | S70: 0 | T70: 50 | U70: 159000 | V70: 262967 | W70: 185618 | X70: 0.5 | Y70: 2.75 | Z70: 0.25 | AA70: 3975000 | AB70: 36157963 | AC70: 2320225 | AD70: 42453188 | AE70: 0 | AF70: 159000 | AG70: 262967 | AH70: 185618 | AI70: 0.5 | AJ70: 2.75 | AK70: 0.25 | AL70: 0 | AM70: 0 | AN70: 0 | AO70: 0 | AP70: 50 | AQ70: 42453188
A71: Infancia | B71: 86 | C71: Putumayo | D71: 86568 | E71: Puerto Asís | F71: 10 | G71: 8603 | H71: CZ PUERTO ASIS | I71: 0 | J71: 0.5 | K71: 2.75 | L71: 0.25 | M71: 159000 | N71: 262967 | O71: 185618 | P71: 0 | Q71: 0 | R71: 0 | S71: 0 | T71: 200 | U71: 159000 | V71: 262967 | W71: 185618 | X71: 0.5 | Y71: 2.75 | Z71: 0.25 | AA71: 15900000 | AB71: 144631850 | AC71: 9280900 | AD71: 169812750 | AE71: 0 | AF71: 159000 | AG71: 262967 | AH71: 185618 | AI71: 0.5 | AJ71: 2.75 | AK71: 0.25 | AL71: 0 | AM71: 0 | AN71: 0 | AO71: 0 | AP71: 200 | AQ71: 169812750
A72: Adolescencia y Juventud | B72: 86 | C72: Putumayo | D72: 86568 | E72: Puerto Asís | F72: 10 | G72: 8603 | H72: CZ PUERTO ASIS | I72: 0 | J72: 0.5 | K72: 3 | L72: - | M72: 0 | N72: 0 | O72: 0 | P72: 0 | Q72: 0 | R72: 0 | S72: 0 | T72: 100 | U72: 194760 | V72: 535549 | W72: 0 | X72: 0.5 | Y72: 3 | Z72: - | AA72: 9738000 | AB72: 160664700 | AC72: 0 | AD72: 170402700 | AE72: 0 | AF72: 0 | AG72: 0 | AH72: 0 | AI72: - | AJ72: - | AK72: - | AL72: 0 | AM72: 0 | AN72: 0 | AO72: 0 | AP72: 100 | AQ72: 170402700
A73: Infancia | B73: 86 | C73: Putumayo | D73: 86569 | E73: Puerto Caicedo | F73: 10 | G73: 8603 | H73: CZ PUERTO ASIS | I73: 0 | J73: 0.5 | K73: 2.75 | L73: 0.25 | M73: 159000 | N73: 262967 | O73: 185618 | P73: 0 | Q73: 0 | R73: 0 | S73: 0 | T73: 75 | U73: 159000 | V73: 262967 | W73: 185618 | X73: 0.5 | Y73: 2.75 | Z73: 0.25 | AA73: =+T73*U73*X73 -> 5962500 | AB73: =+T73*V73*Y73 -> 54236943.75 | AC73: =+T73*W73*Z73 -> 3480337.5 | AD73: =+AA73+AB73+AC73 -> 63679781.25 | AE73: 25 | AF73: 159000 | AG73: 262967 | AH73: 185618 | AI73: 0.5 | AJ73: 2.75 | AK73: 0.25 | AL73: =+AE73*AF73*AI73 -> 1987500 | AM73: =+AE73*AG73*AJ73 -> 18078981.25 | AN73: =+AE73*AH73*AK73 -> 1160112.5 | AO73: =+AL73+AM73+AN73 -> 21226593.75 | AP73: 100 | AQ73: =+AO73+AD73+S73 -> 84906375
A74: Adolescencia y Juventud | B74: 86 | C74: Putumayo | D74: 86569 | E74: Puerto Caicedo | F74: 10 | G74: 8603 | H74: CZ PUERTO ASIS | I74: 0 | J74: 0.5 | K74: 3 | L74: - | M74: 0 | N74: 0 | O74: 0 | P74: 0 | Q74: 0 | R74: 0 | S74: 0 | T74: 200 | U74: 194760 | V74: 535549 | W74: 0 | X74: 0.5 | Y74: 3 | Z74: - | AA74: =+T74*U74*X74 -> 19476000 | AB74: =+T74*V74*Y74 -> 321329400 | AC74: 0 | AD74: =+AA74+AB74+AC74 -> 340805400 | AE74: 0 | AF74: 0 | AG74: 0 | AH74: 0 | AI74: - | AJ74: - | AK74: - | AL74: 0 | AM74: 0 | AN74: 0 | AO74: 0 | AP74: 200 | AQ74: =+AD74+S74 -> 340805400
A75: Infancia | B75: 86 | C75: Putumayo | D75: 86573 | E75: Puerto Leguízamo | F75: 10 | G75: 8603 | H75: CZ PUERTO ASIS | I75: 0 | J75: 0.5 | K75: 2.75 | L75: 0.25 | M75: 159000 | N75: 262967 | O75: 185618 | P75: 0 | Q75: 0 | R75: 0 | S75: 0 | T75: 200 | U75: 159000 | V75: 262967 | W75: 185618 | X75: 0.5 | Y75: 2.75 | Z75: 0.25 | AA75: =+T75*U75*X75 -> 15900000 | AB75: =+T75*V75*Y75 -> 144631850 | AC75: =+T75*W75*Z75 -> 9280900 | AD75: =+AA75+AB75+AC75 -> 169812750 | AE75: 0 | AF75: 159000 | AG75: 262967 | AH75: 185618 | AI75: 0.5 | AJ75: 2.75 | AK75: 0.25 | AL75: 0 | AM75: 0 | AN75: 0 | AO75: =+AL75+AM75+AN75 -> 0 | AP75: 200 | AQ75: =+AO75+AD75+S75 -> 169812750
A76: Adolescencia y Juventud | B76: 86 | C76: Putumayo | D76: 86573 | E76: Puerto Leguízamo | F76: 10 | G76: 8603 | H76: CZ PUERTO ASIS | I76: 0 | J76: 0.5 | K76: 3 | L76: - | M76: 0 | N76: 0 | O76: 0 | P76: 0 | Q76: 0 | R76: 0 | S76: 0 | T76: 100 | U76: 194760 | V76: 535549 | W76: 0 | X76: 0.5 | Y76: 3 | Z76: - | AA76: =+T76*U76*X76 -> 9738000 | AB76: =+T76*V76*Y76 -> 160664700 | AC76: 0 | AD76: =+AA76+AB76+AC76 -> 170402700 | AE76: 0 | AF76: 0 | AG76: 0 | AH76: 0 | AI76: - | AJ76: - | AK76: - | AL76: 0 | AM76: 0 | AN76: 0 | AO76: 0 | AP76: 100 | AQ76: =+AD76+S76 -> 170402700
A77: Infancia | B77: 86 | C77: Putumayo | D77: 86749 | E77: Sibundoy | F77: 10 | G77: 8602 | H77: CZ SIBUNDOY | I77: 0 | J77: 0.5 | K77: 2.75 | L77: 0.25 | M77: 159000 | N77: 262967 | O77: 185618 | P77: 0 | Q77: 0 | R77: 0 | S77: 0 | T77: 75 | U77: 159000 | V77: 262967 | W77: 185618 | X77: 0.5 | Y77: 2.75 | Z77: 0.25 | AA77: 5962500 | AB77: 54236944 | AC77: 3480338 | AD77: 63679782 | AE77: 0 | AF77: 159000 | AG77: 262967 | AH77: 185618 | AI77: 0.5 | AJ77: 2.75 | AK77: 0.25 | AL77: 0 | AM77: 0 | AN77: 0 | AO77: 0 | AP77: 75 | AQ77: 63679782
A78: Infancia | B78: 86 | C78: Putumayo | D78: 86755 | E78: San Francisco | F78: 10 | G78: 8602 | H78: CZ SIBUNDOY | I78: 0 | J78: 0.5 | K78: 2.75 | L78: 0.25 | M78: 159000 | N78: 262967 | O78: 185618 | P78: 0 | Q78: 0 | R78: 0 | S78: 0 | T78: 50 | U78: 159000 | V78: 262967 | W78: 185618 | X78: 0.5 | Y78: 2.75 | Z78: 0.25 | AA78: 3975000 | AB78: 36157963 | AC78: 2320225 | AD78: 42453188 | AE78: 0 | AF78: 159000 | AG78: 262967 | AH78: 185618 | AI78: 0.5 | AJ78: 2.75 | AK78: 0.25 | AL78: 0 | AM78: 0 | AN78: 0 | AO78: 0 | AP78: 50 | AQ78: 42453188
A79: Infancia | B79: 86 | C79: Putumayo | D79: 86760 | E79: Santiago | F79: 10 | G79: 8602 | H79: CZ SIBUNDOY | I79: 0 | J79: 0.5 | K79: 2.75 | L79: 0.25 | M79: 159000 | N79: 262967 | O79: 185618 | P79: 0 | Q79: 0 | R79: 0 | S79: 0 | T79: 50 | U79: 159000 | V79: 262967 | W79: 185618 | X79: 0.5 | Y79: 2.75 | Z79: 0.25 | AA79: 3975000 | AB79: 36157963 | AC79: 2320225 | AD79: 42453188 | AE79: 0 | AF79: 159000 | AG79: 262967 | AH79: 185618 | AI79: 0.5 | AJ79: 2.75 | AK79: 0.25 | AL79: 0 | AM79: 0 | AN79: 0 | AO79: 0 | AP79: 50 | AQ79: 42453188
A80: Infancia | B80: 86 | C80: Putumayo | D80: 86320 | E80: Orito | F80: 11 | G80: 8604 | H80: CZ LA HORMIGA | I80: 0 | J80: 0.5 | K80: 2.75 | L80: 0.25 | M80: 159000 | N80: 262967 | O80: 185618 | P80: 0 | Q80: 0 | R80: 0 | S80: 0 | T80: 175 | U80: 159000 | V80: 262967 | W80: 185618 | X80: 0.5 | Y80: 2.75 | Z80: 0.25 | AA80: 13912500 | AB80: 126552869 | AC80: 8120788 | AD80: 148586157 | AE80: 25 | AF80: 159000 | AG80: 262967 | AH80: 185618 | AI80: 0.5 | AJ80: 2.75 | AK80: 0.25 | AL80: 1987500 | AM80: 18078981 | AN80: 1160113 | AO80: 21226594 | AP80: 200 | AQ80: 169812751
A81: Infancia | B81: 86 | C81: Putumayo | D81: 86757 | E81: San Miguel | F81: 11 | G81: 8604 | H81: CZ LA HORMIGA | I81: 0 | J81: 0.5 | K81: 2.75 | L81: 0.25 | M81: 159000 | N81: 262967 | O81: 185618 | P81: 0 | Q81: 0 | R81: 0 | S81: 0 | T81: 75 | U81: 159000 | V81: 262967 | W81: 185618 | X81: 0.5 | Y81: 2.75 | Z81: 0.25 | AA81: 5962500 | AB81: 54236944 | AC81: 3480338 | AD81: 63679782 | AE81: 25 | AF81: 159000 | AG81: 262967 | AH81: 185618 | AI81: 0.5 | AJ81: 2.75 | AK81: 0.25 | AL81: 1987500 | AM81: 18078981 | AN81: 1160113 | AO81: 21226594 | AP81: 100 | AQ81: 84906376
A82: Adolescencia y Juventud | B82: 86 | C82: Putumayo | D82: 86757 | E82: San Miguel | F82: 11 | G82: 8604 | H82: CZ LA HORMIGA | I82: 0 | J82: 0.5 | K82: 3 | L82: - | M82: 0 | N82: 0 | O82: 0 | P82: 0 | Q82: 0 | R82: 0 | S82: 0 | T82: 100 | U82: 194760 | V82: 535549 | W82: 0 | X82: 0.5 | Y82: 3 | Z82: - | AA82: 9738000 | AB82: 160664700 | AC82: 0 | AD82: 170402700 | AE82: 0 | AF82: 0 | AG82: 0 | AH82: 0 | AI82: - | AJ82: - | AK82: - | AL82: 0 | AM82: 0 | AN82: 0 | AO82: 0 | AP82: 100 | AQ82: 170402700
A83: Infancia | B83: 86 | C83: Putumayo | D83: 86865 | E83: Valle del Guamuez | F83: 11 | G83: 8604 | H83: CZ LA HORMIGA | I83: 0 | J83: 0.5 | K83: 2.75 | L83: 0.25 | M83: 159000 | N83: 262967 | O83: 185618 | P83: 0 | Q83: 0 | R83: 0 | S83: 0 | T83: 175 | U83: 159000 | V83: 262967 | W83: 185618 | X83: 0.5 | Y83: 2.75 | Z83: 0.25 | AA83: 13912500 | AB83: 126552869 | AC83: 8120788 | AD83: 148586157 | AE83: 25 | AF83: 159000 | AG83: 262967 | AH83: 185618 | AI83: 0.5 | AJ83: 2.75 | AK83: 0.25 | AL83: 1987500 | AM83: 18078981 | AN83: 1160113 | AO83: 21226594 | AP83: 200 | AQ83: 169812751
A84: Adolescencia y Juventud | B84: 86 | C84: Putumayo | D84: 86865 | E84: Valle del Guamuez | F84: 11 | G84: 8604 | H84: CZ LA HORMIGA | I84: 0 | J84: 0.5 | K84: 3 | L84: - | M84: 0 | N84: 0 | O84: 0 | P84: 0 | Q84: 0 | R84: 0 | S84: 0 | T84: 100 | U84: 194760 | V84: 535549 | W84: 0 | X84: 0.5 | Y84: 3 | Z84: - | AA84: 9738000 | AB84: 160664700 | AC84: 0 | AD84: 170402700 | AE84: 0 | AF84: 0 | AG84: 0 | AH84: 0 | AI84: - | AJ84: - | AK84: - | AL84: 0 | AM84: 0 | AN84: 0 | AO84: 0 | AP84: 100 | AQ84: 170402700
A85: Adolescencia y Juventud | B85: 86 | C85: Putumayo | D85: 86320 | E85: Orito | F85: 11 | G85: 8604 | H85: CZ LA HORMIGA | I85: 0 | J85: 0.5 | K85: 3 | L85: - | M85: 0 | N85: 0 | O85: 0 | P85: 0 | Q85: 0 | R85: 0 | S85: 0 | T85: 100 | U85: 194760 | V85: 535549 | W85: 0 | X85: 0.5 | Y85: 3 | Z85: - | AA85: 9738000 | AB85: 160664700 | AC85: 0 | AD85: 170402700 | AE85: 0 | AF85: 0 | AG85: 0 | AH85: 0 | AI85: - | AJ85: - | AK85: - | AL85: 0 | AM85: 0 | AN85: 0 | AO85: 0 | AP85: 100 | AQ85: 170402700
A86: Adolescencia y Juventud | B86: 86 | C86: Putumayo | D86: 86001 | E86: Mocoa | F86: 12 | G86: 8601 | H86: CZ MOCOA | I86: 0 | J86: 0.5 | K86: 3 | L86: - | M86: 0 | N86: 0 | O86: 0 | P86: 0 | Q86: 0 | R86: 0 | S86: 0 | T86: 100 | U86: 194760 | V86: 535549 | W86: 0 | X86: 0.5 | Y86: 3 | Z86: - | AA86: 9738000 | AB86: 160664700 | AC86: 0 | AD86: 170402700 | AE86: 0 | AF86: 0 | AG86: 0 | AH86: 0 | AI86: - | AJ86: - | AK86: - | AL86: 0 | AM86: 0 | AN86: 0 | AO86: 0 | AP86: 100 | AQ86: 170402700
A87: Infancia | B87: 86 | C87: Putumayo | D87: 86001 | E87: Mocoa | F87: 12 | G87: 8601 | H87: CZ MOCOA | I87: 0 | J87: 0.5 | K87: 2.75 | L87: 0.25 | M87: 159000 | N87: 262967 | O87: 185618 | P87: 0 | Q87: 0 | R87: 0 | S87: 0 | T87: 100 | U87: 159000 | V87: 262967 | W87: 185618 | X87: 0.5 | Y87: 2.75 | Z87: 0.25 | AA87: 7950000 | AB87: 72315925 | AC87: 4640450 | AD87: 84906375 | AE87: 0 | AF87: 159000 | AG87: 262967 | AH87: 185618 | AI87: 0.5 | AJ87: 2.75 | AK87: 0.25 | AL87: 0 | AM87: 0 | AN87: 0 | AO87: 0 | AP87: 100 | AQ87: 84906375
A88: Infancia | B88: 86 | C88: Putumayo | D88: 86571 | E88: Puerto Guzmán | F88: 12 | G88: 8601 | H88: CZ MOCOA | I88: 0 | J88: 0.5 | K88: 2.75 | L88: 0.25 | M88: 159000 | N88: 262967 | O88: 185618 | P88: 0 | Q88: 0 | R88: 0 | S88: 0 | T88: 75 | U88: 159000 | V88: 262967 | W88: 185618 | X88: 0.5 | Y88: 2.75 | Z88: 0.25 | AA88: 5962500 | AB88: 54236944 | AC88: 3480338 | AD88: 63679782 | AE88: 0 | AF88: 159000 | AG88: 262967 | AH88: 185618 | AI88: 0.5 | AJ88: 2.75 | AK88: 0.25 | AL88: 0 | AM88: 0 | AN88: 0 | AO88: 0 | AP88: 75 | AQ88: 63679782
A89: Adolescencia y Juventud | B89: 86 | C89: Putumayo | D89: 86571 | E89: Puerto Guzmán | F89: 12 | G89: 8601 | H89: CZ MOCOA | I89: 0 | J89: 0.5 | K89: 3 | L89: - | M89: 0 | N89: 0 | O89: 0 | P89: 0 | Q89: 0 | R89: 0 | S89: 0 | T89: 200 | U89: 194760 | V89: 535549 | W89: 0 | X89: 0.5 | Y89: 3 | Z89: - | AA89: 19476000 | AB89: 321329400 | AC89: 0 | AD89: 340805400 | AE89: 0 | AF89: 0 | AG89: 0 | AH89: 0 | AI89: - | AJ89: - | AK89: - | AL89: 0 | AM89: 0 | AN89: 0 | AO89: 0 | AP89: 200 | AQ89: 340805400
A90: Infancia | B90: 86 | C90: Putumayo | D90: 86885 | E90: Villagarzón | F90: 12 | G90: 8601 | H90: CZ MOCOA | I90: 0 | J90: 0.5 | K90: 2.75 | L90: 0.25 | M90: 159000 | N90: 262967 | O90: 185618 | P90: 0 | Q90: 0 | R90: 0 | S90: 0 | T90: 75 | U90: 159000 | V90: 262967 | W90: 185618 | X90: 0.5 | Y90: 2.75 | Z90: 0.25 | AA90: 5962500 | AB90: 54236944 | AC90: 3480338 | AD90: 63679782 | AE90: 25 | AF90: 159000 | AG90: 262967 | AH90: 185618 | AI90: 0.5 | AJ90: 2.75 | AK90: 0.25 | AL90: 1987500 | AM90: 18078981 | AN90: 1160113 | AO90: 21226594 | AP90: 100 | AQ90: 84906376
A91: Adolescencia y Juventud | B91: 86 | C91: Putumayo | D91: 86885 | E91: Villagarzón | F91: 12 | G91: 8601 | H91: CZ MOCOA | I91: 0 | J91: 0.5 | K91: 3 | L91: - | M91: 0 | N91: 0 | O91: 0 | P91: 0 | Q91: 0 | R91: 0 | S91: 0 | T91: 100 | U91: 194760 | V91: 535549 | W91: 0 | X91: 0.5 | Y91: 3 | Z91: - | AA91: 9738000 | AB91: 160664700 | AC91: 0 | AD91: 170402700 | AE91: 0 | AF91: 0 | AG91: 0 | AH91: 0 | AI91: - | AJ91: - | AK91: - | AL91: 0 | AM91: 0 | AN91: 0 | AO91: 0 | AP91: 100 | AQ91: 170402700
A92: Infancia | B92: 19 | C92: Cauca | D92: 19022 | E92: Almaguer | F92: 13 | G92: 1906 | H92: CZ MACIZO COLOMBIANO | I92: 0 | J92: 0.5 | K92: 2.75 | L92: 0.25 | M92: 159000 | N92: 241283 | O92: 177770 | P92: 0 | Q92: 0 | R92: 0 | S92: 0 | T92: 125 | U92: 159000 | V92: 241283 | W92: 177770 | X92: 0.5 | Y92: 2.75 | Z92: 0.25 | AA92: 9937500 | AB92: 82941031 | AC92: 5555313 | AD92: 98433844 | AE92: 25 | AF92: 159000 | AG92: 241283 | AH92: 177770 | AI92: 0.5 | AJ92: 2.75 | AK92: 0.25 | AL92: 1987500 | AM92: 16588206 | AN92: 1111063 | AO92: 19686769 | AP92: 150 | AQ92: 118120613
A93: Infancia | B93: 19 | C93: Cauca | D93: 19050 | E93: Argelia | F93: 13 | G93: 1904 | H93: CZ SUR | I93: 0 | J93: 0.5 | K93: 2.75 | L93: 0.25 | M93: 159000 | N93: 241283 | O93: 177770 | P93: 0 | Q93: 0 | R93: 0 | S93: 0 | T93: 100 | U93: 159000 | V93: 241283 | W93: 177770 | X93: 0.5 | Y93: 2.75 | Z93: 0.25 | AA93: 7950000 | AB93: 66352825 | AC93: 4444250 | AD93: 78747075 | AE93: 0 | AF93: 159000 | AG93: 241283 | AH93: 177770 | AI93: 0.5 | AJ93: 2.75 | AK93: 0.25 | AL93: 0 | AM93: 0 | AN93: 0 | AO93: 0 | AP93: 100 | AQ93: 78747075
A94: Infancia | B94: 19 | C94: Cauca | D94: 19075 | E94: Balboa | F94: 13 | G94: 1904 | H94: CZ SUR | I94: 0 | J94: 0.5 | K94: 2.75 | L94: 0.25 | M94: 159000 | N94: 241283 | O94: 177770 | P94: 0 | Q94: 0 | R94: 0 | S94: 0 | T94: 75 | U94: 159000 | V94: 241283 | W94: 177770 | X94: 0.5 | Y94: 2.75 | Z94: 0.25 | AA94: 5962500 | AB94: 49764619 | AC94: 3333188 | AD94: 59060307 | AE94: 25 | AF94: 159000 | AG94: 241283 | AH94: 177770 | AI94: 0.5 | AJ94: 2.75 | AK94: 0.25 | AL94: 1987500 | AM94: 16588206 | AN94: 1111063 | AO94: 19686769 | AP94: 100 | AQ94: 78747076
A95: Infancia | B95: 19 | C95: Cauca | D95: 19100 | E95: Bolívar | F95: 13 | G95: 1906 | H95: CZ MACIZO COLOMBIANO | I95: 0 | J95: 0.5 | K95: 2.75 | L95: 0.25 | M95: 159000 | N95: 241283 | O95: 177770 | P95: 0 | Q95: 0 | R95: 0 | S95: 0 | T95: 75 | U95: 159000 | V95: 241283 | W95: 177770 | X95: 0.5 | Y95: 2.75 | Z95: 0.25 | AA95: 5962500 | AB95: 49764619 | AC95: 3333188 | AD95: 59060307 | AE95: 25 | AF95: 159000 | AG95: 241283 | AH95: 177770 | AI95: 0.5 | AJ95: 2.75 | AK95: 0.25 | AL95: 1987500 | AM95: 16588206 | AN95: 1111063 | AO95: 19686769 | AP95: 100 | AQ95: 78747076
A96: Infancia | B96: 19 | C96: Cauca | D96: 19290 | E96: Florencia | F96: 13 | G96: 1904 | H96: CZ SUR | I96: 0 | J96: 0.5 | K96: 2.75 | L96: 0.25 | M96: 159000 | N96: 241283 | O96: 177770 | P96: 0 | Q96: 0 | R96: 0 | S96: 0 | T96: 75 | U96: 159000 | V96: 241283 | W96: 177770 | X96: 0.5 | Y96: 2.75 | Z96: 0.25 | AA96: 5962500 | AB96: 49764619 | AC96: 3333188 | AD96: 59060307 | AE96: 25 | AF96: 159000 | AG96: 241283 | AH96: 177770 | AI96: 0.5 | AJ96: 2.75 | AK96: 0.25 | AL96: 1987500 | AM96: 16588206 | AN96: 1111063 | AO96: 19686769 | AP96: 100 | AQ96: 78747076
A97: Infancia | B97: 19 | C97: Cauca | D97: 19450 | E97: Mercaderes | F97: 13 | G97: 1904 | H97: CZ SUR | I97: 0 | J97: 0.5 | K97: 2.75 | L97: 0.25 | M97: 159000 | N97: 241283 | O97: 177770 | P97: 0 | Q97: 0 | R97: 0 | S97: 0 | T97: 100 | U97: 159000 | V97: 241283 | W97: 177770 | X97: 0.5 | Y97: 2.75 | Z97: 0.25 | AA97: 7950000 | AB97: 66352825 | AC97: 4444250 | AD97: 78747075 | AE97: 0 | AF97: 159000 | AG97: 241283 | AH97: 177770 | AI97: 0.5 | AJ97: 2.75 | AK97: 0.25 | AL97: 0 | AM97: 0 | AN97: 0 | AO97: 0 | AP97: 100 | AQ97: 78747075
A98: Infancia | B98: 19 | C98: Cauca | D98: 19532 | E98: Patía | F98: 13 | G98: 1904 | H98: CZ SUR | I98: 0 | J98: 0.5 | K98: 2.75 | L98: 0.25 | M98: 159000 | N98: 241283 | O98: 177770 | P98: 0 | Q98: 0 | R98: 0 | S98: 0 | T98: 200 | U98: 159000 | V98: 241283 | W98: 177770 | X98: 0.5 | Y98: 2.75 | Z98: 0.25 | AA98: 15900000 | AB98: 132705650 | AC98: 8888500 | AD98: 157494150 | AE98: 0 | AF98: 159000 | AG98: 241283 | AH98: 177770 | AI98: 0.5 | AJ98: 2.75 | AK98: 0.25 | AL98: 0 | AM98: 0 | AN98: 0 | AO98: 0 | AP98: 200 | AQ98: 157494150
A99: Infancia | B99: 19 | C99: Cauca | D99: 19693 | E99: San Sebastián | F99: 13 | G99: 1906 | H99: CZ MACIZO COLOMBIANO | I99: 0 | J99: 0.5 | K99: 2.75 | L99: 0.25 | M99: 159000 | N99: 241283 | O99: 177770 | P99: 0 | Q99: 0 | R99: 0 | S99: 0 | T99: 100 | U99: 159000 | V99: 241283 | W99: 177770 | X99: 0.5 | Y99: 2.75 | Z99: 0.25 | AA99: 7950000 | AB99: 66352825 | AC99: 4444250 | AD99: 78747075 | AE99: 0 | AF99: 159000 | AG99: 241283 | AH99: 177770 | AI99: 0.5 | AJ99: 2.75 | AK99: 0.25 | AL99: 0 | AM99: 0 | AN99: 0 | AO99: 0 | AP99: 100 | AQ99: 78747075
A100: Infancia | B100: 19 | C100: Cauca | D100: 19785 | E100: Sucre | F100: 13 | G100: 1904 | H100: CZ SUR | I100: 0 | J100: 0.5 | K100: 2.75 | L100: 0.25 | M100: 159000 | N100: 241283 | O100: 177770 | P100: 0 | Q100: 0 | R100: 0 | S100: 0 | T100: 75 | U100: 159000 | V100: 241283 | W100: 177770 | X100: 0.5 | Y100: 2.75 | Z100: 0.25 | AA100: 5962500 | AB100: 49764619 | AC100: 3333188 | AD100: 59060307 | AE100: 25 | AF100: 159000 | AG100: 241283 | AH100: 177770 | AI100: 0.5 | AJ100: 2.75 | AK100: 0.25 | AL100: 1987500 | AM100: 16588206 | AN100: 1111063 | AO100: 19686769 | AP100: 100 | AQ100: 78747076
A101: Infancia | B101: 19 | C101: Cauca | D101: 19110 | E101: Buenos Aires | F101: 14 | G101: 1905 | H101: CZ NORTE | I101: 0 | J101: 0.5 | K101: 2.75 | L101: 0.25 | M101: 159000 | N101: 241283 | O101: 177770 | P101: 0 | Q101: 0 | R101: 0 | S101: 0 | T101: 175 | U101: 159000 | V101: 241283 | W101: 177770 | X101: 0.5 | Y101: 2.75 | Z101: 0.25 | AA101: 13912500 | AB101: 116117444 | AC101: 7777438 | AD101: 137807382 | AE101: 25 | AF101: 159000 | AG101: 241283 | AH101: 177770 | AI101: 0.5 | AJ101: 2.75 | AK101: 0.25 | AL101: 1987500 | AM101: 16588206 | AN101: 1111063 | AO101: 19686769 | AP101: 200 | AQ101: 157494151
A102: Infancia | B102: 19 | C102: Cauca | D102: 19142 | E102: Caloto | F102: 14 | G102: 1905 | H102: CZ NORTE | I102: 0 | J102: 0.5 | K102: 2.75 | L102: 0.25 | M102: 159000 | N102: 241283 | O102: 177770 | P102: 0 | Q102: 0 | R102: 0 | S102: 0 | T102: 75 | U102: 159000 | V102: 241283 | W102: 177770 | X102: 0.5 | Y102: 2.75 | Z102: 0.25 | AA102: 5962500 | AB102: 49764619 | AC102: 3333188 | AD102: 59060307 | AE102: 25 | AF102: 159000 | AG102: 241283 | AH102: 177770 | AI102: 0.5 | AJ102: 2.75 | AK102: 0.25 | AL102: 1987500 | AM102: 16588206 | AN102: 1111063 | AO102: 19686769 | AP102: 100 | AQ102: 78747076
A103: Infancia | B103: 19 | C103: Cauca | D103: 19212 | E103: Corinto | F103: 14 | G103: 1905 | H103: CZ NORTE | I103: 0 | J103: 0.5 | K103: 2.75 | L103: 0.25 | M103: 159000 | N103: 241283 | O103: 177770 | P103: 0 | Q103: 0 | R103: 0 | S103: 0 | T103: 100 | U103: 159000 | V103: 241283 | W103: 177770 | X103: 0.5 | Y103: 2.75 | Z103: 0.25 | AA103: 7950000 | AB103: 66352825 | AC103: 4444250 | AD103: 78747075 | AE103: 0 | AF103: 159000 | AG103: 241283 | AH103: 177770 | AI103: 0.5 | AJ103: 2.75 | AK103: 0.25 | AL103: 0 | AM103: 0 | AN103: 0 | AO103: 0 | AP103: 100 | AQ103: 78747075
A104: Infancia | B104: 19 | C104: Cauca | D104: 19300 | E104: Guachené | F104: 14 | G104: 1905 | H104: CZ NORTE | I104: 0 | J104: 0.5 | K104: 2.75 | L104: 0.25 | M104: 159000 | N104: 241283 | O104: 177770 | P104: 0 | Q104: 0 | R104: 0 | S104: 0 | T104: 100 | U104: 159000 | V104: 241283 | W104: 177770 | X104: 0.5 | Y104: 2.75 | Z104: 0.25 | AA104: 7950000 | AB104: 66352825 | AC104: 4444250 | AD104: 78747075 | AE104: 0 | AF104: 159000 | AG104: 241283 | AH104: 177770 | AI104: 0.5 | AJ104: 2.75 | AK104: 0.25 | AL104: 0 | AM104: 0 | AN104: 0 | AO104: 0 | AP104: 100 | AQ104: 78747075
A105: Infancia | B105: 19 | C105: Cauca | D105: 19455 | E105: Miranda | F105: 14 | G105: 1905 | H105: CZ NORTE | I105: 0 | J105: 0.5 | K105: 2.75 | L105: 0.25 | M105: 159000 | N105: 241283 | O105: 177770 | P105: 0 | Q105: 0 | R105: 0 | S105: 0 | T105: 100 | U105: 159000 | V105: 241283 | W105: 177770 | X105: 0.5 | Y105: 2.75 | Z105: 0.25 | AA105: 7950000 | AB105: 66352825 | AC105: 4444250 | AD105: 78747075 | AE105: 0 | AF105: 159000 | AG105: 241283 | AH105: 177770 | AI105: 0.5 | AJ105: 2.75 | AK105: 0.25 | AL105: 0 | AM105: 0 | AN105: 0 | AO105: 0 | AP105: 100 | AQ105: 78747075
A106: Infancia | B106: 19 | C106: Cauca | D106: 19513 | E106: Padilla | F106: 14 | G106: 1905 | H106: CZ NORTE | I106: 0 | J106: 0.5 | K106: 2.75 | L106: 0.25 | M106: 159000 | N106: 241283 | O106: 177770 | P106: 0 | Q106: 0 | R106: 0 | S106: 0 | T106: 0 | U106: 159000 | V106: 241283 | W106: 177770 | X106: 0.5 | Y106: 2.75 | Z106: 0.25 | AA106: 0 | AB106: 0 | AC106: 0 | AD106: 0 | AE106: 0 | AF106: 159000 | AG106: 241283 | AH106: 177770 | AI106: 0.5 | AJ106: 2.75 | AK106: 0.25 | AL106: 0 | AM106: 0 | AN106: 0 | AO106: 0 | AP106: 0 | AQ106: 0
A107: Infancia | B107: 19 | C107: Cauca | D107: 19573 | E107: Puerto Tejada | F107: 14 | G107: 1905 | H107: CZ NORTE | I107: 0 | J107: 0.5 | K107: 2.75 | L107: 0.25 | M107: 159000 | N107: 241283 | O107: 177770 | P107: 0 | Q107: 0 | R107: 0 | S107: 0 | T107: 200 | U107: 159000 | V107: 241283 | W107: 177770 | X107: 0.5 | Y107: 2.75 | Z107: 0.25 | AA107: 15900000 | AB107: 132705650 | AC107: 8888500 | AD107: 157494150 | AE107: 0 | AF107: 159000 | AG107: 241283 | AH107: 177770 | AI107: 0.5 | AJ107: 2.75 | AK107: 0.25 | AL107: 0 | AM107: 0 | AN107: 0 | AO107: 0 | AP107: 200 | AQ107: 157494150
A108: Infancia | B108: 19 | C108: Cauca | D108: 19698 | E108: Santander de Quilichao | F108: 14 | G108: 1905 | H108: CZ NORTE | I108: 0 | J108: 0.5 | K108: 2.75 | L108: 0.25 | M108: 159000 | N108: 241283 | O108: 177770 | P108: 0 | Q108: 0 | R108: 0 | S108: 0 | T108: 200 | U108: 159000 | V108: 241283 | W108: 177770 | X108: 0.5 | Y108: 2.75 | Z108: 0.25 | AA108: 15900000 | AB108: 132705650 | AC108: 8888500 | AD108: 157494150 | AE108: 0 | AF108: 159000 | AG108: 241283 | AH108: 177770 | AI108: 0.5 | AJ108: 2.75 | AK108: 0.25 | AL108: 0 | AM108: 0 | AN108: 0 | AO108: 0 | AP108: 200 | AQ108: 157494150
A109: Infancia | B109: 19 | C109: Cauca | D109: 19780 | E109: Suárez | F109: 14 | G109: 1905 | H109: CZ NORTE | I109: 0 | J109: 0.5 | K109: 2.75 | L109: 0.25 | M109: 159000 | N109: 241283 | O109: 177770 | P109: 0 | Q109: 0 | R109: 0 | S109: 0 | T109: 275 | U109: 159000 | V109: 241283 | W109: 177770 | X109: 0.5 | Y109: 2.75 | Z109: 0.25 | AA109: 21862500 | AB109: 182470269 | AC109: 12221688 | AD109: 216554457 | AE109: 25 | AF109: 159000 | AG109: 241283 | AH109: 177770 | AI109: 0.5 | AJ109: 2.75 | AK109: 0.25 | AL109: 1987500 | AM109: 16588206 | AN109: 1111063 | AO109: 19686769 | AP109: 300 | AQ109: 236241226
A110: Infancia | B110: 19 | C110: Cauca | D110: 19821 | E110: Toribío | F110: 14 | G110: 1905 | H110: CZ NORTE | I110: 0 | J110: 0.5 | K110: 2.75 | L110: 0.25 | M110: 159000 | N110: 241283 | O110: 177770 | P110: 0 | Q110: 0 | R110: 0 | S110: 0 | T110: 175 | U110: 159000 | V110: 241283 | W110: 177770 | X110: 0.5 | Y110: 2.75 | Z110: 0.25 | AA110: 13912500 | AB110: 116117444 | AC110: 7777438 | AD110: 137807382 | AE110: 25 | AF110: 159000 | AG110: 241283 | AH110: 177770 | AI110: 0.5 | AJ110: 2.75 | AK110: 0.25 | AL110: 1987500 | AM110: 16588206 | AN110: 1111063 | AO110: 19686769 | AP110: 200 | AQ110: 157494151
A111: Infancia | B111: 19 | C111: Cauca | D111: 19845 | E111: Villa Rica | F111: 14 | G111: 1905 | H111: CZ NORTE | I111: 0 | J111: 0.5 | K111: 2.75 | L111: 0.25 | M111: 159000 | N111: 241283 | O111: 177770 | P111: 0 | Q111: 0 | R111: 0 | S111: 0 | T111: 100 | U111: 159000 | V111: 241283 | W111: 177770 | X111: 0.5 | Y111: 2.75 | Z111: 0.25 | AA111: 7950000 | AB111: 66352825 | AC111: 4444250 | AD111: 78747075 | AE111: 0 | AF111: 159000 | AG111: 241283 | AH111: 177770 | AI111: 0.5 | AJ111: 2.75 | AK111: 0.25 | AL111: 0 | AM111: 0 | AN111: 0 | AO111: 0 | AP111: 100 | AQ111: 78747075
A112: Infancia | B112: 19 | C112: Cauca | D112: 19137 | E112: Caldono | F112: 15 | G112: 1903 | H112: CZ INDIGENA | I112: 0 | J112: 0.5 | K112: 2.75 | L112: 0.25 | M112: 159000 | N112: 241283 | O112: 177770 | P112: 0 | Q112: 0 | R112: 0 | S112: 0 | T112: 100 | U112: 159000 | V112: 241283 | W112: 177770 | X112: 0.5 | Y112: 2.75 | Z112: 0.25 | AA112: 7950000 | AB112: 66352825 | AC112: 4444250 | AD112: 78747075 | AE112: 0 | AF112: 159000 | AG112: 241283 | AH112: 177770 | AI112: 0.5 | AJ112: 2.75 | AK112: 0.25 | AL112: 0 | AM112: 0 | AN112: 0 | AO112: 0 | AP112: 100 | AQ112: 78747075
A113: Infancia | B113: 19 | C113: Cauca | D113: 19355 | E113: Inzá | F113: 15 | G113: 1903 | H113: CZ INDIGENA | I113: 0 | J113: 0.5 | K113: 2.75 | L113: 0.25 | M113: 159000 | N113: 241283 | O113: 177770 | P113: 0 | Q113: 0 | R113: 0 | S113: 0 | T113: 100 | U113: 159000 | V113: 241283 | W113: 177770 | X113: 0.5 | Y113: 2.75 | Z113: 0.25 | AA113: 7950000 | AB113: 66352825 | AC113: 4444250 | AD113: 78747075 | AE113: 0 | AF113: 159000 | AG113: 241283 | AH113: 177770 | AI113: 0.5 | AJ113: 2.75 | AK113: 0.25 | AL113: 0 | AM113: 0 | AN113: 0 | AO113: 0 | AP113: 100 | AQ113: 78747075
A114: Infancia | B114: 19 | C114: Cauca | D114: 19364 | E114: Jambaló | F114: 15 | G114: 1903 | H114: CZ INDIGENA | I114: 0 | J114: 0.5 | K114: 2.75 | L114: 0.25 | M114: 159000 | N114: 241283 | O114: 177770 | P114: 0 | Q114: 0 | R114: 0 | S114: 0 | T114: 75 | U114: 159000 | V114: 241283 | W114: 177770 | X114: 0.5 | Y114: 2.75 | Z114: 0.25 | AA114: 5962500 | AB114: 49764619 | AC114: 3333188 | AD114: 59060307 | AE114: 25 | AF114: 159000 | AG114: 241283 | AH114: 177770 | AI114: 0.5 | AJ114: 2.75 | AK114: 0.25 | AL114: 1987500 | AM114: 16588206 | AN114: 1111063 | AO114: 19686769 | AP114: 100 | AQ114: 78747076
A115: Infancia | B115: 19 | C115: Cauca | D115: 19517 | E115: Páez | F115: 15 | G115: 1903 | H115: CZ INDIGENA | I115: 0 | J115: 0.5 | K115: 2.75 | L115: 0.25 | M115: 159000 | N115: 241283 | O115: 177770 | P115: 0 | Q115: 0 | R115: 0 | S115: 0 | T115: 200 | U115: 159000 | V115: 241283 | W115: 177770 | X115: 0.5 | Y115: 2.75 | Z115: 0.25 | AA115: 15900000 | AB115: 132705650 | AC115: 8888500 | AD115: 157494150 | AE115: 0 | AF115: 159000 | AG115: 241283 | AH115: 177770 | AI115: 0.5 | AJ115: 2.75 | AK115: 0.25 | AL115: 0 | AM115: 0 | AN115: 0 | AO115: 0 | AP115: 200 | AQ115: 157494150
A116: Infancia | B116: 19 | C116: Cauca | D116: 19533 | E116: Piamonte | F116: 15 | G116: 1903 | H116: CZ INDIGENA | I116: 0 | J116: 0.5 | K116: 2.75 | L116: 0.25 | M116: 159000 | N116: 241283 | O116: 177770 | P116: 0 | Q116: 0 | R116: 0 | S116: 0 | T116: 100 | U116: 159000 | V116: 241283 | W116: 177770 | X116: 0.5 | Y116: 2.75 | Z116: 0.25 | AA116: 7950000 | AB116: 66352825 | AC116: 4444250 | AD116: 78747075 | AE116: 0 | AF116: 159000 | AG116: 241283 | AH116: 177770 | AI116: 0.5 | AJ116: 2.75 | AK116: 0.25 | AL116: 0 | AM116: 0 | AN116: 0 | AO116: 0 | AP116: 100 | AQ116: 78747075
A117: Infancia | B117: 19 | C117: Cauca | D117: 19585 | E117: Puracé | F117: 15 | G117: 1903 | H117: CZ INDIGENA | I117: 0 | J117: 0.5 | K117: 2.75 | L117: 0.25 | M117: 159000 | N117: 241283 | O117: 177770 | P117: 0 | Q117: 0 | R117: 0 | S117: 0 | T117: 100 | U117: 159000 | V117: 241283 | W117: 177770 | X117: 0.5 | Y117: 2.75 | Z117: 0.25 | AA117: 7950000 | AB117: 66352825 | AC117: 4444250 | AD117: 78747075 | AE117: 0 | AF117: 159000 | AG117: 241283 | AH117: 177770 | AI117: 0.5 | AJ117: 2.75 | AK117: 0.25 | AL117: 0 | AM117: 0 | AN117: 0 | AO117: 0 | AP117: 100 | AQ117: 78747075
A118: Infancia | B118: 19 | C118: Cauca | D118: 19701 | E118: Santa Rosa | F118: 15 | G118: 1903 | H118: CZ INDIGENA | I118: 0 | J118: 0.5 | K118: 2.75 | L118: 0.25 | M118: 159000 | N118: 241283 | O118: 177770 | P118: 0 | Q118: 0 | R118: 0 | S118: 0 | T118: 100 | U118: 159000 | V118: 241283 | W118: 177770 | X118: 0.5 | Y118: 2.75 | Z118: 0.25 | AA118: 7950000 | AB118: 66352825 | AC118: 4444250 | AD118: 78747075 | AE118: 0 | AF118: 159000 | AG118: 241283 | AH118: 177770 | AI118: 0.5 | AJ118: 2.75 | AK118: 0.25 | AL118: 0 | AM118: 0 | AN118: 0 | AO118: 0 | AP118: 100 | AQ118: 78747075
A119: Infancia | B119: 19 | C119: Cauca | D119: 19743 | E119: Silvia | F119: 15 | G119: 1903 | H119: CZ INDIGENA | I119: 0 | J119: 0.5 | K119: 2.75 | L119: 0.25 | M119: 159000 | N119: 241283 | O119: 177770 | P119: 0 | Q119: 0 | R119: 0 | S119: 0 | T119: 175 | U119: 159000 | V119: 241283 | W119: 177770 | X119: 0.5 | Y119: 2.75 | Z119: 0.25 | AA119: 13912500 | AB119: 116117444 | AC119: 7777438 | AD119: 137807382 | AE119: 25 | AF119: 159000 | AG119: 241283 | AH119: 177770 | AI119: 0.5 | AJ119: 2.75 | AK119: 0.25 | AL119: 1987500 | AM119: 16588206 | AN119: 1111063 | AO119: 19686769 | AP119: 200 | AQ119: 157494151
A120: Infancia | B120: 19 | C120: Cauca | D120: 19824 | E120: Totoró | F120: 15 | G120: 1903 | H120: CZ INDIGENA | I120: 0 | J120: 0.5 | K120: 2.75 | L120: 0.25 | M120: 159000 | N120: 241283 | O120: 177770 | P120: 0 | Q120: 0 | R120: 0 | S120: 0 | T120: 75 | U120: 159000 | V120: 241283 | W120: 177770 | X120: 0.5 | Y120: 2.75 | Z120: 0.25 | AA120: 5962500 | AB120: 49764619 | AC120: 3333188 | AD120: 59060307 | AE120: 25 | AF120: 159000 | AG120: 241283 | AH120: 177770 | AI120: 0.5 | AJ120: 2.75 | AK120: 0.25 | AL120: 1987500 | AM120: 16588206 | AN120: 1111063 | AO120: 19686769 | AP120: 100 | AQ120: 78747076
A121: Infancia | B121: 19 | C121: Cauca | D121: 19001 | E121: Popayán | F121: 16 | G121: 1901 | H121: CZ POPAYAN | I121: 0 | J121: 0.5 | K121: 2.75 | L121: 0.25 | M121: 159000 | N121: 241283 | O121: 177770 | P121: 0 | Q121: 0 | R121: 0 | S121: 0 | T121: 450 | U121: 159000 | V121: 241283 | W121: 177770 | X121: 0.5 | Y121: 2.75 | Z121: 0.25 | AA121: 35775000 | AB121: 298587713 | AC121: 19999125 | AD121: 354361838 | AE121: 0 | AF121: 159000 | AG121: 241283 | AH121: 177770 | AI121: 0.5 | AJ121: 2.75 | AK121: 0.25 | AL121: 0 | AM121: 0 | AN121: 0 | AO121: 0 | AP121: 450 | AQ121: 354361838
A122: Infancia | B122: 19 | C122: Cauca | D122: 19130 | E122: Cajibío | F122: 16 | G122: 1902 | H122: CZ CENTRO | I122: 0 | J122: 0.5 | K122: 2.75 | L122: 0.25 | M122: 159000 | N122: 241283 | O122: 177770 | P122: 0 | Q122: 0 | R122: 0 | S122: 0 | T122: 175 | U122: 159000 | V122: 241283 | W122: 177770 | X122: 0.5 | Y122: 2.75 | Z122: 0.25 | AA122: 13912500 | AB122: 116117444 | AC122: 7777438 | AD122: 137807382 | AE122: 25 | AF122: 159000 | AG122: 241283 | AH122: 177770 | AI122: 0.5 | AJ122: 2.75 | AK122: 0.25 | AL122: 1987500 | AM122: 16588206 | AN122: 1111063 | AO122: 19686769 | AP122: 200 | AQ122: 157494151
A123: Infancia | B123: 19 | C123: Cauca | D123: 19256 | E123: El Tambo | F123: 16 | G123: 1902 | H123: CZ CENTRO | I123: 0 | J123: 0.5 | K123: 2.75 | L123: 0.25 | M123: 159000 | N123: 241283 | O123: 177770 | P123: 0 | Q123: 0 | R123: 0 | S123: 0 | T123: 200 | U123: 159000 | V123: 241283 | W123: 177770 | X123: 0.5 | Y123: 2.75 | Z123: 0.25 | AA123: 15900000 | AB123: 132705650 | AC123: 8888500 | AD123: 157494150 | AE123: 0 | AF123: 159000 | AG123: 241283 | AH123: 177770 | AI123: 0.5 | AJ123: 2.75 | AK123: 0.25 | AL123: 0 | AM123: 0 | AN123: 0 | AO123: 0 | AP123: 200 | AQ123: 157494150
A124: Infancia | B124: 19 | C124: Cauca | D124: 19392 | E124: La Sierra | F124: 16 | G124: 1902 | H124: CZ CENTRO | I124: 0 | J124: 0.5 | K124: 2.75 | L124: 0.25 | M124: 159000 | N124: 241283 | O124: 177770 | P124: 0 | Q124: 0 | R124: 0 | S124: 0 | T124: 100 | U124: 159000 | V124: 241283 | W124: 177770 | X124: 0.5 | Y124: 2.75 | Z124: 0.25 | AA124: 7950000 | AB124: 66352825 | AC124: 4444250 | AD124: 78747075 | AE124: 0 | AF124: 159000 | AG124: 241283 | AH124: 177770 | AI124: 0.5 | AJ124: 2.75 | AK124: 0.25 | AL124: 0 | AM124: 0 | AN124: 0 | AO124: 0 | AP124: 100 | AQ124: 78747075
A125: Infancia | B125: 19 | C125: Cauca | D125: 19397 | E125: La Vega | F125: 16 | G125: 1902 | H125: CZ CENTRO | I125: 0 | J125: 0.5 | K125: 2.75 | L125: 0.25 | M125: 159000 | N125: 241283 | O125: 177770 | P125: 0 | Q125: 0 | R125: 0 | S125: 0 | T125: 100 | U125: 159000 | V125: 241283 | W125: 177770 | X125: 0.5 | Y125: 2.75 | Z125: 0.25 | AA125: 7950000 | AB125: 66352825 | AC125: 4444250 | AD125: 78747075 | AE125: 0 | AF125: 159000 | AG125: 241283 | AH125: 177770 | AI125: 0.5 | AJ125: 2.75 | AK125: 0.25 | AL125: 0 | AM125: 0 | AN125: 0 | AO125: 0 | AP125: 100 | AQ125: 78747075
A126: Infancia | B126: 19 | C126: Cauca | D126: 19473 | E126: Morales | F126: 16 | G126: 1902 | H126: CZ CENTRO | I126: 0 | J126: 0.5 | K126: 2.75 | L126: 0.25 | M126: 159000 | N126: 241283 | O126: 177770 | P126: 0 | Q126: 0 | R126: 0 | S126: 0 | T126: 175 | U126: 159000 | V126: 241283 | W126: 177770 | X126: 0.5 | Y126: 2.75 | Z126: 0.25 | AA126: 13912500 | AB126: 116117444 | AC126: 7777438 | AD126: 137807382 | AE126: 25 | AF126: 159000 | AG126: 241283 | AH126: 177770 | AI126: 0.5 | AJ126: 2.75 | AK126: 0.25 | AL126: 1987500 | AM126: 16588206 | AN126: 1111063 | AO126: 19686769 | AP126: 200 | AQ126: 157494151
A127: Infancia | B127: 19 | C127: Cauca | D127: 19548 | E127: Piendamó - Tunía | F127: 16 | G127: 1902 | H127: CZ CENTRO | I127: 0 | J127: 0.5 | K127: 2.75 | L127: 0.25 | M127: 159000 | N127: 241283 | O127: 177770 | P127: 0 | Q127: 0 | R127: 0 | S127: 0 | T127: 150 | U127: 159000 | V127: 241283 | W127: 177770 | X127: 0.5 | Y127: 2.75 | Z127: 0.25 | AA127: 11925000 | AB127: 99529238 | AC127: 6666375 | AD127: 118120613 | AE127: 0 | AF127: 159000 | AG127: 241283 | AH127: 177770 | AI127: 0.5 | AJ127: 2.75 | AK127: 0.25 | AL127: 0 | AM127: 0 | AN127: 0 | AO127: 0 | AP127: 150 | AQ127: 118120613
A128: Infancia | B128: 19 | C128: Cauca | D128: 19622 | E128: Rosas | F128: 16 | G128: 1902 | H128: CZ CENTRO | I128: 0 | J128: 0.5 | K128: 2.75 | L128: 0.25 | M128: 159000 | N128: 241283 | O128: 177770 | P128: 0 | Q128: 0 | R128: 0 | S128: 0 | T128: 100 | U128: 159000 | V128: 241283 | W128: 177770 | X128: 0.5 | Y128: 2.75 | Z128: 0.25 | AA128: 7950000 | AB128: 66352825 | AC128: 4444250 | AD128: 78747075 | AE128: 0 | AF128: 159000 | AG128: 241283 | AH128: 177770 | AI128: 0.5 | AJ128: 2.75 | AK128: 0.25 | AL128: 0 | AM128: 0 | AN128: 0 | AO128: 0 | AP128: 100 | AQ128: 78747075
A129: Infancia | B129: 19 | C129: Cauca | D129: 19760 | E129: Sotará Paispamba | F129: 16 | G129: 1902 | H129: CZ CENTRO | I129: 0 | J129: 0.5 | K129: 2.75 | L129: 0.25 | M129: 159000 | N129: 241283 | O129: 177770 | P129: 0 | Q129: 0 | R129: 0 | S129: 0 | T129: 0 | U129: 159000 | V129: 241283 | W129: 177770 | X129: 0.5 | Y129: 2.75 | Z129: 0.25 | AA129: 0 | AB129: 0 | AC129: 0 | AD129: 0 | AE129: 0 | AF129: 159000 | AG129: 241283 | AH129: 177770 | AI129: 0.5 | AJ129: 2.75 | AK129: 0.25 | AL129: 0 | AM129: 0 | AN129: 0 | AO129: 0 | AP129: 0 | AQ129: 0
A130: Infancia | B130: 19 | C130: Cauca | D130: 19807 | E130: Timbío | F130: 16 | G130: 1902 | H130: CZ CENTRO | I130: 0 | J130: 0.5 | K130: 2.75 | L130: 0.25 | M130: 159000 | N130: 241283 | O130: 177770 | P130: 0 | Q130: 0 | R130: 0 | S130: 0 | T130: 200 | U130: 159000 | V130: 241283 | W130: 177770 | X130: 0.5 | Y130: 2.75 | Z130: 0.25 | AA130: 15900000 | AB130: 132705650 | AC130: 8888500 | AD130: 157494150 | AE130: 0 | AF130: 159000 | AG130: 241283 | AH130: 177770 | AI130: 0.5 | AJ130: 2.75 | AK130: 0.25 | AL130: 0 | AM130: 0 | AN130: 0 | AO130: 0 | AP130: 200 | AQ130: 157494150
A131: Infancia | B131: 52 | C131: Nariño | D131: 52001 | E131: Pasto | F131: 17 | G131: 5201 | H131: CZ PASTO 1 | I131: 50 | J131: 0.5 | K131: 2.75 | L131: 0.25 | M131: 159739 | N131: 240858 | O131: 178058 | P131: 3993475 | Q131: 33117975 | R131: 2225725 | S131: 39337175 | T131: 450 | U131: 159739 | V131: 240858 | W131: 178058 | X131: 0.5 | Y131: 2.75 | Z131: 0.25 | AA131: 35941275 | AB131: 298061775 | AC131: 20031525 | AD131: 354034575 | AE131: 0 | AF131: 159739 | AG131: 240858 | AH131: 178058 | AI131: 0.5 | AJ131: 2.75 | AK131: 0.25 | AL131: 0 | AM131: 0 | AN131: 0 | AO131: 0 | AP131: 500 | AQ131: 393371750
A132: Adolescencia y Juventud | B132: 52 | C132: Nariño | D132: 52001 | E132: Pasto | F132: 17 | G132: 5201 | H132: CZ PASTO 1 | I132: 73 | J132: 0.5 | K132: 3 | L132: - | M132: 405587 | N132: 768175 | O132: 0 | P132: 14803925.5 | Q132: 168230325 | R132: 0 | S132: 183034251 | T132: 0 | U132: 180673 | V132: 496442 | W132: 0 | X132: 0.5 | Y132: 3 | Z132: - | AA132: 0 | AB132: 0 | AC132: 0 | AD132: 0 | AE132: 0 | AF132: 0 | AG132: 0 | AH132: 0 | AI132: - | AJ132: - | AK132: - | AL132: 0 | AM132: 0 | AN132: 0 | AO132: 0 | AP132: 73 | AQ132: 183034251
A133: Infancia | B133: 52 | C133: Nariño | D133: 52019 | E133: Albán | F133: 17 | G133: 5201 | H133: CZ PASTO 1 | I133: 0 | J133: 0.5 | K133: 2.75 | L133: 0.25 | M133: 159739 | N133: 240858 | O133: 178058 | P133: 0 | Q133: 0 | R133: 0 | S133: 0 | T133: 50 | U133: 159739 | V133: 240858 | W133: 178058 | X133: 0.5 | Y133: 2.75 | Z133: 0.25 | AA133: 3993475 | AB133: 33117975 | AC133: 2225725 | AD133: 39337175 | AE133: 0 | AF133: 159739 | AG133: 240858 | AH133: 178058 | AI133: 0.5 | AJ133: 2.75 | AK133: 0.25 | AL133: 0 | AM133: 0 | AN133: 0 | AO133: 0 | AP133: 50 | AQ133: 39337175
A134: Infancia | B134: 52 | C134: Nariño | D134: 52036 | E134: Ancuya | F134: 17 | G134: 5202 | H134: CZ PASTO 2 | I134: 0 | J134: 0.5 | K134: 2.75 | L134: 0.25 | M134: 159739 | N134: 240858 | O134: 178058 | P134: 0 | Q134: 0 | R134: 0 | S134: 0 | T134: 50 | U134: 159739 | V134: 240858 | W134: 178058 | X134: 0.5 | Y134: 2.75 | Z134: 0.25 | AA134: 3993475 | AB134: 33117975 | AC134: 2225725 | AD134: 39337175 | AE134: 0 | AF134: 159739 | AG134: 240858 | AH134: 178058 | AI134: 0.5 | AJ134: 2.75 | AK134: 0.25 | AL134: 0 | AM134: 0 | AN134: 0 | AO134: 0 | AP134: 50 | AQ134: 39337175
A135: Infancia | B135: 52 | C135: Nariño | D135: 52110 | E135: Buesaco | F135: 17 | G135: 5201 | H135: CZ PASTO 1 | I135: 0 | J135: 0.5 | K135: 2.75 | L135: 0.25 | M135: 159739 | N135: 240858 | O135: 178058 | P135: 0 | Q135: 0 | R135: 0 | S135: 0 | T135: 75 | U135: 159739 | V135: 240858 | W135: 178058 | X135: 0.5 | Y135: 2.75 | Z135: 0.25 | AA135: 5990213 | AB135: 49676963 | AC135: 3338588 | AD135: 59005764 | AE135: 0 | AF135: 159739 | AG135: 240858 | AH135: 178058 | AI135: 0.5 | AJ135: 2.75 | AK135: 0.25 | AL135: 0 | AM135: 0 | AN135: 0 | AO135: 0 | AP135: 75 | AQ135: 59005764
A136: Infancia | B136: 52 | C136: Nariño | D136: 52207 | E136: Consacá | F136: 17 | G136: 5202 | H136: CZ PASTO 2 | I136: 0 | J136: 0.5 | K136: 2.75 | L136: 0.25 | M136: 159739 | N136: 240858 | O136: 178058 | P136: 0 | Q136: 0 | R136: 0 | S136: 0 | T136: 0 | U136: 159739 | V136: 240858 | W136: 178058 | X136: 0.5 | Y136: 2.75 | Z136: 0.25 | AA136: 0 | AB136: 0 | AC136: 0 | AD136: 0 | AE136: 0 | AF136: 159739 | AG136: 240858 | AH136: 178058 | AI136: 0.5 | AJ136: 2.75 | AK136: 0.25 | AL136: 0 | AM136: 0 | AN136: 0 | AO136: 0 | AP136: 0 | AQ136: 0
A137: Infancia | B137: 52 | C137: Nariño | D137: 52240 | E137: Chachagüí | F137: 17 | G137: 5201 | H137: CZ PASTO 1 | I137: 0 | J137: 0.5 | K137: 2.75 | L137: 0.25 | M137: 159739 | N137: 240858 | O137: 178058 | P137: 0 | Q137: 0 | R137: 0 | S137: 0 | T137: 0 | U137: 159739 | V137: 240858 | W137: 178058 | X137: 0.5 | Y137: 2.75 | Z137: 0.25 | AA137: 0 | AB137: 0 | AC137: 0 | AD137: 0 | AE137: 0 | AF137: 159739 | AG137: 240858 | AH137: 178058 | AI137: 0.5 | AJ137: 2.75 | AK137: 0.25 | AL137: 0 | AM137: 0 | AN137: 0 | AO137: 0 | AP137: 0 | AQ137: 0
A138: Infancia | B138: 52 | C138: Nariño | D138: 52254 | E138: El Peñol | F138: 17 | G138: 5202 | H138: CZ PASTO 2 | I138: 0 | J138: 0.5 | K138: 2.75 | L138: 0.25 | M138: 159739 | N138: 240858 | O138: 178058 | P138: 0 | Q138: 0 | R138: 0 | S138: 0 | T138: 50 | U138: 159739 | V138: 240858 | W138: 178058 | X138: 0.5 | Y138: 2.75 | Z138: 0.25 | AA138: 3993475 | AB138: 33117975 | AC138: 2225725 | AD138: 39337175 | AE138: 0 | AF138: 159739 | AG138: 240858 | AH138: 178058 | AI138: 0.5 | AJ138: 2.75 | AK138: 0.25 | AL138: 0 | AM138: 0 | AN138: 0 | AO138: 0 | AP138: 50 | AQ138: 39337175
A139: Infancia | B139: 52 | C139: Nariño | D139: 52258 | E139: El Tablón de Gómez | F139: 17 | G139: 5201 | H139: CZ PASTO 1 | I139: 0 | J139: 0.5 | K139: 2.75 | L139: 0.25 | M139: 159739 | N139: 240858 | O139: 178058 | P139: 0 | Q139: 0 | R139: 0 | S139: 0 | T139: 50 | U139: 159739 | V139: 240858 | W139: 178058 | X139: 0.5 | Y139: 2.75 | Z139: 0.25 | AA139: 3993475 | AB139: 33117975 | AC139: 2225725 | AD139: 39337175 | AE139: 0 | AF139: 159739 | AG139: 240858 | AH139: 178058 | AI139: 0.5 | AJ139: 2.75 | AK139: 0.25 | AL139: 0 | AM139: 0 | AN139: 0 | AO139: 0 | AP139: 50 | AQ139: 39337175
A140: Infancia | B140: 52 | C140: Nariño | D140: 52260 | E140: El Tambo | F140: 17 | G140: 5202 | H140: CZ PASTO 2 | I140: 0 | J140: 0.5 | K140: 2.75 | L140: 0.25 | M140: 159739 | N140: 240858 | O140: 178058 | P140: 0 | Q140: 0 | R140: 0 | S140: 0 | T140: 50 | U140: 159739 | V140: 240858 | W140: 178058 | X140: 0.5 | Y140: 2.75 | Z140: 0.25 | AA140: 3993475 | AB140: 33117975 | AC140: 2225725 | AD140: 39337175 | AE140: 0 | AF140: 159739 | AG140: 240858 | AH140: 178058 | AI140: 0.5 | AJ140: 2.75 | AK140: 0.25 | AL140: 0 | AM140: 0 | AN140: 0 | AO140: 0 | AP140: 50 | AQ140: 39337175
A141: Infancia | B141: 52 | C141: Nariño | D141: 52287 | E141: Funes | F141: 17 | G141: 5201 | H141: CZ PASTO 1 | I141: 0 | J141: 0.5 | K141: 2.75 | L141: 0.25 | M141: 159739 | N141: 240858 | O141: 178058 | P141: 0 | Q141: 0 | R141: 0 | S141: 0 | T141: 50 | U141: 159739 | V141: 240858 | W141: 178058 | X141: 0.5 | Y141: 2.75 | Z141: 0.25 | AA141: 3993475 | AB141: 33117975 | AC141: 2225725 | AD141: 39337175 | AE141: 0 | AF141: 159739 | AG141: 240858 | AH141: 178058 | AI141: 0.5 | AJ141: 2.75 | AK141: 0.25 | AL141: 0 | AM141: 0 | AN141: 0 | AO141: 0 | AP141: 50 | AQ141: 39337175
A142: Infancia | B142: 52 | C142: Nariño | D142: 52381 | E142: La Florida | F142: 17 | G142: 5202 | H142: CZ PASTO 2 | I142: 0 | J142: 0.5 | K142: 2.75 | L142: 0.25 | M142: 159739 | N142: 240858 | O142: 178058 | P142: 0 | Q142: 0 | R142: 0 | S142: 0 | T142: 75 | U142: 159739 | V142: 240858 | W142: 178058 | X142: 0.5 | Y142: 2.75 | Z142: 0.25 | AA142: 5990213 | AB142: 49676963 | AC142: 3338588 | AD142: 59005764 | AE142: 0 | AF142: 159739 | AG142: 240858 | AH142: 178058 | AI142: 0.5 | AJ142: 2.75 | AK142: 0.25 | AL142: 0 | AM142: 0 | AN142: 0 | AO142: 0 | AP142: 75 | AQ142: 59005764
A143: Infancia | B143: 52 | C143: Nariño | D143: 52411 | E143: Linares | F143: 17 | G143: 5202 | H143: CZ PASTO 2 | I143: 0 | J143: 0.5 | K143: 2.75 | L143: 0.25 | M143: 159739 | N143: 240858 | O143: 178058 | P143: 0 | Q143: 0 | R143: 0 | S143: 0 | T143: 25 | U143: 159739 | V143: 240858 | W143: 178058 | X143: 0.5 | Y143: 2.75 | Z143: 0.25 | AA143: 1996738 | AB143: 16558988 | AC143: 1112863 | AD143: 19668589 | AE143: 25 | AF143: 159739 | AG143: 240858 | AH143: 178058 | AI143: 0.5 | AJ143: 2.75 | AK143: 0.25 | AL143: 1996738 | AM143: 16558988 | AN143: 1112863 | AO143: 19668589 | AP143: 50 | AQ143: 39337178
A144: Infancia | B144: 52 | C144: Nariño | D144: 52418 | E144: Los Andes | F144: 17 | G144: 5202 | H144: CZ PASTO 2 | I144: 0 | J144: 0.5 | K144: 2.75 | L144: 0.25 | M144: 159739 | N144: 240858 | O144: 178058 | P144: 0 | Q144: 0 | R144: 0 | S144: 0 | T144: 25 | U144: 159739 | V144: 240858 | W144: 178058 | X144: 0.5 | Y144: 2.75 | Z144: 0.25 | AA144: 1996738 | AB144: 16558988 | AC144: 1112863 | AD144: 19668589 | AE144: 25 | AF144: 159739 | AG144: 240858 | AH144: 178058 | AI144: 0.5 | AJ144: 2.75 | AK144: 0.25 | AL144: 1996738 | AM144: 16558988 | AN144: 1112863 | AO144: 19668589 | AP144: 50 | AQ144: 39337178
A145: Infancia | B145: 52 | C145: Nariño | D145: 52480 | E145: Nariño | F145: 17 | G145: 5202 | H145: CZ PASTO 2 | I145: 0 | J145: 0.5 | K145: 2.75 | L145: 0.25 | M145: 159739 | N145: 240858 | O145: 178058 | P145: 0 | Q145: 0 | R145: 0 | S145: 0 | T145: 50 | U145: 159739 | V145: 240858 | W145: 178058 | X145: 0.5 | Y145: 2.75 | Z145: 0.25 | AA145: 3993475 | AB145: 33117975 | AC145: 2225725 | AD145: 39337175 | AE145: 0 | AF145: 159739 | AG145: 240858 | AH145: 178058 | AI145: 0.5 | AJ145: 2.75 | AK145: 0.25 | AL145: 0 | AM145: 0 | AN145: 0 | AO145: 0 | AP145: 50 | AQ145: 39337175
A146: Infancia | B146: 52 | C146: Nariño | D146: 52683 | E146: Sandoná | F146: 17 | G146: 5202 | H146: CZ PASTO 2 | I146: 0 | J146: 0.5 | K146: 2.75 | L146: 0.25 | M146: 159739 | N146: 240858 | O146: 178058 | P146: 0 | Q146: 0 | R146: 0 | S146: 0 | T146: 50 | U146: 159739 | V146: 240858 | W146: 178058 | X146: 0.5 | Y146: 2.75 | Z146: 0.25 | AA146: 3993475 | AB146: 33117975 | AC146: 2225725 | AD146: 39337175 | AE146: 0 | AF146: 159739 | AG146: 240858 | AH146: 178058 | AI146: 0.5 | AJ146: 2.75 | AK146: 0.25 | AL146: 0 | AM146: 0 | AN146: 0 | AO146: 0 | AP146: 50 | AQ146: 39337175
A147: Infancia | B147: 52 | C147: Nariño | D147: 52685 | E147: San Bernardo | F147: 17 | G147: 5201 | H147: CZ PASTO 1 | I147: 0 | J147: 0.5 | K147: 2.75 | L147: 0.25 | M147: 159739 | N147: 240858 | O147: 178058 | P147: 0 | Q147: 0 | R147: 0 | S147: 0 | T147: 50 | U147: 159739 | V147: 240858 | W147: 178058 | X147: 0.5 | Y147: 2.75 | Z147: 0.25 | AA147: 3993475 | AB147: 33117975 | AC147: 2225725 | AD147: 39337175 | AE147: 0 | AF147: 159739 | AG147: 240858 | AH147: 178058 | AI147: 0.5 | AJ147: 2.75 | AK147: 0.25 | AL147: 0 | AM147: 0 | AN147: 0 | AO147: 0 | AP147: 50 | AQ147: 39337175
A148: Infancia | B148: 52 | C148: Nariño | D148: 52788 | E148: Tangua | F148: 17 | G148: 5201 | H148: CZ PASTO 1 | I148: 0 | J148: 0.5 | K148: 2.75 | L148: 0.25 | M148: 159739 | N148: 240858 | O148: 178058 | P148: 0 | Q148: 0 | R148: 0 | S148: 0 | T148: 50 | U148: 159739 | V148: 240858 | W148: 178058 | X148: 0.5 | Y148: 2.75 | Z148: 0.25 | AA148: 3993475 | AB148: 33117975 | AC148: 2225725 | AD148: 39337175 | AE148: 0 | AF148: 159739 | AG148: 240858 | AH148: 178058 | AI148: 0.5 | AJ148: 2.75 | AK148: 0.25 | AL148: 0 | AM148: 0 | AN148: 0 | AO148: 0 | AP148: 50 | AQ148: 39337175
A149: Infancia | B149: 52 | C149: Nariño | D149: 52885 | E149: Yacuanquer | F149: 17 | G149: 5201 | H149: CZ PASTO 1 | I149: 0 | J149: 0.5 | K149: 2.75 | L149: 0.25 | M149: 159739 | N149: 240858 | O149: 178058 | P149: 0 | Q149: 0 | R149: 0 | S149: 0 | T149: 50 | U149: 159739 | V149: 240858 | W149: 178058 | X149: 0.5 | Y149: 2.75 | Z149: 0.25 | AA149: 3993475 | AB149: 33117975 | AC149: 2225725 | AD149: 39337175 | AE149: 0 | AF149: 159739 | AG149: 240858 | AH149: 178058 | AI149: 0.5 | AJ149: 2.75 | AK149: 0.25 | AL149: 0 | AM149: 0 | AN149: 0 | AO149: 0 | AP149: 50 | AQ149: 39337175
A150: Infancia | B150: 52 | C150: Nariño | D150: 52022 | E150: Aldana | F150: 18 | G150: 5204 | H150: CZ IPIALES | I150: 0 | J150: 0.5 | K150: 2.75 | L150: 0.25 | M150: 159739 | N150: 240858 | O150: 178058 | P150: 0 | Q150: 0 | R150: 0 | S150: 0 | T150: 50 | U150: 159739 | V150: 240858 | W150: 178058 | X150: 0.5 | Y150: 2.75 | Z150: 0.25 | AA150: 3993475 | AB150: 33117975 | AC150: 2225725 | AD150: 39337175 | AE150: 0 | AF150: 159739 | AG150: 240858 | AH150: 178058 | AI150: 0.5 | AJ150: 2.75 | AK150: 0.25 | AL150: 0 | AM150: 0 | AN150: 0 | AO150: 0 | AP150: 50 | AQ150: 39337175
A151: Infancia | B151: 52 | C151: Nariño | D151: 52210 | E151: Contadero | F151: 18 | G151: 5204 | H151: CZ IPIALES | I151: 0 | J151: 0.5 | K151: 2.75 | L151: 0.25 | M151: 159739 | N151: 240858 | O151: 178058 | P151: 0 | Q151: 0 | R151: 0 | S151: 0 | T151: 50 | U151: 159739 | V151: 240858 | W151: 178058 | X151: 0.5 | Y151: 2.75 | Z151: 0.25 | AA151: 3993475 | AB151: 33117975 | AC151: 2225725 | AD151: 39337175 | AE151: 0 | AF151: 159739 | AG151: 240858 | AH151: 178058 | AI151: 0.5 | AJ151: 2.75 | AK151: 0.25 | AL151: 0 | AM151: 0 | AN151: 0 | AO151: 0 | AP151: 50 | AQ151: 39337175
A152: Infancia | B152: 52 | C152: Nariño | D152: 52215 | E152: Córdoba | F152: 18 | G152: 5204 | H152: CZ IPIALES | I152: 0 | J152: 0.5 | K152: 2.75 | L152: 0.25 | M152: 159739 | N152: 240858 | O152: 178058 | P152: 0 | Q152: 0 | R152: 0 | S152: 0 | T152: 50 | U152: 159739 | V152: 240858 | W152: 178058 | X152: 0.5 | Y152: 2.75 | Z152: 0.25 | AA152: 3993475 | AB152: 33117975 | AC152: 2225725 | AD152: 39337175 | AE152: 25 | AF152: 159739 | AG152: 240858 | AH152: 178058 | AI152: 0.5 | AJ152: 2.75 | AK152: 0.25 | AL152: 1996738 | AM152: 16558988 | AN152: 1112863 | AO152: 19668589 | AP152: 75 | AQ152: 59005764
A153: Infancia | B153: 52 | C153: Nariño | D153: 52224 | E153: Cuaspud Carlosama | F153: 18 | G153: 5204 | H153: CZ IPIALES | I153: 0 | J153: 0.5 | K153: 2.75 | L153: 0.25 | M153: 159739 | N153: 240858 | O153: 178058 | P153: 0 | Q153: 0 | R153: 0 | S153: 0 | T153: 50 | U153: 159739 | V153: 240858 | W153: 178058 | X153: 0.5 | Y153: 2.75 | Z153: 0.25 | AA153: 3993475 | AB153: 33117975 | AC153: 2225725 | AD153: 39337175 | AE153: 0 | AF153: 159739 | AG153: 240858 | AH153: 178058 | AI153: 0.5 | AJ153: 2.75 | AK153: 0.25 | AL153: 0 | AM153: 0 | AN153: 0 | AO153: 0 | AP153: 50 | AQ153: 39337175
A154: Infancia | B154: 52 | C154: Nariño | D154: 52227 | E154: Cumbal | F154: 18 | G154: 5204 | H154: CZ IPIALES | I154: 0 | J154: 0.5 | K154: 2.75 | L154: 0.25 | M154: 159739 | N154: 240858 | O154: 178058 | P154: 0 | Q154: 0 | R154: 0 | S154: 0 | T154: 100 | U154: 159739 | V154: 240858 | W154: 178058 | X154: 0.5 | Y154: 2.75 | Z154: 0.25 | AA154: 7986950 | AB154: 66235950 | AC154: 4451450 | AD154: 78674350 | AE154: 0 | AF154: 159739 | AG154: 240858 | AH154: 178058 | AI154: 0.5 | AJ154: 2.75 | AK154: 0.25 | AL154: 0 | AM154: 0 | AN154: 0 | AO154: 0 | AP154: 100 | AQ154: 78674350
A155: Infancia | B155: 52 | C155: Nariño | D155: 52317 | E155: Guachucal | F155: 18 | G155: 5204 | H155: CZ IPIALES | I155: 0 | J155: 0.5 | K155: 2.75 | L155: 0.25 | M155: 159739 | N155: 240858 | O155: 178058 | P155: 0 | Q155: 0 | R155: 0 | S155: 0 | T155: 75 | U155: 159739 | V155: 240858 | W155: 178058 | X155: 0.5 | Y155: 2.75 | Z155: 0.25 | AA155: 5990213 | AB155: 49676963 | AC155: 3338588 | AD155: 59005764 | AE155: 0 | AF155: 159739 | AG155: 240858 | AH155: 178058 | AI155: 0.5 | AJ155: 2.75 | AK155: 0.25 | AL155: 0 | AM155: 0 | AN155: 0 | AO155: 0 | AP155: 75 | AQ155: 59005764
A156: Infancia | B156: 52 | C156: Nariño | D156: 52323 | E156: Gualmatán | F156: 18 | G156: 5204 | H156: CZ IPIALES | I156: 0 | J156: 0.5 | K156: 2.75 | L156: 0.25 | M156: 159739 | N156: 240858 | O156: 178058 | P156: 0 | Q156: 0 | R156: 0 | S156: 0 | T156: 0 | U156: 159739 | V156: 240858 | W156: 178058 | X156: 0.5 | Y156: 2.75 | Z156: 0.25 | AA156: 0 | AB156: 0 | AC156: 0 | AD156: 0 | AE156: 0 | AF156: 159739 | AG156: 240858 | AH156: 178058 | AI156: 0.5 | AJ156: 2.75 | AK156: 0.25 | AL156: 0 | AM156: 0 | AN156: 0 | AO156: 0 | AP156: 0 | AQ156: 0
A157: Infancia | B157: 52 | C157: Nariño | D157: 52352 | E157: Iles | F157: 18 | G157: 5204 | H157: CZ IPIALES | I157: 0 | J157: 0.5 | K157: 2.75 | L157: 0.25 | M157: 159739 | N157: 240858 | O157: 178058 | P157: 0 | Q157: 0 | R157: 0 | S157: 0 | T157: 50 | U157: 159739 | V157: 240858 | W157: 178058 | X157: 0.5 | Y157: 2.75 | Z157: 0.25 | AA157: 3993475 | AB157: 33117975 | AC157: 2225725 | AD157: 39337175 | AE157: 0 | AF157: 159739 | AG157: 240858 | AH157: 178058 | AI157: 0.5 | AJ157: 2.75 | AK157: 0.25 | AL157: 0 | AM157: 0 | AN157: 0 | AO157: 0 | AP157: 50 | AQ157: 39337175
A158: Infancia | B158: 52 | C158: Nariño | D158: 52356 | E158: Ipiales | F158: 18 | G158: 5204 | H158: CZ IPIALES | I158: 0 | J158: 0.5 | K158: 2.75 | L158: 0.25 | M158: 159739 | N158: 240858 | O158: 178058 | P158: 0 | Q158: 0 | R158: 0 | S158: 0 | T158: 300 | U158: 159739 | V158: 240858 | W158: 178058 | X158: 0.5 | Y158: 2.75 | Z158: 0.25 | AA158: 23960850 | AB158: 198707850 | AC158: 13354350 | AD158: 236023050 | AE158: 0 | AF158: 159739 | AG158: 240858 | AH158: 178058 | AI158: 0.5 | AJ158: 2.75 | AK158: 0.25 | AL158: 0 | AM158: 0 | AN158: 0 | AO158: 0 | AP158: 300 | AQ158: 236023050
A159: Infancia | B159: 52 | C159: Nariño | D159: 52560 | E159: Potosí | F159: 18 | G159: 5204 | H159: CZ IPIALES | I159: 0 | J159: 0.5 | K159: 2.75 | L159: 0.25 | M159: 159739 | N159: 240858 | O159: 178058 | P159: 0 | Q159: 0 | R159: 0 | S159: 0 | T159: 50 | U159: 159739 | V159: 240858 | W159: 178058 | X159: 0.5 | Y159: 2.75 | Z159: 0.25 | AA159: 3993475 | AB159: 33117975 | AC159: 2225725 | AD159: 39337175 | AE159: 0 | AF159: 159739 | AG159: 240858 | AH159: 178058 | AI159: 0.5 | AJ159: 2.75 | AK159: 0.25 | AL159: 0 | AM159: 0 | AN159: 0 | AO159: 0 | AP159: 50 | AQ159: 39337175
A160: Infancia | B160: 52 | C160: Nariño | D160: 52573 | E160: Puerres | F160: 18 | G160: 5204 | H160: CZ IPIALES | I160: 0 | J160: 0.5 | K160: 2.75 | L160: 0.25 | M160: 159739 | N160: 240858 | O160: 178058 | P160: 0 | Q160: 0 | R160: 0 | S160: 0 | T160: 50 | U160: 159739 | V160: 240858 | W160: 178058 | X160: 0.5 | Y160: 2.75 | Z160: 0.25 | AA160: 3993475 | AB160: 33117975 | AC160: 2225725 | AD160: 39337175 | AE160: 0 | AF160: 159739 | AG160: 240858 | AH160: 178058 | AI160: 0.5 | AJ160: 2.75 | AK160: 0.25 | AL160: 0 | AM160: 0 | AN160: 0 | AO160: 0 | AP160: 50 | AQ160: 39337175
A161: Infancia | B161: 52 | C161: Nariño | D161: 52585 | E161: Pupiales | F161: 18 | G161: 5204 | H161: CZ IPIALES | I161: 0 | J161: 0.5 | K161: 2.75 | L161: 0.25 | M161: 159739 | N161: 240858 | O161: 178058 | P161: 0 | Q161: 0 | R161: 0 | S161: 0 | T161: 0 | U161: 159739 | V161: 240858 | W161: 178058 | X161: 0.5 | Y161: 2.75 | Z161: 0.25 | AA161: 0 | AB161: 0 | AC161: 0 | AD161: 0 | AE161: 0 | AF161: 159739 | AG161: 240858 | AH161: 178058 | AI161: 0.5 | AJ161: 2.75 | AK161: 0.25 | AL161: 0 | AM161: 0 | AN161: 0 | AO161: 0 | AP161: 0 | AQ161: 0
A162: Infancia | B162: 52 | C162: Nariño | D162: 52320 | E162: Guaitarilla | F162: 19 | G162: 5205 | H162: CZ TUQUERRES | I162: 0 | J162: 0.5 | K162: 2.75 | L162: 0.25 | M162: 159739 | N162: 240858 | O162: 178058 | P162: 0 | Q162: 0 | R162: 0 | S162: 0 | T162: 50 | U162: 159739 | V162: 240858 | W162: 178058 | X162: 0.5 | Y162: 2.75 | Z162: 0.25 | AA162: 3993475 | AB162: 33117975 | AC162: 2225725 | AD162: 39337175 | AE162: 0 | AF162: 159739 | AG162: 240858 | AH162: 178058 | AI162: 0.5 | AJ162: 2.75 | AK162: 0.25 | AL162: 0 | AM162: 0 | AN162: 0 | AO162: 0 | AP162: 50 | AQ162: 39337175
A163: Infancia | B163: 52 | C163: Nariño | D163: 52354 | E163: Imués | F163: 19 | G163: 5205 | H163: CZ TUQUERRES | I163: 0 | J163: 0.5 | K163: 2.75 | L163: 0.25 | M163: 159739 | N163: 240858 | O163: 178058 | P163: 0 | Q163: 0 | R163: 0 | S163: 0 | T163: 50 | U163: 159739 | V163: 240858 | W163: 178058 | X163: 0.5 | Y163: 2.75 | Z163: 0.25 | AA163: 3993475 | AB163: 33117975 | AC163: 2225725 | AD163: 39337175 | AE163: 0 | AF163: 159739 | AG163: 240858 | AH163: 178058 | AI163: 0.5 | AJ163: 2.75 | AK163: 0.25 | AL163: 0 | AM163: 0 | AN163: 0 | AO163: 0 | AP163: 50 | AQ163: 39337175
A164: Infancia | B164: 52 | C164: Nariño | D164: 52385 | E164: La Llanada | F164: 19 | G164: 5205 | H164: CZ TUQUERRES | I164: 0 | J164: 0.5 | K164: 2.75 | L164: 0.25 | M164: 159739 | N164: 240858 | O164: 178058 | P164: 0 | Q164: 0 | R164: 0 | S164: 0 | T164: 25 | U164: 159739 | V164: 240858 | W164: 178058 | X164: 0.5 | Y164: 2.75 | Z164: 0.25 | AA164: 1996738 | AB164: 16558988 | AC164: 1112863 | AD164: 19668589 | AE164: 25 | AF164: 159739 | AG164: 240858 | AH164: 178058 | AI164: 0.5 | AJ164: 2.75 | AK164: 0.25 | AL164: 1996738 | AM164: 16558988 | AN164: 1112863 | AO164: 19668589 | AP164: 50 | AQ164: 39337178
A165: Infancia | B165: 52 | C165: Nariño | D165: 52435 | E165: Mallama | F165: 19 | G165: 5205 | H165: CZ TUQUERRES | I165: 0 | J165: 0.5 | K165: 2.75 | L165: 0.25 | M165: 159739 | N165: 240858 | O165: 178058 | P165: 0 | Q165: 0 | R165: 0 | S165: 0 | T165: 50 | U165: 159739 | V165: 240858 | W165: 178058 | X165: 0.5 | Y165: 2.75 | Z165: 0.25 | AA165: 3993475 | AB165: 33117975 | AC165: 2225725 | AD165: 39337175 | AE165: 0 | AF165: 159739 | AG165: 240858 | AH165: 178058 | AI165: 0.5 | AJ165: 2.75 | AK165: 0.25 | AL165: 0 | AM165: 0 | AN165: 0 | AO165: 0 | AP165: 50 | AQ165: 39337175
A166: Infancia | B166: 52 | C166: Nariño | D166: 52506 | E166: Ospina | F166: 19 | G166: 5205 | H166: CZ TUQUERRES | I166: 0 | J166: 0.5 | K166: 2.75 | L166: 0.25 | M166: 159739 | N166: 240858 | O166: 178058 | P166: 0 | Q166: 0 | R166: 0 | S166: 0 | T166: 0 | U166: 159739 | V166: 240858 | W166: 178058 | X166: 0.5 | Y166: 2.75 | Z166: 0.25 | AA166: 0 | AB166: 0 | AC166: 0 | AD166: 0 | AE166: 0 | AF166: 159739 | AG166: 240858 | AH166: 178058 | AI166: 0.5 | AJ166: 2.75 | AK166: 0.25 | AL166: 0 | AM166: 0 | AN166: 0 | AO166: 0 | AP166: 0 | AQ166: 0
A167: Infancia | B167: 52 | C167: Nariño | D167: 52565 | E167: Providencia | F167: 19 | G167: 5205 | H167: CZ TUQUERRES | I167: 0 | J167: 0.5 | K167: 2.75 | L167: 0.25 | M167: 159739 | N167: 240858 | O167: 178058 | P167: 0 | Q167: 0 | R167: 0 | S167: 0 | T167: 50 | U167: 159739 | V167: 240858 | W167: 178058 | X167: 0.5 | Y167: 2.75 | Z167: 0.25 | AA167: 3993475 | AB167: 33117975 | AC167: 2225725 | AD167: 39337175 | AE167: 0 | AF167: 159739 | AG167: 240858 | AH167: 178058 | AI167: 0.5 | AJ167: 2.75 | AK167: 0.25 | AL167: 0 | AM167: 0 | AN167: 0 | AO167: 0 | AP167: 50 | AQ167: 39337175
A168: Infancia | B168: 52 | C168: Nariño | D168: 52612 | E168: Ricaurte | F168: 19 | G168: 5205 | H168: CZ TUQUERRES | I168: 0 | J168: 0.5 | K168: 2.75 | L168: 0.25 | M168: 159739 | N168: 240858 | O168: 178058 | P168: 0 | Q168: 0 | R168: 0 | S168: 0 | T168: 150 | U168: 159739 | V168: 240858 | W168: 178058 | X168: 0.5 | Y168: 2.75 | Z168: 0.25 | AA168: 11980425 | AB168: 99353925 | AC168: 6677175 | AD168: 118011525 | AE168: 0 | AF168: 159739 | AG168: 240858 | AH168: 178058 | AI168: 0.5 | AJ168: 2.75 | AK168: 0.25 | AL168: 0 | AM168: 0 | AN168: 0 | AO168: 0 | AP168: 150 | AQ168: 118011525
A169: Infancia | B169: 52 | C169: Nariño | D169: 52678 | E169: Samaniego | F169: 19 | G169: 5205 | H169: CZ TUQUERRES | I169: 0 | J169: 0.5 | K169: 2.75 | L169: 0.25 | M169: 159739 | N169: 240858 | O169: 178058 | P169: 0 | Q169: 0 | R169: 0 | S169: 0 | T169: 125 | U169: 159739 | V169: 240858 | W169: 178058 | X169: 0.5 | Y169: 2.75 | Z169: 0.25 | AA169: 9983688 | AB169: 82794938 | AC169: 5564313 | AD169: 98342939 | AE169: 25 | AF169: 159739 | AG169: 240858 | AH169: 178058 | AI169: 0.5 | AJ169: 2.75 | AK169: 0.25 | AL169: 1996738 | AM169: 16558988 | AN169: 1112863 | AO169: 19668589 | AP169: 150 | AQ169: 118011528
A170: Infancia | B170: 52 | C170: Nariño | D170: 52699 | E170: Santacruz | F170: 19 | G170: 5205 | H170: CZ TUQUERRES | I170: 0 | J170: 0.5 | K170: 2.75 | L170: 0.25 | M170: 159739 | N170: 240858 | O170: 178058 | P170: 0 | Q170: 0 | R170: 0 | S170: 0 | T170: 75 | U170: 159739 | V170: 240858 | W170: 178058 | X170: 0.5 | Y170: 2.75 | Z170: 0.25 | AA170: 5990213 | AB170: 49676963 | AC170: 3338588 | AD170: 59005764 | AE170: 0 | AF170: 159739 | AG170: 240858 | AH170: 178058 | AI170: 0.5 | AJ170: 2.75 | AK170: 0.25 | AL170: 0 | AM170: 0 | AN170: 0 | AO170: 0 | AP170: 75 | AQ170: 59005764
A171: Infancia | B171: 52 | C171: Nariño | D171: 52720 | E171: Sapuyes | F171: 19 | G171: 5205 | H171: CZ TUQUERRES | I171: 0 | J171: 0.5 | K171: 2.75 | L171: 0.25 | M171: 159739 | N171: 240858 | O171: 178058 | P171: 0 | Q171: 0 | R171: 0 | S171: 0 | T171: 0 | U171: 159739 | V171: 240858 | W171: 178058 | X171: 0.5 | Y171: 2.75 | Z171: 0.25 | AA171: 0 | AB171: 0 | AC171: 0 | AD171: 0 | AE171: 0 | AF171: 159739 | AG171: 240858 | AH171: 178058 | AI171: 0.5 | AJ171: 2.75 | AK171: 0.25 | AL171: 0 | AM171: 0 | AN171: 0 | AO171: 0 | AP171: 0 | AQ171: 0
A172: Infancia | B172: 52 | C172: Nariño | D172: 52838 | E172: Túquerres | F172: 19 | G172: 5205 | H172: CZ TUQUERRES | I172: 0 | J172: 0.5 | K172: 2.75 | L172: 0.25 | M172: 159739 | N172: 240858 | O172: 178058 | P172: 0 | Q172: 0 | R172: 0 | S172: 0 | T172: 100 | U172: 159739 | V172: 240858 | W172: 178058 | X172: 0.5 | Y172: 2.75 | Z172: 0.25 | AA172: 7986950 | AB172: 66235950 | AC172: 4451450 | AD172: 78674350 | AE172: 0 | AF172: 159739 | AG172: 240858 | AH172: 178058 | AI172: 0.5 | AJ172: 2.75 | AK172: 0.25 | AL172: 0 | AM172: 0 | AN172: 0 | AO172: 0 | AP172: 100 | AQ172: 78674350
A173: Infancia | B173: 70 | C173: Sucre | D173: 70110 | E173: Buenavista | F173: 20 | G173: 7001 | H173: CZ BOSTON | I173: 0 | J173: 0.5 | K173: 2.75 | L173: 0.25 | M173: 159619 | N173: 245168 | O173: 179422 | P173: 0 | Q173: 0 | R173: 0 | S173: 0 | T173: 100 | U173: 159619 | V173: 245168 | W173: 179422 | X173: 0.5 | Y173: 2.75 | Z173: 0.25 | AA173: 7980950 | AB173: 67421200 | AC173: 4485550 | AD173: 79887700 | AE173: 0 | AF173: 159619 | AG173: 245168 | AH173: 179422 | AI173: 0.5 | AJ173: 2.75 | AK173: 0.25 | AL173: 0 | AM173: 0 | AN173: 0 | AO173: 0 | AP173: 100 | AQ173: 79887700
A174: Infancia | B174: 70 | C174: Sucre | D174: 70215 | E174: Corozal | F174: 20 | G174: 7001 | H174: CZ BOSTON | I174: 50 | J174: 0.5 | K174: 2.75 | L174: 0.25 | M174: 159619 | N174: 245168 | O174: 179422 | P174: 3990475 | Q174: 33710600 | R174: 2242775 | S174: 39943850 | T174: 150 | U174: 159619 | V174: 245168 | W174: 179422 | X174: 0.5 | Y174: 2.75 | Z174: 0.25 | AA174: 11971425 | AB174: 101131800 | AC174: 6728325 | AD174: 119831550 | AE174: 0 | AF174: 159619 | AG174: 245168 | AH174: 179422 | AI174: 0.5 | AJ174: 2.75 | AK174: 0.25 | AL174: 0 | AM174: 0 | AN174: 0 | AO174: 0 | AP174: 200 | AQ174: 159775400
A175: Adolescencia y Juventud | B175: 70 | C175: Sucre | D175: 70215 | E175: Corozal | F175: 20 | G175: 7001 | H175: CZ BOSTON | I175: 180 | J175: 0.5 | K175: 3 | L175: - | M175: 195285 | N175: 628954 | O175: 0 | P175: 17575650 | Q175: 339635160 | R175: 0 | S175: 357210810 | T175: 0 | U175: 191599 | V175: 513985 | W175: 0 | X175: 0.5 | Y175: 3 | Z175: - | AA175: 0 | AB175: 0 | AC175: 0 | AD175: 0 | AE175: 0 | AF175: 0 | AG175: 0 | AH175: 0 | AI175: - | AJ175: - | AK175: - | AL175: 0 | AM175: 0 | AN175: 0 | AO175: 0 | AP175: 180 | AQ175: 357210810
A176: Infancia | B176: 70 | C176: Sucre | D176: 70233 | E176: El Roble | F176: 20 | G176: 7001 | H176: CZ BOSTON | I176: 0 | J176: 0.5 | K176: 2.75 | L176: 0.25 | M176: 159619 | N176: 245168 | O176: 179422 | P176: 0 | Q176: 0 | R176: 0 | S176: 0 | T176: 50 | U176: 159619 | V176: 245168 | W176: 179422 | X176: 0.5 | Y176: 2.75 | Z176: 0.25 | AA176: 3990475 | AB176: 33710600 | AC176: 2242775 | AD176: 39943850 | AE176: 0 | AF176: 159619 | AG176: 245168 | AH176: 179422 | AI176: 0.5 | AJ176: 2.75 | AK176: 0.25 | AL176: 0 | AM176: 0 | AN176: 0 | AO176: 0 | AP176: 50 | AQ176: 39943850
A177: Infancia | B177: 70 | C177: Sucre | D177: 70235 | E177: Galeras | F177: 20 | G177: 7001 | H177: CZ BOSTON | I177: 0 | J177: 0.5 | K177: 2.75 | L177: 0.25 | M177: 159619 | N177: 245168 | O177: 179422 | P177: 0 | Q177: 0 | R177: 0 | S177: 0 | T177: 50 | U177: 159619 | V177: 245168 | W177: 179422 | X177: 0.5 | Y177: 2.75 | Z177: 0.25 | AA177: 3990475 | AB177: 33710600 | AC177: 2242775 | AD177: 39943850 | AE177: 0 | AF177: 159619 | AG177: 245168 | AH177: 179422 | AI177: 0.5 | AJ177: 2.75 | AK177: 0.25 | AL177: 0 | AM177: 0 | AN177: 0 | AO177: 0 | AP177: 50 | AQ177: 39943850
A178: Infancia | B178: 70 | C178: Sucre | D178: 70418 | E178: Los Palmitos | F178: 20 | G178: 7001 | H178: CZ BOSTON | I178: 0 | J178: 0.5 | K178: 2.75 | L178: 0.25 | M178: 159619 | N178: 245168 | O178: 179422 | P178: 0 | Q178: 0 | R178: 0 | S178: 0 | T178: 50 | U178: 159619 | V178: 245168 | W178: 179422 | X178: 0.5 | Y178: 2.75 | Z178: 0.25 | AA178: 3990475 | AB178: 33710600 | AC178: 2242775 | AD178: 39943850 | AE178: 0 | AF178: 159619 | AG178: 245168 | AH178: 179422 | AI178: 0.5 | AJ178: 2.75 | AK178: 0.25 | AL178: 0 | AM178: 0 | AN178: 0 | AO178: 0 | AP178: 50 | AQ178: 39943850
A179: Infancia | B179: 70 | C179: Sucre | D179: 70473 | E179: Morroa | F179: 20 | G179: 7001 | H179: CZ BOSTON | I179: 0 | J179: 0.5 | K179: 2.75 | L179: 0.25 | M179: 159619 | N179: 245168 | O179: 179422 | P179: 0 | Q179: 0 | R179: 0 | S179: 0 | T179: 100 | U179: 159619 | V179: 245168 | W179: 179422 | X179: 0.5 | Y179: 2.75 | Z179: 0.25 | AA179: 7980950 | AB179: 67421200 | AC179: 4485550 | AD179: 79887700 | AE179: 0 | AF179: 159619 | AG179: 245168 | AH179: 179422 | AI179: 0.5 | AJ179: 2.75 | AK179: 0.25 | AL179: 0 | AM179: 0 | AN179: 0 | AO179: 0 | AP179: 100 | AQ179: 79887700
A180: Infancia | B180: 70 | C180: Sucre | D180: 70508 | E180: Ovejas | F180: 20 | G180: 7001 | H180: CZ BOSTON | I180: 0 | J180: 0.5 | K180: 2.75 | L180: 0.25 | M180: 159619 | N180: 245168 | O180: 179422 | P180: 0 | Q180: 0 | R180: 0 | S180: 0 | T180: 200 | U180: 159619 | V180: 245168 | W180: 179422 | X180: 0.5 | Y180: 2.75 | Z180: 0.25 | AA180: 15961900 | AB180: 134842400 | AC180: 8971100 | AD180: 159775400 | AE180: 0 | AF180: 159619 | AG180: 245168 | AH180: 179422 | AI180: 0.5 | AJ180: 2.75 | AK180: 0.25 | AL180: 0 | AM180: 0 | AN180: 0 | AO180: 0 | AP180: 200 | AQ180: 159775400
A181: Adolescencia y Juventud | B181: 70 | C181: Sucre | D181: 70508 | E181: Ovejas | F181: 20 | G181: 7001 | H181: CZ BOSTON | I181: 0 | J181: 0.5 | K181: 3 | L181: - | M181: 0 | N181: 0 | O181: 0 | P181: 0 | Q181: 0 | R181: 0 | S181: 0 | T181: 200 | U181: 191599 | V181: 513985 | W181: 0 | X181: 0.5 | Y181: 3 | Z181: - | AA181: 19159900 | AB181: 308391000 | AC181: 0 | AD181: 327550900 | AE181: 0 | AF181: 0 | AG181: 0 | AH181: 0 | AI181: - | AJ181: - | AK181: - | AL181: 0 | AM181: 0 | AN181: 0 | AO181: 0 | AP181: 200 | AQ181: 327550900
A182: Infancia | B182: 70 | C182: Sucre | D182: 70670 | E182: Sampués | F182: 20 | G182: 7001 | H182: CZ BOSTON | I182: 0 | J182: 0.5 | K182: 2.75 | L182: 0.25 | M182: 159619 | N182: 245168 | O182: 179422 | P182: 0 | Q182: 0 | R182: 0 | S182: 0 | T182: 250 | U182: 159619 | V182: 245168 | W182: 179422 | X182: 0.5 | Y182: 2.75 | Z182: 0.25 | AA182: 19952375 | AB182: 168553000 | AC182: 11213875 | AD182: 199719250 | AE182: 0 | AF182: 159619 | AG182: 245168 | AH182: 179422 | AI182: 0.5 | AJ182: 2.75 | AK182: 0.25 | AL182: 0 | AM182: 0 | AN182: 0 | AO182: 0 | AP182: 250 | AQ182: 199719250
A183: Adolescencia y Juventud | B183: 70 | C183: Sucre | D183: 70670 | E183: Sampués | F183: 20 | G183: 7001 | H183: CZ BOSTON | I183: 0 | J183: 0.5 | K183: 3 | L183: - | M183: 0 | N183: 0 | O183: 0 | P183: 0 | Q183: 0 | R183: 0 | S183: 0 | T183: 200 | U183: 191599 | V183: 513985 | W183: 0 | X183: 0.5 | Y183: 3 | Z183: - | AA183: 19159900 | AB183: 308391000 | AC183: 0 | AD183: 327550900 | AE183: 0 | AF183: 0 | AG183: 0 | AH183: 0 | AI183: - | AJ183: - | AK183: - | AL183: 0 | AM183: 0 | AN183: 0 | AO183: 0 | AP183: 200 | AQ183: 327550900
A184: Infancia | B184: 70 | C184: Sucre | D184: 70702 | E184: San Juan de Betulia | F184: 20 | G184: 7001 | H184: CZ BOSTON | I184: 0 | J184: 0.5 | K184: 2.75 | L184: 0.25 | M184: 159619 | N184: 245168 | O184: 179422 | P184: 0 | Q184: 0 | R184: 0 | S184: 0 | T184: 50 | U184: 159619 | V184: 245168 | W184: 179422 | X184: 0.5 | Y184: 2.75 | Z184: 0.25 | AA184: 3990475 | AB184: 33710600 | AC184: 2242775 | AD184: 39943850 | AE184: 0 | AF184: 159619 | AG184: 245168 | AH184: 179422 | AI184: 0.5 | AJ184: 2.75 | AK184: 0.25 | AL184: 0 | AM184: 0 | AN184: 0 | AO184: 0 | AP184: 50 | AQ184: 39943850
A185: Infancia | B185: 70 | C185: Sucre | D185: 70717 | E185: San Pedro | F185: 20 | G185: 7001 | H185: CZ BOSTON | I185: 0 | J185: 0.5 | K185: 2.75 | L185: 0.25 | M185: 159619 | N185: 245168 | O185: 179422 | P185: 0 | Q185: 0 | R185: 0 | S185: 0 | T185: 50 | U185: 159619 | V185: 245168 | W185: 179422 | X185: 0.5 | Y185: 2.75 | Z185: 0.25 | AA185: 3990475 | AB185: 33710600 | AC185: 2242775 | AD185: 39943850 | AE185: 0 | AF185: 159619 | AG185: 245168 | AH185: 179422 | AI185: 0.5 | AJ185: 2.75 | AK185: 0.25 | AL185: 0 | AM185: 0 | AN185: 0 | AO185: 0 | AP185: 50 | AQ185: 39943850
A186: Infancia | B186: 70 | C186: Sucre | D186: 70742 | E186: San Luis de Sincé | F186: 20 | G186: 7001 | H186: CZ BOSTON | I186: 0 | J186: 0.5 | K186: 2.75 | L186: 0.25 | M186: 159619 | N186: 245168 | O186: 179422 | P186: 0 | Q186: 0 | R186: 0 | S186: 0 | T186: 100 | U186: 159619 | V186: 245168 | W186: 179422 | X186: 0.5 | Y186: 2.75 | Z186: 0.25 | AA186: 7980950 | AB186: 67421200 | AC186: 4485550 | AD186: 79887700 | AE186: 0 | AF186: 159619 | AG186: 245168 | AH186: 179422 | AI186: 0.5 | AJ186: 2.75 | AK186: 0.25 | AL186: 0 | AM186: 0 | AN186: 0 | AO186: 0 | AP186: 100 | AQ186: 79887700
A187: Infancia | B187: 54 | C187: Norte de Santander | D187: 54003 | E187: Ábrego | F187: 21 | G187: 5404 | H187: CZ OCAÑA | I187: 0 | J187: 0.5 | K187: 2.75 | L187: 0.25 | M187: 159000 | N187: 242371 | O187: 178156 | P187: 0 | Q187: 0 | R187: 0 | S187: 0 | T187: 175 | U187: 159000 | V187: 242371 | W187: 178156 | X187: 0.5 | Y187: 2.75 | Z187: 0.25 | AA187: 13912500 | AB187: 116641044 | AC187: 7794325 | AD187: 138347869 | AE187: 25 | AF187: 159000 | AG187: 242371 | AH187: 178156 | AI187: 0.5 | AJ187: 2.75 | AK187: 0.25 | AL187: 1987500 | AM187: 16663006 | AN187: 1113475 | AO187: 19763981 | AP187: 200 | AQ187: 158111850
A188: Infancia | B188: 54 | C188: Norte de Santander | D188: 54128 | E188: Cáchira | F188: 21 | G188: 5404 | H188: CZ OCAÑA | I188: 0 | J188: 0.5 | K188: 2.75 | L188: 0.25 | M188: 159000 | N188: 242371 | O188: 178156 | P188: 0 | Q188: 0 | R188: 0 | S188: 0 | T188: 50 | U188: 159000 | V188: 242371 | W188: 178156 | X188: 0.5 | Y188: 2.75 | Z188: 0.25 | AA188: 3975000 | AB188: 33326013 | AC188: 2226950 | AD188: 39527963 | AE188: 0 | AF188: 159000 | AG188: 242371 | AH188: 178156 | AI188: 0.5 | AJ188: 2.75 | AK188: 0.25 | AL188: 0 | AM188: 0 | AN188: 0 | AO188: 0 | AP188: 50 | AQ188: 39527963
A189: Infancia | B189: 54 | C189: Norte de Santander | D189: 54206 | E189: Convención | F189: 21 | G189: 5404 | H189: CZ OCAÑA | I189: 0 | J189: 0.5 | K189: 2.75 | L189: 0.25 | M189: 159000 | N189: 242371 | O189: 178156 | P189: 0 | Q189: 0 | R189: 0 | S189: 0 | T189: 75 | U189: 159000 | V189: 242371 | W189: 178156 | X189: 0.5 | Y189: 2.75 | Z189: 0.25 | AA189: 5962500 | AB189: 49989019 | AC189: 3340425 | AD189: 59291944 | AE189: 25 | AF189: 159000 | AG189: 242371 | AH189: 178156 | AI189: 0.5 | AJ189: 2.75 | AK189: 0.25 | AL189: 1987500 | AM189: 16663006 | AN189: 1113475 | AO189: 19763981 | AP189: 100 | AQ189: 79055925
A190: Infancia | B190: 54 | C190: Norte de Santander | D190: 54245 | E190: El Carmen | F190: 21 | G190: 5404 | H190: CZ OCAÑA | I190: 0 | J190: 0.5 | K190: 2.75 | L190: 0.25 | M190: 159000 | N190: 242371 | O190: 178156 | P190: 0 | Q190: 0 | R190: 0 | S190: 0 | T190: 75 | U190: 159000 | V190: 242371 | W190: 178156 | X190: 0.5 | Y190: 2.75 | Z190: 0.25 | AA190: 5962500 | AB190: 49989019 | AC190: 3340425 | AD190: 59291944 | AE190: 0 | AF190: 159000 | AG190: 242371 | AH190: 178156 | AI190: 0.5 | AJ190: 2.75 | AK190: 0.25 | AL190: 0 | AM190: 0 | AN190: 0 | AO190: 0 | AP190: 75 | AQ190: 59291944
A191: Infancia | B191: 54 | C191: Norte de Santander | D191: 54344 | E191: Hacarí | F191: 21 | G191: 5404 | H191: CZ OCAÑA | I191: 0 | J191: 0.5 | K191: 2.75 | L191: 0.25 | M191: 159000 | N191: 242371 | O191: 178156 | P191: 0 | Q191: 0 | R191: 0 | S191: 0 | T191: 125 | U191: 159000 | V191: 242371 | W191: 178156 | X191: 0.5 | Y191: 2.75 | Z191: 0.25 | AA191: 9937500 | AB191: 83315031 | AC191: 5567375 | AD191: 98819906 | AE191: 0 | AF191: 159000 | AG191: 242371 | AH191: 178156 | AI191: 0.5 | AJ191: 2.75 | AK191: 0.25 | AL191: 0 | AM191: 0 | AN191: 0 | AO191: 0 | AP191: 125 | AQ191: 98819906
A192: Infancia | B192: 54 | C192: Norte de Santander | D192: 54385 | E192: La Esperanza | F192: 21 | G192: 5404 | H192: CZ OCAÑA | I192: 0 | J192: 0.5 | K192: 2.75 | L192: 0.25 | M192: 159000 | N192: 242371 | O192: 178156 | P192: 0 | Q192: 0 | R192: 0 | S192: 0 | T192: 75 | U192: 159000 | V192: 242371 | W192: 178156 | X192: 0.5 | Y192: 2.75 | Z192: 0.25 | AA192: 5962500 | AB192: 49989019 | AC192: 3340425 | AD192: 59291944 | AE192: 0 | AF192: 159000 | AG192: 242371 | AH192: 178156 | AI192: 0.5 | AJ192: 2.75 | AK192: 0.25 | AL192: 0 | AM192: 0 | AN192: 0 | AO192: 0 | AP192: 75 | AQ192: 59291944
A193: Infancia | B193: 54 | C193: Norte de Santander | D193: 54398 | E193: La Playa | F193: 21 | G193: 5404 | H193: CZ OCAÑA | I193: 0 | J193: 0.5 | K193: 2.75 | L193: 0.25 | M193: 159000 | N193: 242371 | O193: 178156 | P193: 0 | Q193: 0 | R193: 0 | S193: 0 | T193: 50 | U193: 159000 | V193: 242371 | W193: 178156 | X193: 0.5 | Y193: 2.75 | Z193: 0.25 | AA193: 3975000 | AB193: 33326013 | AC193: 2226950 | AD193: 39527963 | AE193: 0 | AF193: 159000 | AG193: 242371 | AH193: 178156 | AI193: 0.5 | AJ193: 2.75 | AK193: 0.25 | AL193: 0 | AM193: 0 | AN193: 0 | AO193: 0 | AP193: 50 | AQ193: 39527963
A194: Infancia | B194: 54 | C194: Norte de Santander | D194: 54498 | E194: Ocaña | F194: 21 | G194: 5404 | H194: CZ OCAÑA | I194: 0 | J194: 0.5 | K194: 2.75 | L194: 0.25 | M194: 159000 | N194: 242371 | O194: 178156 | P194: 0 | Q194: 0 | R194: 0 | S194: 0 | T194: 200 | U194: 159000 | V194: 242371 | W194: 178156 | X194: 0.5 | Y194: 2.75 | Z194: 0.25 | AA194: 15900000 | AB194: 133304050 | AC194: 8907800 | AD194: 158111850 | AE194: 0 | AF194: 159000 | AG194: 242371 | AH194: 178156 | AI194: 0.5 | AJ194: 2.75 | AK194: 0.25 | AL194: 0 | AM194: 0 | AN194: 0 | AO194: 0 | AP194: 200 | AQ194: 158111850
A195: Infancia | B195: 54 | C195: Norte de Santander | D195: 54670 | E195: San Calixto | F195: 21 | G195: 5404 | H195: CZ OCAÑA | I195: 0 | J195: 0.5 | K195: 2.75 | L195: 0.25 | M195: 159000 | N195: 242371 | O195: 178156 | P195: 0 | Q195: 0 | R195: 0 | S195: 0 | T195: 125 | U195: 159000 | V195: 242371 | W195: 178156 | X195: 0.5 | Y195: 2.75 | Z195: 0.25 | AA195: 9937500 | AB195: 83315031 | AC195: 5567375 | AD195: 98819906 | AE195: 0 | AF195: 159000 | AG195: 242371 | AH195: 178156 | AI195: 0.5 | AJ195: 2.75 | AK195: 0.25 | AL195: 0 | AM195: 0 | AN195: 0 | AO195: 0 | AP195: 125 | AQ195: 98819906
A196: Infancia | B196: 54 | C196: Norte de Santander | D196: 54800 | E196: Teorama | F196: 21 | G196: 5404 | H196: CZ OCAÑA | I196: 0 | J196: 0.5 | K196: 2.75 | L196: 0.25 | M196: 159000 | N196: 242371 | O196: 178156 | P196: 0 | Q196: 0 | R196: 0 | S196: 0 | T196: 100 | U196: 159000 | V196: 242371 | W196: 178156 | X196: 0.5 | Y196: 2.75 | Z196: 0.25 | AA196: 7950000 | AB196: 66652025 | AC196: 4453900 | AD196: 79055925 | AE196: 0 | AF196: 159000 | AG196: 242371 | AH196: 178156 | AI196: 0.5 | AJ196: 2.75 | AK196: 0.25 | AL196: 0 | AM196: 0 | AN196: 0 | AO196: 0 | AP196: 100 | AQ196: 79055925
A197: Infancia | B197: 54 | C197: Norte de Santander | D197: 54125 | E197: Cácota | F197: 22 | G197: 5405 | H197: CZ PAMPLONA | I197: 0 | J197: 0.5 | K197: 2.75 | L197: 0.25 | M197: 159000 | N197: 242371 | O197: 178156 | P197: 0 | Q197: 0 | R197: 0 | S197: 0 | T197: 25 | U197: 159000 | V197: 242371 | W197: 178156 | X197: 0.5 | Y197: 2.75 | Z197: 0.25 | AA197: 1987500 | AB197: 16663006 | AC197: 1113475 | AD197: 19763981 | AE197: 25 | AF197: 159000 | AG197: 242371 | AH197: 178156 | AI197: 0.5 | AJ197: 2.75 | AK197: 0.25 | AL197: 1987500 | AM197: 16663006 | AN197: 1113475 | AO197: 19763981 | AP197: 50 | AQ197: 39527962
A198: Infancia | B198: 54 | C198: Norte de Santander | D198: 54174 | E198: Chitagá | F198: 22 | G198: 5405 | H198: CZ PAMPLONA | I198: 0 | J198: 0.5 | K198: 2.75 | L198: 0.25 | M198: 159000 | N198: 242371 | O198: 178156 | P198: 0 | Q198: 0 | R198: 0 | S198: 0 | T198: 50 | U198: 159000 | V198: 242371 | W198: 178156 | X198: 0.5 | Y198: 2.75 | Z198: 0.25 | AA198: 3975000 | AB198: 33326013 | AC198: 2226950 | AD198: 39527963 | AE198: 0 | AF198: 159000 | AG198: 242371 | AH198: 178156 | AI198: 0.5 | AJ198: 2.75 | AK198: 0.25 | AL198: 0 | AM198: 0 | AN198: 0 | AO198: 0 | AP198: 50 | AQ198: 39527963
A199: Infancia | B199: 54 | C199: Norte de Santander | D199: 54223 | E199: Cucutilla | F199: 22 | G199: 5405 | H199: CZ PAMPLONA | I199: 0 | J199: 0.5 | K199: 2.75 | L199: 0.25 | M199: 159000 | N199: 242371 | O199: 178156 | P199: 0 | Q199: 0 | R199: 0 | S199: 0 | T199: 50 | U199: 159000 | V199: 242371 | W199: 178156 | X199: 0.5 | Y199: 2.75 | Z199: 0.25 | AA199: 3975000 | AB199: 33326013 | AC199: 2226950 | AD199: 39527963 | AE199: 0 | AF199: 159000 | AG199: 242371 | AH199: 178156 | AI199: 0.5 | AJ199: 2.75 | AK199: 0.25 | AL199: 0 | AM199: 0 | AN199: 0 | AO199: 0 | AP199: 50 | AQ199: 39527963
A200: Infancia | B200: 54 | C200: Norte de Santander | D200: 54377 | E200: Labateca | F200: 22 | G200: 5405 | H200: CZ PAMPLONA | I200: 0 | J200: 0.5 | K200: 2.75 | L200: 0.25 | M200: 159000 | N200: 242371 | O200: 178156 | P200: 0 | Q200: 0 | R200: 0 | S200: 0 | T200: 0 | U200: 159000 | V200: 242371 | W200: 178156 | X200: 0.5 | Y200: 2.75 | Z200: 0.25 | AA200: 0 | AB200: 0 | AC200: 0 | AD200: 0 | AE200: 0 | AF200: 159000 | AG200: 242371 | AH200: 178156 | AI200: 0.5 | AJ200: 2.75 | AK200: 0.25 | AL200: 0 | AM200: 0 | AN200: 0 | AO200: 0 | AP200: 0 | AQ200: 0
... 1123 more rows

Sheet CostoAtrapasueñosInfanciaV1 (hidden)
A1: Dirección | B1: Depto | C1: Divipola | D1: Municipio | E1: Zona | F1: COSTO CUPO ETAPA ALISTAMIENTO COMUNITARIOS - URBANO | G1: COSTO CUPO ETAPA ATENCIÓN COMUNITARIOS - URBANO | H1: COSTO CUPO ETAPA DE CIERRE COMUNITARIOS - URBANO | I1: TOTAL CUPOS ATRAPASUEÑOS | J1: TOTAL PRESUSUPESTO ATRAPASUEÑOS
A2: Infancia | B2: Guainía | C2: 94001 | D2: Inírida | E2: 1 | F2: 160855 | G2: 266058 | H2: 187762 | I2: 625 | J2: 536892189
A3: Infancia | B3: Guainía | C3: 94343 | D3: Barrancominas | E3: 1 | F3: 160855 | G3: 266058 | H3: 187762 | I3: 100 | J3: 85902750
A4: Infancia | B4: Guainía | C4: 94663 | D4: Mapiripana (CD) | E4: 1 | F4: 160855 | G4: 266058 | H4: 187762 | I4: 0 | J4: 0
A5: Infancia | B5: Guainía | C5: 94883 | D5: San Felipe (CD) | E5: 1 | F5: 160855 | G5: 266058 | H5: 187762 | I5: 0 | J5: 0
A6: Infancia | B6: Guainía | C6: 94884 | D6: Puerto Colombia (CD) | E6: 1 | F6: 160855 | G6: 266058 | H6: 187762 | I6: 0 | J6: 0
A7: Infancia | B7: Guainía | C7: 94885 | D7: La Guadalupe (CD) | E7: 1 | F7: 160855 | G7: 266058 | H7: 187762 | I7: 0 | J7: 0
A8: Infancia | B8: Guainía | C8: 94886 | D8: Cacahual (CD) | E8: 1 | F8: 160855 | G8: 266058 | H8: 187762 | I8: 0 | J8: 0
A9: Infancia | B9: Guainía | C9: 94887 | D9: Pana Pana (CD) | E9: 1 | F9: 160855 | G9: 266058 | H9: 187762 | I9: 0 | J9: 0
A10: Infancia | B10: Guainía | C10: 94888 | D10: Morichal (CD) | E10: 1 | F10: 160855 | G10: 266058 | H10: 187762 | I10: 0 | J10: 0
A11: Infancia | B11: Vaupés | C11: 97001 | D11: Mitú | E11: 2 | F11: 164844 | G11: 267945 | H11: 190022 | I11: 150 | J11: 130016438
A12: Infancia | B12: Vaupés | C12: 97161 | D12: Carurú | E12: 2 | F12: 164844 | G12: 267945 | H12: 190022 | I12: 100 | J12: 86677625
A13: Infancia | B13: Vaupés | C13: 97511 | D13: Pacoa (CD) | E13: 2 | F13: 164844 | G13: 267945 | H13: 190022 | I13: 50 | J13: 43338813
A14: Infancia | B14: Vaupés | C14: 97666 | D14: Taraira | E14: 2 | F14: 164844 | G14: 267945 | H14: 190022 | I14: 100 | J14: 86677625
A15: Infancia | B15: Vaupés | C15: 97777 | D15: Papunahua (CD) | E15: 2 | F15: 164844 | G15: 267945 | H15: 190022 | I15: 0 | J15: 0
A16: Infancia | B16: Vaupés | C16: 97889 | D16: Yavaraté (CD) | E16: 2 | F16: 164844 | G16: 267945 | H16: 190022 | I16: 50 | J16: 43338813
A17: Infancia | B17: Vichada | C17: 99001 | D17: Puerto Carreño | E17: 3 | F17: 159000 | G17: 263657 | H17: 185618 | I17: 150 | J17: 127644188
A18: Infancia | B18: Vichada | C18: 99524 | D18: La Primavera | E18: 3 | F18: 159000 | G18: 263657 | H18: 185618 | I18: 100 | J18: 85096125
A19: Infancia | B19: Vichada | C19: 99624 | D19: Santa Rosalía | E19: 3 | F19: 159000 | G19: 263657 | H19: 185618 | I19: 50 | J19: 42548063
A20: Infancia | B20: Vichada | C20: 99773 | D20: Cumaribo | E20: 3 | F20: 159000 | G20: 263657 | H20: 185618 | I20: 100 | J20: 85096125
A21: Infancia | B21: Norte de Santander | C21: 54250 | D21: El Tarra | E21: 4 | F21: 159000 | G21: 242371 | H21: 178156 | I21: 250 | J21: 197639812
A22: Infancia | B22: Norte de Santander | C22: 54810 | D22: Tibú | E22: 4 | F22: 159000 | G22: 242371 | H22: 178156 | I22: 200 | J22: 158111850
A23: Infancia | B23: Amazonas | C23: 91001 | D23: Leticia | E23: 5 | F23: 161505 | G23: 266330 | H23: 187506 | I23: 500 | J23: 430018253
A24: Infancia | B24: Amazonas | C24: 91263 | D24: El Encanto (CD) | E24: 5 | F24: 161505 | G24: 266330 | H24: 187506 | I24: 0 | J24: 0
A25: Infancia | B25: Amazonas | C25: 91405 | D25: La Chorrera (CD) | E25: 5 | F25: 161505 | G25: 266330 | H25: 187506 | I25: 100 | J25: 86003650
A26: Infancia | B26: Amazonas | C26: 91407 | D26: La Pedrera (CD) | E26: 5 | F26: 161505 | G26: 266330 | H26: 187506 | I26: 100 | J26: 86003650
A27: Infancia | B27: Amazonas | C27: 91430 | D27: La Victoria (CD) | E27: 5 | F27: 161505 | G27: 266330 | H27: 187506 | I27: 0 | J27: 0
A28: Infancia | B28: Amazonas | C28: 91460 | D28: Miriti - Paraná (CD) | E28: 5 | F28: 161505 | G28: 266330 | H28: 187506 | I28: 0 | J28: 0
A29: Infancia | B29: Amazonas | C29: 91530 | D29: Puerto Alegría (CD) | E29: 5 | F29: 161505 | G29: 266330 | H29: 187506 | I29: 0 | J29: 0
A30: Infancia | B30: Amazonas | C30: 91536 | D30: Puerto Arica (CD) | E30: 5 | F30: 161505 | G30: 266330 | H30: 187506 | I30: 0 | J30: 0
A31: Infancia | B31: Amazonas | C31: 91540 | D31: Puerto Nariño | E31: 5 | F31: 161505 | G31: 266330 | H31: 187506 | I31: 250 | J31: 215009125
A32: Infancia | B32: Amazonas | C32: 91669 | D32: Puerto Santander (CD) | E32: 5 | F32: 161505 | G32: 266330 | H32: 187506 | I32: 0 | J32: 0
A33: Infancia | B33: Amazonas | C33: 91798 | D33: Tarapacá (CD) | E33: 5 | F33: 161505 | G33: 266330 | H33: 187506 | I33: 100 | J33: 86003650
A34: Infancia | B34: Cauca | C34: 19318 | D34: Guapi | E34: 6 | F34: 159000 | G34: 241283 | H34: 177770 | I34: 150 | J34: 118120613
A35: Infancia | B35: Cauca | C35: 19418 | D35: López de Micay | E35: 6 | F35: 159000 | G35: 241283 | H35: 177770 | I35: 100 | J35: 78747075
A36: Infancia | B36: Cauca | C36: 19809 | D36: Timbiquí | E36: 6 | F36: 159000 | G36: 241283 | H36: 177770 | I36: 200 | J36: 157494150
A37: Infancia | B37: Nariño | C37: 52079 | D37: Barbacoas | E37: 7 | F37: 159739 | G37: 240858 | H37: 178058 | I37: 200 | J37: 157348700
A38: Infancia | B38: Nariño | C38: 52427 | D38: Magüí | E38: 7 | F38: 159739 | G38: 240858 | H38: 178058 | I38: 50 | J38: 39337175
A39: Infancia | B39: Nariño | C39: 52621 | D39: Roberto Payán | E39: 7 | F39: 159739 | G39: 240858 | H39: 178058 | I39: 100 | J39: 78674350
A40: Infancia | B40: Nariño | C40: 52250 | D40: El Charco | E40: 8 | F40: 159739 | G40: 240858 | H40: 178058 | I40: 150 | J40: 118011525
A41: Infancia | B41: Nariño | C41: 52390 | D41: La Tola | E41: 8 | F41: 159739 | G41: 240858 | H41: 178058 | I41: 100 | J41: 78674353
A42: Infancia | B42: Nariño | C42: 52473 | D42: Mosquera | E42: 8 | F42: 159739 | G42: 240858 | H42: 178058 | I42: 50 | J42: 39337178
A43: Infancia | B43: Nariño | C43: 52490 | D43: Olaya Herrera | E43: 8 | F43: 159739 | G43: 240858 | H43: 178058 | I43: 200 | J43: 157348703
A44: Infancia | B44: Nariño | C44: 52520 | D44: Francisco Pizarro | E44: 8 | F44: 159739 | G44: 240858 | H44: 178058 | I44: 200 | J44: 157348703
A45: Infancia | B45: Nariño | C45: 52696 | D45: Santa Bárbara | E45: 8 | F45: 159739 | G45: 240858 | H45: 178058 | I45: 150 | J45: 118011525
A46: Infancia | B46: Nariño | C46: 52835 | D46: San Andrés de Tumaco | E46: 8 | F46: 159739 | G46: 240858 | H46: 178058 | I46: 450 | J46: 354034575
A47: Infancia | B47: Nariño | C47: 52051 | D47: Arboleda | E47: 9 | F47: 159739 | G47: 240858 | H47: 178058 | I47: 50 | J47: 39337175
A48: Infancia | B48: Nariño | C48: 52083 | D48: Belén | E48: 9 | F48: 159739 | G48: 240858 | H48: 178058 | I48: 50 | J48: 39337175
A49: Infancia | B49: Nariño | C49: 52203 | D49: Colón | E49: 9 | F49: 159739 | G49: 240858 | H49: 178058 | I49: 50 | J49: 39337175
A50: Infancia | B50: Nariño | C50: 52233 | D50: Cumbitara | E50: 9 | F50: 159739 | G50: 240858 | H50: 178058 | I50: 100 | J50: 78674350
A51: Infancia | B51: Nariño | C51: 52256 | D51: El Rosario | E51: 9 | F51: 159739 | G51: 240858 | H51: 178058 | I51: 75 | J51: 59005764
A52: Infancia | B52: Nariño | C52: 52378 | D52: La Cruz | E52: 9 | F52: 159739 | G52: 240858 | H52: 178058 | I52: 0 | J52: 0
A53: Infancia | B53: Nariño | C53: 52399 | D53: La Unión | E53: 9 | F53: 159739 | G53: 240858 | H53: 178058 | I53: 100 | J53: 78674350
A54: Infancia | B54: Nariño | C54: 52405 | D54: Leiva | E54: 9 | F54: 159739 | G54: 240858 | H54: 178058 | I54: 50 | J54: 39337178
A55: Infancia | B55: Nariño | C55: 52540 | D55: Policarpa | E55: 9 | F55: 159739 | G55: 240858 | H55: 178058 | I55: 125 | J55: 98342939
A56: Infancia | B56: Nariño | C56: 52687 | D56: San Lorenzo | E56: 9 | F56: 159739 | G56: 240858 | H56: 178058 | I56: 50 | J56: 39337175
A57: Infancia | B57: Nariño | C57: 52693 | D57: San Pablo | E57: 9 | F57: 159739 | G57: 240858 | H57: 178058 | I57: 100 | J57: 78674350
A58: Infancia | B58: Nariño | C58: 52694 | D58: San Pedro de Cartago | E58: 9 | F58: 159739 | G58: 240858 | H58: 178058 | I58: 50 | J58: 39337175
A59: Infancia | B59: Nariño | C59: 52786 | D59: Taminango | E59: 9 | F59: 159739 | G59: 240858 | H59: 178058 | I59: 50 | J59: 39337175
A60: Infancia | B60: Putumayo | C60: 86219 | D60: Colón | E60: 10 | F60: 159000 | G60: 262967 | H60: 185618 | I60: 50 | J60: 42453188
A61: Infancia | B61: Putumayo | C61: 86568 | D61: Puerto Asís | E61: 10 | F61: 159000 | G61: 262967 | H61: 185618 | I61: 200 | J61: 169812750
A62: Infancia | B62: Putumayo | C62: 86569 | D62: Puerto Caicedo | E62: 10 | F62: 159000 | G62: 262967 | H62: 185618 | I62: 100 | J62: 84906375
A63: Infancia | B63: Putumayo | C63: 86573 | D63: Puerto Leguízamo | E63: 10 | F63: 159000 | G63: 262967 | H63: 185618 | I63: 200 | J63: 169812750
A64: Infancia | B64: Putumayo | C64: 86749 | D64: Sibundoy | E64: 10 | F64: 159000 | G64: 262967 | H64: 185618 | I64: 75 | J64: 63679782
A65: Infancia | B65: Putumayo | C65: 86755 | D65: San Francisco | E65: 10 | F65: 159000 | G65: 262967 | H65: 185618 | I65: 50 | J65: 42453188
A66: Infancia | B66: Putumayo | C66: 86760 | D66: Santiago | E66: 10 | F66: 159000 | G66: 262967 | H66: 185618 | I66: 50 | J66: 42453188
A67: Infancia | B67: Putumayo | C67: 86320 | D67: Orito | E67: 11 | F67: 159000 | G67: 262967 | H67: 185618 | I67: 200 | J67: 169812751
A68: Infancia | B68: Putumayo | C68: 86757 | D68: San Miguel | E68: 11 | F68: 159000 | G68: 262967 | H68: 185618 | I68: 100 | J68: 84906376
A69: Infancia | B69: Putumayo | C69: 86865 | D69: Valle del Guamuez | E69: 11 | F69: 159000 | G69: 262967 | H69: 185618 | I69: 200 | J69: 169812751
A70: Infancia | B70: Putumayo | C70: 86001 | D70: Mocoa | E70: 12 | F70: 159000 | G70: 262967 | H70: 185618 | I70: 100 | J70: 84906375
A71: Infancia | B71: Putumayo | C71: 86571 | D71: Puerto Guzmán | E71: 12 | F71: 159000 | G71: 262967 | H71: 185618 | I71: 75 | J71: 63679782
A72: Infancia | B72: Putumayo | C72: 86885 | D72: Villagarzón | E72: 12 | F72: 159000 | G72: 262967 | H72: 185618 | I72: 100 | J72: 84906376
A73: Infancia | B73: Cauca | C73: 19022 | D73: Almaguer | E73: 13 | F73: 159000 | G73: 241283 | H73: 177770 | I73: 150 | J73: 118120613
A74: Infancia | B74: Cauca | C74: 19050 | D74: Argelia | E74: 13 | F74: 159000 | G74: 241283 | H74: 177770 | I74: 100 | J74: 78747075
A75: Infancia | B75: Cauca | C75: 19075 | D75: Balboa | E75: 13 | F75: 159000 | G75: 241283 | H75: 177770 | I75: 100 | J75: 78747076
A76: Infancia | B76: Cauca | C76: 19100 | D76: Bolívar | E76: 13 | F76: 159000 | G76: 241283 | H76: 177770 | I76: 100 | J76: 78747076
A77: Infancia | B77: Cauca | C77: 19290 | D77: Florencia | E77: 13 | F77: 159000 | G77: 241283 | H77: 177770 | I77: 100 | J77: 78747076
A78: Infancia | B78: Cauca | C78: 19450 | D78: Mercaderes | E78: 13 | F78: 159000 | G78: 241283 | H78: 177770 | I78: 100 | J78: 78747075
A79: Infancia | B79: Cauca | C79: 19532 | D79: Patía | E79: 13 | F79: 159000 | G79: 241283 | H79: 177770 | I79: 200 | J79: 157494150
A80: Infancia | B80: Cauca | C80: 19693 | D80: San Sebastián | E80: 13 | F80: 159000 | G80: 241283 | H80: 177770 | I80: 100 | J80: 78747075
A81: Infancia | B81: Cauca | C81: 19785 | D81: Sucre | E81: 13 | F81: 159000 | G81: 241283 | H81: 177770 | I81: 100 | J81: 78747076
A82: Infancia | B82: Cauca | C82: 19110 | D82: Buenos Aires | E82: 14 | F82: 159000 | G82: 241283 | H82: 177770 | I82: 200 | J82: 157494151
A83: Infancia | B83: Cauca | C83: 19142 | D83: Caloto | E83: 14 | F83: 159000 | G83: 241283 | H83: 177770 | I83: 100 | J83: 78747076
A84: Infancia | B84: Cauca | C84: 19212 | D84: Corinto | E84: 14 | F84: 159000 | G84: 241283 | H84: 177770 | I84: 100 | J84: 78747075
A85: Infancia | B85: Cauca | C85: 19300 | D85: Guachené | E85: 14 | F85: 159000 | G85: 241283 | H85: 177770 | I85: 100 | J85: 78747075
A86: Infancia | B86: Cauca | C86: 19455 | D86: Miranda | E86: 14 | F86: 159000 | G86: 241283 | H86: 177770 | I86: 100 | J86: 78747075
A87: Infancia | B87: Cauca | C87: 19513 | D87: Padilla | E87: 14 | F87: 159000 | G87: 241283 | H87: 177770 | I87: 0 | J87: 0
A88: Infancia | B88: Cauca | C88: 19573 | D88: Puerto Tejada | E88: 14 | F88: 159000 | G88: 241283 | H88: 177770 | I88: 200 | J88: 157494150
A89: Infancia | B89: Cauca | C89: 19698 | D89: Santander de Quilichao | E89: 14 | F89: 159000 | G89: 241283 | H89: 177770 | I89: 200 | J89: 157494150
A90: Infancia | B90: Cauca | C90: 19780 | D90: Suárez | E90: 14 | F90: 159000 | G90: 241283 | H90: 177770 | I90: 300 | J90: 236241226
A91: Infancia | B91: Cauca | C91: 19821 | D91: Toribío | E91: 14 | F91: 159000 | G91: 241283 | H91: 177770 | I91: 200 | J91: 157494151
A92: Infancia | B92: Cauca | C92: 19845 | D92: Villa Rica | E92: 14 | F92: 159000 | G92: 241283 | H92: 177770 | I92: 100 | J92: 78747075
A93: Infancia | B93: Cauca | C93: 19137 | D93: Caldono | E93: 15 | F93: 159000 | G93: 241283 | H93: 177770 | I93: 100 | J93: 78747075
A94: Infancia | B94: Cauca | C94: 19355 | D94: Inzá | E94: 15 | F94: 159000 | G94: 241283 | H94: 177770 | I94: 100 | J94: 78747075
A95: Infancia | B95: Cauca | C95: 19364 | D95: Jambaló | E95: 15 | F95: 159000 | G95: 241283 | H95: 177770 | I95: 100 | J95: 78747076
A96: Infancia | B96: Cauca | C96: 19517 | D96: Páez | E96: 15 | F96: 159000 | G96: 241283 | H96: 177770 | I96: 200 | J96: 157494150
A97: Infancia | B97: Cauca | C97: 19533 | D97: Piamonte | E97: 15 | F97: 159000 | G97: 241283 | H97: 177770 | I97: 100 | J97: 78747075
A98: Infancia | B98: Cauca | C98: 19585 | D98: Puracé | E98: 15 | F98: 159000 | G98: 241283 | H98: 177770 | I98: 100 | J98: 78747075
A99: Infancia | B99: Cauca | C99: 19701 | D99: Santa Rosa | E99: 15 | F99: 159000 | G99: 241283 | H99: 177770 | I99: 100 | J99: 78747075
A100: Infancia | B100: Cauca | C100: 19743 | D100: Silvia | E100: 15 | F100: 159000 | G100: 241283 | H100: 177770 | I100: 200 | J100: 157494151
A101: Infancia | B101: Cauca | C101: 19824 | D101: Totoró | E101: 15 | F101: 159000 | G101: 241283 | H101: 177770 | I101: 100 | J101: 78747076
A102: Infancia | B102: Cauca | C102: 19001 | D102: Popayán | E102: 16 | F102: 159000 | G102: 241283 | H102: 177770 | I102: 450 | J102: 354361838
A103: Infancia | B103: Cauca | C103: 19130 | D103: Cajibío | E103: 16 | F103: 159000 | G103: 241283 | H103: 177770 | I103: 200 | J103: 157494151
A104: Infancia | B104: Cauca | C104: 19256 | D104: El Tambo | E104: 16 | F104: 159000 | G104: 241283 | H104: 177770 | I104: 200 | J104: 157494150
A105: Infancia | B105: Cauca | C105: 19392 | D105: La Sierra | E105: 16 | F105: 159000 | G105: 241283 | H105: 177770 | I105: 100 | J105: 78747075
A106: Infancia | B106: Cauca | C106: 19397 | D106: La Vega | E106: 16 | F106: 159000 | G106: 241283 | H106: 177770 | I106: 100 | J106: 78747075
A107: Infancia | B107: Cauca | C107: 19473 | D107: Morales | E107: 16 | F107: 159000 | G107: 241283 | H107: 177770 | I107: 200 | J107: 157494151
A108: Infancia | B108: Cauca | C108: 19548 | D108: Piendamó - Tunía | E108: 16 | F108: 159000 | G108: 241283 | H108: 177770 | I108: 150 | J108: 118120613
A109: Infancia | B109: Cauca | C109: 19622 | D109: Rosas | E109: 16 | F109: 159000 | G109: 241283 | H109: 177770 | I109: 100 | J109: 78747075
A110: Infancia | B110: Cauca | C110: 19760 | D110: Sotará Paispamba | E110: 16 | F110: 159000 | G110: 241283 | H110: 177770 | I110: 0 | J110: 0
A111: Infancia | B111: Cauca | C111: 19807 | D111: Timbío | E111: 16 | F111: 159000 | G111: 241283 | H111: 177770 | I111: 200 | J111: 157494150
A112: Infancia | B112: Nariño | C112: 52001 | D112: Pasto | E112: 17 | F112: 159739 | G112: 240858 | H112: 178058 | I112: 500 | J112: 393371750
A113: Infancia | B113: Nariño | C113: 52019 | D113: Albán | E113: 17 | F113: 159739 | G113: 240858 | H113: 178058 | I113: 50 | J113: 39337175
A114: Infancia | B114: Nariño | C114: 52036 | D114: Ancuya | E114: 17 | F114: 159739 | G114: 240858 | H114: 178058 | I114: 50 | J114: 39337175
A115: Infancia | B115: Nariño | C115: 52110 | D115: Buesaco | E115: 17 | F115: 159739 | G115: 240858 | H115: 178058 | I115: 75 | J115: 59005764
A116: Infancia | B116: Nariño | C116: 52207 | D116: Consacá | E116: 17 | F116: 159739 | G116: 240858 | H116: 178058 | I116: 0 | J116: 0
A117: Infancia | B117: Nariño | C117: 52240 | D117: Chachagüí | E117: 17 | F117: 159739 | G117: 240858 | H117: 178058 | I117: 0 | J117: 0
A118: Infancia | B118: Nariño | C118: 52254 | D118: El Peñol | E118: 17 | F118: 159739 | G118: 240858 | H118: 178058 | I118: 50 | J118: 39337175
A119: Infancia | B119: Nariño | C119: 52258 | D119: El Tablón de Gómez | E119: 17 | F119: 159739 | G119: 240858 | H119: 178058 | I119: 50 | J119: 39337175
A120: Infancia | B120: Nariño | C120: 52260 | D120: El Tambo | E120: 17 | F120: 159739 | G120: 240858 | H120: 178058 | I120: 50 | J120: 39337175
A121: Infancia | B121: Nariño | C121: 52287 | D121: Funes | E121: 17 | F121: 159739 | G121: 240858 | H121: 178058 | I121: 50 | J121: 39337175
A122: Infancia | B122: Nariño | C122: 52381 | D122: La Florida | E122: 17 | F122: 159739 | G122: 240858 | H122: 178058 | I122: 75 | J122: 59005764
A123: Infancia | B123: Nariño | C123: 52411 | D123: Linares | E123: 17 | F123: 159739 | G123: 240858 | H123: 178058 | I123: 50 | J123: 39337178
A124: Infancia | B124: Nariño | C124: 52418 | D124: Los Andes | E124: 17 | F124: 159739 | G124: 240858 | H124: 178058 | I124: 50 | J124: 39337178
A125: Infancia | B125: Nariño | C125: 52480 | D125: Nariño | E125: 17 | F125: 159739 | G125: 240858 | H125: 178058 | I125: 50 | J125: 39337175
A126: Infancia | B126: Nariño | C126: 52683 | D126: Sandoná | E126: 17 | F126: 159739 | G126: 240858 | H126: 178058 | I126: 50 | J126: 39337175
A127: Infancia | B127: Nariño | C127: 52685 | D127: San Bernardo | E127: 17 | F127: 159739 | G127: 240858 | H127: 178058 | I127: 50 | J127: 39337175
A128: Infancia | B128: Nariño | C128: 52788 | D128: Tangua | E128: 17 | F128: 159739 | G128: 240858 | H128: 178058 | I128: 50 | J128: 39337175
A129: Infancia | B129: Nariño | C129: 52885 | D129: Yacuanquer | E129: 17 | F129: 159739 | G129: 240858 | H129: 178058 | I129: 50 | J129: 39337175
A130: Infancia | B130: Nariño | C130: 52022 | D130: Aldana | E130: 18 | F130: 159739 | G130: 240858 | H130: 178058 | I130: 50 | J130: 39337175
A131: Infancia | B131: Nariño | C131: 52210 | D131: Contadero | E131: 18 | F131: 159739 | G131: 240858 | H131: 178058 | I131: 50 | J131: 39337175
A132: Infancia | B132: Nariño | C132: 52215 | D132: Córdoba | E132: 18 | F132: 159739 | G132: 240858 | H132: 178058 | I132: 75 | J132: 59005764
A133: Infancia | B133: Nariño | C133: 52224 | D133: Cuaspud Carlosama | E133: 18 | F133: 159739 | G133: 240858 | H133: 178058 | I133: 50 | J133: 39337175
A134: Infancia | B134: Nariño | C134: 52227 | D134: Cumbal | E134: 18 | F134: 159739 | G134: 240858 | H134: 178058 | I134: 100 | J134: 78674350
A135: Infancia | B135: Nariño | C135: 52317 | D135: Guachucal | E135: 18 | F135: 159739 | G135: 240858 | H135: 178058 | I135: 75 | J135: 59005764
A136: Infancia | B136: Nariño | C136: 52323 | D136: Gualmatán | E136: 18 | F136: 159739 | G136: 240858 | H136: 178058 | I136: 0 | J136: 0
A137: Infancia | B137: Nariño | C137: 52352 | D137: Iles | E137: 18 | F137: 159739 | G137: 240858 | H137: 178058 | I137: 50 | J137: 39337175
A138: Infancia | B138: Nariño | C138: 52356 | D138: Ipiales | E138: 18 | F138: 159739 | G138: 240858 | H138: 178058 | I138: 300 | J138: 236023050
A139: Infancia | B139: Nariño | C139: 52560 | D139: Potosí | E139: 18 | F139: 159739 | G139: 240858 | H139: 178058 | I139: 50 | J139: 39337175
A140: Infancia | B140: Nariño | C140: 52573 | D140: Puerres | E140: 18 | F140: 159739 | G140: 240858 | H140: 178058 | I140: 50 | J140: 39337175
A141: Infancia | B141: Nariño | C141: 52585 | D141: Pupiales | E141: 18 | F141: 159739 | G141: 240858 | H141: 178058 | I141: 0 | J141: 0
A142: Infancia | B142: Nariño | C142: 52320 | D142: Guaitarilla | E142: 19 | F142: 159739 | G142: 240858 | H142: 178058 | I142: 50 | J142: 39337175
A143: Infancia | B143: Nariño | C143: 52354 | D143: Imués | E143: 19 | F143: 159739 | G143: 240858 | H143: 178058 | I143: 50 | J143: 39337175
A144: Infancia | B144: Nariño | C144: 52385 | D144: La Llanada | E144: 19 | F144: 159739 | G144: 240858 | H144: 178058 | I144: 50 | J144: 39337178
A145: Infancia | B145: Nariño | C145: 52435 | D145: Mallama | E145: 19 | F145: 159739 | G145: 240858 | H145: 178058 | I145: 50 | J145: 39337175
A146: Infancia | B146: Nariño | C146: 52506 | D146: Ospina | E146: 19 | F146: 159739 | G146: 240858 | H146: 178058 | I146: 0 | J146: 0
A147: Infancia | B147: Nariño | C147: 52565 | D147: Providencia | E147: 19 | F147: 159739 | G147: 240858 | H147: 178058 | I147: 50 | J147: 39337175
A148: Infancia | B148: Nariño | C148: 52612 | D148: Ricaurte | E148: 19 | F148: 159739 | G148: 240858 | H148: 178058 | I148: 150 | J148: 118011525
A149: Infancia | B149: Nariño | C149: 52678 | D149: Samaniego | E149: 19 | F149: 159739 | G149: 240858 | H149: 178058 | I149: 150 | J149: 118011528
A150: Infancia | B150: Nariño | C150: 52699 | D150: Santacruz | E150: 19 | F150: 159739 | G150: 240858 | H150: 178058 | I150: 75 | J150: 59005764
A151: Infancia | B151: Nariño | C151: 52720 | D151: Sapuyes | E151: 19 | F151: 159739 | G151: 240858 | H151: 178058 | I151: 0 | J151: 0
A152: Infancia | B152: Nariño | C152: 52838 | D152: Túquerres | E152: 19 | F152: 159739 | G152: 240858 | H152: 178058 | I152: 100 | J152: 78674350
A153: Infancia | B153: Sucre | C153: 70110 | D153: Buenavista | E153: 20 | F153: 159619 | G153: 245168 | H153: 179422 | I153: 100 | J153: 79887700
A154: Infancia | B154: Sucre | C154: 70215 | D154: Corozal | E154: 20 | F154: 159619 | G154: 245168 | H154: 179422 | I154: 200 | J154: 159775400
A155: Infancia | B155: Sucre | C155: 70233 | D155: El Roble | E155: 20 | F155: 159619 | G155: 245168 | H155: 179422 | I155: 50 | J155: 39943850
A156: Infancia | B156: Sucre | C156: 70235 | D156: Galeras | E156: 20 | F156: 159619 | G156: 245168 | H156: 179422 | I156: 50 | J156: 39943850
A157: Infancia | B157: Sucre | C157: 70418 | D157: Los Palmitos | E157: 20 | F157: 159619 | G157: 245168 | H157: 179422 | I157: 50 | J157: 39943850
A158: Infancia | B158: Sucre | C158: 70473 | D158: Morroa | E158: 20 | F158: 159619 | G158: 245168 | H158: 179422 | I158: 100 | J158: 79887700
A159: Infancia | B159: Sucre | C159: 70508 | D159: Ovejas | E159: 20 | F159: 159619 | G159: 245168 | H159: 179422 | I159: 200 | J159: 159775400
A160: Infancia | B160: Sucre | C160: 70670 | D160: Sampués | E160: 20 | F160: 159619 | G160: 245168 | H160: 179422 | I160: 250 | J160: 199719250
A161: Infancia | B161: Sucre | C161: 70702 | D161: San Juan de Betulia | E161: 20 | F161: 159619 | G161: 245168 | H161: 179422 | I161: 50 | J161: 39943850
A162: Infancia | B162: Sucre | C162: 70717 | D162: San Pedro | E162: 20 | F162: 159619 | G162: 245168 | H162: 179422 | I162: 50 | J162: 39943850
A163: Infancia | B163: Sucre | C163: 70742 | D163: San Luis de Sincé | E163: 20 | F163: 159619 | G163: 245168 | H163: 179422 | I163: 100 | J163: 79887700
A164: Infancia | B164: Norte de Santander | C164: 54003 | D164: Ábrego | E164: 21 | F164: 159000 | G164: 242371 | H164: 178156 | I164: 200 | J164: 158111850
A165: Infancia | B165: Norte de Santander | C165: 54128 | D165: Cáchira | E165: 21 | F165: 159000 | G165: 242371 | H165: 178156 | I165: 50 | J165: 39527963
A166: Infancia | B166: Norte de Santander | C166: 54206 | D166: Convención | E166: 21 | F166: 159000 | G166: 242371 | H166: 178156 | I166: 100 | J166: 79055925
A167: Infancia | B167: Norte de Santander | C167: 54245 | D167: El Carmen | E167: 21 | F167: 159000 | G167: 242371 | H167: 178156 | I167: 75 | J167: 59291944
A168: Infancia | B168: Norte de Santander | C168: 54344 | D168: Hacarí | E168: 21 | F168: 159000 | G168: 242371 | H168: 178156 | I168: 125 | J168: 98819906
A169: Infancia | B169: Norte de Santander | C169: 54385 | D169: La Esperanza | E169: 21 | F169: 159000 | G169: 242371 | H169: 178156 | I169: 75 | J169: 59291944
A170: Infancia | B170: Norte de Santander | C170: 54398 | D170: La Playa | E170: 21 | F170: 159000 | G170: 242371 | H170: 178156 | I170: 50 | J170: 39527963
A171: Infancia | B171: Norte de Santander | C171: 54498 | D171: Ocaña | E171: 21 | F171: 159000 | G171: 242371 | H171: 178156 | I171: 200 | J171: 158111850
A172: Infancia | B172: Norte de Santander | C172: 54670 | D172: San Calixto | E172: 21 | F172: 159000 | G172: 242371 | H172: 178156 | I172: 125 | J172: 98819906
A173: Infancia | B173: Norte de Santander | C173: 54800 | D173: Teorama | E173: 21 | F173: 159000 | G173: 242371 | H173: 178156 | I173: 100 | J173: 79055925
A174: Infancia | B174: Norte de Santander | C174: 54125 | D174: Cácota | E174: 22 | F174: 159000 | G174: 242371 | H174: 178156 | I174: 50 | J174: 39527962
A175: Infancia | B175: Norte de Santander | C175: 54174 | D175: Chitagá | E175: 22 | F175: 159000 | G175: 242371 | H175: 178156 | I175: 50 | J175: 39527963
A176: Infancia | B176: Norte de Santander | C176: 54223 | D176: Cucutilla | E176: 22 | F176: 159000 | G176: 242371 | H176: 178156 | I176: 50 | J176: 39527963
A177: Infancia | B177: Norte de Santander | C177: 54377 | D177: Labateca | E177: 22 | F177: 159000 | G177: 242371 | H177: 178156 | I177: 0 | J177: 0
A178: Infancia | B178: Norte de Santander | C178: 54480 | D178: Mutiscua | E178: 22 | F178: 159000 | G178: 242371 | H178: 178156 | I178: 0 | J178: 0
A179: Infancia | B179: Norte de Santander | C179: 54518 | D179: Pamplona | E179: 22 | F179: 159000 | G179: 242371 | H179: 178156 | I179: 100 | J179: 79055925
A180: Infancia | B180: Norte de Santander | C180: 54520 | D180: Pamplonita | E180: 22 | F180: 159000 | G180: 242371 | H180: 178156 | I180: 0 | J180: 0
A181: Infancia | B181: Norte de Santander | C181: 54743 | D181: Silos | E181: 22 | F181: 159000 | G181: 242371 | H181: 178156 | I181: 50 | J181: 39527963
A182: Infancia | B182: Norte de Santander | C182: 54820 | D182: Toledo | E182: 22 | F182: 159000 | G182: 242371 | H182: 178156 | I182: 50 | J182: 39527962
A183: Infancia | B183: Norte de Santander | C183: 54001 | D183: San José de Cúcuta | E183: 23 | F183: 159000 | G183: 242371 | H183: 178156 | I183: 850 | J183: 671975363
A184: Infancia | B184: Norte de Santander | C184: 54051 | D184: Arboledas | E184: 23 | F184: 159000 | G184: 242371 | H184: 178156 | I184: 50 | J184: 39527963
A185: Infancia | B185: Norte de Santander | C185: 54099 | D185: Bochalema | E185: 23 | F185: 159000 | G185: 242371 | H185: 178156 | I185: 0 | J185: 0
A186: Infancia | B186: Norte de Santander | C186: 54109 | D186: Bucarasica | E186: 23 | F186: 159000 | G186: 242371 | H186: 178156 | I186: 75 | J186: 59291944
A187: Infancia | B187: Norte de Santander | C187: 54172 | D187: Chinácota | E187: 23 | F187: 159000 | G187: 242371 | H187: 178156 | I187: 0 | J187: 0
A188: Infancia | B188: Norte de Santander | C188: 54239 | D188: Durania | E188: 23 | F188: 159000 | G188: 242371 | H188: 178156 | I188: 0 | J188: 0
A189: Infancia | B189: Norte de Santander | C189: 54261 | D189: El Zulia | E189: 23 | F189: 159000 | G189: 242371 | H189: 178156 | I189: 100 | J189: 79055925
A190: Infancia | B190: Norte de Santander | C190: 54313 | D190: Gramalote | E190: 23 | F190: 159000 | G190: 242371 | H190: 178156 | I190: 0 | J190: 0
A191: Infancia | B191: Norte de Santander | C191: 54347 | D191: Herrán | E191: 23 | F191: 159000 | G191: 242371 | H191: 178156 | I191: 25 | J191: 19763981
A192: Infancia | B192: Norte de Santander | C192: 54405 | D192: Los Patios | E192: 23 | F192: 159000 | G192: 242371 | H192: 178156 | I192: 100 | J192: 79055925
A193: Infancia | B193: Norte de Santander | C193: 54418 | D193: Lourdes | E193: 23 | F193: 159000 | G193: 242371 | H193: 178156 | I193: 50 | J193: 39527962
A194: Infancia | B194: Norte de Santander | C194: 54553 | D194: Puerto Santander | E194: 23 | F194: 159000 | G194: 242371 | H194: 178156 | I194: 50 | J194: 39527963
A195: Infancia | B195: Norte de Santander | C195: 54599 | D195: Ragonvalia | E195: 23 | F195: 159000 | G195: 242371 | H195: 178156 | I195: 0 | J195: 0
A196: Infancia | B196: Norte de Santander | C196: 54660 | D196: Salazar | E196: 23 | F196: 159000 | G196: 242371 | H196: 178156 | I196: 50 | J196: 39527963
A197: Infancia | B197: Norte de Santander | C197: 54673 | D197: San Cayetano | E197: 23 | F197: 159000 | G197: 242371 | H197: 178156 | I197: 0 | J197: 0
A198: Infancia | B198: Norte de Santander | C198: 54680 | D198: Santiago | E198: 23 | F198: 159000 | G198: 242371 | H198: 178156 | I198: 0 | J198: 0
A199: Infancia | B199: Norte de Santander | C199: 54720 | D199: Sardinata | E199: 23 | F199: 159000 | G199: 242371 | H199: 178156 | I199: 200 | J199: 158111850
A200: Infancia | B200: Norte de Santander | C200: 54871 | D200: Villa Caro | E200: 23 | F200: 159000 | G200: 242371 | H200: 178156 | I200: 50 | J200: 39527963
... 908 more rows

Sheet TDCostoAtrapasueñosInfanciaV1 (hidden)
A3: Etiquetas de fila | B3: Depto | C3: Zona | D3: COSTO CUPO ETAPA ALISTAMIENTO COMUNITARIOS - URBANO | E3: COSTO CUPO ETAPA ATENCIÓN COMUNITARIOS - URBANO | F3: COSTO CUPO ETAPA DE CIERRE COMUNITARIOS - URBANO | G3: Suma de TOTAL CUPOS ATRAPASUEÑOS | H3: Suma de TOTAL PRESUSUPESTO ATRAPASUEÑOS | J3: Etiquetas de fila | L3: Depto | M3: Zona | N3: COSTO CUPO ETAPA ALISTAMIENTO COMUNITARIOS - URBANO | O3: COSTO CUPO ETAPA ATENCIÓN COMUNITARIOS - URBANO | P3: COSTO CUPO ETAPA DE CIERRE COMUNITARIOS - URBANO | Q3: Suma de TOTAL CUPOS ATRAPASUEÑOS | R3: Suma de TOTAL PRESUSUPESTO ATRAPASUEÑOS
A4: Infancia | B4: Amazonas | C4: 5 | D4: 161505 | E4: 266330 | F4: 187506 | G4: 1050 | H4: 903038328 | J4: Infancia | K4: =L4&"_"&M4 -> Amazonas_5 | L4: Amazonas | M4: 5 | N4: 161505 | O4: 266330 | P4: 187506 | Q4: 1050 | R4: 903038328
A5: Infancia | B5: Antioquia | C5: 61 | D5: 159000 | E5: 241882 | F5: 178043 | G5: 1525 | H5: 1203509045 | J5: Infancia | K5: =L5&"_"&M5 -> Antioquia_61 | L5: Antioquia | M5: 61 | N5: 159000 | O5: 241882 | P5: 178043 | Q5: 1525 | R5: 1203509045
A6: Infancia | B6: Antioquia | C6: 62 | D6: 159000 | E6: 241882 | F6: 178043 | G6: 2600 | H6: 2051884264 | J6: Infancia | K6: Antioquia_62 | L6: Antioquia | M6: 62 | N6: 159000 | O6: 241882 | P6: 178043 | Q6: 2600 | R6: 2051884264
A7: Infancia | B7: Antioquia | C7: 63 | D7: 159000 | E7: 241882 | F7: 178043 | G7: 1075 | H7: 848375226 | J7: Infancia | K7: Antioquia_63 | L7: Antioquia | M7: 63 | N7: 159000 | O7: 241882 | P7: 178043 | Q7: 1075 | R7: 848375226
A8: Infancia | B8: Antioquia | C8: 64 | D8: 159000 | E8: 241882 | F8: 178043 | G8: 800 | H8: 631349009 | J8: Infancia | K8: Antioquia_64 | L8: Antioquia | M8: 64 | N8: 159000 | O8: 241882 | P8: 178043 | Q8: 800 | R8: 631349009
A9: Infancia | B9: Antioquia | C9: 65 | D9: 159000 | E9: 241882 | F9: 178043 | G9: 1000 | H9: 789186256 | J9: Infancia | K9: Antioquia_65 | L9: Antioquia | M9: 65 | N9: 159000 | O9: 241882 | P9: 178043 | Q9: 1000 | R9: 789186256
A10: Infancia | B10: Antioquia | C10: 80 | D10: 159000 | E10: 241882 | F10: 178043 | G10: 1500 | H10: 1183779379 | J10: Infancia | K10: Antioquia_80 | L10: Antioquia | M10: 80 | N10: 159000 | O10: 241882 | P10: 178043 | Q10: 1500 | R10: 1183779379
A11: Infancia | B11: Antioquia | C11: 81 | D11: 159000 | E11: 241882 | F11: 178043 | G11: 2400 | H11: 1894047003 | J11: Infancia | K11: Antioquia_81 | L11: Antioquia | M11: 81 | N11: 159000 | O11: 241882 | P11: 178043 | Q11: 2400 | R11: 1894047003
A12: Infancia | B12: Arauca | C12: 66 | D12: 161505 | E12: 249961 | F12: 182063 | G12: 1050 | H12: 854344057 | J12: Infancia | K12: Arauca_66 | L12: Arauca | M12: 66 | N12: 161505 | O12: 249961 | P12: 182063 | Q12: 1050 | R12: 854344057
A13: Infancia | B13: Archipiélago de San Andrés | C13: 67 | D13: 159000 | E13: 263771 | F13: 185618 | G13: 300 | H13: 255382425 | J13: Infancia | K13: Archipiélago de San Andrés_67 | L13: Archipiélago de San Andrés | M13: 67 | N13: 159000 | O13: 263771 | P13: 185618 | Q13: 300 | R13: 255382425
A14: Infancia | B14: Atlántico | C14: 83 | D14: 159000 | E14: 246560 | F14: 179671 | G14: 1750 | H14: 1404301066 | J14: Infancia | K14: Atlántico_83 | L14: Atlántico | M14: 83 | N14: 159000 | O14: 246560 | P14: 179671 | Q14: 1750 | R14: 1404301066
A15: Infancia | B15: Atlántico | C15: 85 | D15: 159000 | E15: 246560 | F15: 179671 | G15: 1350 | H15: 1083317963 | J15: Infancia | K15: Atlántico_85 | L15: Atlántico | M15: 85 | N15: 159000 | O15: 246560 | P15: 179671 | Q15: 1350 | R15: 1083317963
A16: Infancia | B16: Bogotá | C16: 92 | D16: 159000 | E16: 247318 | F16: 179934 | G16: 1000 | H16: 804608002 | J16: Infancia | K16: Bogotá_92 | L16: Bogotá | M16: 92 | N16: 159000 | O16: 247318 | P16: 179934 | Q16: 1000 | R16: 804608002
A17: Infancia | B17: Bolívar | C17: 26 | D17: 159587 | E17: 245828 | F17: 179649 | G17: 1200 | H17: 960879307 | J17: Infancia | K17: Bolívar_26 | L17: Bolívar | M17: 26 | N17: 159587 | O17: 245828 | P17: 179649 | Q17: 1200 | R17: 960879307
A18: Infancia | B18: Bolívar | C18: 68 | D18: 159587 | E18: 245828 | F18: 179649 | G18: 850 | H18: 680622843 | J18: Infancia | K18: Bolívar_68 | L18: Bolívar | M18: 68 | N18: 159587 | O18: 245828 | P18: 179649 | Q18: 850 | R18: 680622843
A19: Infancia | B19: Bolívar | C19: 69 | D19: 159587 | E19: 245828 | F19: 179649 | G19: 875 | H19: 700641158 | J19: Infancia | K19: Bolívar_69 | L19: Bolívar | M19: 69 | N19: 159587 | O19: 245828 | P19: 179649 | Q19: 875 | R19: 700641158
A20: Infancia | B20: Bolívar | C20: 70 | D20: 159587 | E20: 245828 | F20: 179649 | G20: 850 | H20: 680622839 | J20: Infancia | K20: Bolívar_70 | L20: Bolívar | M20: 70 | N20: 159587 | O20: 245828 | P20: 179649 | Q20: 850 | R20: 680622839
A21: Infancia | B21: Bolívar | C21: 71 | D21: 159587 | E21: 245828 | F21: 179649 | G21: 900 | H21: 720659476 | J21: Infancia | K21: Bolívar_71 | L21: Bolívar | M21: 71 | N21: 159587 | O21: 245828 | P21: 179649 | Q21: 900 | R21: 720659476
A22: Infancia | B22: Bolívar | C22: 91 | D22: 159587 | E22: 245828 | F22: 179649 | G22: 2100 | H22: 1681538778 | J22: Infancia | K22: Bolívar_91 | L22: Bolívar | M22: 91 | N22: 159587 | O22: 245828 | P22: 179649 | Q22: 2100 | R22: 1681538778
A23: Infancia | B23: Boyacá | C23: 40 | D23: 159000 | E23: 242925 | F23: 178360 | G23: 2850 | H23: 2257581209 | J23: Infancia | K23: Boyacá_40 | L23: Boyacá | M23: 40 | N23: 159000 | O23: 242925 | P23: 178360 | Q23: 2850 | R23: 2257581209
A24: Infancia | B24: Boyacá | C24: 40 | D24: 159000 | E24: 242925 | F24: 4153360 | G24: 150 | H24: 118820063 | J24: Infancia | K24: Boyacá_40 | L24: Boyacá | M24: 40 | N24: 159000 | O24: 242925 | P24: 4153360 | Q24: 150 | R24: 118820063
A25: Infancia | B25: Boyacá | C25: 41 | D25: 159000 | E25: 242925 | F25: 178360 | G25: 400 | H25: 316853502 | J25: Infancia | K25: Boyacá_41 | L25: Boyacá | M25: 41 | N25: 159000 | O25: 242925 | P25: 178360 | Q25: 400 | R25: 316853502
A26: Infancia | B26: Caldas | C26: 84 | D26: 161373 | E26: 247066 | F26: 181191 | G26: 1025 | H26: 825551151 | J26: Infancia | K26: Caldas_84 | L26: Caldas | M26: 84 | N26: 161373 | O26: 247066 | P26: 181191 | Q26: 1025 | R26: 825551151
A27: Infancia | B27: Caldas | C27: 90 | D27: 161373 | E27: 247066 | F27: 181191 | G27: 650 | H27: 523520245 | J27: Infancia | K27: Caldas_90 | L27: Caldas | M27: 90 | N27: 161373 | O27: 247066 | P27: 181191 | Q27: 650 | R27: 523520245
A28: Infancia | B28: Caquetá | C28: 38 | D28: 159779 | E28: 243440 | F28: 179125 | G28: 1100 | H28: 873543830 | J28: Infancia | K28: Caquetá_38 | L28: Caquetá | M28: 38 | N28: 159779 | O28: 243440 | P28: 179125 | Q28: 1100 | R28: 873543830
A29: Infancia | B29: Caquetá | C29: 39 | D29: 159779 | E29: 243440 | F29: 179125 | G29: 625 | H29: 496331720 | J29: Infancia | K29: Caquetá_39 | L29: Caquetá | M29: 39 | N29: 159779 | O29: 243440 | P29: 179125 | Q29: 625 | R29: 496331720
A30: Infancia | B30: Casanare | C30: 37 | D30: 160098 | E30: 247614 | F30: 180821 | G30: 1225 | H30: 987586124 | J30: Infancia | K30: Casanare_37 | L30: Casanare | M30: 37 | N30: 160098 | O30: 247614 | P30: 180821 | Q30: 1225 | R30: 987586124
A31: Infancia | B31: Cauca | C31: 6 | D31: 159000 | E31: 241283 | F31: 177770 | G31: 450 | H31: 354361838 | J31: Infancia | K31: Cauca_6 | L31: Cauca | M31: 6 | N31: 159000 | O31: 241283 | P31: 177770 | Q31: 450 | R31: 354361838
A32: Infancia | B32: Cauca | C32: 13 | D32: 159000 | E32: 241283 | F32: 177770 | G32: 1050 | H32: 826844292 | J32: Infancia | K32: Cauca_13 | L32: Cauca | M32: 13 | N32: 159000 | O32: 241283 | P32: 177770 | Q32: 1050 | R32: 826844292
A33: Infancia | B33: Cauca | C33: 14 | D33: 159000 | E33: 241283 | F33: 177770 | G33: 1600 | H33: 1259953204 | J33: Infancia | K33: Cauca_14 | L33: Cauca | M33: 14 | N33: 159000 | O33: 241283 | P33: 177770 | Q33: 1600 | R33: 1259953204
A34: Infancia | B34: Cauca | C34: 15 | D34: 159000 | E34: 241283 | F34: 177770 | G34: 1100 | H34: 866217828 | J34: Infancia | K34: Cauca_15 | L34: Cauca | M34: 15 | N34: 159000 | O34: 241283 | P34: 177770 | Q34: 1100 | R34: 866217828
A35: Infancia | B35: Cauca | C35: 16 | D35: 159000 | E35: 241283 | F35: 177770 | G35: 1700 | H35: 1338700278 | J35: Infancia | K35: Cauca_16 | L35: Cauca | M35: 16 | N35: 159000 | O35: 241283 | P35: 177770 | Q35: 1700 | R35: 1338700278
A36: Infancia | B36: Cesar | C36: 72 | D36: 159720 | E36: 245534 | F36: 179626 | G36: 1575 | H36: 1259976392 | J36: Infancia | K36: Cesar_72 | L36: Cesar | M36: 72 | N36: 159720 | O36: 245534 | P36: 179626 | Q36: 1575 | R36: 1259976392
A37: Infancia | B37: Cesar | C37: 73 | D37: 159720 | E37: 245534 | F37: 179626 | G37: 2075 | H37: 1659968884 | J37: Infancia | K37: Cesar_73 | L37: Cesar | M37: 73 | N37: 159720 | O37: 245534 | P37: 179626 | Q37: 2075 | R37: 1659968884
A38: Infancia | B38: Chocó | C38: 53 | D38: 159000 | E38: 263053 | F38: 185618 | G38: 225 | H38: 191092559 | J38: Infancia | K38: Chocó_53 | L38: Chocó | M38: 53 | N38: 159000 | O38: 263053 | P38: 185618 | Q38: 225 | R38: 191092559
A39: Infancia | B39: Chocó | C39: 54 | D39: 159000 | E39: 263053 | F39: 185618 | G39: 900 | H39: 764370229 | J39: Infancia | K39: Chocó_54 | L39: Chocó | M39: 54 | N39: 159000 | O39: 263053 | P39: 185618 | Q39: 900 | R39: 764370229
A40: Infancia | B40: Chocó | C40: 55 | D40: 159000 | E40: 263053 | F40: 185618 | G40: 1200 | H40: 1019160305 | J40: Infancia | K40: Chocó_55 | L40: Chocó | M40: 55 | N40: 159000 | O40: 263053 | P40: 185618 | Q40: 1200 | R40: 1019160305
A41: Infancia | B41: Chocó | C41: 56 | D41: 159000 | E41: 263053 | F41: 185618 | G41: 725 | H41: 615742683 | J41: Infancia | K41: Chocó_56 | L41: Chocó | M41: 56 | N41: 159000 | O41: 263053 | P41: 185618 | Q41: 725 | R41: 615742683
A42: Infancia | B42: Chocó | C42: 57 | D42: 159000 | E42: 263053 | F42: 185618 | G42: 450 | H42: 382185118 | J42: Infancia | K42: Chocó_57 | L42: Chocó | M42: 57 | N42: 159000 | O42: 263053 | P42: 185618 | Q42: 450 | R42: 382185118
A43: Infancia | B43: Córdoba | C43: 58 | D43: 159000 | E43: 245319 | F43: 179198 | G43: 750 | H43: 599195065 | J43: Infancia | K43: Córdoba_58 | L43: Córdoba | M43: 58 | N43: 159000 | O43: 245319 | P43: 179198 | Q43: 750 | R43: 599195065
A44: Infancia | B44: Córdoba | C44: 59 | D44: 159000 | E44: 245319 | F44: 179198 | G44: 1450 | H44: 1158443790 | J44: Infancia | K44: Córdoba_59 | L44: Córdoba | M44: 59 | N44: 159000 | O44: 245319 | P44: 179198 | Q44: 1450 | R44: 1158443790
A45: Infancia | B45: Córdoba | C45: 60 | D45: 159000 | E45: 245319 | F45: 179198 | G45: 1850 | H45: 1478014490 | J45: Infancia | K45: Córdoba_60 | L45: Córdoba | M45: 60 | N45: 159000 | O45: 245319 | P45: 179198 | Q45: 1850 | R45: 1478014490
A46: Infancia | B46: Córdoba | C46: 88 | D46: 159000 | E46: 245319 | F46: 179198 | G46: 750 | H46: 599195065 | J46: Infancia | K46: Córdoba_88 | L46: Córdoba | M46: 88 | N46: 159000 | O46: 245319 | P46: 179198 | Q46: 750 | R46: 599195065
A47: Infancia | B47: Cundinamarca | C47: 42 | D47: 159604 | E47: 244427 | F47: 179196 | G47: 500 | H47: 398387630 | J47: Infancia | K47: Cundinamarca_42 | L47: Cundinamarca | M47: 42 | N47: 159604 | O47: 244427 | P47: 179196 | Q47: 500 | R47: 398387630
A48: Infancia | B48: Cundinamarca | C48: 43 | D48: 159604 | E48: 244427 | F48: 179196 | G48: 1200 | H48: 956130306 | J48: Infancia | K48: Cundinamarca_43 | L48: Cundinamarca | M48: 43 | N48: 159604 | O48: 244427 | P48: 179196 | Q48: 1200 | R48: 956130306
A49: Infancia | B49: Cundinamarca | C49: 44 | D49: 159604 | E49: 244427 | F49: 179196 | G49: 1925 | H49: 1533792364 | J49: Infancia | K49: Cundinamarca_44 | L49: Cundinamarca | M49: 44 | N49: 159604 | O49: 244427 | P49: 179196 | Q49: 1925 | R49: 1533792364
A50: Infancia | B50: Cundinamarca | C50: 45 | D50: 159604 | E50: 244427 | F50: 179196 | G50: 725 | H50: 577662060 | J50: Infancia | K50: Cundinamarca_45 | L50: Cundinamarca | M50: 45 | N50: 159604 | O50: 244427 | P50: 179196 | Q50: 725 | R50: 577662060
A51: Infancia | B51: Guainía | C51: 1 | D51: 160855 | E51: 266058 | F51: 187762 | G51: 725 | H51: 622794939 | J51: Infancia | K51: Guainía_1 | L51: Guainía | M51: 1 | N51: 160855 | O51: 266058 | P51: 187762 | Q51: 725 | R51: 622794939
A52: Infancia | B52: Guaviare | C52: 31 | D52: 164844 | E52: 267575 | F52: 190022 | G52: 450 | H52: 389591439 | J52: Infancia | K52: Guaviare_31 | L52: Guaviare | M52: 31 | N52: 164844 | O52: 267575 | P52: 190022 | Q52: 450 | R52: 389591439
A53: Infancia | B53: Huila | C53: 49 | D53: 160178 | E53: 243871 | F53: 179360 | G53: 800 | H53: 636459400 | J53: Infancia | K53: Huila_49 | L53: Huila | M53: 49 | N53: 160178 | O53: 243871 | P53: 179360 | Q53: 800 | R53: 636459400
A54: Infancia | B54: Huila | C54: 50 | D54: 160178 | E54: 243871 | F54: 179360 | G54: 1050 | H54: 835352965 | J54: Infancia | K54: Huila_50 | L54: Huila | M54: 50 | N54: 160178 | O54: 243871 | P54: 179360 | Q54: 1050 | R54: 835352965
A55: Infancia | B55: Huila | C55: 51 | D55: 160178 | E55: 243871 | F55: 179360 | G55: 625 | H55: 497233908 | J55: Infancia | K55: Huila_51 | L55: Huila | M55: 51 | N55: 160178 | O55: 243871 | P55: 179360 | Q55: 625 | R55: 497233908
A56: Infancia | B56: Huila | C56: 52 | D56: 160178 | E56: 243871 | F56: 179360 | G56: 900 | H56: 716016826 | J56: Infancia | K56: Huila_52 | L56: Huila | M56: 52 | N56: 160178 | O56: 243871 | P56: 179360 | Q56: 900 | R56: 716016826
A57: Infancia | B57: Magdalena | C57: 32 | D57: 159850 | E57: 245405 | F57: 179701 | G57: 350 | H57: 279899901 | J57: Infancia | K57: Magdalena_32 | L57: Magdalena | M57: 32 | N57: 159850 | O57: 245405 | P57: 179701 | Q57: 350 | R57: 279899901
A58: Infancia | B58: Magdalena | C58: 33 | D58: 159850 | E58: 245405 | F58: 179701 | G58: 825 | H58: 659764051 | J58: Infancia | K58: Magdalena_33 | L58: Magdalena | M58: 33 | N58: 159850 | O58: 245405 | P58: 179701 | Q58: 825 | R58: 659764051
A59: Infancia | B59: Magdalena | C59: 34 | D59: 159850 | E59: 245405 | F59: 179701 | G59: 400 | H59: 319885602 | J59: Infancia | K59: Magdalena_34 | L59: Magdalena | M59: 34 | N59: 159850 | O59: 245405 | P59: 179701 | Q59: 400 | R59: 319885602
A60: Infancia | B60: Magdalena | C60: 35 | D60: 159850 | E60: 245405 | F60: 179701 | G60: 1000 | H60: 799714001 | J60: Infancia | K60: Magdalena_35 | L60: Magdalena | M60: 35 | N60: 159850 | O60: 245405 | P60: 179701 | Q60: 1000 | R60: 799714001
A61: Infancia | B61: Magdalena | C61: 36 | D61: 159850 | E61: 245405 | F61: 179701 | G61: 1250 | H61: 999642502 | J61: Infancia | K61: Magdalena_36 | L61: Magdalena | M61: 36 | N61: 159850 | O61: 245405 | P61: 179701 | Q61: 1250 | R61: 999642502
A62: Infancia | B62: Magdalena | C62: 89 | D62: 159850 | E62: 245405 | F62: 179701 | G62: 850 | H62: 679756901 | J62: Infancia | K62: Magdalena_89 | L62: Magdalena | M62: 89 | N62: 159850 | O62: 245405 | P62: 179701 | Q62: 850 | R62: 679756901
A63: Infancia | B63: Meta | C63: 27 | D63: 159762 | E63: 248111 | F63: 180540 | G63: 575 | H63: 464209720 | J63: Infancia | K63: Meta_27 | L63: Meta | M63: 27 | N63: 159762 | O63: 248111 | P63: 180540 | Q63: 575 | R63: 464209720
A64: Infancia | B64: Meta | C64: 28 | D64: 159762 | E64: 248111 | F64: 180540 | G64: 1175 | H64: 948602468 | J64: Infancia | K64: Meta_28 | L64: Meta | M64: 28 | N64: 159762 | O64: 248111 | P64: 180540 | Q64: 1175 | R64: 948602468
A65: Infancia | B65: Meta | C65: 29 | D65: 159762 | E65: 248111 | F65: 180540 | G65: 425 | H65: 343111532 | J65: Infancia | K65: Meta_29 | L65: Meta | M65: 29 | N65: 159762 | O65: 248111 | P65: 180540 | Q65: 425 | R65: 343111532
A66: Infancia | B66: Meta | C66: 30 | D66: 159762 | E66: 248111 | F66: 180540 | G66: 1275 | H66: 1029334595 | J66: Infancia | K66: Meta_30 | L66: Meta | M66: 30 | N66: 159762 | O66: 248111 | P66: 180540 | Q66: 1275 | R66: 1029334595
A67: Infancia | B67: Nariño | C67: 7 | D67: 159739 | E67: 240858 | F67: 178058 | G67: 350 | H67: 275360225 | J67: Infancia | K67: Nariño_7 | L67: Nariño | M67: 7 | N67: 159739 | O67: 240858 | P67: 178058 | Q67: 350 | R67: 275360225
A68: Infancia | B68: Nariño | C68: 8 | D68: 159739 | E68: 240858 | F68: 178058 | G68: 1300 | H68: 1022766562 | J68: Infancia | K68: Nariño_8 | L68: Nariño | M68: 8 | N68: 159739 | O68: 240858 | P68: 178058 | Q68: 1300 | R68: 1022766562
A69: Infancia | B69: Nariño | C69: 9 | D69: 159739 | E69: 240858 | F69: 178058 | G69: 850 | H69: 668731981 | J69: Infancia | K69: =L69&"_"&M69 -> Nariño_9 | L69: Nariño | M69: 9 | N69: 159739 | O69: 240858 | P69: 178058 | Q69: 850 | R69: 668731981
A70: Infancia | B70: Nariño | C70: 17 | D70: 159739 | E70: 240858 | F70: 178058 | G70: 1300 | H70: 1022766559 | J70: Infancia | K70: Nariño_17 | L70: Nariño | M70: 17 | N70: 159739 | O70: 240858 | P70: 178058 | Q70: 1300 | R70: 1022766559
A71: Infancia | B71: Nariño | C71: 18 | D71: 159739 | E71: 240858 | F71: 178058 | G71: 850 | H71: 668731978 | J71: Infancia | K71: Nariño_18 | L71: Nariño | M71: 18 | N71: 159739 | O71: 240858 | P71: 178058 | Q71: 850 | R71: 668731978
A72: Infancia | B72: Nariño | C72: 19 | D72: 159739 | E72: 240858 | F72: 178058 | G72: 725 | H72: 570389045 | J72: Infancia | K72: Nariño_19 | L72: Nariño | M72: 19 | N72: 159739 | O72: 240858 | P72: 178058 | Q72: 725 | R72: 570389045
A73: Infancia | B73: Norte de Santander | C73: 4 | D73: 159000 | E73: 242371 | F73: 178156 | G73: 450 | H73: 355751662 | J73: Infancia | K73: Norte de Santander_4 | L73: Norte de Santander | M73: 4 | N73: 159000 | O73: 242371 | P73: 178156 | Q73: 450 | R73: 355751662
A74: Infancia | B74: Norte de Santander | C74: 21 | D74: 159000 | E74: 242371 | F74: 178156 | G74: 1100 | H74: 869615176 | J74: Infancia | K74: Norte de Santander_21 | L74: Norte de Santander | M74: 21 | N74: 159000 | O74: 242371 | P74: 178156 | Q74: 1100 | R74: 869615176
A75: Infancia | B75: Norte de Santander | C75: 22 | D75: 159000 | E75: 242371 | F75: 178156 | G75: 350 | H75: 276695738 | J75: Infancia | K75: Norte de Santander_22 | L75: Norte de Santander | M75: 22 | N75: 159000 | O75: 242371 | P75: 178156 | Q75: 350 | R75: 276695738
A76: Infancia | B76: Norte de Santander | C76: 23 | D76: 159000 | E76: 242371 | F76: 178156 | G76: 1800 | H76: 1423006652 | J76: Infancia | K76: Norte de Santander_23 | L76: Norte de Santander | M76: 23 | N76: 159000 | O76: 242371 | P76: 178156 | Q76: 1800 | R76: 1423006652
A77: Infancia | B77: Putumayo | C77: 10 | D77: 159000 | E77: 262967 | F77: 185618 | G77: 725 | H77: 615571221 | J77: Infancia | K77: Putumayo_10 | L77: Putumayo | M77: 10 | N77: 159000 | O77: 262967 | P77: 185618 | Q77: 725 | R77: 615571221
A78: Infancia | B78: Putumayo | C78: 11 | D78: 159000 | E78: 262967 | F78: 185618 | G78: 500 | H78: 424531878 | J78: Infancia | K78: Putumayo_11 | L78: Putumayo | M78: 11 | N78: 159000 | O78: 262967 | P78: 185618 | Q78: 500 | R78: 424531878
A79: Infancia | B79: Putumayo | C79: 12 | D79: 159000 | E79: 262967 | F79: 185618 | G79: 275 | H79: 233492533 | J79: Infancia | K79: Putumayo_12 | L79: Putumayo | M79: 12 | N79: 159000 | O79: 262967 | P79: 185618 | Q79: 275 | R79: 233492533
A80: Infancia | B80: Quindío | C80: 86 | D80: 160454 | E80: 245680 | F80: 180420 | G80: 925 | H80: 740880600 | J80: Infancia | K80: Quindío_86 | L80: Quindío | M80: 86 | N80: 160454 | O80: 245680 | P80: 180420 | Q80: 925 | R80: 740880600
A81: Infancia | B81: Risaralda | C81: 87 | D81: 160503 | E81: 248409 | F81: 181066 | G81: 1750 | H81: 1415124816 | J81: Infancia | K81: Risaralda_87 | L81: Risaralda | M81: 87 | N81: 160503 | O81: 248409 | P81: 181066 | Q81: 1750 | R81: 1415124816
A82: Infancia | B82: Santander | C82: 78 | D82: 159284 | E82: 245585 | F82: 179571 | G82: 3025 | H82: 2419677848 | J82: Infancia | K82: Santander_78 | L82: Santander | M82: 78 | N82: 159284 | O82: 245585 | P82: 179571 | Q82: 3025 | R82: 2419677848
A83: Infancia | B83: Santander | C83: 79 | D83: 159284 | E83: 245585 | F83: 179571 | G83: 1700 | H83: 1359818978 | J83: Infancia | K83: Santander_79 | L83: Santander | M83: 79 | N83: 159284 | O83: 245585 | P83: 179571 | Q83: 1700 | R83: 1359818978
A84: Infancia | B84: Sucre | C84: 20 | D84: 159619 | E84: 245168 | F84: 179422 | G84: 1200 | H84: 958652400 | J84: Infancia | K84: Sucre_20 | L84: Sucre | M84: 20 | N84: 159619 | O84: 245168 | P84: 179422 | Q84: 1200 | R84: 958652400
A85: Infancia | B85: Sucre | C85: 24 | D85: 159619 | E85: 245168 | F85: 179422 | G85: 1800 | H85: 1437978602 | J85: Infancia | K85: Sucre_24 | L85: Sucre | M85: 24 | N85: 159619 | O85: 245168 | P85: 179422 | Q85: 1800 | R85: 1437978602
A86: Infancia | B86: Sucre | C86: 25 | D86: 159619 | E86: 245168 | F86: 179422 | G86: 1250 | H86: 998596250 | J86: Infancia | K86: Sucre_25 | L86: Sucre | M86: 25 | N86: 159619 | O86: 245168 | P86: 179422 | Q86: 1250 | R86: 998596250
A87: Infancia | B87: Tolima | C87: 46 | D87: 159565 | E87: 240166 | F87: 177628 | G87: 1250 | H87: 980807504 | J87: Infancia | K87: Tolima_46 | L87: Tolima | M87: 46 | N87: 159565 | O87: 240166 | P87: 177628 | Q87: 1250 | R87: 980807504
A88: Infancia | B88: Tolima | C88: 47 | D88: 159565 | E88: 240166 | F88: 177628 | G88: 2025 | H88: 1588908157 | J88: Infancia | K88: Tolima_47 | L88: Tolima | M88: 47 | N88: 159565 | O88: 240166 | P88: 177628 | Q88: 2025 | R88: 1588908157
A89: Infancia | B89: Tolima | C89: 48 | D89: 159565 | E89: 240166 | F89: 177628 | G89: 1375 | H89: 1078888261 | J89: Infancia | K89: Tolima_48 | L89: Tolima | M89: 48 | N89: 159565 | O89: 240166 | P89: 177628 | Q89: 1375 | R89: 1078888261
A90: Infancia | B90: Valle del Cauca | C90: 74 | D90: 159604 | E90: 245061 | F90: 179493 | G90: 1450 | H90: 1157959856 | J90: Infancia | K90: Valle del Cauca_74 | L90: Valle del Cauca | M90: 74 | N90: 159604 | O90: 245061 | P90: 179493 | Q90: 1450 | R90: 1157959856
A91: Infancia | B91: Valle del Cauca | C91: 75 | D91: 159604 | E91: 245061 | F91: 179493 | G91: 1100 | H91: 878452302 | J91: Infancia | K91: Valle del Cauca_75 | L91: Valle del Cauca | M91: 75 | N91: 159604 | O91: 245061 | P91: 179493 | Q91: 1100 | R91: 878452302
A92: Infancia | B92: Valle del Cauca | C92: 76 | D92: 159604 | E92: 245061 | F92: 179493 | G92: 1325 | H92: 1058135731 | J92: Infancia | K92: Valle del Cauca_76 | L92: Valle del Cauca | M92: 76 | N92: 159604 | O92: 245061 | P92: 179493 | Q92: 1325 | R92: 1058135731
A93: Infancia | B93: Valle del Cauca | C93: 77 | D93: 159604 | E93: 245061 | F93: 179493 | G93: 1900 | H93: 1517326700 | J93: Infancia | K93: Valle del Cauca_77 | L93: Valle del Cauca | M93: 77 | N93: 159604 | O93: 245061 | P93: 179493 | Q93: 1900 | R93: 1517326700
A94: Infancia | B94: Valle del Cauca | C94: 82 | D94: 159604 | E94: 245061 | F94: 179493 | G94: 800 | H94: 638874400 | J94: Infancia | K94: Valle del Cauca_82 | L94: Valle del Cauca | M94: 82 | N94: 159604 | O94: 245061 | P94: 179493 | Q94: 800 | R94: 638874400
A95: Infancia | B95: Vaupés | C95: 2 | D95: 164844 | E95: 267945 | F95: 190022 | G95: 450 | H95: 390049314 | J95: Infancia | K95: Vaupés_2 | L95: Vaupés | M95: 2 | N95: 164844 | O95: 267945 | P95: 190022 | Q95: 450 | R95: 390049314
A96: Infancia | B96: Vichada | C96: 3 | D96: 159000 | E96: 263657 | F96: 185618 | G96: 400 | H96: 340384501 | J96: Infancia | K96: Vichada_3 | L96: Vichada | M96: 3 | N96: 159000 | O96: 263657 | P96: 185618 | Q96: 400 | R96: 340384501
A97: Total general | G97: 101375 | H97: 81180566828 | J97: Total general | Q97: 101375 | R97: 81180566828

Sheet CostoAtrapasueñosInfanciaV2 (hidden)
A1: Dirección | B1: Depto | C1: Divipola | D1: Municipio | E1: Zona | F1: COSTO CUPO ETAPA ALISTAMIENTO COMUNITARIOS - URBANO MENSUAL | G1: COSTO CUPO ETAPA ALISTAMIENTO COMUNITARIOS - URBANO | H1: COSTO CUPO ETAPA ATENCIÓN COMUNITARIOS - URBANO | I1: COSTO CUPO ETAPA DE CIERRE COMUNITARIOS - URBANO MENSUAL | J1: COSTO CUPO ETAPA DE CIERRE COMUNITARIOS - URBANO | K1: TOTAL CUPOS ATRAPASUEÑOS | L1: TOTAL PRESUSUPESTO ATRAPASUEÑOS
A2: Infancia | B2: Guainía | C2: 94001 | D2: Inírida | E2: 1 | F2: 160855 | G2: =F2*0.5 -> 80427.5 | H2: 266058 | I2: 187762 | J2: =I2*0.25 -> 46940.5 | K2: 625 | L2: 536892189
A3: Infancia | B3: Guainía | C3: 94343 | D3: Barrancominas | E3: 1 | F3: 160855 | G3: 80427.5 | H3: 266058 | I3: 187762 | J3: 46940.5 | K3: 100 | L3: 85902750
A4: Infancia | B4: Guainía | C4: 94663 | D4: Mapiripana (CD) | E4: 1 | F4: 160855 | G4: 80427.5 | H4: 266058 | I4: 187762 | J4: 46940.5 | K4: 0 | L4: 0
A5: Infancia | B5: Guainía | C5: 94883 | D5: San Felipe (CD) | E5: 1 | F5: 160855 | G5: 80427.5 | H5: 266058 | I5: 187762 | J5: 46940.5 | K5: 0 | L5: 0
A6: Infancia | B6: Guainía | C6: 94884 | D6: Puerto Colombia (CD) | E6: 1 | F6: 160855 | G6: 80427.5 | H6: 266058 | I6: 187762 | J6: 46940.5 | K6: 0 | L6: 0
A7: Infancia | B7: Guainía | C7: 94885 | D7: La Guadalupe (CD) | E7: 1 | F7: 160855 | G7: 80427.5 | H7: 266058 | I7: 187762 | J7: 46940.5 | K7: 0 | L7: 0
A8: Infancia | B8: Guainía | C8: 94886 | D8: Cacahual (CD) | E8: 1 | F8: 160855 | G8: 80427.5 | H8: 266058 | I8: 187762 | J8: 46940.5 | K8: 0 | L8: 0
A9: Infancia | B9: Guainía | C9: 94887 | D9: Pana Pana (CD) | E9: 1 | F9: 160855 | G9: 80427.5 | H9: 266058 | I9: 187762 | J9: 46940.5 | K9: 0 | L9: 0
A10: Infancia | B10: Guainía | C10: 94888 | D10: Morichal (CD) | E10: 1 | F10: 160855 | G10: 80427.5 | H10: 266058 | I10: 187762 | J10: 46940.5 | K10: 0 | L10: 0
A11: Infancia | B11: Vaupés | C11: 97001 | D11: Mitú | E11: 2 | F11: 164844 | G11: 82422 | H11: 267945 | I11: 190022 | J11: 47505.5 | K11: 150 | L11: 130016438
A12: Infancia | B12: Vaupés | C12: 97161 | D12: Carurú | E12: 2 | F12: 164844 | G12: 82422 | H12: 267945 | I12: 190022 | J12: 47505.5 | K12: 100 | L12: 86677625
A13: Infancia | B13: Vaupés | C13: 97511 | D13: Pacoa (CD) | E13: 2 | F13: 164844 | G13: 82422 | H13: 267945 | I13: 190022 | J13: 47505.5 | K13: 50 | L13: 43338813
A14: Infancia | B14: Vaupés | C14: 97666 | D14: Taraira | E14: 2 | F14: 164844 | G14: 82422 | H14: 267945 | I14: 190022 | J14: 47505.5 | K14: 100 | L14: 86677625
A15: Infancia | B15: Vaupés | C15: 97777 | D15: Papunahua (CD) | E15: 2 | F15: 164844 | G15: 82422 | H15: 267945 | I15: 190022 | J15: 47505.5 | K15: 0 | L15: 0
A16: Infancia | B16: Vaupés | C16: 97889 | D16: Yavaraté (CD) | E16: 2 | F16: 164844 | G16: 82422 | H16: 267945 | I16: 190022 | J16: 47505.5 | K16: 50 | L16: 43338813
A17: Infancia | B17: Vichada | C17: 99001 | D17: Puerto Carreño | E17: 3 | F17: 159000 | G17: 79500 | H17: 263657 | I17: 185618 | J17: 46404.5 | K17: 150 | L17: 127644188
A18: Infancia | B18: Vichada | C18: 99524 | D18: La Primavera | E18: 3 | F18: 159000 | G18: 79500 | H18: 263657 | I18: 185618 | J18: 46404.5 | K18: 100 | L18: 85096125
A19: Infancia | B19: Vichada | C19: 99624 | D19: Santa Rosalía | E19: 3 | F19: 159000 | G19: 79500 | H19: 263657 | I19: 185618 | J19: 46404.5 | K19: 50 | L19: 42548063
A20: Infancia | B20: Vichada | C20: 99773 | D20: Cumaribo | E20: 3 | F20: 159000 | G20: 79500 | H20: 263657 | I20: 185618 | J20: 46404.5 | K20: 100 | L20: 85096125
A21: Infancia | B21: Norte de Santander | C21: 54250 | D21: El Tarra | E21: 4 | F21: 159000 | G21: 79500 | H21: 242371 | I21: 178156 | J21: 44539 | K21: 250 | L21: 197639812
A22: Infancia | B22: Norte de Santander | C22: 54810 | D22: Tibú | E22: 4 | F22: 159000 | G22: 79500 | H22: 242371 | I22: 178156 | J22: 44539 | K22: 200 | L22: 158111850
A23: Infancia | B23: Amazonas | C23: 91001 | D23: Leticia | E23: 5 | F23: 161505 | G23: 80752.5 | H23: 266330 | I23: 187506 | J23: 46876.5 | K23: 500 | L23: 430018253
A24: Infancia | B24: Amazonas | C24: 91263 | D24: El Encanto (CD) | E24: 5 | F24: 161505 | G24: 80752.5 | H24: 266330 | I24: 187506 | J24: 46876.5 | K24: 0 | L24: 0
A25: Infancia | B25: Amazonas | C25: 91405 | D25: La Chorrera (CD) | E25: 5 | F25: 161505 | G25: 80752.5 | H25: 266330 | I25: 187506 | J25: 46876.5 | K25: 100 | L25: 86003650
A26: Infancia | B26: Amazonas | C26: 91407 | D26: La Pedrera (CD) | E26: 5 | F26: 161505 | G26: 80752.5 | H26: 266330 | I26: 187506 | J26: 46876.5 | K26: 100 | L26: 86003650
A27: Infancia | B27: Amazonas | C27: 91430 | D27: La Victoria (CD) | E27: 5 | F27: 161505 | G27: 80752.5 | H27: 266330 | I27: 187506 | J27: 46876.5 | K27: 0 | L27: 0
A28: Infancia | B28: Amazonas | C28: 91460 | D28: Miriti - Paraná (CD) | E28: 5 | F28: 161505 | G28: 80752.5 | H28: 266330 | I28: 187506 | J28: 46876.5 | K28: 0 | L28: 0
A29: Infancia | B29: Amazonas | C29: 91530 | D29: Puerto Alegría (CD) | E29: 5 | F29: 161505 | G29: 80752.5 | H29: 266330 | I29: 187506 | J29: 46876.5 | K29: 0 | L29: 0
A30: Infancia | B30: Amazonas | C30: 91536 | D30: Puerto Arica (CD) | E30: 5 | F30: 161505 | G30: 80752.5 | H30: 266330 | I30: 187506 | J30: 46876.5 | K30: 0 | L30: 0
A31: Infancia | B31: Amazonas | C31: 91540 | D31: Puerto Nariño | E31: 5 | F31: 161505 | G31: 80752.5 | H31: 266330 | I31: 187506 | J31: 46876.5 | K31: 250 | L31: 215009125
A32: Infancia | B32: Amazonas | C32: 91669 | D32: Puerto Santander (CD) | E32: 5 | F32: 161505 | G32: 80752.5 | H32: 266330 | I32: 187506 | J32: 46876.5 | K32: 0 | L32: 0
A33: Infancia | B33: Amazonas | C33: 91798 | D33: Tarapacá (CD) | E33: 5 | F33: 161505 | G33: 80752.5 | H33: 266330 | I33: 187506 | J33: 46876.5 | K33: 100 | L33: 86003650
A34: Infancia | B34: Cauca | C34: 19318 | D34: Guapi | E34: 6 | F34: 159000 | G34: 79500 | H34: 241283 | I34: 177770 | J34: 44442.5 | K34: 150 | L34: 118120613
A35: Infancia | B35: Cauca | C35: 19418 | D35: López de Micay | E35: 6 | F35: 159000 | G35: 79500 | H35: 241283 | I35: 177770 | J35: 44442.5 | K35: 100 | L35: 78747075
A36: Infancia | B36: Cauca | C36: 19809 | D36: Timbiquí | E36: 6 | F36: 159000 | G36: 79500 | H36: 241283 | I36: 177770 | J36: 44442.5 | K36: 200 | L36: 157494150
A37: Infancia | B37: Nariño | C37: 52079 | D37: Barbacoas | E37: 7 | F37: 159739 | G37: 79869.5 | H37: 240858 | I37: 178058 | J37: 44514.5 | K37: 200 | L37: 157348700
A38: Infancia | B38: Nariño | C38: 52427 | D38: Magüí | E38: 7 | F38: 159739 | G38: 79869.5 | H38: 240858 | I38: 178058 | J38: 44514.5 | K38: 50 | L38: 39337175
A39: Infancia | B39: Nariño | C39: 52621 | D39: Roberto Payán | E39: 7 | F39: 159739 | G39: 79869.5 | H39: 240858 | I39: 178058 | J39: 44514.5 | K39: 100 | L39: 78674350
A40: Infancia | B40: Nariño | C40: 52250 | D40: El Charco | E40: 8 | F40: 159739 | G40: 79869.5 | H40: 240858 | I40: 178058 | J40: 44514.5 | K40: 150 | L40: 118011525
A41: Infancia | B41: Nariño | C41: 52390 | D41: La Tola | E41: 8 | F41: 159739 | G41: 79869.5 | H41: 240858 | I41: 178058 | J41: 44514.5 | K41: 100 | L41: 78674353
A42: Infancia | B42: Nariño | C42: 52473 | D42: Mosquera | E42: 8 | F42: 159739 | G42: 79869.5 | H42: 240858 | I42: 178058 | J42: 44514.5 | K42: 50 | L42: 39337178
A43: Infancia | B43: Nariño | C43: 52490 | D43: Olaya Herrera | E43: 8 | F43: 159739 | G43: 79869.5 | H43: 240858 | I43: 178058 | J43: 44514.5 | K43: 200 | L43: 157348703
A44: Infancia | B44: Nariño | C44: 52520 | D44: Francisco Pizarro | E44: 8 | F44: 159739 | G44: 79869.5 | H44: 240858 | I44: 178058 | J44: 44514.5 | K44: 200 | L44: 157348703
A45: Infancia | B45: Nariño | C45: 52696 | D45: Santa Bárbara | E45: 8 | F45: 159739 | G45: 79869.5 | H45: 240858 | I45: 178058 | J45: 44514.5 | K45: 150 | L45: 118011525
A46: Infancia | B46: Nariño | C46: 52835 | D46: San Andrés de Tumaco | E46: 8 | F46: 159739 | G46: 79869.5 | H46: 240858 | I46: 178058 | J46: 44514.5 | K46: 450 | L46: 354034575
A47: Infancia | B47: Nariño | C47: 52051 | D47: Arboleda | E47: 9 | F47: 159739 | G47: 79869.5 | H47: 240858 | I47: 178058 | J47: 44514.5 | K47: 50 | L47: 39337175
A48: Infancia | B48: Nariño | C48: 52083 | D48: Belén | E48: 9 | F48: 159739 | G48: 79869.5 | H48: 240858 | I48: 178058 | J48: 44514.5 | K48: 50 | L48: 39337175
A49: Infancia | B49: Nariño | C49: 52203 | D49: Colón | E49: 9 | F49: 159739 | G49: 79869.5 | H49: 240858 | I49: 178058 | J49: 44514.5 | K49: 50 | L49: 39337175
A50: Infancia | B50: Nariño | C50: 52233 | D50: Cumbitara | E50: 9 | F50: 159739 | G50: 79869.5 | H50: 240858 | I50: 178058 | J50: 44514.5 | K50: 100 | L50: 78674350
A51: Infancia | B51: Nariño | C51: 52256 | D51: El Rosario | E51: 9 | F51: 159739 | G51: 79869.5 | H51: 240858 | I51: 178058 | J51: 44514.5 | K51: 75 | L51: 59005764
A52: Infancia | B52: Nariño | C52: 52378 | D52: La Cruz | E52: 9 | F52: 159739 | G52: 79869.5 | H52: 240858 | I52: 178058 | J52: 44514.5 | K52: 0 | L52: 0
A53: Infancia | B53: Nariño | C53: 52399 | D53: La Unión | E53: 9 | F53: 159739 | G53: 79869.5 | H53: 240858 | I53: 178058 | J53: 44514.5 | K53: 100 | L53: 78674350
A54: Infancia | B54: Nariño | C54: 52405 | D54: Leiva | E54: 9 | F54: 159739 | G54: 79869.5 | H54: 240858 | I54: 178058 | J54: 44514.5 | K54: 50 | L54: 39337178
A55: Infancia | B55: Nariño | C55: 52540 | D55: Policarpa | E55: 9 | F55: 159739 | G55: 79869.5 | H55: 240858 | I55: 178058 | J55: 44514.5 | K55: 125 | L55: 98342939
A56: Infancia | B56: Nariño | C56: 52687 | D56: San Lorenzo | E56: 9 | F56: 159739 | G56: 79869.5 | H56: 240858 | I56: 178058 | J56: 44514.5 | K56: 50 | L56: 39337175
A57: Infancia | B57: Nariño | C57: 52693 | D57: San Pablo | E57: 9 | F57: 159739 | G57: 79869.5 | H57: 240858 | I57: 178058 | J57: 44514.5 | K57: 100 | L57: 78674350
A58: Infancia | B58: Nariño | C58: 52694 | D58: San Pedro de Cartago | E58: 9 | F58: 159739 | G58: 79869.5 | H58: 240858 | I58: 178058 | J58: 44514.5 | K58: 50 | L58: 39337175
A59: Infancia | B59: Nariño | C59: 52786 | D59: Taminango | E59: 9 | F59: 159739 | G59: 79869.5 | H59: 240858 | I59: 178058 | J59: 44514.5 | K59: 50 | L59: 39337175
A60: Infancia | B60: Putumayo | C60: 86219 | D60: Colón | E60: 10 | F60: 159000 | G60: 79500 | H60: 262967 | I60: 185618 | J60: 46404.5 | K60: 50 | L60: 42453188
A61: Infancia | B61: Putumayo | C61: 86568 | D61: Puerto Asís | E61: 10 | F61: 159000 | G61: 79500 | H61: 262967 | I61: 185618 | J61: 46404.5 | K61: 200 | L61: 169812750
A62: Infancia | B62: Putumayo | C62: 86569 | D62: Puerto Caicedo | E62: 10 | F62: 159000 | G62: 79500 | H62: 262967 | I62: 185618 | J62: 46404.5 | K62: 100 | L62: 84906375
A63: Infancia | B63: Putumayo | C63: 86573 | D63: Puerto Leguízamo | E63: 10 | F63: 159000 | G63: 79500 | H63: 262967 | I63: 185618 | J63: 46404.5 | K63: 200 | L63: 169812750
A64: Infancia | B64: Putumayo | C64: 86749 | D64: Sibundoy | E64: 10 | F64: 159000 | G64: 79500 | H64: 262967 | I64: 185618 | J64: 46404.5 | K64: 75 | L64: 63679782
A65: Infancia | B65: Putumayo | C65: 86755 | D65: San Francisco | E65: 10 | F65: 159000 | G65: 79500 | H65: 262967 | I65: 185618 | J65: 46404.5 | K65: 50 | L65: 42453188
A66: Infancia | B66: Putumayo | C66: 86760 | D66: Santiago | E66: 10 | F66: 159000 | G66: =F66*0.5 -> 79500 | H66: 262967 | I66: 185618 | J66: =I66*0.25 -> 46404.5 | K66: 50 | L66: 42453188
A67: Infancia | B67: Putumayo | C67: 86320 | D67: Orito | E67: 11 | F67: 159000 | G67: 79500 | H67: 262967 | I67: 185618 | J67: 46404.5 | K67: 200 | L67: 169812751
A68: Infancia | B68: Putumayo | C68: 86757 | D68: San Miguel | E68: 11 | F68: 159000 | G68: 79500 | H68: 262967 | I68: 185618 | J68: 46404.5 | K68: 100 | L68: 84906376
A69: Infancia | B69: Putumayo | C69: 86865 | D69: Valle del Guamuez | E69: 11 | F69: 159000 | G69: 79500 | H69: 262967 | I69: 185618 | J69: 46404.5 | K69: 200 | L69: 169812751
A70: Infancia | B70: Putumayo | C70: 86001 | D70: Mocoa | E70: 12 | F70: 159000 | G70: 79500 | H70: 262967 | I70: 185618 | J70: 46404.5 | K70: 100 | L70: 84906375
A71: Infancia | B71: Putumayo | C71: 86571 | D71: Puerto Guzmán | E71: 12 | F71: 159000 | G71: 79500 | H71: 262967 | I71: 185618 | J71: 46404.5 | K71: 75 | L71: 63679782
A72: Infancia | B72: Putumayo | C72: 86885 | D72: Villagarzón | E72: 12 | F72: 159000 | G72: 79500 | H72: 262967 | I72: 185618 | J72: 46404.5 | K72: 100 | L72: 84906376
A73: Infancia | B73: Cauca | C73: 19022 | D73: Almaguer | E73: 13 | F73: 159000 | G73: 79500 | H73: 241283 | I73: 177770 | J73: 44442.5 | K73: 150 | L73: 118120613
A74: Infancia | B74: Cauca | C74: 19050 | D74: Argelia | E74: 13 | F74: 159000 | G74: 79500 | H74: 241283 | I74: 177770 | J74: 44442.5 | K74: 100 | L74: 78747075
A75: Infancia | B75: Cauca | C75: 19075 | D75: Balboa | E75: 13 | F75: 159000 | G75: 79500 | H75: 241283 | I75: 177770 | J75: 44442.5 | K75: 100 | L75: 78747076
A76: Infancia | B76: Cauca | C76: 19100 | D76: Bolívar | E76: 13 | F76: 159000 | G76: 79500 | H76: 241283 | I76: 177770 | J76: 44442.5 | K76: 100 | L76: 78747076
A77: Infancia | B77: Cauca | C77: 19290 | D77: Florencia | E77: 13 | F77: 159000 | G77: 79500 | H77: 241283 | I77: 177770 | J77: 44442.5 | K77: 100 | L77: 78747076
A78: Infancia | B78: Cauca | C78: 19450 | D78: Mercaderes | E78: 13 | F78: 159000 | G78: 79500 | H78: 241283 | I78: 177770 | J78: 44442.5 | K78: 100 | L78: 78747075
A79: Infancia | B79: Cauca | C79: 19532 | D79: Patía | E79: 13 | F79: 159000 | G79: 79500 | H79: 241283 | I79: 177770 | J79: 44442.5 | K79: 200 | L79: 157494150
A80: Infancia | B80: Cauca | C80: 19693 | D80: San Sebastián | E80: 13 | F80: 159000 | G80: 79500 | H80: 241283 | I80: 177770 | J80: 44442.5 | K80: 100 | L80: 78747075
A81: Infancia | B81: Cauca | C81: 19785 | D81: Sucre | E81: 13 | F81: 159000 | G81: 79500 | H81: 241283 | I81: 177770 | J81: 44442.5 | K81: 100 | L81: 78747076
A82: Infancia | B82: Cauca | C82: 19110 | D82: Buenos Aires | E82: 14 | F82: 159000 | G82: 79500 | H82: 241283 | I82: 177770 | J82: 44442.5 | K82: 200 | L82: 157494151
A83: Infancia | B83: Cauca | C83: 19142 | D83: Caloto | E83: 14 | F83: 159000 | G83: 79500 | H83: 241283 | I83: 177770 | J83: 44442.5 | K83: 100 | L83: 78747076
A84: Infancia | B84: Cauca | C84: 19212 | D84: Corinto | E84: 14 | F84: 159000 | G84: 79500 | H84: 241283 | I84: 177770 | J84: 44442.5 | K84: 100 | L84: 78747075
A85: Infancia | B85: Cauca | C85: 19300 | D85: Guachené | E85: 14 | F85: 159000 | G85: 79500 | H85: 241283 | I85: 177770 | J85: 44442.5 | K85: 100 | L85: 78747075
A86: Infancia | B86: Cauca | C86: 19455 | D86: Miranda | E86: 14 | F86: 159000 | G86: 79500 | H86: 241283 | I86: 177770 | J86: 44442.5 | K86: 100 | L86: 78747075
A87: Infancia | B87: Cauca | C87: 19513 | D87: Padilla | E87: 14 | F87: 159000 | G87: 79500 | H87: 241283 | I87: 177770 | J87: 44442.5 | K87: 0 | L87: 0
A88: Infancia | B88: Cauca | C88: 19573 | D88: Puerto Tejada | E88: 14 | F88: 159000 | G88: 79500 | H88: 241283 | I88: 177770 | J88: 44442.5 | K88: 200 | L88: 157494150
A89: Infancia | B89: Cauca | C89: 19698 | D89: Santander de Quilichao | E89: 14 | F89: 159000 | G89: 79500 | H89: 241283 | I89: 177770 | J89: 44442.5 | K89: 200 | L89: 157494150
A90: Infancia | B90: Cauca | C90: 19780 | D90: Suárez | E90: 14 | F90: 159000 | G90: 79500 | H90: 241283 | I90: 177770 | J90: 44442.5 | K90: 300 | L90: 236241226
A91: Infancia | B91: Cauca | C91: 19821 | D91: Toribío | E91: 14 | F91: 159000 | G91: 79500 | H91: 241283 | I91: 177770 | J91: 44442.5 | K91: 200 | L91: 157494151
A92: Infancia | B92: Cauca | C92: 19845 | D92: Villa Rica | E92: 14 | F92: 159000 | G92: 79500 | H92: 241283 | I92: 177770 | J92: 44442.5 | K92: 100 | L92: 78747075
A93: Infancia | B93: Cauca | C93: 19137 | D93: Caldono | E93: 15 | F93: 159000 | G93: 79500 | H93: 241283 | I93: 177770 | J93: 44442.5 | K93: 100 | L93: 78747075
A94: Infancia | B94: Cauca | C94: 19355 | D94: Inzá | E94: 15 | F94: 159000 | G94: 79500 | H94: 241283 | I94: 177770 | J94: 44442.5 | K94: 100 | L94: 78747075
A95: Infancia | B95: Cauca | C95: 19364 | D95: Jambaló | E95: 15 | F95: 159000 | G95: 79500 | H95: 241283 | I95: 177770 | J95: 44442.5 | K95: 100 | L95: 78747076
A96: Infancia | B96: Cauca | C96: 19517 | D96: Páez | E96: 15 | F96: 159000 | G96: 79500 | H96: 241283 | I96: 177770 | J96: 44442.5 | K96: 200 | L96: 157494150
A97: Infancia | B97: Cauca | C97: 19533 | D97: Piamonte | E97: 15 | F97: 159000 | G97: 79500 | H97: 241283 | I97: 177770 | J97: 44442.5 | K97: 100 | L97: 78747075
A98: Infancia | B98: Cauca | C98: 19585 | D98: Puracé | E98: 15 | F98: 159000 | G98: 79500 | H98: 241283 | I98: 177770 | J98: 44442.5 | K98: 100 | L98: 78747075
A99: Infancia | B99: Cauca | C99: 19701 | D99: Santa Rosa | E99: 15 | F99: 159000 | G99: 79500 | H99: 241283 | I99: 177770 | J99: 44442.5 | K99: 100 | L99: 78747075
A100: Infancia | B100: Cauca | C100: 19743 | D100: Silvia | E100: 15 | F100: 159000 | G100: 79500 | H100: 241283 | I100: 177770 | J100: 44442.5 | K100: 200 | L100: 157494151
A101: Infancia | B101: Cauca | C101: 19824 | D101: Totoró | E101: 15 | F101: 159000 | G101: 79500 | H101: 241283 | I101: 177770 | J101: 44442.5 | K101: 100 | L101: 78747076
A102: Infancia | B102: Cauca | C102: 19001 | D102: Popayán | E102: 16 | F102: 159000 | G102: 79500 | H102: 241283 | I102: 177770 | J102: 44442.5 | K102: 450 | L102: 354361838
A103: Infancia | B103: Cauca | C103: 19130 | D103: Cajibío | E103: 16 | F103: 159000 | G103: 79500 | H103: 241283 | I103: 177770 | J103: 44442.5 | K103: 200 | L103: 157494151
A104: Infancia | B104: Cauca | C104: 19256 | D104: El Tambo | E104: 16 | F104: 159000 | G104: 79500 | H104: 241283 | I104: 177770 | J104: 44442.5 | K104: 200 | L104: 157494150
A105: Infancia | B105: Cauca | C105: 19392 | D105: La Sierra | E105: 16 | F105: 159000 | G105: 79500 | H105: 241283 | I105: 177770 | J105: 44442.5 | K105: 100 | L105: 78747075
A106: Infancia | B106: Cauca | C106: 19397 | D106: La Vega | E106: 16 | F106: 159000 | G106: 79500 | H106: 241283 | I106: 177770 | J106: 44442.5 | K106: 100 | L106: 78747075
A107: Infancia | B107: Cauca | C107: 19473 | D107: Morales | E107: 16 | F107: 159000 | G107: 79500 | H107: 241283 | I107: 177770 | J107: 44442.5 | K107: 200 | L107: 157494151
A108: Infancia | B108: Cauca | C108: 19548 | D108: Piendamó - Tunía | E108: 16 | F108: 159000 | G108: 79500 | H108: 241283 | I108: 177770 | J108: 44442.5 | K108: 150 | L108: 118120613
A109: Infancia | B109: Cauca | C109: 19622 | D109: Rosas | E109: 16 | F109: 159000 | G109: 79500 | H109: 241283 | I109: 177770 | J109: 44442.5 | K109: 100 | L109: 78747075
A110: Infancia | B110: Cauca | C110: 19760 | D110: Sotará Paispamba | E110: 16 | F110: 159000 | G110: 79500 | H110: 241283 | I110: 177770 | J110: 44442.5 | K110: 0 | L110: 0
A111: Infancia | B111: Cauca | C111: 19807 | D111: Timbío | E111: 16 | F111: 159000 | G111: 79500 | H111: 241283 | I111: 177770 | J111: 44442.5 | K111: 200 | L111: 157494150
A112: Infancia | B112: Nariño | C112: 52001 | D112: Pasto | E112: 17 | F112: 159739 | G112: 79869.5 | H112: 240858 | I112: 178058 | J112: 44514.5 | K112: 500 | L112: 393371750
A113: Infancia | B113: Nariño | C113: 52019 | D113: Albán | E113: 17 | F113: 159739 | G113: 79869.5 | H113: 240858 | I113: 178058 | J113: 44514.5 | K113: 50 | L113: 39337175
A114: Infancia | B114: Nariño | C114: 52036 | D114: Ancuya | E114: 17 | F114: 159739 | G114: 79869.5 | H114: 240858 | I114: 178058 | J114: 44514.5 | K114: 50 | L114: 39337175
A115: Infancia | B115: Nariño | C115: 52110 | D115: Buesaco | E115: 17 | F115: 159739 | G115: 79869.5 | H115: 240858 | I115: 178058 | J115: 44514.5 | K115: 75 | L115: 59005764
A116: Infancia | B116: Nariño | C116: 52207 | D116: Consacá | E116: 17 | F116: 159739 | G116: 79869.5 | H116: 240858 | I116: 178058 | J116: 44514.5 | K116: 0 | L116: 0
A117: Infancia | B117: Nariño | C117: 52240 | D117: Chachagüí | E117: 17 | F117: 159739 | G117: 79869.5 | H117: 240858 | I117: 178058 | J117: 44514.5 | K117: 0 | L117: 0
A118: Infancia | B118: Nariño | C118: 52254 | D118: El Peñol | E118: 17 | F118: 159739 | G118: 79869.5 | H118: 240858 | I118: 178058 | J118: 44514.5 | K118: 50 | L118: 39337175
A119: Infancia | B119: Nariño | C119: 52258 | D119: El Tablón de Gómez | E119: 17 | F119: 159739 | G119: 79869.5 | H119: 240858 | I119: 178058 | J119: 44514.5 | K119: 50 | L119: 39337175
A120: Infancia | B120: Nariño | C120: 52260 | D120: El Tambo | E120: 17 | F120: 159739 | G120: 79869.5 | H120: 240858 | I120: 178058 | J120: 44514.5 | K120: 50 | L120: 39337175
A121: Infancia | B121: Nariño | C121: 52287 | D121: Funes | E121: 17 | F121: 159739 | G121: 79869.5 | H121: 240858 | I121: 178058 | J121: 44514.5 | K121: 50 | L121: 39337175
A122: Infancia | B122: Nariño | C122: 52381 | D122: La Florida | E122: 17 | F122: 159739 | G122: 79869.5 | H122: 240858 | I122: 178058 | J122: 44514.5 | K122: 75 | L122: 59005764
A123: Infancia | B123: Nariño | C123: 52411 | D123: Linares | E123: 17 | F123: 159739 | G123: 79869.5 | H123: 240858 | I123: 178058 | J123: 44514.5 | K123: 50 | L123: 39337178
A124: Infancia | B124: Nariño | C124: 52418 | D124: Los Andes | E124: 17 | F124: 159739 | G124: 79869.5 | H124: 240858 | I124: 178058 | J124: 44514.5 | K124: 50 | L124: 39337178
A125: Infancia | B125: Nariño | C125: 52480 | D125: Nariño | E125: 17 | F125: 159739 | G125: 79869.5 | H125: 240858 | I125: 178058 | J125: 44514.5 | K125: 50 | L125: 39337175
A126: Infancia | B126: Nariño | C126: 52683 | D126: Sandoná | E126: 17 | F126: 159739 | G126: 79869.5 | H126: 240858 | I126: 178058 | J126: 44514.5 | K126: 50 | L126: 39337175
A127: Infancia | B127: Nariño | C127: 52685 | D127: San Bernardo | E127: 17 | F127: 159739 | G127: 79869.5 | H127: 240858 | I127: 178058 | J127: 44514.5 | K127: 50 | L127: 39337175
A128: Infancia | B128: Nariño | C128: 52788 | D128: Tangua | E128: 17 | F128: 159739 | G128: 79869.5 | H128: 240858 | I128: 178058 | J128: 44514.5 | K128: 50 | L128: 39337175
A129: Infancia | B129: Nariño | C129: 52885 | D129: Yacuanquer | E129: 17 | F129: 159739 | G129: 79869.5 | H129: 240858 | I129: 178058 | J129: 44514.5 | K129: 50 | L129: 39337175
A130: Infancia | B130: Nariño | C130: 52022 | D130: Aldana | E130: 18 | F130: 159739 | G130: =F130*0.5 -> 79869.5 | H130: 240858 | I130: 178058 | J130: =I130*0.25 -> 44514.5 | K130: 50 | L130: 39337175
A131: Infancia | B131: Nariño | C131: 52210 | D131: Contadero | E131: 18 | F131: 159739 | G131: 79869.5 | H131: 240858 | I131: 178058 | J131: 44514.5 | K131: 50 | L131: 39337175
A132: Infancia | B132: Nariño | C132: 52215 | D132: Córdoba | E132: 18 | F132: 159739 | G132: 79869.5 | H132: 240858 | I132: 178058 | J132: 44514.5 | K132: 75 | L132: 59005764
A133: Infancia | B133: Nariño | C133: 52224 | D133: Cuaspud Carlosama | E133: 18 | F133: 159739 | G133: 79869.5 | H133: 240858 | I133: 178058 | J133: 44514.5 | K133: 50 | L133: 39337175
A134: Infancia | B134: Nariño | C134: 52227 | D134: Cumbal | E134: 18 | F134: 159739 | G134: 79869.5 | H134: 240858 | I134: 178058 | J134: 44514.5 | K134: 100 | L134: 78674350
A135: Infancia | B135: Nariño | C135: 52317 | D135: Guachucal | E135: 18 | F135: 159739 | G135: 79869.5 | H135: 240858 | I135: 178058 | J135: 44514.5 | K135: 75 | L135: 59005764
A136: Infancia | B136: Nariño | C136: 52323 | D136: Gualmatán | E136: 18 | F136: 159739 | G136: 79869.5 | H136: 240858 | I136: 178058 | J136: 44514.5 | K136: 0 | L136: 0
A137: Infancia | B137: Nariño | C137: 52352 | D137: Iles | E137: 18 | F137: 159739 | G137: 79869.5 | H137: 240858 | I137: 178058 | J137: 44514.5 | K137: 50 | L137: 39337175
A138: Infancia | B138: Nariño | C138: 52356 | D138: Ipiales | E138: 18 | F138: 159739 | G138: 79869.5 | H138: 240858 | I138: 178058 | J138: 44514.5 | K138: 300 | L138: 236023050
A139: Infancia | B139: Nariño | C139: 52560 | D139: Potosí | E139: 18 | F139: 159739 | G139: 79869.5 | H139: 240858 | I139: 178058 | J139: 44514.5 | K139: 50 | L139: 39337175
A140: Infancia | B140: Nariño | C140: 52573 | D140: Puerres | E140: 18 | F140: 159739 | G140: 79869.5 | H140: 240858 | I140: 178058 | J140: 44514.5 | K140: 50 | L140: 39337175
A141: Infancia | B141: Nariño | C141: 52585 | D141: Pupiales | E141: 18 | F141: 159739 | G141: 79869.5 | H141: 240858 | I141: 178058 | J141: 44514.5 | K141: 0 | L141: 0
A142: Infancia | B142: Nariño | C142: 52320 | D142: Guaitarilla | E142: 19 | F142: 159739 | G142: 79869.5 | H142: 240858 | I142: 178058 | J142: 44514.5 | K142: 50 | L142: 39337175
A143: Infancia | B143: Nariño | C143: 52354 | D143: Imués | E143: 19 | F143: 159739 | G143: 79869.5 | H143: 240858 | I143: 178058 | J143: 44514.5 | K143: 50 | L143: 39337175
A144: Infancia | B144: Nariño | C144: 52385 | D144: La Llanada | E144: 19 | F144: 159739 | G144: 79869.5 | H144: 240858 | I144: 178058 | J144: 44514.5 | K144: 50 | L144: 39337178
A145: Infancia | B145: Nariño | C145: 52435 | D145: Mallama | E145: 19 | F145: 159739 | G145: 79869.5 | H145: 240858 | I145: 178058 | J145: 44514.5 | K145: 50 | L145: 39337175
A146: Infancia | B146: Nariño | C146: 52506 | D146: Ospina | E146: 19 | F146: 159739 | G146: 79869.5 | H146: 240858 | I146: 178058 | J146: 44514.5 | K146: 0 | L146: 0
A147: Infancia | B147: Nariño | C147: 52565 | D147: Providencia | E147: 19 | F147: 159739 | G147: 79869.5 | H147: 240858 | I147: 178058 | J147: 44514.5 | K147: 50 | L147: 39337175
A148: Infancia | B148: Nariño | C148: 52612 | D148: Ricaurte | E148: 19 | F148: 159739 | G148: 79869.5 | H148: 240858 | I148: 178058 | J148: 44514.5 | K148: 150 | L148: 118011525
A149: Infancia | B149: Nariño | C149: 52678 | D149: Samaniego | E149: 19 | F149: 159739 | G149: 79869.5 | H149: 240858 | I149: 178058 | J149: 44514.5 | K149: 150 | L149: 118011528
A150: Infancia | B150: Nariño | C150: 52699 | D150: Santacruz | E150: 19 | F150: 159739 | G150: 79869.5 | H150: 240858 | I150: 178058 | J150: 44514.5 | K150: 75 | L150: 59005764
A151: Infancia | B151: Nariño | C151: 52720 | D151: Sapuyes | E151: 19 | F151: 159739 | G151: 79869.5 | H151: 240858 | I151: 178058 | J151: 44514.5 | K151: 0 | L151: 0
A152: Infancia | B152: Nariño | C152: 52838 | D152: Túquerres | E152: 19 | F152: 159739 | G152: 79869.5 | H152: 240858 | I152: 178058 | J152: 44514.5 | K152: 100 | L152: 78674350
A153: Infancia | B153: Sucre | C153: 70110 | D153: Buenavista | E153: 20 | F153: 159619 | G153: 79809.5 | H153: 245168 | I153: 179422 | J153: 44855.5 | K153: 100 | L153: 79887700
A154: Infancia | B154: Sucre | C154: 70215 | D154: Corozal | E154: 20 | F154: 159619 | G154: 79809.5 | H154: 245168 | I154: 179422 | J154: 44855.5 | K154: 200 | L154: 159775400
A155: Infancia | B155: Sucre | C155: 70233 | D155: El Roble | E155: 20 | F155: 159619 | G155: 79809.5 | H155: 245168 | I155: 179422 | J155: 44855.5 | K155: 50 | L155: 39943850
A156: Infancia | B156: Sucre | C156: 70235 | D156: Galeras | E156: 20 | F156: 159619 | G156: 79809.5 | H156: 245168 | I156: 179422 | J156: 44855.5 | K156: 50 | L156: 39943850
A157: Infancia | B157: Sucre | C157: 70418 | D157: Los Palmitos | E157: 20 | F157: 159619 | G157: 79809.5 | H157: 245168 | I157: 179422 | J157: 44855.5 | K157: 50 | L157: 39943850
A158: Infancia | B158: Sucre | C158: 70473 | D158: Morroa | E158: 20 | F158: 159619 | G158: 79809.5 | H158: 245168 | I158: 179422 | J158: 44855.5 | K158: 100 | L158: 79887700
A159: Infancia | B159: Sucre | C159: 70508 | D159: Ovejas | E159: 20 | F159: 159619 | G159: 79809.5 | H159: 245168 | I159: 179422 | J159: 44855.5 | K159: 200 | L159: 159775400
A160: Infancia | B160: Sucre | C160: 70670 | D160: Sampués | E160: 20 | F160: 159619 | G160: 79809.5 | H160: 245168 | I160: 179422 | J160: 44855.5 | K160: 250 | L160: 199719250
A161: Infancia | B161: Sucre | C161: 70702 | D161: San Juan de Betulia | E161: 20 | F161: 159619 | G161: 79809.5 | H161: 245168 | I161: 179422 | J161: 44855.5 | K161: 50 | L161: 39943850
A162: Infancia | B162: Sucre | C162: 70717 | D162: San Pedro | E162: 20 | F162: 159619 | G162: 79809.5 | H162: 245168 | I162: 179422 | J162: 44855.5 | K162: 50 | L162: 39943850
A163: Infancia | B163: Sucre | C163: 70742 | D163: San Luis de Sincé | E163: 20 | F163: 159619 | G163: 79809.5 | H163: 245168 | I163: 179422 | J163: 44855.5 | K163: 100 | L163: 79887700
A164: Infancia | B164: Norte de Santander | C164: 54003 | D164: Ábrego | E164: 21 | F164: 159000 | G164: 79500 | H164: 242371 | I164: 178156 | J164: 44539 | K164: 200 | L164: 158111850
A165: Infancia | B165: Norte de Santander | C165: 54128 | D165: Cáchira | E165: 21 | F165: 159000 | G165: 79500 | H165: 242371 | I165: 178156 | J165: 44539 | K165: 50 | L165: 39527963
A166: Infancia | B166: Norte de Santander | C166: 54206 | D166: Convención | E166: 21 | F166: 159000 | G166: 79500 | H166: 242371 | I166: 178156 | J166: 44539 | K166: 100 | L166: 79055925
A167: Infancia | B167: Norte de Santander | C167: 54245 | D167: El Carmen | E167: 21 | F167: 159000 | G167: 79500 | H167: 242371 | I167: 178156 | J167: 44539 | K167: 75 | L167: 59291944
A168: Infancia | B168: Norte de Santander | C168: 54344 | D168: Hacarí | E168: 21 | F168: 159000 | G168: 79500 | H168: 242371 | I168: 178156 | J168: 44539 | K168: 125 | L168: 98819906
A169: Infancia | B169: Norte de Santander | C169: 54385 | D169: La Esperanza | E169: 21 | F169: 159000 | G169: 79500 | H169: 242371 | I169: 178156 | J169: 44539 | K169: 75 | L169: 59291944
A170: Infancia | B170: Norte de Santander | C170: 54398 | D170: La Playa | E170: 21 | F170: 159000 | G170: 79500 | H170: 242371 | I170: 178156 | J170: 44539 | K170: 50 | L170: 39527963
A171: Infancia | B171: Norte de Santander | C171: 54498 | D171: Ocaña | E171: 21 | F171: 159000 | G171: 79500 | H171: 242371 | I171: 178156 | J171: 44539 | K171: 200 | L171: 158111850
A172: Infancia | B172: Norte de Santander | C172: 54670 | D172: San Calixto | E172: 21 | F172: 159000 | G172: 79500 | H172: 242371 | I172: 178156 | J172: 44539 | K172: 125 | L172: 98819906
A173: Infancia | B173: Norte de Santander | C173: 54800 | D173: Teorama | E173: 21 | F173: 159000 | G173: 79500 | H173: 242371 | I173: 178156 | J173: 44539 | K173: 100 | L173: 79055925
A174: Infancia | B174: Norte de Santander | C174: 54125 | D174: Cácota | E174: 22 | F174: 159000 | G174: 79500 | H174: 242371 | I174: 178156 | J174: 44539 | K174: 50 | L174: 39527962
A175: Infancia | B175: Norte de Santander | C175: 54174 | D175: Chitagá | E175: 22 | F175: 159000 | G175: 79500 | H175: 242371 | I175: 178156 | J175: 44539 | K175: 50 | L175: 39527963
A176: Infancia | B176: Norte de Santander | C176: 54223 | D176: Cucutilla | E176: 22 | F176: 159000 | G176: 79500 | H176: 242371 | I176: 178156 | J176: 44539 | K176: 50 | L176: 39527963
A177: Infancia | B177: Norte de Santander | C177: 54377 | D177: Labateca | E177: 22 | F177: 159000 | G177: 79500 | H177: 242371 | I177: 178156 | J177: 44539 | K177: 0 | L177: 0
A178: Infancia | B178: Norte de Santander | C178: 54480 | D178: Mutiscua | E178: 22 | F178: 159000 | G178: 79500 | H178: 242371 | I178: 178156 | J178: 44539 | K178: 0 | L178: 0
A179: Infancia | B179: Norte de Santander | C179: 54518 | D179: Pamplona | E179: 22 | F179: 159000 | G179: 79500 | H179: 242371 | I179: 178156 | J179: 44539 | K179: 100 | L179: 79055925
A180: Infancia | B180: Norte de Santander | C180: 54520 | D180: Pamplonita | E180: 22 | F180: 159000 | G180: 79500 | H180: 242371 | I180: 178156 | J180: 44539 | K180: 0 | L180: 0
A181: Infancia | B181: Norte de Santander | C181: 54743 | D181: Silos | E181: 22 | F181: 159000 | G181: 79500 | H181: 242371 | I181: 178156 | J181: 44539 | K181: 50 | L181: 39527963
A182: Infancia | B182: Norte de Santander | C182: 54820 | D182: Toledo | E182: 22 | F182: 159000 | G182: 79500 | H182: 242371 | I182: 178156 | J182: 44539 | K182: 50 | L182: 39527962
A183: Infancia | B183: Norte de Santander | C183: 54001 | D183: San José de Cúcuta | E183: 23 | F183: 159000 | G183: 79500 | H183: 242371 | I183: 178156 | J183: 44539 | K183: 850 | L183: 671975363
A184: Infancia | B184: Norte de Santander | C184: 54051 | D184: Arboledas | E184: 23 | F184: 159000 | G184: 79500 | H184: 242371 | I184: 178156 | J184: 44539 | K184: 50 | L184: 39527963
A185: Infancia | B185: Norte de Santander | C185: 54099 | D185: Bochalema | E185: 23 | F185: 159000 | G185: 79500 | H185: 242371 | I185: 178156 | J185: 44539 | K185: 0 | L185: 0
A186: Infancia | B186: Norte de Santander | C186: 54109 | D186: Bucarasica | E186: 23 | F186: 159000 | G186: 79500 | H186: 242371 | I186: 178156 | J186: 44539 | K186: 75 | L186: 59291944
A187: Infancia | B187: Norte de Santander | C187: 54172 | D187: Chinácota | E187: 23 | F187: 159000 | G187: 79500 | H187: 242371 | I187: 178156 | J187: 44539 | K187: 0 | L187: 0
A188: Infancia | B188: Norte de Santander | C188: 54239 | D188: Durania | E188: 23 | F188: 159000 | G188: 79500 | H188: 242371 | I188: 178156 | J188: 44539 | K188: 0 | L188: 0
A189: Infancia | B189: Norte de Santander | C189: 54261 | D189: El Zulia | E189: 23 | F189: 159000 | G189: 79500 | H189: 242371 | I189: 178156 | J189: 44539 | K189: 100 | L189: 79055925
A190: Infancia | B190: Norte de Santander | C190: 54313 | D190: Gramalote | E190: 23 | F190: 159000 | G190: 79500 | H190: 242371 | I190: 178156 | J190: 44539 | K190: 0 | L190: 0
A191: Infancia | B191: Norte de Santander | C191: 54347 | D191: Herrán | E191: 23 | F191: 159000 | G191: 79500 | H191: 242371 | I191: 178156 | J191: 44539 | K191: 25 | L191: 19763981
A192: Infancia | B192: Norte de Santander | C192: 54405 | D192: Los Patios | E192: 23 | F192: 159000 | G192: 79500 | H192: 242371 | I192: 178156 | J192: 44539 | K192: 100 | L192: 79055925
A193: Infancia | B193: Norte de Santander | C193: 54418 | D193: Lourdes | E193: 23 | F193: 159000 | G193: 79500 | H193: 242371 | I193: 178156 | J193: 44539 | K193: 50 | L193: 39527962
A194: Infancia | B194: Norte de Santander | C194: 54553 | D194: Puerto Santander | E194: 23 | F194: 159000 | G194: =F194*0.5 -> 79500 | H194: 242371 | I194: 178156 | J194: =I194*0.25 -> 44539 | K194: 50 | L194: 39527963
A195: Infancia | B195: Norte de Santander | C195: 54599 | D195: Ragonvalia | E195: 23 | F195: 159000 | G195: 79500 | H195: 242371 | I195: 178156 | J195: 44539 | K195: 0 | L195: 0
A196: Infancia | B196: Norte de Santander | C196: 54660 | D196: Salazar | E196: 23 | F196: 159000 | G196: 79500 | H196: 242371 | I196: 178156 | J196: 44539 | K196: 50 | L196: 39527963
A197: Infancia | B197: Norte de Santander | C197: 54673 | D197: San Cayetano | E197: 23 | F197: 159000 | G197: 79500 | H197: 242371 | I197: 178156 | J197: 44539 | K197: 0 | L197: 0
A198: Infancia | B198: Norte de Santander | C198: 54680 | D198: Santiago | E198: 23 | F198: 159000 | G198: 79500 | H198: 242371 | I198: 178156 | J198: 44539 | K198: 0 | L198: 0
A199: Infancia | B199: Norte de Santander | C199: 54720 | D199: Sardinata | E199: 23 | F199: 159000 | G199: 79500 | H199: 242371 | I199: 178156 | J199: 44539 | K199: 200 | L199: 158111850
A200: Infancia | B200: Norte de Santander | C200: 54871 | D200: Villa Caro | E200: 23 | F200: 159000 | G200: 79500 | H200: 242371 | I200: 178156 | J200: 44539 | K200: 50 | L200: 39527963
... 908 more rows

Sheet TDCostoAtrapasueñosInfanciaV2 (hidden)
A3: Etiquetas de fila | B3: Zona | C3: COSTO CUPO ETAPA ALISTAMIENTO COMUNITARIOS - URBANO MENSUAL | D3: COSTO CUPO ETAPA ALISTAMIENTO COMUNITARIOS - URBANO | E3: COSTO CUPO ETAPA ATENCIÓN COMUNITARIOS - URBANO | F3: COSTO CUPO ETAPA DE CIERRE COMUNITARIOS - URBANO MENSUAL | G3: COSTO CUPO ETAPA DE CIERRE COMUNITARIOS - URBANO | H3: Suma de TOTAL CUPOS ATRAPASUEÑOS | I3: Suma de TOTAL PRESUSUPESTO ATRAPASUEÑOS | K3: Regional - Zona | L3: Etiquetas de fila | M3: Zona | N3: COSTO CUPO ETAPA ALISTAMIENTO COMUNITARIOS - URBANO MENSUAL | O3: COSTO CUPO ETAPA ALISTAMIENTO COMUNITARIOS - URBANO | P3: COSTO CUPO ETAPA ATENCIÓN COMUNITARIOS - URBANO | Q3: COSTO CUPO ETAPA DE CIERRE COMUNITARIOS - URBANO MENSUAL | R3: COSTO CUPO ETAPA DE CIERRE COMUNITARIOS - URBANO | S3: Suma de TOTAL CUPOS ATRAPASUEÑOS | T3: Suma de TOTAL PRESUSUPESTO ATRAPASUEÑOS
A4: Amazonas | B4: 5 | C4: 161505 | D4: 80752.5 | E4: 266330 | F4: 187506 | G4: 46876.5 | H4: 1050 | I4: 903038328 | K4: =L4&"_"&M4 -> Amazonas_5 | L4: Amazonas | M4: 5 | N4: 161505 | O4: 80752.5 | P4: 266330 | Q4: 187506 | R4: 46876.5 | S4: 1050 | T4: 903038328
A5: Antioquia | B5: 61 | C5: 159000 | D5: 79500 | E5: 241882 | F5: 178043 | G5: 44510.75 | H5: 1525 | I5: 1203509045 | K5: =L5&"_"&M5 -> Antioquia_61 | L5: Antioquia | M5: 61 | N5: 159000 | O5: 79500 | P5: 241882 | Q5: 178043 | R5: 44510.75 | S5: 1525 | T5: 1203509045
A6: Antioquia | B6: 62 | C6: 159000 | D6: 79500 | E6: 241882 | F6: 178043 | G6: 44510.75 | H6: 2600 | I6: 2051884264 | K6: Antioquia_62 | L6: Antioquia | M6: 62 | N6: 159000 | O6: 79500 | P6: 241882 | Q6: 178043 | R6: 44510.75 | S6: 2600 | T6: 2051884264
A7: Antioquia | B7: 63 | C7: 159000 | D7: 79500 | E7: 241882 | F7: 178043 | G7: 44510.75 | H7: 1075 | I7: 848375226 | K7: Antioquia_63 | L7: Antioquia | M7: 63 | N7: 159000 | O7: 79500 | P7: 241882 | Q7: 178043 | R7: 44510.75 | S7: 1075 | T7: 848375226
A8: Antioquia | B8: 64 | C8: 159000 | D8: 79500 | E8: 241882 | F8: 178043 | G8: 44510.75 | H8: 800 | I8: 631349009 | K8: Antioquia_64 | L8: Antioquia | M8: 64 | N8: 159000 | O8: 79500 | P8: 241882 | Q8: 178043 | R8: 44510.75 | S8: 800 | T8: 631349009
A9: Antioquia | B9: 65 | C9: 159000 | D9: 79500 | E9: 241882 | F9: 178043 | G9: 44510.75 | H9: 1000 | I9: 789186256 | K9: Antioquia_65 | L9: Antioquia | M9: 65 | N9: 159000 | O9: 79500 | P9: 241882 | Q9: 178043 | R9: 44510.75 | S9: 1000 | T9: 789186256
A10: Antioquia | B10: 80 | C10: 159000 | D10: 79500 | E10: 241882 | F10: 178043 | G10: 44510.75 | H10: 1500 | I10: 1183779379 | K10: Antioquia_80 | L10: Antioquia | M10: 80 | N10: 159000 | O10: 79500 | P10: 241882 | Q10: 178043 | R10: 44510.75 | S10: 1500 | T10: 1183779379
A11: Antioquia | B11: 81 | C11: 159000 | D11: 79500 | E11: 241882 | F11: 178043 | G11: 44510.75 | H11: 2400 | I11: 1894047003 | K11: Antioquia_81 | L11: Antioquia | M11: 81 | N11: 159000 | O11: 79500 | P11: 241882 | Q11: 178043 | R11: 44510.75 | S11: 2400 | T11: 1894047003
A12: Arauca | B12: 66 | C12: 161505 | D12: 80752.5 | E12: 249961 | F12: 182063 | G12: 45515.75 | H12: 1050 | I12: 854344057 | K12: Arauca_66 | L12: Arauca | M12: 66 | N12: 161505 | O12: 80752.5 | P12: 249961 | Q12: 182063 | R12: 45515.75 | S12: 1050 | T12: 854344057
A13: Archipiélago de San Andrés | B13: 67 | C13: 159000 | D13: 79500 | E13: 263771 | F13: 185618 | G13: 46404.5 | H13: 300 | I13: 255382425 | K13: Archipiélago de San Andrés_67 | L13: Archipiélago de San Andrés | M13: 67 | N13: 159000 | O13: 79500 | P13: 263771 | Q13: 185618 | R13: 46404.5 | S13: 300 | T13: 255382425
A14: Atlántico | B14: 83 | C14: 159000 | D14: 79500 | E14: 246560 | F14: 179671 | G14: 44917.75 | H14: 1750 | I14: 1404301066 | K14: Atlántico_83 | L14: Atlántico | M14: 83 | N14: 159000 | O14: 79500 | P14: 246560 | Q14: 179671 | R14: 44917.75 | S14: 1750 | T14: 1404301066
A15: Atlántico | B15: 85 | C15: 159000 | D15: 79500 | E15: 246560 | F15: 179671 | G15: 44917.75 | H15: 1350 | I15: 1083317963 | K15: Atlántico_85 | L15: Atlántico | M15: 85 | N15: 159000 | O15: 79500 | P15: 246560 | Q15: 179671 | R15: 44917.75 | S15: 1350 | T15: 1083317963
A16: Bogotá | B16: 92 | C16: 159000 | D16: 79500 | E16: 247318 | F16: 179934 | G16: 44983.5 | H16: 1000 | I16: 804608002 | K16: Bogotá_92 | L16: Bogotá | M16: 92 | N16: 159000 | O16: 79500 | P16: 247318 | Q16: 179934 | R16: 44983.5 | S16: 1000 | T16: 804608002
A17: Bolívar | B17: 26 | C17: 159587 | D17: 79793.5 | E17: 245828 | F17: 179649 | G17: 44912.25 | H17: 1200 | I17: 960879307 | K17: Bolívar_26 | L17: Bolívar | M17: 26 | N17: 159587 | O17: 79793.5 | P17: 245828 | Q17: 179649 | R17: 44912.25 | S17: 1200 | T17: 960879307
A18: Bolívar | B18: 68 | C18: 159587 | D18: 79793.5 | E18: 245828 | F18: 179649 | G18: 44912.25 | H18: 850 | I18: 680622843 | K18: Bolívar_68 | L18: Bolívar | M18: 68 | N18: 159587 | O18: 79793.5 | P18: 245828 | Q18: 179649 | R18: 44912.25 | S18: 850 | T18: 680622843
A19: Bolívar | B19: 69 | C19: 159587 | D19: 79793.5 | E19: 245828 | F19: 179649 | G19: 44912.25 | H19: 875 | I19: 700641158 | K19: Bolívar_69 | L19: Bolívar | M19: 69 | N19: 159587 | O19: 79793.5 | P19: 245828 | Q19: 179649 | R19: 44912.25 | S19: 875 | T19: 700641158
A20: Bolívar | B20: 70 | C20: 159587 | D20: 79793.5 | E20: 245828 | F20: 179649 | G20: 44912.25 | H20: 850 | I20: 680622839 | K20: Bolívar_70 | L20: Bolívar | M20: 70 | N20: 159587 | O20: 79793.5 | P20: 245828 | Q20: 179649 | R20: 44912.25 | S20: 850 | T20: 680622839
A21: Bolívar | B21: 71 | C21: 159587 | D21: 79793.5 | E21: 245828 | F21: 179649 | G21: 44912.25 | H21: 900 | I21: 720659476 | K21: Bolívar_71 | L21: Bolívar | M21: 71 | N21: 159587 | O21: 79793.5 | P21: 245828 | Q21: 179649 | R21: 44912.25 | S21: 900 | T21: 720659476
A22: Bolívar | B22: 91 | C22: 159587 | D22: 79793.5 | E22: 245828 | F22: 179649 | G22: 44912.25 | H22: 2100 | I22: 1681538778 | K22: Bolívar_91 | L22: Bolívar | M22: 91 | N22: 159587 | O22: 79793.5 | P22: 245828 | Q22: 179649 | R22: 44912.25 | S22: 2100 | T22: 1681538778
A23: Boyacá | B23: 40 | C23: 159000 | D23: 79500 | E23: 242925 | F23: 178360 | G23: 44590 | H23: 2850 | I23: 2257581209 | K23: Boyacá_40 | L23: Boyacá | M23: 40 | N23: 159000 | O23: 79500 | P23: 242925 | Q23: 178360 | R23: 44590 | S23: 2850 | T23: 2257581209
A24: Boyacá | B24: 40 | C24: 159000 | D24: 79500 | E24: 242925 | F24: 4153360 | G24: 1038340 | H24: 150 | I24: 118820063 | K24: Boyacá_40 | L24: Boyacá | M24: 40 | N24: 159000 | O24: 79500 | P24: 242925 | Q24: 4153360 | R24: 1038340 | S24: 150 | T24: 118820063
A25: Boyacá | B25: 41 | C25: 159000 | D25: 79500 | E25: 242925 | F25: 178360 | G25: 44590 | H25: 400 | I25: 316853502 | K25: Boyacá_41 | L25: Boyacá | M25: 41 | N25: 159000 | O25: 79500 | P25: 242925 | Q25: 178360 | R25: 44590 | S25: 400 | T25: 316853502
A26: Caldas | B26: 84 | C26: 161373 | D26: 80686.5 | E26: 247066 | F26: 181191 | G26: 45297.75 | H26: 1025 | I26: 825551151 | K26: Caldas_84 | L26: Caldas | M26: 84 | N26: 161373 | O26: 80686.5 | P26: 247066 | Q26: 181191 | R26: 45297.75 | S26: 1025 | T26: 825551151
A27: Caldas | B27: 90 | C27: 161373 | D27: 80686.5 | E27: 247066 | F27: 181191 | G27: 45297.75 | H27: 650 | I27: 523520245 | K27: Caldas_90 | L27: Caldas | M27: 90 | N27: 161373 | O27: 80686.5 | P27: 247066 | Q27: 181191 | R27: 45297.75 | S27: 650 | T27: 523520245
A28: Caquetá | B28: 38 | C28: 159779 | D28: 79889.5 | E28: 243440 | F28: 179125 | G28: 44781.25 | H28: 1100 | I28: 873543830 | K28: Caquetá_38 | L28: Caquetá | M28: 38 | N28: 159779 | O28: 79889.5 | P28: 243440 | Q28: 179125 | R28: 44781.25 | S28: 1100 | T28: 873543830
A29: Caquetá | B29: 39 | C29: 159779 | D29: 79889.5 | E29: 243440 | F29: 179125 | G29: 44781.25 | H29: 625 | I29: 496331720 | K29: Caquetá_39 | L29: Caquetá | M29: 39 | N29: 159779 | O29: 79889.5 | P29: 243440 | Q29: 179125 | R29: 44781.25 | S29: 625 | T29: 496331720
A30: Casanare | B30: 37 | C30: 160098 | D30: 80049 | E30: 247614 | F30: 180821 | G30: 45205.25 | H30: 1225 | I30: 987586124 | K30: Casanare_37 | L30: Casanare | M30: 37 | N30: 160098 | O30: 80049 | P30: 247614 | Q30: 180821 | R30: 45205.25 | S30: 1225 | T30: 987586124
A31: Cauca | B31: 6 | C31: 159000 | D31: 79500 | E31: 241283 | F31: 177770 | G31: 44442.5 | H31: 450 | I31: 354361838 | K31: Cauca_6 | L31: Cauca | M31: 6 | N31: 159000 | O31: 79500 | P31: 241283 | Q31: 177770 | R31: 44442.5 | S31: 450 | T31: 354361838
A32: Cauca | B32: 13 | C32: 159000 | D32: 79500 | E32: 241283 | F32: 177770 | G32: 44442.5 | H32: 1050 | I32: 826844292 | K32: Cauca_13 | L32: Cauca | M32: 13 | N32: 159000 | O32: 79500 | P32: 241283 | Q32: 177770 | R32: 44442.5 | S32: 1050 | T32: 826844292
A33: Cauca | B33: 14 | C33: 159000 | D33: 79500 | E33: 241283 | F33: 177770 | G33: 44442.5 | H33: 1600 | I33: 1259953204 | K33: Cauca_14 | L33: Cauca | M33: 14 | N33: 159000 | O33: 79500 | P33: 241283 | Q33: 177770 | R33: 44442.5 | S33: 1600 | T33: 1259953204
A34: Cauca | B34: 15 | C34: 159000 | D34: 79500 | E34: 241283 | F34: 177770 | G34: 44442.5 | H34: 1100 | I34: 866217828 | K34: Cauca_15 | L34: Cauca | M34: 15 | N34: 159000 | O34: 79500 | P34: 241283 | Q34: 177770 | R34: 44442.5 | S34: 1100 | T34: 866217828
A35: Cauca | B35: 16 | C35: 159000 | D35: 79500 | E35: 241283 | F35: 177770 | G35: 44442.5 | H35: 1700 | I35: 1338700278 | K35: Cauca_16 | L35: Cauca | M35: 16 | N35: 159000 | O35: 79500 | P35: 241283 | Q35: 177770 | R35: 44442.5 | S35: 1700 | T35: 1338700278
A36: Cesar | B36: 72 | C36: 159720 | D36: 79860 | E36: 245534 | F36: 179626 | G36: 44906.5 | H36: 1575 | I36: 1259976392 | K36: Cesar_72 | L36: Cesar | M36: 72 | N36: 159720 | O36: 79860 | P36: 245534 | Q36: 179626 | R36: 44906.5 | S36: 1575 | T36: 1259976392
A37: Cesar | B37: 73 | C37: 159720 | D37: 79860 | E37: 245534 | F37: 179626 | G37: 44906.5 | H37: 2075 | I37: 1659968884 | K37: Cesar_73 | L37: Cesar | M37: 73 | N37: 159720 | O37: 79860 | P37: 245534 | Q37: 179626 | R37: 44906.5 | S37: 2075 | T37: 1659968884
A38: Chocó | B38: 53 | C38: 159000 | D38: 79500 | E38: 263053 | F38: 185618 | G38: 46404.5 | H38: 225 | I38: 191092559 | K38: Chocó_53 | L38: Chocó | M38: 53 | N38: 159000 | O38: 79500 | P38: 263053 | Q38: 185618 | R38: 46404.5 | S38: 225 | T38: 191092559
A39: Chocó | B39: 54 | C39: 159000 | D39: 79500 | E39: 263053 | F39: 185618 | G39: 46404.5 | H39: 900 | I39: 764370229 | K39: Chocó_54 | L39: Chocó | M39: 54 | N39: 159000 | O39: 79500 | P39: 263053 | Q39: 185618 | R39: 46404.5 | S39: 900 | T39: 764370229
A40: Chocó | B40: 55 | C40: 159000 | D40: 79500 | E40: 263053 | F40: 185618 | G40: 46404.5 | H40: 1200 | I40: 1019160305 | K40: Chocó_55 | L40: Chocó | M40: 55 | N40: 159000 | O40: 79500 | P40: 263053 | Q40: 185618 | R40: 46404.5 | S40: 1200 | T40: 1019160305
A41: Chocó | B41: 56 | C41: 159000 | D41: 79500 | E41: 263053 | F41: 185618 | G41: 46404.5 | H41: 725 | I41: 615742683 | K41: Chocó_56 | L41: Chocó | M41: 56 | N41: 159000 | O41: 79500 | P41: 263053 | Q41: 185618 | R41: 46404.5 | S41: 725 | T41: 615742683
A42: Chocó | B42: 57 | C42: 159000 | D42: 79500 | E42: 263053 | F42: 185618 | G42: 46404.5 | H42: 450 | I42: 382185118 | K42: Chocó_57 | L42: Chocó | M42: 57 | N42: 159000 | O42: 79500 | P42: 263053 | Q42: 185618 | R42: 46404.5 | S42: 450 | T42: 382185118
A43: Córdoba | B43: 58 | C43: 159000 | D43: 79500 | E43: 245319 | F43: 179198 | G43: 44799.5 | H43: 750 | I43: 599195065 | K43: Córdoba_58 | L43: Córdoba | M43: 58 | N43: 159000 | O43: 79500 | P43: 245319 | Q43: 179198 | R43: 44799.5 | S43: 750 | T43: 599195065
A44: Córdoba | B44: 59 | C44: 159000 | D44: 79500 | E44: 245319 | F44: 179198 | G44: 44799.5 | H44: 1450 | I44: 1158443790 | K44: Córdoba_59 | L44: Córdoba | M44: 59 | N44: 159000 | O44: 79500 | P44: 245319 | Q44: 179198 | R44: 44799.5 | S44: 1450 | T44: 1158443790
A45: Córdoba | B45: 60 | C45: 159000 | D45: 79500 | E45: 245319 | F45: 179198 | G45: 44799.5 | H45: 1850 | I45: 1478014490 | K45: Córdoba_60 | L45: Córdoba | M45: 60 | N45: 159000 | O45: 79500 | P45: 245319 | Q45: 179198 | R45: 44799.5 | S45: 1850 | T45: 1478014490
A46: Córdoba | B46: 88 | C46: 159000 | D46: 79500 | E46: 245319 | F46: 179198 | G46: 44799.5 | H46: 750 | I46: 599195065 | K46: Córdoba_88 | L46: Córdoba | M46: 88 | N46: 159000 | O46: 79500 | P46: 245319 | Q46: 179198 | R46: 44799.5 | S46: 750 | T46: 599195065
A47: Cundinamarca | B47: 42 | C47: 159604 | D47: 79802 | E47: 244427 | F47: 179196 | G47: 44799 | H47: 500 | I47: 398387630 | K47: Cundinamarca_42 | L47: Cundinamarca | M47: 42 | N47: 159604 | O47: 79802 | P47: 244427 | Q47: 179196 | R47: 44799 | S47: 500 | T47: 398387630
A48: Cundinamarca | B48: 43 | C48: 159604 | D48: 79802 | E48: 244427 | F48: 179196 | G48: 44799 | H48: 1200 | I48: 956130306 | K48: Cundinamarca_43 | L48: Cundinamarca | M48: 43 | N48: 159604 | O48: 79802 | P48: 244427 | Q48: 179196 | R48: 44799 | S48: 1200 | T48: 956130306
A49: Cundinamarca | B49: 44 | C49: 159604 | D49: 79802 | E49: 244427 | F49: 179196 | G49: 44799 | H49: 1925 | I49: 1533792364 | K49: Cundinamarca_44 | L49: Cundinamarca | M49: 44 | N49: 159604 | O49: 79802 | P49: 244427 | Q49: 179196 | R49: 44799 | S49: 1925 | T49: 1533792364
A50: Cundinamarca | B50: 45 | C50: 159604 | D50: 79802 | E50: 244427 | F50: 179196 | G50: 44799 | H50: 725 | I50: 577662060 | K50: Cundinamarca_45 | L50: Cundinamarca | M50: 45 | N50: 159604 | O50: 79802 | P50: 244427 | Q50: 179196 | R50: 44799 | S50: 725 | T50: 577662060
A51: Guainía | B51: 1 | C51: 160855 | D51: 80427.5 | E51: 266058 | F51: 187762 | G51: 46940.5 | H51: 725 | I51: 622794939 | K51: Guainía_1 | L51: Guainía | M51: 1 | N51: 160855 | O51: 80427.5 | P51: 266058 | Q51: 187762 | R51: 46940.5 | S51: 725 | T51: 622794939
A52: Guaviare | B52: 31 | C52: 164844 | D52: 82422 | E52: 267575 | F52: 190022 | G52: 47505.5 | H52: 450 | I52: 389591439 | K52: Guaviare_31 | L52: Guaviare | M52: 31 | N52: 164844 | O52: 82422 | P52: 267575 | Q52: 190022 | R52: 47505.5 | S52: 450 | T52: 389591439
A53: Huila | B53: 49 | C53: 160178 | D53: 80089 | E53: 243871 | F53: 179360 | G53: 44840 | H53: 800 | I53: 636459400 | K53: Huila_49 | L53: Huila | M53: 49 | N53: 160178 | O53: 80089 | P53: 243871 | Q53: 179360 | R53: 44840 | S53: 800 | T53: 636459400
A54: Huila | B54: 50 | C54: 160178 | D54: 80089 | E54: 243871 | F54: 179360 | G54: 44840 | H54: 1050 | I54: 835352965 | K54: Huila_50 | L54: Huila | M54: 50 | N54: 160178 | O54: 80089 | P54: 243871 | Q54: 179360 | R54: 44840 | S54: 1050 | T54: 835352965
A55: Huila | B55: 51 | C55: 160178 | D55: 80089 | E55: 243871 | F55: 179360 | G55: 44840 | H55: 625 | I55: 497233908 | K55: Huila_51 | L55: Huila | M55: 51 | N55: 160178 | O55: 80089 | P55: 243871 | Q55: 179360 | R55: 44840 | S55: 625 | T55: 497233908
A56: Huila | B56: 52 | C56: 160178 | D56: 80089 | E56: 243871 | F56: 179360 | G56: 44840 | H56: 900 | I56: 716016826 | K56: Huila_52 | L56: Huila | M56: 52 | N56: 160178 | O56: 80089 | P56: 243871 | Q56: 179360 | R56: 44840 | S56: 900 | T56: 716016826
A57: Magdalena | B57: 32 | C57: 159850 | D57: 79925 | E57: 245405 | F57: 179701 | G57: 44925.25 | H57: 350 | I57: 279899901 | K57: Magdalena_32 | L57: Magdalena | M57: 32 | N57: 159850 | O57: 79925 | P57: 245405 | Q57: 179701 | R57: 44925.25 | S57: 350 | T57: 279899901
A58: Magdalena | B58: 33 | C58: 159850 | D58: 79925 | E58: 245405 | F58: 179701 | G58: 44925.25 | H58: 825 | I58: 659764051 | K58: Magdalena_33 | L58: Magdalena | M58: 33 | N58: 159850 | O58: 79925 | P58: 245405 | Q58: 179701 | R58: 44925.25 | S58: 825 | T58: 659764051
A59: Magdalena | B59: 34 | C59: 159850 | D59: 79925 | E59: 245405 | F59: 179701 | G59: 44925.25 | H59: 400 | I59: 319885602 | K59: Magdalena_34 | L59: Magdalena | M59: 34 | N59: 159850 | O59: 79925 | P59: 245405 | Q59: 179701 | R59: 44925.25 | S59: 400 | T59: 319885602
A60: Magdalena | B60: 35 | C60: 159850 | D60: 79925 | E60: 245405 | F60: 179701 | G60: 44925.25 | H60: 1000 | I60: 799714001 | K60: Magdalena_35 | L60: Magdalena | M60: 35 | N60: 159850 | O60: 79925 | P60: 245405 | Q60: 179701 | R60: 44925.25 | S60: 1000 | T60: 799714001
A61: Magdalena | B61: 36 | C61: 159850 | D61: 79925 | E61: 245405 | F61: 179701 | G61: 44925.25 | H61: 1250 | I61: 999642502 | K61: Magdalena_36 | L61: Magdalena | M61: 36 | N61: 159850 | O61: 79925 | P61: 245405 | Q61: 179701 | R61: 44925.25 | S61: 1250 | T61: 999642502
A62: Magdalena | B62: 89 | C62: 159850 | D62: 79925 | E62: 245405 | F62: 179701 | G62: 44925.25 | H62: 850 | I62: 679756901 | K62: Magdalena_89 | L62: Magdalena | M62: 89 | N62: 159850 | O62: 79925 | P62: 245405 | Q62: 179701 | R62: 44925.25 | S62: 850 | T62: 679756901
A63: Meta | B63: 27 | C63: 159762 | D63: 79881 | E63: 248111 | F63: 180540 | G63: 45135 | H63: 575 | I63: 464209720 | K63: Meta_27 | L63: Meta | M63: 27 | N63: 159762 | O63: 79881 | P63: 248111 | Q63: 180540 | R63: 45135 | S63: 575 | T63: 464209720
A64: Meta | B64: 28 | C64: 159762 | D64: 79881 | E64: 248111 | F64: 180540 | G64: 45135 | H64: 1175 | I64: 948602468 | K64: Meta_28 | L64: Meta | M64: 28 | N64: 159762 | O64: 79881 | P64: 248111 | Q64: 180540 | R64: 45135 | S64: 1175 | T64: 948602468
A65: Meta | B65: 29 | C65: 159762 | D65: 79881 | E65: 248111 | F65: 180540 | G65: 45135 | H65: 425 | I65: 343111532 | K65: Meta_29 | L65: Meta | M65: 29 | N65: 159762 | O65: 79881 | P65: 248111 | Q65: 180540 | R65: 45135 | S65: 425 | T65: 343111532
A66: Meta | B66: 30 | C66: 159762 | D66: 79881 | E66: 248111 | F66: 180540 | G66: 45135 | H66: 1275 | I66: 1029334595 | K66: Meta_30 | L66: Meta | M66: 30 | N66: 159762 | O66: 79881 | P66: 248111 | Q66: 180540 | R66: 45135 | S66: 1275 | T66: 1029334595
A67: Nariño | B67: 7 | C67: 159739 | D67: 79869.5 | E67: 240858 | F67: 178058 | G67: 44514.5 | H67: 350 | I67: 275360225 | K67: Nariño_7 | L67: Nariño | M67: 7 | N67: 159739 | O67: 79869.5 | P67: 240858 | Q67: 178058 | R67: 44514.5 | S67: 350 | T67: 275360225
A68: Nariño | B68: 8 | C68: 159739 | D68: 79869.5 | E68: 240858 | F68: 178058 | G68: 44514.5 | H68: 1300 | I68: 1022766562 | K68: Nariño_8 | L68: Nariño | M68: 8 | N68: 159739 | O68: 79869.5 | P68: 240858 | Q68: 178058 | R68: 44514.5 | S68: 1300 | T68: 1022766562
A69: Nariño | B69: 9 | C69: 159739 | D69: 79869.5 | E69: 240858 | F69: 178058 | G69: 44514.5 | H69: 850 | I69: 668731981 | K69: =L69&"_"&M69 -> Nariño_9 | L69: Nariño | M69: 9 | N69: 159739 | O69: 79869.5 | P69: 240858 | Q69: 178058 | R69: 44514.5 | S69: 850 | T69: 668731981
A70: Nariño | B70: 17 | C70: 159739 | D70: 79869.5 | E70: 240858 | F70: 178058 | G70: 44514.5 | H70: 1300 | I70: 1022766559 | K70: Nariño_17 | L70: Nariño | M70: 17 | N70: 159739 | O70: 79869.5 | P70: 240858 | Q70: 178058 | R70: 44514.5 | S70: 1300 | T70: 1022766559
A71: Nariño | B71: 18 | C71: 159739 | D71: 79869.5 | E71: 240858 | F71: 178058 | G71: 44514.5 | H71: 850 | I71: 668731978 | K71: Nariño_18 | L71: Nariño | M71: 18 | N71: 159739 | O71: 79869.5 | P71: 240858 | Q71: 178058 | R71: 44514.5 | S71: 850 | T71: 668731978
A72: Nariño | B72: 19 | C72: 159739 | D72: 79869.5 | E72: 240858 | F72: 178058 | G72: 44514.5 | H72: 725 | I72: 570389045 | K72: Nariño_19 | L72: Nariño | M72: 19 | N72: 159739 | O72: 79869.5 | P72: 240858 | Q72: 178058 | R72: 44514.5 | S72: 725 | T72: 570389045
A73: Norte de Santander | B73: 4 | C73: 159000 | D73: 79500 | E73: 242371 | F73: 178156 | G73: 44539 | H73: 450 | I73: 355751662 | K73: Norte de Santander_4 | L73: Norte de Santander | M73: 4 | N73: 159000 | O73: 79500 | P73: 242371 | Q73: 178156 | R73: 44539 | S73: 450 | T73: 355751662
A74: Norte de Santander | B74: 21 | C74: 159000 | D74: 79500 | E74: 242371 | F74: 178156 | G74: 44539 | H74: 1100 | I74: 869615176 | K74: Norte de Santander_21 | L74: Norte de Santander | M74: 21 | N74: 159000 | O74: 79500 | P74: 242371 | Q74: 178156 | R74: 44539 | S74: 1100 | T74: 869615176
A75: Norte de Santander | B75: 22 | C75: 159000 | D75: 79500 | E75: 242371 | F75: 178156 | G75: 44539 | H75: 350 | I75: 276695738 | K75: Norte de Santander_22 | L75: Norte de Santander | M75: 22 | N75: 159000 | O75: 79500 | P75: 242371 | Q75: 178156 | R75: 44539 | S75: 350 | T75: 276695738
A76: Norte de Santander | B76: 23 | C76: 159000 | D76: 79500 | E76: 242371 | F76: 178156 | G76: 44539 | H76: 1800 | I76: 1423006652 | K76: Norte de Santander_23 | L76: Norte de Santander | M76: 23 | N76: 159000 | O76: 79500 | P76: 242371 | Q76: 178156 | R76: 44539 | S76: 1800 | T76: 1423006652
A77: Putumayo | B77: 10 | C77: 159000 | D77: 79500 | E77: 262967 | F77: 185618 | G77: 46404.5 | H77: 725 | I77: 615571221 | K77: Putumayo_10 | L77: Putumayo | M77: 10 | N77: 159000 | O77: 79500 | P77: 262967 | Q77: 185618 | R77: 46404.5 | S77: 725 | T77: 615571221
A78: Putumayo | B78: 11 | C78: 159000 | D78: 79500 | E78: 262967 | F78: 185618 | G78: 46404.5 | H78: 500 | I78: 424531878 | K78: Putumayo_11 | L78: Putumayo | M78: 11 | N78: 159000 | O78: 79500 | P78: 262967 | Q78: 185618 | R78: 46404.5 | S78: 500 | T78: 424531878
A79: Putumayo | B79: 12 | C79: 159000 | D79: 79500 | E79: 262967 | F79: 185618 | G79: 46404.5 | H79: 275 | I79: 233492533 | K79: Putumayo_12 | L79: Putumayo | M79: 12 | N79: 159000 | O79: 79500 | P79: 262967 | Q79: 185618 | R79: 46404.5 | S79: 275 | T79: 233492533
A80: Quindío | B80: 86 | C80: 160454 | D80: 80227 | E80: 245680 | F80: 180420 | G80: 45105 | H80: 925 | I80: 740880600 | K80: Quindío_86 | L80: Quindío | M80: 86 | N80: 160454 | O80: 80227 | P80: 245680 | Q80: 180420 | R80: 45105 | S80: 925 | T80: 740880600
A81: Risaralda | B81: 87 | C81: 160503 | D81: 80251.5 | E81: 248409 | F81: 181066 | G81: 45266.5 | H81: 1750 | I81: 1415124816 | K81: Risaralda_87 | L81: Risaralda | M81: 87 | N81: 160503 | O81: 80251.5 | P81: 248409 | Q81: 181066 | R81: 45266.5 | S81: 1750 | T81: 1415124816
A82: Santander | B82: 78 | C82: 159284 | D82: 79642 | E82: 245585 | F82: 179571 | G82: 44892.75 | H82: 3025 | I82: 2419677848 | K82: Santander_78 | L82: Santander | M82: 78 | N82: 159284 | O82: 79642 | P82: 245585 | Q82: 179571 | R82: 44892.75 | S82: 3025 | T82: 2419677848
A83: Santander | B83: 79 | C83: 159284 | D83: 79642 | E83: 245585 | F83: 179571 | G83: 44892.75 | H83: 1700 | I83: 1359818978 | K83: Santander_79 | L83: Santander | M83: 79 | N83: 159284 | O83: 79642 | P83: 245585 | Q83: 179571 | R83: 44892.75 | S83: 1700 | T83: 1359818978
A84: Sucre | B84: 20 | C84: 159619 | D84: 79809.5 | E84: 245168 | F84: 179422 | G84: 44855.5 | H84: 1200 | I84: 958652400 | K84: Sucre_20 | L84: Sucre | M84: 20 | N84: 159619 | O84: 79809.5 | P84: 245168 | Q84: 179422 | R84: 44855.5 | S84: 1200 | T84: 958652400
A85: Sucre | B85: 24 | C85: 159619 | D85: 79809.5 | E85: 245168 | F85: 179422 | G85: 44855.5 | H85: 1800 | I85: 1437978602 | K85: Sucre_24 | L85: Sucre | M85: 24 | N85: 159619 | O85: 79809.5 | P85: 245168 | Q85: 179422 | R85: 44855.5 | S85: 1800 | T85: 1437978602
A86: Sucre | B86: 25 | C86: 159619 | D86: 79809.5 | E86: 245168 | F86: 179422 | G86: 44855.5 | H86: 1250 | I86: 998596250 | K86: Sucre_25 | L86: Sucre | M86: 25 | N86: 159619 | O86: 79809.5 | P86: 245168 | Q86: 179422 | R86: 44855.5 | S86: 1250 | T86: 998596250
A87: Tolima | B87: 46 | C87: 159565 | D87: 79782.5 | E87: 240166 | F87: 177628 | G87: 44407 | H87: 1250 | I87: 980807504 | K87: Tolima_46 | L87: Tolima | M87: 46 | N87: 159565 | O87: 79782.5 | P87: 240166 | Q87: 177628 | R87: 44407 | S87: 1250 | T87: 980807504
A88: Tolima | B88: 47 | C88: 159565 | D88: 79782.5 | E88: 240166 | F88: 177628 | G88: 44407 | H88: 2025 | I88: 1588908157 | K88: Tolima_47 | L88: Tolima | M88: 47 | N88: 159565 | O88: 79782.5 | P88: 240166 | Q88: 177628 | R88: 44407 | S88: 2025 | T88: 1588908157
A89: Tolima | B89: 48 | C89: 159565 | D89: 79782.5 | E89: 240166 | F89: 177628 | G89: 44407 | H89: 1375 | I89: 1078888261 | K89: Tolima_48 | L89: Tolima | M89: 48 | N89: 159565 | O89: 79782.5 | P89: 240166 | Q89: 177628 | R89: 44407 | S89: 1375 | T89: 1078888261
A90: Valle del Cauca | B90: 74 | C90: 159604 | D90: 79802 | E90: 245061 | F90: 179493 | G90: 44873.25 | H90: 1450 | I90: 1157959856 | K90: Valle del Cauca_74 | L90: Valle del Cauca | M90: 74 | N90: 159604 | O90: 79802 | P90: 245061 | Q90: 179493 | R90: 44873.25 | S90: 1450 | T90: 1157959856
A91: Valle del Cauca | B91: 75 | C91: 159604 | D91: 79802 | E91: 245061 | F91: 179493 | G91: 44873.25 | H91: 1100 | I91: 878452302 | K91: Valle del Cauca_75 | L91: Valle del Cauca | M91: 75 | N91: 159604 | O91: 79802 | P91: 245061 | Q91: 179493 | R91: 44873.25 | S91: 1100 | T91: 878452302
A92: Valle del Cauca | B92: 76 | C92: 159604 | D92: 79802 | E92: 245061 | F92: 179493 | G92: 44873.25 | H92: 1325 | I92: 1058135731 | K92: Valle del Cauca_76 | L92: Valle del Cauca | M92: 76 | N92: 159604 | O92: 79802 | P92: 245061 | Q92: 179493 | R92: 44873.25 | S92: 1325 | T92: 1058135731
A93: Valle del Cauca | B93: 77 | C93: 159604 | D93: 79802 | E93: 245061 | F93: 179493 | G93: 44873.25 | H93: 1900 | I93: 1517326700 | K93: Valle del Cauca_77 | L93: Valle del Cauca | M93: 77 | N93: 159604 | O93: 79802 | P93: 245061 | Q93: 179493 | R93: 44873.25 | S93: 1900 | T93: 1517326700
A94: Valle del Cauca | B94: 82 | C94: 159604 | D94: 79802 | E94: 245061 | F94: 179493 | G94: 44873.25 | H94: 800 | I94: 638874400 | K94: Valle del Cauca_82 | L94: Valle del Cauca | M94: 82 | N94: 159604 | O94: 79802 | P94: 245061 | Q94: 179493 | R94: 44873.25 | S94: 800 | T94: 638874400
A95: Vaupés | B95: 2 | C95: 164844 | D95: 82422 | E95: 267945 | F95: 190022 | G95: 47505.5 | H95: 450 | I95: 390049314 | K95: Vaupés_2 | L95: Vaupés | M95: 2 | N95: 164844 | O95: 82422 | P95: 267945 | Q95: 190022 | R95: 47505.5 | S95: 450 | T95: 390049314
A96: Vichada | B96: 3 | C96: 159000 | D96: 79500 | E96: 263657 | F96: 185618 | G96: 46404.5 | H96: 400 | I96: 340384501 | K96: Vichada_3 | L96: Vichada | M96: 3 | N96: 159000 | O96: 79500 | P96: 263657 | Q96: 185618 | R96: 46404.5 | S96: 400 | T96: 340384501
A97: Total general | H97: 101375 | I97: 81180566828 | L97: Total general | S97: 101375 | T97: 81180566828

Sheet CostoAtrapasueñosAyJ (hidden)
A1: Dirección | B1: Depto | C1: Divipola | D1: Municipio | E1: Zona | F1: COSTO CUPO ETAPA ALISTAMIENTO COMUNITARIOS - URBANO | G1: COSTO CUPO ETAPA ATENCIÓN COMUNITARIOS - URBANO | H1: COSTO CUPO ETAPA DE CIERRE COMUNITARIOS - URBANO | I1: TOTAL CUPOS ATRAPASUEÑOS | J1: TOTAL PRESUSUPESTO ATRAPASUEÑOS
A2: Adolescencia y Juventud | B2: Guainía | C2: 94001 | D2: Inírida | E2: 1 | F2: 221993 | G2: 564326 | H2: 0 | I2: 400 | J2: 721589800
A3: Adolescencia y Juventud | B3: Guainía | C3: 94343 | D3: Barrancominas | E3: 1 | F3: 221993 | G3: 564326 | H3: 0 | I3: 100 | J3: 180397450
A4: Adolescencia y Juventud | B4: Vaupés | C4: 97001 | D4: Mitú | E4: 2 | F4: 231764 | G4: 572015 | H4: 0 | I4: 300 | J4: 549578100
A5: Adolescencia y Juventud | B5: Vaupés | C5: 97161 | D5: Carurú | E5: 2 | F5: 231764 | G5: 572015 | H5: 0 | I5: 100 | J5: 183192700
A6: Adolescencia y Juventud | B6: Vichada | C6: 99001 | D6: Puerto Carreño | E6: 3 | F6: 231764 | G6: 572015 | H6: 0 | I6: 180 | J6: 370385730
A7: Adolescencia y Juventud | B7: Vichada | C7: 99524 | D7: La Primavera | E7: 3 | F7: 231764 | G7: 572015 | H7: 0 | I7: 200 | J7: 366385400
A8: Adolescencia y Juventud | B8: Vichada | C8: 99773 | D8: Cumaribo | E8: 3 | F8: 231764 | G8: 572015 | H8: 0 | I8: 200 | J8: 366385400
A9: Adolescencia y Juventud | B9: Amazonas | C9: 91001 | D9: Leticia | E9: 5 | F9: 221993 | G9: 564326 | H9: 0 | I9: 300 | J9: 541192350
A10: Adolescencia y Juventud | B10: Amazonas | C10: 91540 | D10: Puerto Nariño | E10: 5 | F10: 221993 | G10: 564326 | H10: 0 | I10: 150 | J10: 270596175
A11: Adolescencia y Juventud | B11: Amazonas | C11: 91798 | D11: Tarapacá (CD) | E11: 5 | F11: 221993 | G11: 564326 | H11: 0 | I11: 50 | J11: 90198725
A12: Adolescencia y Juventud | B12: Putumayo | C12: 86568 | D12: Puerto Asís | E12: 10 | F12: 194760 | G12: 535549 | H12: 0 | I12: 100 | J12: 170402700
A13: Adolescencia y Juventud | B13: Putumayo | C13: 86569 | D13: Puerto Caicedo | E13: 10 | F13: 194760 | G13: 535549 | H13: 0 | I13: 200 | J13: 340805400
A14: Adolescencia y Juventud | B14: Putumayo | C14: 86573 | D14: Puerto Leguízamo | E14: 10 | F14: 194760 | G14: 535549 | H14: 0 | I14: 100 | J14: 170402700
A15: Adolescencia y Juventud | B15: Putumayo | C15: 86757 | D15: San Miguel | E15: 11 | F15: 194760 | G15: 535549 | H15: 0 | I15: 100 | J15: 170402700
A16: Adolescencia y Juventud | B16: Putumayo | C16: 86865 | D16: Valle del Guamuez | E16: 11 | F16: 194760 | G16: 535549 | H16: 0 | I16: 100 | J16: 170402700
A17: Adolescencia y Juventud | B17: Putumayo | C17: 86320 | D17: Orito | E17: 11 | F17: 194760 | G17: 535549 | H17: 0 | I17: 100 | J17: 170402700
A18: Adolescencia y Juventud | B18: Putumayo | C18: 86001 | D18: Mocoa | E18: 12 | F18: 194760 | G18: 535549 | H18: 0 | I18: 100 | J18: 170402700
A19: Adolescencia y Juventud | B19: Putumayo | C19: 86571 | D19: Puerto Guzmán | E19: 12 | F19: 194760 | G19: 535549 | H19: 0 | I19: 200 | J19: 340805400
A20: Adolescencia y Juventud | B20: Putumayo | C20: 86885 | D20: Villagarzón | E20: 12 | F20: 194760 | G20: 535549 | H20: 0 | I20: 100 | J20: 170402700
A21: Adolescencia y Juventud | B21: Nariño | C21: 52001 | D21: Pasto | E21: 17 | F21: 180673 | G21: 496442 | H21: 0 | I21: 73 | J21: 183034251
A22: Adolescencia y Juventud | B22: Sucre | C22: 70215 | D22: Corozal | E22: 20 | F22: 191599 | G22: 513985 | H22: 0 | I22: 180 | J22: 357210810
A23: Adolescencia y Juventud | B23: Sucre | C23: 70508 | D23: Ovejas | E23: 20 | F23: 191599 | G23: 513985 | H23: 0 | I23: 200 | J23: 327550900
A24: Adolescencia y Juventud | B24: Sucre | C24: 70670 | D24: Sampués | E24: 20 | F24: 191599 | G24: 513985 | H24: 0 | I24: 200 | J24: 327550900
A25: Adolescencia y Juventud | B25: Norte de Santander | C25: 54001 | D25: San José de Cúcuta | E25: 23 | F25: 186536 | G25: 505303 | H25: 0 | I25: 330 | J25: 579880620
A26: Adolescencia y Juventud | B26: Sucre | C26: 70708 | D26: San Marcos | E26: 24 | F26: 191599 | G26: 513985 | H26: 0 | I26: 200 | J26: 327550900
A27: Adolescencia y Juventud | B27: Sucre | C27: 70713 | D27: San Onofre | E27: 24 | F27: 191599 | G27: 513985 | H27: 0 | I27: 200 | J27: 327550900
A28: Adolescencia y Juventud | B28: Sucre | C28: 70001 | D28: Sincelejo | E28: 25 | F28: 191599 | G28: 513985 | H28: 0 | I28: 400 | J28: 655101800
A29: Adolescencia y Juventud | B29: Sucre | C29: 70265 | D29: Guaranda | E29: 25 | F29: 191599 | G29: 513985 | H29: 0 | I29: 100 | J29: 163775450
A30: Adolescencia y Juventud | B30: Sucre | C30: 70429 | D30: Majagual | E30: 25 | F30: 191599 | G30: 513985 | H30: 0 | I30: 100 | J30: 163775450
A31: Adolescencia y Juventud | B31: Sucre | C31: 70771 | D31: Sucre | E31: 25 | F31: 191599 | G31: 513985 | H31: 0 | I31: 100 | J31: 163775450
A32: Adolescencia y Juventud | B32: Bolívar | C32: 13042 | D32: Arenal | E32: 26 | F32: 184589 | G32: 506147 | H32: 0 | I32: 100 | J32: 161073550
A33: Adolescencia y Juventud | B33: Bolívar | C33: 13160 | D33: Cantagallo | E33: 26 | F33: 184589 | G33: 506147 | H33: 0 | I33: 100 | J33: 161073550
A34: Adolescencia y Juventud | B34: Bolívar | C34: 13473 | D34: Morales | E34: 26 | F34: 184589 | G34: 506147 | H34: 0 | I34: 100 | J34: 161073550
A35: Adolescencia y Juventud | B35: Bolívar | C35: 13490 | D35: Norosí | E35: 26 | F35: 184589 | G35: 506147 | H35: 0 | I35: 100 | J35: 161073550
A36: Adolescencia y Juventud | B36: Bolívar | C36: 13600 | D36: Río Viejo | E36: 26 | F36: 184589 | G36: 506147 | H36: 0 | I36: 100 | J36: 161073550
A37: Adolescencia y Juventud | B37: Bolívar | C37: 13667 | D37: San Martín de Loba | E37: 26 | F37: 184589 | G37: 506147 | H37: 0 | I37: 100 | J37: 161073550
A38: Adolescencia y Juventud | B38: Bolívar | C38: 13688 | D38: Santa Rosa del Sur | E38: 26 | F38: 184589 | G38: 506147 | H38: 0 | I38: 100 | J38: 161073550
A39: Adolescencia y Juventud | B39: Bolívar | C39: 13744 | D39: Simití | E39: 26 | F39: 184589 | G39: 506147 | H39: 0 | I39: 100 | J39: 161073550
A40: Adolescencia y Juventud | B40: Bolívar | C40: 13670 | D40: San Pablo | E40: 26 | F40: 184589 | G40: 506147 | H40: 0 | I40: 100 | J40: 161073550
A41: Adolescencia y Juventud | B41: Meta | C41: 50573 | D41: Puerto López | E41: 29 | F41: 182919 | G41: 506142 | H41: 0 | I41: 180 | J41: 358492770
A42: Adolescencia y Juventud | B42: Guaviare | C42: 95001 | D42: San José del Guaviare | E42: 31 | F42: 231764 | G42: 572015 | H42: 0 | I42: 100 | J42: 183192700
A43: Adolescencia y Juventud | B43: Guaviare | C43: 95015 | D43: Calamar | E43: 31 | F43: 231764 | G43: 572015 | H43: 0 | I43: 100 | J43: 183192700
A44: Adolescencia y Juventud | B44: Guaviare | C44: 95025 | D44: El Retorno | E44: 31 | F44: 231764 | G44: 572015 | H44: 0 | I44: 100 | J44: 183192700
A45: Adolescencia y Juventud | B45: Guaviare | C45: 95200 | D45: Miraflores | E45: 31 | F45: 231764 | G45: 572015 | H45: 0 | I45: 100 | J45: 183192700
A46: Adolescencia y Juventud | B46: Casanare | C46: 85001 | D46: Yopal | E46: 37 | F46: 195945 | G46: 518589 | H46: 0 | I46: 200 | J46: 330747900
A47: Adolescencia y Juventud | B47: Casanare | C47: 85010 | D47: Aguazul | E47: 37 | F47: 195945 | G47: 518589 | H47: 0 | I47: 100 | J47: 165373950
A48: Adolescencia y Juventud | B48: Casanare | C48: 85015 | D48: Chámeza | E48: 37 | F48: 195945 | G48: 518589 | H48: 0 | I48: 100 | J48: 165373950
A49: Adolescencia y Juventud | B49: Casanare | C49: 85125 | D49: Hato Corozal | E49: 37 | F49: 195945 | G49: 518589 | H49: 0 | I49: 100 | J49: 165373950
A50: Adolescencia y Juventud | B50: Casanare | C50: 85225 | D50: Nunchía | E50: 37 | F50: 195945 | G50: 518589 | H50: 0 | I50: 100 | J50: 165373950
A51: Adolescencia y Juventud | B51: Casanare | C51: 85250 | D51: Paz de Ariporo | E51: 37 | F51: 195945 | G51: 518589 | H51: 0 | I51: 100 | J51: 165373950
A52: Adolescencia y Juventud | B52: Casanare | C52: 85263 | D52: Pore | E52: 37 | F52: 195945 | G52: 518589 | H52: 0 | I52: 100 | J52: 165373950
A53: Adolescencia y Juventud | B53: Casanare | C53: 85400 | D53: Támara | E53: 37 | F53: 195945 | G53: 518589 | H53: 0 | I53: 100 | J53: 165373950
A54: Adolescencia y Juventud | B54: Casanare | C54: 85440 | D54: Villanueva | E54: 37 | F54: 195945 | G54: 518589 | H54: 0 | I54: 100 | J54: 165373950
A55: Adolescencia y Juventud | B55: Caquetá | C55: 18029 | D55: Albania | E55: 38 | F55: 182919 | G55: 501150 | H55: 0 | I55: 100 | J55: 159490950
A56: Adolescencia y Juventud | B56: Caquetá | C56: 18094 | D56: Belén de Los Andaquíes | E56: 38 | F56: 182919 | G56: 501150 | H56: 0 | I56: 100 | J56: 159490950
A57: Adolescencia y Juventud | B57: Caquetá | C57: 18150 | D57: Cartagena del Chairá | E57: 38 | F57: 182919 | G57: 501150 | H57: 0 | I57: 200 | J57: 318981900
A58: Adolescencia y Juventud | B58: Caquetá | C58: 18205 | D58: Curillo | E58: 38 | F58: 182919 | G58: 501150 | H58: 0 | I58: 100 | J58: 159490950
A59: Adolescencia y Juventud | B59: Caquetá | C59: 18247 | D59: El Doncello | E59: 38 | F59: 182919 | G59: 501150 | H59: 0 | I59: 100 | J59: 159490950
A60: Adolescencia y Juventud | B60: Caquetá | C60: 18256 | D60: El Paujíl | E60: 38 | F60: 182919 | G60: 501150 | H60: 0 | I60: 100 | J60: 159490950
A61: Adolescencia y Juventud | B61: Caquetá | C61: 18592 | D61: Puerto Rico | E61: 38 | F61: 182919 | G61: 501150 | H61: 0 | I61: 200 | J61: 318981900
A62: Adolescencia y Juventud | B62: Caquetá | C62: 18610 | D62: San José del Fragua | E62: 38 | F62: 182919 | G62: 501150 | H62: 0 | I62: 100 | J62: 159490950
A63: Adolescencia y Juventud | B63: Caquetá | C63: 18753 | D63: San Vicente del Caguán | E63: 38 | F63: 182919 | G63: 501150 | H63: 0 | I63: 200 | J63: 318981900
A64: Adolescencia y Juventud | B64: Caquetá | C64: 18785 | D64: Solita | E64: 38 | F64: 182919 | G64: 501150 | H64: 0 | I64: 100 | J64: 159490950
A65: Adolescencia y Juventud | B65: Caquetá | C65: 18860 | D65: Valparaíso | E65: 38 | F65: 182919 | G65: 501150 | H65: 0 | I65: 100 | J65: 159490950
A66: Adolescencia y Juventud | B66: Caquetá | C66: 18001 | D66: Florencia | E66: 39 | F66: 182919 | G66: 501150 | H66: 0 | I66: 300 | J66: 478472850
A67: Adolescencia y Juventud | B67: Caquetá | C67: 18410 | D67: La Montañita | E67: 39 | F67: 182919 | G67: 501150 | H67: 0 | I67: 200 | J67: 318981900
A68: Adolescencia y Juventud | B68: Caquetá | C68: 18460 | D68: Milán | E68: 39 | F68: 182919 | G68: 501150 | H68: 0 | I68: 100 | J68: 159490950
A69: Adolescencia y Juventud | B69: Caquetá | C69: 18756 | D69: Solano | E69: 39 | F69: 182919 | G69: 501150 | H69: 0 | I69: 200 | J69: 318981900
A70: Adolescencia y Juventud | B70: Huila | C70: 41615 | D70: Rivera | E70: 51 | F70: 187573 | G70: 507120 | H70: 0 | I70: 240 | J70: 436349160
A71: Adolescencia y Juventud | B71: Córdoba | C71: 23079 | D71: Buenavista | E71: 58 | F71: 182918 | G71: 505362 | H71: 0 | I71: 100 | J71: 160754500
A72: Adolescencia y Juventud | B72: Córdoba | C72: 23555 | D72: Planeta Rica | E72: 58 | F72: 182918 | G72: 505362 | H72: 0 | I72: 100 | J72: 160754500
A73: Adolescencia y Juventud | B73: Córdoba | C73: 23807 | D73: Tierralta | E73: 58 | F73: 182918 | G73: 505362 | H73: 0 | I73: 200 | J73: 321509000
A74: Adolescencia y Juventud | B74: Córdoba | C74: 23855 | D74: Valencia | E74: 58 | F74: 182918 | G74: 505362 | H74: 0 | I74: 100 | J74: 160754500
A75: Adolescencia y Juventud | B75: Córdoba | C75: 23417 | D75: Lorica | E75: 59 | F75: 182918 | G75: 505362 | H75: 0 | I75: 200 | J75: 321509000
A76: Adolescencia y Juventud | B76: Córdoba | C76: 23500 | D76: Moñitos | E76: 59 | F76: 182918 | G76: 505362 | H76: 0 | I76: 100 | J76: 160754500
A77: Adolescencia y Juventud | B77: Córdoba | C77: 23660 | D77: Sahagún | E77: 59 | F77: 182918 | G77: 505362 | H77: 0 | I77: 200 | J77: 321509000
A78: Adolescencia y Juventud | B78: Córdoba | C78: 23670 | D78: San Andrés Sotavento | E78: 59 | F78: 182918 | G78: 505362 | H78: 0 | I78: 100 | J78: 160754500
A79: Adolescencia y Juventud | B79: Córdoba | C79: 23672 | D79: San Antero | E79: 59 | F79: 182918 | G79: 505362 | H79: 0 | I79: 100 | J79: 160754500
A80: Adolescencia y Juventud | B80: Córdoba | C80: 23675 | D80: San Bernardo del Viento | E80: 59 | F80: 182918 | G80: 505362 | H80: 0 | I80: 100 | J80: 160754500
A81: Adolescencia y Juventud | B81: Córdoba | C81: 23815 | D81: Tuchín | E81: 59 | F81: 182918 | G81: 505362 | H81: 0 | I81: 100 | J81: 160754500
A82: Adolescencia y Juventud | B82: Córdoba | C82: 23090 | D82: Canalete | E82: 60 | F82: 182918 | G82: 505362 | H82: 0 | I82: 100 | J82: 160754500
A83: Adolescencia y Juventud | B83: Córdoba | C83: 23162 | D83: Cereté | E83: 60 | F83: 182918 | G83: 505362 | H83: 0 | I83: 100 | J83: 160754500
A84: Adolescencia y Juventud | B84: Córdoba | C84: 23419 | D84: Los Córdobas | E84: 60 | F84: 182918 | G84: 505362 | H84: 0 | I84: 100 | J84: 160754500
A85: Adolescencia y Juventud | B85: Córdoba | C85: 23574 | D85: Puerto Escondido | E85: 60 | F85: 182918 | G85: 505362 | H85: 0 | I85: 100 | J85: 160754500
A86: Adolescencia y Juventud | B86: Córdoba | C86: 23686 | D86: San Pelayo | E86: 60 | F86: 182918 | G86: 505362 | H86: 0 | I86: 100 | J86: 160754500
A87: Adolescencia y Juventud | B87: Antioquia | C87: 5031 | D87: Amalfi | E87: 61 | F87: 185287 | G87: 504511 | H87: 0 | I87: 100 | J87: 160617650
A88: Adolescencia y Juventud | B88: Antioquia | C88: 5040 | D88: Anorí | E88: 61 | F88: 185287 | G88: 504511 | H88: 0 | I88: 100 | J88: 160617650
A89: Adolescencia y Juventud | B89: Antioquia | C89: 5579 | D89: Puerto Berrío | E89: 61 | F89: 185287 | G89: 504511 | H89: 0 | I89: 100 | J89: 160617650
A90: Adolescencia y Juventud | B90: Antioquia | C90: 5591 | D90: Puerto Triunfo | E90: 61 | F90: 185287 | G90: 504511 | H90: 0 | I90: 100 | J90: 160617650
A91: Adolescencia y Juventud | B91: Antioquia | C91: 5604 | D91: Remedios | E91: 61 | F91: 185287 | G91: 504511 | H91: 0 | I91: 100 | J91: 160617650
A92: Adolescencia y Juventud | B92: Antioquia | C92: 5670 | D92: San Roque | E92: 61 | F92: 185287 | G92: 504511 | H92: 0 | I92: 50 | J92: 80308825
A93: Adolescencia y Juventud | B93: Antioquia | C93: 5736 | D93: Segovia | E93: 61 | F93: 185287 | G93: 504511 | H93: 0 | I93: 100 | J93: 160617650
A94: Adolescencia y Juventud | B94: Antioquia | C94: 5858 | D94: Vegachí | E94: 61 | F94: 185287 | G94: 504511 | H94: 0 | I94: 50 | J94: 80308825
A95: Adolescencia y Juventud | B95: Antioquia | C95: 5885 | D95: Yalí | E95: 61 | F95: 185287 | G95: 504511 | H95: 0 | I95: 50 | J95: 80308825
A96: Adolescencia y Juventud | B96: Antioquia | C96: 5893 | D96: Yondó | E96: 61 | F96: 185287 | G96: 504511 | H96: 0 | I96: 100 | J96: 160617650
A97: Adolescencia y Juventud | B97: Antioquia | C97: 5002 | D97: Abejorral | E97: 62 | F97: 185287 | G97: 504511 | H97: 0 | I97: 50 | J97: 80308825
A98: Adolescencia y Juventud | B98: Antioquia | C98: 5055 | D98: Argelia | E98: 62 | F98: 185287 | G98: 504511 | H98: 0 | I98: 100 | J98: 160617650
A99: Adolescencia y Juventud | B99: Antioquia | C99: 5197 | D99: Cocorná | E99: 62 | F99: 185287 | G99: 504511 | H99: 0 | I99: 100 | J99: 160617650
A100: Adolescencia y Juventud | B100: Antioquia | C100: 5313 | D100: Granada | E100: 62 | F100: 185287 | G100: 504511 | H100: 0 | I100: 100 | J100: 160617650
A101: Adolescencia y Juventud | B101: Antioquia | C101: 5483 | D101: Nariño | E101: 62 | F101: 185287 | G101: 504511 | H101: 0 | I101: 50 | J101: 80308825
A102: Adolescencia y Juventud | B102: Antioquia | C102: 5541 | D102: Peñol | E102: 62 | F102: 185287 | G102: 504511 | H102: 0 | I102: 240 | J102: 437562360
A103: Adolescencia y Juventud | B103: Antioquia | C103: 5652 | D103: San Francisco | E103: 62 | F103: 185287 | G103: 504511 | H103: 0 | I103: 50 | J103: 80308825
A104: Adolescencia y Juventud | B104: Antioquia | C104: 5660 | D104: San Luis | E104: 62 | F104: 185287 | G104: 504511 | H104: 0 | I104: 50 | J104: 80308825
A105: Adolescencia y Juventud | B105: Antioquia | C105: 5756 | D105: Sonsón | E105: 62 | F105: 185287 | G105: 504511 | H105: 0 | I105: 240 | J105: 437562360
A106: Adolescencia y Juventud | B106: Antioquia | C106: 5038 | D106: Angostura | E106: 63 | F106: 185287 | G106: 504511 | H106: 0 | I106: 100 | J106: 160617650
A107: Adolescencia y Juventud | B107: Antioquia | C107: 5107 | D107: Briceño | E107: 63 | F107: 185287 | G107: 504511 | H107: 0 | I107: 50 | J107: 80308825
A108: Adolescencia y Juventud | B108: Antioquia | C108: 5134 | D108: Campamento | E108: 63 | F108: 185287 | G108: 504511 | H108: 0 | I108: 50 | J108: 80308825
A109: Adolescencia y Juventud | B109: Antioquia | C109: 5361 | D109: Ituango | E109: 63 | F109: 185287 | G109: 504511 | H109: 0 | I109: 150 | J109: 240926475
A110: Adolescencia y Juventud | B110: Antioquia | C110: 5647 | D110: San Andrés de Cuerquía | E110: 63 | F110: 185287 | G110: 504511 | H110: 0 | I110: 50 | J110: 80308825
A111: Adolescencia y Juventud | B111: Antioquia | C111: 5854 | D111: Valdivia | E111: 63 | F111: 185287 | G111: 504511 | H111: 0 | I111: 100 | J111: 160617650
A112: Adolescencia y Juventud | B112: Antioquia | C112: 5887 | D112: Yarumal | E112: 63 | F112: 185287 | G112: 504511 | H112: 0 | I112: 100 | J112: 160617650
A113: Adolescencia y Juventud | B113: Antioquia | C113: 5042 | D113: Santafé de Antioquia | E113: 64 | F113: 185287 | G113: 504511 | H113: 0 | I113: 100 | J113: 160617650
A114: Adolescencia y Juventud | B114: Antioquia | C114: 5044 | D114: Anzá | E114: 64 | F114: 185287 | G114: 504511 | H114: 0 | I114: 50 | J114: 80308825
A115: Adolescencia y Juventud | B115: Antioquia | C115: 5113 | D115: Buriticá | E115: 64 | F115: 185287 | G115: 504511 | H115: 0 | I115: 50 | J115: 80308825
A116: Adolescencia y Juventud | B116: Antioquia | C116: 5138 | D116: Cañasgordas | E116: 64 | F116: 185287 | G116: 504511 | H116: 0 | I116: 50 | J116: 80308825
A117: Adolescencia y Juventud | B117: Antioquia | C117: 5234 | D117: Dabeiba | E117: 64 | F117: 185287 | G117: 504511 | H117: 0 | I117: 100 | J117: 160617650
A118: Adolescencia y Juventud | B118: Antioquia | C118: 5284 | D118: Frontino | E118: 64 | F118: 185287 | G118: 504511 | H118: 0 | I118: 100 | J118: 160617650
A119: Adolescencia y Juventud | B119: Antioquia | C119: 5543 | D119: Peque | E119: 64 | F119: 185287 | G119: 504511 | H119: 0 | I119: 50 | J119: 80308825
A120: Adolescencia y Juventud | B120: Antioquia | C120: 5628 | D120: Sabanalarga | E120: 64 | F120: 185287 | G120: 504511 | H120: 0 | I120: 50 | J120: 80308825
A121: Adolescencia y Juventud | B121: Antioquia | C121: 5842 | D121: Uramita | E121: 64 | F121: 185287 | G121: 504511 | H121: 0 | I121: 50 | J121: 80308825
A122: Adolescencia y Juventud | B122: Antioquia | C122: 5034 | D122: Andes | E122: 65 | F122: 185287 | G122: 504511 | H122: 0 | I122: 100 | J122: 160617650
A123: Adolescencia y Juventud | B123: Antioquia | C123: 5091 | D123: Betania | E123: 65 | F123: 185287 | G123: 504511 | H123: 0 | I123: 100 | J123: 160617650
A124: Adolescencia y Juventud | B124: Antioquia | C124: 5093 | D124: Betulia | E124: 65 | F124: 185287 | G124: 504511 | H124: 0 | I124: 100 | J124: 160617650
A125: Adolescencia y Juventud | B125: Antioquia | C125: 5125 | D125: Caicedo | E125: 65 | F125: 185287 | G125: 504511 | H125: 0 | I125: 50 | J125: 80308825
A126: Adolescencia y Juventud | B126: Antioquia | C126: 5209 | D126: Concordia | E126: 65 | F126: 185287 | G126: 504511 | H126: 0 | I126: 50 | J126: 80308825
A127: Adolescencia y Juventud | B127: Antioquia | C127: 5642 | D127: Salgar | E127: 65 | F127: 185287 | G127: 504511 | H127: 0 | I127: 50 | J127: 80308825
A128: Adolescencia y Juventud | B128: Antioquia | C128: 5847 | D128: Urrao | E128: 65 | F128: 185287 | G128: 504511 | H128: 0 | I128: 100 | J128: 160617650
A129: Adolescencia y Juventud | B129: Arauca | C129: 81001 | D129: Arauca | E129: 66 | F129: 199204 | G129: 522990 | H129: 0 | I129: 340 | J129: 606663800
A130: Adolescencia y Juventud | B130: Arauca | C130: 81065 | D130: Arauquita | E130: 66 | F130: 199204 | G130: 522990 | H130: 0 | I130: 100 | J130: 166857200
A131: Adolescencia y Juventud | B131: Arauca | C131: 81220 | D131: Cravo Norte | E131: 66 | F131: 199204 | G131: 522990 | H131: 0 | I131: 100 | J131: 166857200
A132: Adolescencia y Juventud | B132: Arauca | C132: 81300 | D132: Fortul | E132: 66 | F132: 199204 | G132: 522990 | H132: 0 | I132: 100 | J132: 166857200
A133: Adolescencia y Juventud | B133: Arauca | C133: 81591 | D133: Puerto Rondón | E133: 66 | F133: 199204 | G133: 522990 | H133: 0 | I133: 100 | J133: 166857200
A134: Adolescencia y Juventud | B134: Arauca | C134: 81736 | D134: Saravena | E134: 66 | F134: 199204 | G134: 522990 | H134: 0 | I134: 150 | J134: 250285800
A135: Adolescencia y Juventud | B135: Arauca | C135: 81794 | D135: Tame | E135: 66 | F135: 199204 | G135: 522990 | H135: 0 | I135: 150 | J135: 250285800
A136: Adolescencia y Juventud | B136: Archipiélago de San Andrés | C136: 88001 | D136: San Andrés | E136: 67 | F136: 231764 | G136: 572015 | H136: 0 | I136: 400 | J136: 732770800
A137: Adolescencia y Juventud | B137: Bolívar | C137: 13030 | D137: Altos del Rosario | E137: 68 | F137: 184589 | G137: 506147 | H137: 0 | I137: 100 | J137: 161073550
A138: Adolescencia y Juventud | B138: Bolívar | C138: 13074 | D138: Barranco de Loba | E138: 68 | F138: 184589 | G138: 506147 | H138: 0 | I138: 100 | J138: 161073550
A139: Adolescencia y Juventud | B139: Bolívar | C139: 13188 | D139: Cicuco | E139: 68 | F139: 184589 | G139: 506147 | H139: 0 | I139: 100 | J139: 161073550
A140: Adolescencia y Juventud | B140: Bolívar | C140: 13300 | D140: Hatillo de Loba | E140: 68 | F140: 184589 | G140: 506147 | H140: 0 | I140: 100 | J140: 161073550
A141: Adolescencia y Juventud | B141: Bolívar | C141: 13440 | D141: Margarita | E141: 68 | F141: 184589 | G141: 506147 | H141: 0 | I141: 100 | J141: 161073550
A142: Adolescencia y Juventud | B142: Bolívar | C142: 13468 | D142: Mompós | E142: 68 | F142: 184589 | G142: 506147 | H142: 0 | I142: 100 | J142: 161073550
A143: Adolescencia y Juventud | B143: Bolívar | C143: 13780 | D143: Talaigua Nuevo | E143: 68 | F143: 184589 | G143: 506147 | H143: 0 | I143: 100 | J143: 161073550
A144: Adolescencia y Juventud | B144: Bolívar | C144: 13006 | D144: Achí | E144: 69 | F144: 184589 | G144: 506147 | H144: 0 | I144: 100 | J144: 161073550
A145: Adolescencia y Juventud | B145: Bolívar | C145: 13430 | D145: Magangué | E145: 69 | F145: 184589 | G145: 506147 | H145: 0 | I145: 200 | J145: 322147100
A146: Adolescencia y Juventud | B146: Bolívar | C146: 13458 | D146: Montecristo | E146: 69 | F146: 184589 | G146: 506147 | H146: 0 | I146: 100 | J146: 161073550
A147: Adolescencia y Juventud | B147: Bolívar | C147: 13549 | D147: Pinillos | E147: 69 | F147: 184589 | G147: 506147 | H147: 0 | I147: 100 | J147: 161073550
A148: Adolescencia y Juventud | B148: Bolívar | C148: 13655 | D148: San Jacinto del Cauca | E148: 69 | F148: 184589 | G148: 506147 | H148: 0 | I148: 100 | J148: 161073550
A149: Adolescencia y Juventud | B149: Bolívar | C149: 13810 | D149: Tiquisio | E149: 69 | F149: 184589 | G149: 506147 | H149: 0 | I149: 100 | J149: 161073550
A150: Adolescencia y Juventud | B150: Bolívar | C150: 13212 | D150: Córdoba | E150: 70 | F150: 184589 | G150: 506147 | H150: 0 | I150: 100 | J150: 161073550
A151: Adolescencia y Juventud | B151: Bolívar | C151: 13244 | D151: El Carmen de Bolívar | E151: 70 | F151: 184589 | G151: 506147 | H151: 0 | I151: 100 | J151: 161073550
A152: Adolescencia y Juventud | B152: Bolívar | C152: 13654 | D152: San Jacinto | E152: 70 | F152: 184589 | G152: 506147 | H152: 0 | I152: 100 | J152: 161073550
A153: Adolescencia y Juventud | B153: Bolívar | C153: 13657 | D153: San Juan Nepomuceno | E153: 70 | F153: 184589 | G153: 506147 | H153: 0 | I153: 100 | J153: 161073550
A154: Adolescencia y Juventud | B154: Bolívar | C154: 13894 | D154: Zambrano | E154: 70 | F154: 184589 | G154: 506147 | H154: 0 | I154: 100 | J154: 161073550
A155: Adolescencia y Juventud | B155: Bolívar | C155: 13052 | D155: Arjona | E155: 71 | F155: 184589 | G155: 506147 | H155: 0 | I155: 100 | J155: 161073550
A156: Adolescencia y Juventud | B156: Bolívar | C156: 13140 | D156: Calamar | E156: 71 | F156: 184589 | G156: 506147 | H156: 0 | I156: 100 | J156: 161073550
A157: Adolescencia y Juventud | B157: Bolívar | C157: 13442 | D157: María La Baja | E157: 71 | F157: 184589 | G157: 506147 | H157: 0 | I157: 100 | J157: 161073550
A158: Adolescencia y Juventud | B158: Bolívar | C158: 13836 | D158: Turbaco | E158: 71 | F158: 184589 | G158: 506147 | H158: 0 | I158: 200 | J158: 322147100
A159: Adolescencia y Juventud | B159: Cesar | C159: 20011 | D159: Aguachica | E159: 72 | F159: 186345 | G159: 508349 | H159: 0 | I159: 100 | J159: 161821950
A160: Adolescencia y Juventud | B160: Cesar | C160: 20175 | D160: Chimichagua | E160: 72 | F160: 186345 | G160: 508349 | H160: 0 | I160: 100 | J160: 161821950
A161: Adolescencia y Juventud | B161: Cesar | C161: 20178 | D161: Chiriguaná | E161: 72 | F161: 186345 | G161: 508349 | H161: 0 | I161: 240 | J161: 437865480
A162: Adolescencia y Juventud | B162: Cesar | C162: 20228 | D162: Curumaní | E162: 72 | F162: 186345 | G162: 508349 | H162: 0 | I162: 100 | J162: 161821950
A163: Adolescencia y Juventud | B163: Cesar | C163: 20250 | D163: El Paso | E163: 72 | F163: 186345 | G163: 508349 | H163: 0 | I163: 100 | J163: 161821950
A164: Adolescencia y Juventud | B164: Cesar | C164: 20295 | D164: Gamarra | E164: 72 | F164: 186345 | G164: 508349 | H164: 0 | I164: 100 | J164: 161821950
A165: Adolescencia y Juventud | B165: Cesar | C165: 20383 | D165: La Gloria | E165: 72 | F165: 186345 | G165: 508349 | H165: 0 | I165: 100 | J165: 161821950
A166: Adolescencia y Juventud | B166: Cesar | C166: 20517 | D166: Pailitas | E166: 72 | F166: 186345 | G166: 508349 | H166: 0 | I166: 100 | J166: 161821950
A167: Adolescencia y Juventud | B167: Cesar | C167: 20550 | D167: Pelaya | E167: 72 | F167: 186345 | G167: 508349 | H167: 0 | I167: 100 | J167: 161821950
A168: Adolescencia y Juventud | B168: Cesar | C168: 20787 | D168: Tamalameque | E168: 72 | F168: 186345 | G168: 508349 | H168: 0 | I168: 100 | J168: 161821950
A169: Adolescencia y Juventud | B169: Cesar | C169: 20001 | D169: Valledupar | E169: 73 | F169: 186345 | G169: 508349 | H169: 0 | I169: 300 | J169: 485465850
A170: Adolescencia y Juventud | B170: Cesar | C170: 20013 | D170: Agustín Codazzi | E170: 73 | F170: 186345 | G170: 508349 | H170: 0 | I170: 200 | J170: 323643900
A171: Adolescencia y Juventud | B171: Cesar | C171: 20060 | D171: Bosconia | E171: 73 | F171: 186345 | G171: 508349 | H171: 0 | I171: 100 | J171: 161821950
A172: Adolescencia y Juventud | B172: Cesar | C172: 20400 | D172: La Jagua de Ibirico | E172: 73 | F172: 186345 | G172: 508349 | H172: 0 | I172: 100 | J172: 161821950
A173: Adolescencia y Juventud | B173: Cesar | C173: 20570 | D173: Pueblo Bello | E173: 73 | F173: 186345 | G173: 508349 | H173: 0 | I173: 100 | J173: 161821950
A174: Adolescencia y Juventud | B174: Cesar | C174: 20621 | D174: La Paz | E174: 73 | F174: 186345 | G174: 508349 | H174: 0 | I174: 100 | J174: 161821950
A175: Adolescencia y Juventud | B175: Cesar | C175: 20750 | D175: San Diego | E175: 73 | F175: 186345 | G175: 508349 | H175: 0 | I175: 100 | J175: 161821950
A176: Adolescencia y Juventud | B176: Valle del Cauca | C176: 76111 | D176: Guadalajara de Buga | E176: 76 | F176: 187262 | G176: 507542 | H176: 0 | I176: 330 | J176: 582402150
A177: Adolescencia y Juventud | B177: Santander | C177: 68001 | D177: Bucaramanga | E177: 78 | F177: 195945 | G177: 517732 | H177: 0 | I177: 200 | J177: 330233700
A178: Adolescencia y Juventud | B178: Santander | C178: 68081 | D178: Barrancabermeja | E178: 78 | F178: 195945 | G178: 517732 | H178: 0 | I178: 100 | J178: 165116850
A179: Adolescencia y Juventud | B179: Santander | C179: 68255 | D179: El Playón | E179: 78 | F179: 195945 | G179: 517732 | H179: 0 | I179: 100 | J179: 165116850
A180: Adolescencia y Juventud | B180: Santander | C180: 68276 | D180: Floridablanca | E180: 78 | F180: 195945 | G180: 517732 | H180: 0 | I180: 100 | J180: 165116850
A181: Adolescencia y Juventud | B181: Santander | C181: 68547 | D181: Piedecuesta | E181: 78 | F181: 195945 | G181: 517732 | H181: 0 | I181: 100 | J181: 165116850
A182: Adolescencia y Juventud | B182: Santander | C182: 68573 | D182: Puerto Parra | E182: 78 | F182: 195945 | G182: 517732 | H182: 0 | I182: 100 | J182: 165116850
A183: Adolescencia y Juventud | B183: Santander | C183: 68575 | D183: Puerto Wilches | E183: 78 | F183: 195945 | G183: 517732 | H183: 0 | I183: 100 | J183: 165116850
A184: Adolescencia y Juventud | B184: Santander | C184: 68655 | D184: Sabana de Torres | E184: 78 | F184: 195945 | G184: 517732 | H184: 0 | I184: 100 | J184: 165116850
A185: Adolescencia y Juventud | B185: Santander | C185: 68745 | D185: Simacota | E185: 78 | F185: 195945 | G185: 517732 | H185: 0 | I185: 100 | J185: 165116850
A186: Adolescencia y Juventud | B186: Antioquia | C186: 5120 | D186: Cáceres | E186: 80 | F186: 185287 | G186: 504511 | H186: 0 | I186: 100 | J186: 160617650
A187: Adolescencia y Juventud | B187: Antioquia | C187: 5154 | D187: Caucasia | E187: 80 | F187: 185287 | G187: 504511 | H187: 0 | I187: 150 | J187: 240926475
A188: Adolescencia y Juventud | B188: Antioquia | C188: 5250 | D188: El Bagre | E188: 80 | F188: 185287 | G188: 504511 | H188: 0 | I188: 150 | J188: 240926475
A189: Adolescencia y Juventud | B189: Antioquia | C189: 5495 | D189: Nechí | E189: 80 | F189: 185287 | G189: 504511 | H189: 0 | I189: 100 | J189: 160617650
A190: Adolescencia y Juventud | B190: Antioquia | C190: 5790 | D190: Tarazá | E190: 80 | F190: 185287 | G190: 504511 | H190: 0 | I190: 100 | J190: 160617650
A191: Adolescencia y Juventud | B191: Antioquia | C191: 5895 | D191: Zaragoza | E191: 80 | F191: 185287 | G191: 504511 | H191: 0 | I191: 100 | J191: 160617650
A192: Adolescencia y Juventud | B192: Antioquia | C192: 5045 | D192: Apartadó | E192: 81 | F192: 185287 | G192: 504511 | H192: 0 | I192: 150 | J192: 240926475
A193: Adolescencia y Juventud | B193: Antioquia | C193: 5051 | D193: Arboletes | E193: 81 | F193: 185287 | G193: 504511 | H193: 0 | I193: 100 | J193: 160617650
A194: Adolescencia y Juventud | B194: Antioquia | C194: 5147 | D194: Carepa | E194: 81 | F194: 185287 | G194: 504511 | H194: 0 | I194: 100 | J194: 160617650
A195: Adolescencia y Juventud | B195: Antioquia | C195: 5172 | D195: Chigorodó | E195: 81 | F195: 185287 | G195: 504511 | H195: 0 | I195: 100 | J195: 160617650
A196: Adolescencia y Juventud | B196: Antioquia | C196: 5475 | D196: Murindó | E196: 81 | F196: 185287 | G196: 504511 | H196: 0 | I196: 50 | J196: 80308825
A197: Adolescencia y Juventud | B197: Antioquia | C197: 5480 | D197: Mutatá | E197: 81 | F197: 185287 | G197: 504511 | H197: 0 | I197: 100 | J197: 160617650
A198: Adolescencia y Juventud | B198: Antioquia | C198: 5490 | D198: Necoclí | E198: 81 | F198: 185287 | G198: 504511 | H198: 0 | I198: 200 | J198: 321235300
A199: Adolescencia y Juventud | B199: Antioquia | C199: 5659 | D199: San Juan de Urabá | E199: 81 | F199: 185287 | G199: 504511 | H199: 0 | I199: 100 | J199: 160617650
A200: Adolescencia y Juventud | B200: Antioquia | C200: 5665 | D200: San Pedro de Urabá | E200: 81 | F200: 185287 | G200: 504511 | H200: 0 | I200: 100 | J200: 160617650
... 16 more rows
